Workbook

Sheet Introduction
C4: Joint Monitoring Programme for Water Supply, Sanitation and Hygiene
C6: Estimates on household water, sanitation and hygiene by wealth quintile and sub-national region in
C7: =+Water!B5 -> Malawi
C9: Updated May 2021
C11: Follow the links below to find the following information:
C13: JMP Estimates
C14: WASH status and trends by wealth quintile (customized quintiles made without water and sanitation assets)
C15: Water
C16: Sanitation
C17: Hygiene
C19: Data inputs
C20: customized wealth quintiles and subnational data:
C21: =IF(INDIRECT(CONCATENATE("Water","!B105"))=0,"",INDIRECT(CONCATENATE("Water","!B105"))) -> MIS17
C22: =IF(INDIRECT(CONCATENATE("Water","!B106"))=0,"",INDIRECT(CONCATENATE("Water","!B106"))) -> DHS16
C23: =IF(INDIRECT(CONCATENATE("Water","!B107"))=0,"",INDIRECT(CONCATENATE("Water","!B107"))) -> MICS14
C24: =IF(INDIRECT(CONCATENATE("Water","!B108"))=0,"",INDIRECT(CONCATENATE("Water","!B108"))) -> MIS14
C25: =IF(INDIRECT(CONCATENATE("Water","!B109"))=0,"",INDIRECT(CONCATENATE("Water","!B109"))) -> MIS12
C26: =IF(INDIRECT(CONCATENATE("Water","!B110"))=0,"",INDIRECT(CONCATENATE("Water","!B110"))) -> DHS10
C27: =IF(INDIRECT(CONCATENATE("Water","!B111"))=0,"",INDIRECT(CONCATENATE("Water","!B111"))) -> MICS06
C28: =IF(INDIRECT(CONCATENATE("Water","!B112"))=0,"",INDIRECT(CONCATENATE("Water","!B112"))) -> DHS04
C29: =IF(INDIRECT(CONCATENATE("Water","!B113"))=0,"",INDIRECT(CONCATENATE("Water","!B113"))) -> DHS00
C30: =IF(INDIRECT(CONCATENATE("Water","!B114"))=0,"",INDIRECT(CONCATENATE("Water","!B114"))) -> 
C31: =IF(INDIRECT(CONCATENATE("Water","!B115"))=0,"",INDIRECT(CONCATENATE("Water","!B115"))) -> 
C32: =IF(INDIRECT(CONCATENATE("Water","!B116"))=0,"",INDIRECT(CONCATENATE("Water","!B116"))) -> 
L55: =+IF(ISNUMBER(M48), "", "Insufficient data to estimate safely managed sanitation services at national level") -> Insufficient data to estimate safely managed sanitation services at national level

Sheet Water
A1: BGD
B4: Summary of trends in use of drinking water by wealth quintile (%)
B5: =IF(ISERROR(INDIRECT(CONCATENATE($B105,"!A2"))),"",INDIRECT(CONCATENATE($B105,"!A2"))) -> Malawi
B7: =B118 -> National use of drinking water sources, 2000–2020 | J7: =B218 -> Urban use of drinking water sources, 2000–2020 | R7: =B318 -> Rural use of drinking water sources, 2000–2020
B31: =IF(ISERROR(INDIRECT(CONCATENATE($B105,"!A2"))),"",INDIRECT(CONCATENATE($B105,"!A2"))) -> Malawi | F31: Poorest | J31: Poor | N31: Middle | R31: Rich | V31: Richest
F32: Basic | G32: Limited | H32: Unimproved | I32: Surface water | J32: Basic | K32: Limited | L32: Unimproved | M32: Surface water | N32: Basic | O32: Limited | P32: Unimproved | Q32: Surface water | R32: Basic | S32: Limited | T32: Unimproved | U32: Surface water | V32: Basic | W32: Limited | X32: Unimproved | Y32: Surface water
B33: NATIONAL | D33: Estimate | E33: =C99 -> 2000 | F33: =E99 -> 41.37286667 | G33: =F99 -> 13.65945087 | H33: 32.66606982 | I33: 12.30161264 | J33: =J99 -> 40.65801679 | K33: =K99 -> 14.0031897 | L33: 34.06204469 | M33: 11.27674882 | N33: =O99 -> 44.54162404 | O33: =P99 -> 15.38730531 | P33: 30.03502958 | Q33: 10.03604108 | R33: =T99 -> 46.57184709 | S33: =U99 -> 14.22207366 | T33: 30.26249326 | U33: 8.943585994 | V33: =Y99 -> 76.58828389 | W33: =Z99 -> 10.78432878 | X33: 9.866370179 | Y33: 2.761017149
E34: =C100 -> 2020 | F34: =E100 -> 65.04417866 | G34: 21.47464834 | H34: 11.92700935 | I34: 1.55416366 | J34: =J100 -> 65.79593493 | K34: 22.66104034 | L34: 9.627430071 | M34: 1.915594655 | N34: =O100 -> 66.96158842 | O34: 23.13248399 | P34: 8.467834038 | Q34: 1.438093548 | R34: =T100 -> 72.06399977 | S34: 22.00684699 | T34: 4.83241552 | U34: 1.096737723 | V34: =Y100 -> 85.80177236 | W34: 12.08167197 | X34: 1.81392553 | Y34: 0.3026301375
B36: URBAN | D36: Estimate | E36: =C199 -> 2000 | F36: =E199 -> 67.06741976 | G36: =F199 -> 11.55690661 | H36: 17.06865254 | I36: 4.307021099 | J36: =J199 -> 77.04710691 | K36: =K199 -> 13.53786026 | L36: 8.4641808 | M36: 0.9508520265 | N36: =O199 -> 84.47336016 | O36: =P199 -> 10.83487871 | P36: 3.995774755 | Q36: 0.6959863772 | R36: =T199 -> 91.04187604 | S36: =U199 -> 6.743083511 | T36: 2.215040444 | U36: 0 | V36: =Y199 -> 96.37979975 | W36: =Z199 -> 3.079952484 | X36: 0.5402477614 | Y36: 0
E37: =C200 -> 2020 | F37: =E200 -> 80.40124053 | G37: 13.85456055 | H37: 5.628335962 | I37: 0.1158629594 | J37: =J200 -> 83.00598183 | K37: 14.58488745 | L37: 2.35938306 | M37: 0.04974765189 | N37: =O200 -> 86.88353715 | O37: 11.14401729 | P37: 1.972445561 | Q37: 0 | R37: =T200 -> 92.41196806 | S37: 6.844560384 | T37: 0.6432220012 | U37: 0.1002495514 | V37: =Y200 -> 96.90219304 | W37: 3.096646298 | X37: 0.001160666048 | Y37: 0
B39: RURAL | D39: Estimate | E39: =C299 -> 2000 | F39: =E299 -> 39.91312927 | G39: =F299 -> 13.60115482 | H39: 33.47634268 | I39: 13.00937323 | J39: =J299 -> 40.45035462 | K39: =K299 -> 14.13815264 | L39: 34.10410898 | M39: 11.30738375 | N39: =O299 -> 41.67747875 | O39: =P299 -> 14.941458 | P39: 32.37405445 | Q39: 11.0070088 | R39: =T299 -> 43.04172107 | S39: =U299 -> 14.33939332 | T39: 32.97392836 | U39: 9.644957254 | V39: =Y299 -> 59.45649678 | W39: =Z299 -> 14.9550933 | X39: 19.52340103 | Y39: 6.065008893
E40: =C300 -> 2020 | F40: =E300 -> 64.5225122 | G40: 21.98726819 | H40: 11.98932734 | I40: 1.500892275 | J40: =J300 -> 64.6833943 | K40: 22.60805154 | L40: 10.78810775 | M40: 1.920446406 | N40: =O300 -> 66.58594888 | O40: 23.87119347 | P40: 7.971887387 | Q40: 1.570970261 | R40: =T300 -> 69.37286024 | S40: 23.11163921 | T40: 6.084759418 | U40: 1.430741133 | V40: =Y300 -> 74.31431215 | W40: 18.69227976 | X40: 5.510176523 | Y40: 1.483231563
A97: NATIONAL | D97: Poorest | I97: Poor | N97: Middle | S97: Rich | X97: Richest
D98: Improved | E98: Basic | F98: Limited | G98: Unimproved | H98: Surface water | I98: Improved | J98: Basic | K98: Limited | L98: Unimproved | M98: Surface water | N98: Improved | O98: Basic | P98: Limited | Q98: Unimproved | R98: Surface water | S98: Improved | T98: Basic | U98: Limited | V98: Unimproved | W98: Surface water | X98: Improved | Y98: Basic | Z98: Limited | AA98: Unimproved | AB98: Surface water
A99: Forecast period: | C99: 2000 | D99: =IF((D101+H101)>100,D101*100/(D101+H101),D101) -> 55.03231753 | E99: =D99*AVERAGEIF(E105:E116,">0")/100 -> 41.37286667 | F99: =D99*(100-AVERAGEIF(E105:E116,">0"))/100 -> 13.65945087 | G99: =100-(E99+F99+H99) -> 32.66606982 | H99: =IF((D101+H101)>100,H101*100/(D101+H101),H101) -> 12.30161264 | I99: =IF((I101+M101)>100,I101*100/(I101+M101),I101) -> 54.66120649 | J99: =I99*AVERAGEIF(J105:J116,">0")/100 -> 40.65801679 | K99: =I99*(100-AVERAGEIF(J105:J116,">0"))/100 -> 14.0031897 | L99: =100-(J99+K99+M99) -> 34.06204469 | M99: =IF((I101+M101)>100,M101*100/(I101+M101),M101) -> 11.27674882 | N99: =IF((N101+R101)>100,N101*100/(N101+R101),N101) -> 59.92892934 | O99: =N99*AVERAGEIF(O105:O116,">0")/100 -> 44.54162404 | P99: =N99*(100-AVERAGEIF(O105:O116,">0"))/100 -> 15.38730531 | Q99: =100-(O99+P99+R99) -> 30.03502958 | R99: =IF((N101+R101)>100,R101*100/(N101+R101),R101) -> 10.03604108 | S99: =IF((S101+W101)>100,S101*100/(S101+W101),S101) -> 60.79392074 | T99: =S99*AVERAGEIF(T105:T116,">0")/100 -> 46.57184709 | U99: =S99*(100-AVERAGEIF(T105:T116,">0"))/100 -> 14.22207366 | V99: =100-(T99+U99+W99) -> 30.26249326 | W99: =IF((S101+W101)>100,W101*100/(S101+W101),W101) -> 8.943585994 | X99: =IF((X101+AB101)>100,X101*100/(X101+AB101),X101) -> 87.37261267 | Y99: =X99*AVERAGEIF(Y105:Y116,">0")/100 -> 76.58828389 | Z99: =X99*(100-AVERAGEIF(Y105:Y116,">0"))/100 -> 10.78432878 | AA99: =100-(Y99+Z99+AB99) -> 9.866370179 | AB99: =IF((X101+AB101)>100,AB101*100/(X101+AB101),AB101) -> 2.761017149
C100: 2020 | D100: =IF((D102+H102)>100,D102*100/(D102+H102),D102) -> 86.51882699 | E100: =D100*AVERAGEIF(E105:E116,">0")/100 -> 65.04417866 | F100: =D100*(100-AVERAGEIF(E105:E116,">0"))/100 -> 21.47464834 | G100: =100-(E100+F100+H100) -> 11.92700935 | H100: =IF((D102+H102)>100,H102*100/(D102+H102),H102) -> 1.55416366 | I100: =IF((I102+M102)>100,I102*100/(I102+M102),I102) -> 88.45697527 | J100: =I100*AVERAGEIF(J105:J116,">0")/100 -> 65.79593493 | K100: =I100*(100-AVERAGEIF(J105:J116,">0"))/100 -> 22.66104034 | L100: =100-(J100+K100+M100) -> 9.627430071 | M100: =IF((I102+M102)>100,M102*100/(I102+M102),M102) -> 1.915594655 | N100: =IF((N102+R102)>100,N102*100/(N102+R102),N102) -> 90.09407241 | O100: =N100*AVERAGEIF(O105:O116,">0")/100 -> 66.96158842 | P100: =N100*(100-AVERAGEIF(O105:O116,">0"))/100 -> 23.13248399 | Q100: =100-(O100+P100+R100) -> 8.467834038 | R100: =IF((N102+R102)>100,R102*100/(N102+R102),R102) -> 1.438093548 | S100: =IF((S102+W102)>100,S102*100/(S102+W102),S102) -> 94.07084676 | T100: =S100*AVERAGEIF(T105:T116,">0")/100 -> 72.06399977 | U100: =S100*(100-AVERAGEIF(T105:T116,">0"))/100 -> 22.00684699 | V100: =100-(T100+U100+W100) -> 4.83241552 | W100: =IF((S102+W102)>100,W102*100/(S102+W102),W102) -> 1.096737723 | X100: =IF((X102+AB102)>100,X102*100/(X102+AB102),X102) -> 97.88344433 | Y100: =X100*AVERAGEIF(Y105:Y116,">0")/100 -> 85.80177236 | Z100: =X100*(100-AVERAGEIF(Y105:Y116,">0"))/100 -> 12.08167197 | AA100: =100-(Y100+Z100+AB100) -> 1.81392553 | AB100: =IF((X102+AB102)>100,AB102*100/(X102+AB102),AB102) -> 0.3026301375
A101: Regression period: | C101: =MinRegYear(C99,C105:C116) -> 2000 | D101: =IF(MAX(C105:C116)-MIN(C105:C116)<5,AVERAGEIF(C105:C116,">0",D105:D116), IF(FORECAST($C101,D$105:D$116,$C$105:$C$116)<0,0, IF(FORECAST($C101,D$105:D$116,$C$105:$C$116)>100,100, FORECAST($C101,D$105:D$116,$C$105:$C$116)))) -> 55.03231753 | H101: =IF(MAX(C105:C116)-MIN(C105:C116)<5,AVERAGEIF(C105:C116,">0",H105:H116), IF(FORECAST($C101,H$105:H$116,$C$105:$C$116)<0,0, IF(FORECAST($C101,H$105:H$116,$C$105:$C$116)>100,100, FORECAST($C101,H$105:H$116,$C$105:$C$116)))) -> 12.30161264 | I101: =IF(MAX(C105:C116)-MIN(C105:C116)<5,AVERAGEIF(C105:C116,">0",I105:I116), IF(FORECAST($C101,I$105:I$116,$C$105:$C$116)<0,0, IF(FORECAST($C101,I$105:I$116,$C$105:$C$116)>100,100, FORECAST($C101,I$105:I$116,$C$105:$C$116)))) -> 54.66120649 | M101: =IF(MAX(C105:C116)-MIN(C105:C116)<5,AVERAGEIF(C105:C116,">0",M105:M116), IF(FORECAST($C101,M$105:M$116,$C$105:$C$116)<0,0, IF(FORECAST($C101,M$105:M$116,$C$105:$C$116)>100,100, FORECAST($C101,M$105:M$116,$C$105:$C$116)))) -> 11.27674882 | N101: =IF(MAX(C105:C116)-MIN(C105:C116)<5,AVERAGEIF(C105:C116,">0",N105:N116), IF(FORECAST($C101,N$105:N$116,$C$105:$C$116)<0,0, IF(FORECAST($C101,N$105:N$116,$C$105:$C$116)>100,100, FORECAST($C101,N$105:N$116,$C$105:$C$116)))) -> 59.92892934 | R101: =IF(MAX(C105:C116)-MIN(C105:C116)<5,AVERAGEIF(C105:C116,">0",R105:R116), IF(FORECAST($C101,R$105:R$116,$C$105:$C$116)<0,0, IF(FORECAST($C101,R$105:R$116,$C$105:$C$116)>100,100, FORECAST($C101,R$105:R$116,$C$105:$C$116)))) -> 10.03604108 | S101: =IF(MAX(C105:C116)-MIN(C105:C116)<5,AVERAGEIF(C105:C116,">0",S105:S116), IF(FORECAST($C101,S$105:S$116,$C$105:$C$116)<0,0, IF(FORECAST($C101,S$105:S$116,$C$105:$C$116)>100,100, FORECAST($C101,S$105:S$116,$C$105:$C$116)))) -> 60.79392074 | W101: =IF(MAX(C105:C116)-MIN(C105:C116)<5,AVERAGEIF(C105:C116,">0",W105:W116), IF(FORECAST($C101,W$105:W$116,$C$105:$C$116)<0,0, IF(FORECAST($C101,W$105:W$116,$C$105:$C$116)>100,100, FORECAST($C101,W$105:W$116,$C$105:$C$116)))) -> 8.943585994 | X101: =IF(MAX(C105:C116)-MIN(C105:C116)<5,AVERAGEIF(C105:C116,">0",X105:X116), IF(FORECAST($C101,X$105:X$116,$C$105:$C$116)<0,0, IF(FORECAST($C101,X$105:X$116,$C$105:$C$116)>100,100, FORECAST($C101,X$105:X$116,$C$105:$C$116)))) -> 87.37261267 | AB101: =IF(MAX(C105:C116)-MIN(C105:C116)<5,AVERAGEIF(C105:C116,">0",AB105:AB116), IF(FORECAST($C101,AB$105:AB$116,$C$105:$C$116)<0,0, IF(FORECAST($C101,AB$105:AB$116,$C$105:$C$116)>100,100, FORECAST($C101,AB$105:AB$116,$C$105:$C$116)))) -> 2.761017149
C102: =MaxRegYear(C100,C105:C116) -> 2019 | D102: =IF(MAX(C105:C116)-MIN(C105:C116)<5,AVERAGEIF(C105:C116,">0",D105:D116), IF(FORECAST($C102,D$105:D$116,$C$105:$C$116)<0,0, IF(FORECAST($C102,D$105:D$116,$C$105:$C$116)>100,100, FORECAST($C102,D$105:D$116,$C$105:$C$116)))) -> 86.51882699 | H102: =IF(MAX(C105:C116)-MIN(C105:C116)<5,AVERAGEIF(C105:C116,">0",H105:H116), IF(FORECAST($C102,H$105:H$116,$C$105:$C$116)<0,0, IF(FORECAST($C102,H$105:H$116,$C$105:$C$116)>100,100, FORECAST($C102,H$105:H$116,$C$105:$C$116)))) -> 1.55416366 | I102: =IF(MAX(C105:C116)-MIN(C105:C116)<5,AVERAGEIF(C105:C116,">0",I105:I116), IF(FORECAST($C102,I$105:I$116,$C$105:$C$116)<0,0, IF(FORECAST($C102,I$105:I$116,$C$105:$C$116)>100,100, FORECAST($C102,I$105:I$116,$C$105:$C$116)))) -> 88.45697527 | M102: =IF(MAX(C105:C116)-MIN(C105:C116)<5,AVERAGEIF(C105:C116,">0",M105:M116), IF(FORECAST($C102,M$105:M$116,$C$105:$C$116)<0,0, IF(FORECAST($C102,M$105:M$116,$C$105:$C$116)>100,100, FORECAST($C102,M$105:M$116,$C$105:$C$116)))) -> 1.915594655 | N102: =IF(MAX(C105:C116)-MIN(C105:C116)<5,AVERAGEIF(C105:C116,">0",N105:N116), IF(FORECAST($C102,N$105:N$116,$C$105:$C$116)<0,0, IF(FORECAST($C102,N$105:N$116,$C$105:$C$116)>100,100, FORECAST($C102,N$105:N$116,$C$105:$C$116)))) -> 90.09407241 | R102: =IF(MAX(C105:C116)-MIN(C105:C116)<5,AVERAGEIF(C105:C116,">0",R105:R116), IF(FORECAST($C102,R$105:R$116,$C$105:$C$116)<0,0, IF(FORECAST($C102,R$105:R$116,$C$105:$C$116)>100,100, FORECAST($C102,R$105:R$116,$C$105:$C$116)))) -> 1.438093548 | S102: =IF(MAX(C105:C116)-MIN(C105:C116)<5,AVERAGEIF(C105:C116,">0",S105:S116), IF(FORECAST($C102,S$105:S$116,$C$105:$C$116)<0,0, IF(FORECAST($C102,S$105:S$116,$C$105:$C$116)>100,100, FORECAST($C102,S$105:S$116,$C$105:$C$116)))) -> 94.07084676 | W102: =IF(MAX(C105:C116)-MIN(C105:C116)<5,AVERAGEIF(C105:C116,">0",W105:W116), IF(FORECAST($C102,W$105:W$116,$C$105:$C$116)<0,0, IF(FORECAST($C102,W$105:W$116,$C$105:$C$116)>100,100, FORECAST($C102,W$105:W$116,$C$105:$C$116)))) -> 1.096737723 | X102: =IF(MAX(C105:C116)-MIN(C105:C116)<5,AVERAGEIF(C105:C116,">0",X105:X116), IF(FORECAST($C102,X$105:X$116,$C$105:$C$116)<0,0, IF(FORECAST($C102,X$105:X$116,$C$105:$C$116)>100,100, FORECAST($C102,X$105:X$116,$C$105:$C$116)))) -> 97.88344433 | AB102: =IF(MAX(C105:C116)-MIN(C105:C116)<5,AVERAGEIF(C105:C116,">0",AB105:AB116), IF(FORECAST($C102,AB$105:AB$116,$C$105:$C$116)<0,0, IF(FORECAST($C102,AB$105:AB$116,$C$105:$C$116)>100,100, FORECAST($C102,AB$105:AB$116,$C$105:$C$116)))) -> 0.3026301375
B104: Survey | C104: Year | D104: Improved | E104: % Improved < = 30min | H104: Surface water | I104: Improved | J104: % Improved < = 30min | M104: Surface water | N104: Improved | O104: % Improved < = 30min | R104: Surface water | S104: Improved | T104: % Improved < = 30min | W104: Surface water | X104: Improved | Y104: % Improved < = 30min | AB104: Surface water
B105: MIS17 | C105: 2017 | D105: =IF(ISERROR(INDIRECT(CONCATENATE($B105,"!C16"))),"",INDIRECT(CONCATENATE($B105,"!C16"))) -> 82.66583171 | E105: =IF(ISERROR(INDIRECT(CONCATENATE($B105,"!C23"))),"",INDIRECT(CONCATENATE($B105,"!C23"))) -> 92.81466123 | H105: =IF(ISERROR(INDIRECT(CONCATENATE($B105,"!C21"))),"",INDIRECT(CONCATENATE($B105,"!C21"))) -> 3.699211769 | I105: =IF(ISERROR(INDIRECT(CONCATENATE($B105,"!D16"))),"",INDIRECT(CONCATENATE($B105,"!D16"))) -> 81.1364578 | J105: =IF(ISERROR(INDIRECT(CONCATENATE($B105,"!D23"))),"",INDIRECT(CONCATENATE($B105,"!D23"))) -> 88.38755261 | M105: =IF(ISERROR(INDIRECT(CONCATENATE($B105,"!D21"))),"",INDIRECT(CONCATENATE($B105,"!D21"))) -> 4.940835207 | N105: =IF(ISERROR(INDIRECT(CONCATENATE($B105,"!E16"))),"",INDIRECT(CONCATENATE($B105,"!E16"))) -> 86.37606452 | O105: =IF(ISERROR(INDIRECT(CONCATENATE($B105,"!E23"))),"",INDIRECT(CONCATENATE($B105,"!E23"))) -> 84.68212367 | R105: =IF(ISERROR(INDIRECT(CONCATENATE($B105,"!E21"))),"",INDIRECT(CONCATENATE($B105,"!E21"))) -> 3.880372332 | S105: =IF(ISERROR(INDIRECT(CONCATENATE($B105,"!F16"))),"",INDIRECT(CONCATENATE($B105,"!F16"))) -> 87.69725465 | T105: =IF(ISERROR(INDIRECT(CONCATENATE($B105,"!F23"))),"",INDIRECT(CONCATENATE($B105,"!F23"))) -> 89.78891133 | W105: =IF(ISERROR(INDIRECT(CONCATENATE($B105,"!F21"))),"",INDIRECT(CONCATENATE($B105,"!F21"))) -> 3.331179905 | X105: =IF(ISERROR(INDIRECT(CONCATENATE($B105,"!G16"))),"",INDIRECT(CONCATENATE($B105,"!G16"))) -> 96.25977471 | Y105: =IF(ISERROR(INDIRECT(CONCATENATE($B105,"!G23"))),"",INDIRECT(CONCATENATE($B105,"!G23"))) -> 94.59875217 | AB105: =IF(ISERROR(INDIRECT(CONCATENATE($B105,"!G221"))),"",INDIRECT(CONCATENATE($B105,"!G21"))) -> 0.9068435087
B106: DHS16 | C106: 2016 | D106: 80.55180493 | E106: 68.20579117 | H106: 5.095146129 | I106: 82.92418064 | J106: 68.92191906 | M106: 5.132540193 | N106: 85.24007894 | O106: 68.64678386 | R106: 4.317264063 | S106: 89.65568984 | T106: 68.90332659 | W106: 3.000135783 | X106: 97.03076108 | Y106: 84.60535016 | AB106: 0.8452182557
B107: MICS14 | C107: 2014 | D107: 81.5 | E107: 59.5 | H107: 3.4 | I107: 83.9 | J107: 59.3 | M107: 3.2 | N107: 83.3 | O107: 58.3 | R107: 3.2 | S107: 86.2 | T107: 61.7 | W107: 2.9 | X107: 96.2 | Y107: 79.8 | AB107: 0.8
B108: MIS14 | D108: 76.02411897 | E108: 83.02327869 | H108: 3.403618097 | I108: 80.80951827 | J108: 77.78789439 | M108: 5.640207234 | N108: 77.12594406 | O108: 83.50346847 | R108: 9.893039202 | S108: 86.40452839 | T108: 84.54968425 | W108: 2.175042642 | X108: 96.02662169 | Y108: 93.45196066 | AB108: 0.09342408581
B109: MIS12 | C109: 2012 | D109: 72.8 | E109: 87.9 | H109: 4.6 | I109: 76.1 | J109: 87.2 | M109: 4.1 | N109: 79.6 | O109: 84 | R109: 2.9 | S109: 81.7 | T109: 87.1 | W109: 3.5 | X109: 93.5 | Y109: 96.1 | AB109: 0.8
B110: DHS10 | C110: 2010 | D110: 73.3 | E110: 69.5 | H110: 4.3 | I110: 73.8 | J110: 71.3 | M110: 3.3 | N110: 76.1 | O110: 72.9 | R110: 3.4 | S110: 81 | T110: 77.3 | W110: 2.1 | X110: 93 | Y110: 84.8 | AB110: 0.8
B111: MICS06 | C111: 2006 | D111: =IF(ISERROR(INDIRECT(CONCATENATE($B111,"!C16"))),"",INDIRECT(CONCATENATE($B111,"!C16"))) -> 68.03155266 | E111: =IF(ISERROR(INDIRECT(CONCATENATE($B111,"!C23"))),"",INDIRECT(CONCATENATE($B111,"!C23"))) -> 65.31080381 | H111: =IF(ISERROR(INDIRECT(CONCATENATE($B111,"!C21"))),"",INDIRECT(CONCATENATE($B111,"!C21"))) -> 7.888894277 | I111: =IF(ISERROR(INDIRECT(CONCATENATE($B111,"!D16"))),"",INDIRECT(CONCATENATE($B111,"!D16"))) -> 68.53575454 | J111: =IF(ISERROR(INDIRECT(CONCATENATE($B111,"!D23"))),"",INDIRECT(CONCATENATE($B111,"!D23"))) -> 67.77558606 | M111: =IF(ISERROR(INDIRECT(CONCATENATE($B111,"!D21"))),"",INDIRECT(CONCATENATE($B111,"!D21"))) -> 6.905251508 | N111: =IF(ISERROR(INDIRECT(CONCATENATE($B111,"!E16"))),"",INDIRECT(CONCATENATE($B111,"!E16"))) -> 72.11173905 | O111: =IF(ISERROR(INDIRECT(CONCATENATE($B111,"!E23"))),"",INDIRECT(CONCATENATE($B111,"!E23"))) -> 68.23616821 | R111: =IF(ISERROR(INDIRECT(CONCATENATE($B111,"!E21"))),"",INDIRECT(CONCATENATE($B111,"!E21"))) -> 5.666042528 | S111: =IF(ISERROR(INDIRECT(CONCATENATE($B111,"!F16"))),"",INDIRECT(CONCATENATE($B111,"!F16"))) -> 74.23187536 | T111: =IF(ISERROR(INDIRECT(CONCATENATE($B111,"!F23"))),"",INDIRECT(CONCATENATE($B111,"!F23"))) -> 66.90072448 | W111: =IF(ISERROR(INDIRECT(CONCATENATE($B111,"!F21"))),"",INDIRECT(CONCATENATE($B111,"!F21"))) -> 6.181489535 | X111: =IF(ISERROR(INDIRECT(CONCATENATE($B111,"!G16"))),"",INDIRECT(CONCATENATE($B111,"!G16"))) -> 90.49105322 | Y111: =IF(ISERROR(INDIRECT(CONCATENATE($B111,"!G23"))),"",INDIRECT(CONCATENATE($B111,"!G23"))) -> 80.24352029 | AB111: =IF(ISERROR(INDIRECT(CONCATENATE($B111,"!G221"))),"",INDIRECT(CONCATENATE($B111,"!G21"))) -> 2.176700405
B112: DHS04 | C112: 2004 | D112: =IF(ISERROR(INDIRECT(CONCATENATE($B112,"!C16"))),"",INDIRECT(CONCATENATE($B112,"!C16"))) -> 54.02907346 | E112: =IF(ISERROR(INDIRECT(CONCATENATE($B112,"!C23"))),"",INDIRECT(CONCATENATE($B112,"!C23"))) -> N/A | H112: =IF(ISERROR(INDIRECT(CONCATENATE($B112,"!C21"))),"",INDIRECT(CONCATENATE($B112,"!C21"))) -> 11.92516065 | I112: =IF(ISERROR(INDIRECT(CONCATENATE($B112,"!D16"))),"",INDIRECT(CONCATENATE($B112,"!D16"))) -> 54.91289959 | J112: =IF(ISERROR(INDIRECT(CONCATENATE($B112,"!D23"))),"",INDIRECT(CONCATENATE($B112,"!D23"))) -> N/A | M112: =IF(ISERROR(INDIRECT(CONCATENATE($B112,"!D21"))),"",INDIRECT(CONCATENATE($B112,"!D21"))) -> 11.3487164 | N112: =IF(ISERROR(INDIRECT(CONCATENATE($B112,"!E16"))),"",INDIRECT(CONCATENATE($B112,"!E16"))) -> 58.36559499 | O112: =IF(ISERROR(INDIRECT(CONCATENATE($B112,"!E23"))),"",INDIRECT(CONCATENATE($B112,"!E23"))) -> N/A | R112: =IF(ISERROR(INDIRECT(CONCATENATE($B112,"!E21"))),"",INDIRECT(CONCATENATE($B112,"!E21"))) -> 10.23537744 | S112: =IF(ISERROR(INDIRECT(CONCATENATE($B112,"!F16"))),"",INDIRECT(CONCATENATE($B112,"!F16"))) -> 62.75092843 | T112: =IF(ISERROR(INDIRECT(CONCATENATE($B112,"!F23"))),"",INDIRECT(CONCATENATE($B112,"!F23"))) -> N/A | W112: =IF(ISERROR(INDIRECT(CONCATENATE($B112,"!F21"))),"",INDIRECT(CONCATENATE($B112,"!F21"))) -> 8.237351652 | X112: =IF(ISERROR(INDIRECT(CONCATENATE($B112,"!G16"))),"",INDIRECT(CONCATENATE($B112,"!G16"))) -> 86.36296564 | Y112: =IF(ISERROR(INDIRECT(CONCATENATE($B112,"!G23"))),"",INDIRECT(CONCATENATE($B112,"!G23"))) -> N/A | AB112: =IF(ISERROR(INDIRECT(CONCATENATE($B112,"!G221"))),"",INDIRECT(CONCATENATE($B112,"!G21"))) -> 3.286036321
B113: DHS00 | C113: 2000 | D113: 58.29786947 | E113: N/A | H113: 12.81772676 | I113: 56.49960851 | J113: N/A | M113: 12.36395361 | N113: 63.76144685 | O113: N/A | R113: 10.9399115 | S113: 61.47757322 | T113: N/A | W113: 9.67216195 | X113: 89.83927837 | Y113: N/A | AB113: 2.251624284
B118: =CONCATENATE("National use of drinking water sources, ",C99,"–",C100) -> National use of drinking water sources, 2000–2020 | S118: Data points used for regression
E153: =IF(ISERROR(INDIRECT(CONCATENATE($B153,"!M18"))),"",INDIRECT(CONCATENATE($B153,"!M18"))) ->  | F153: =IF(ISERROR(INDIRECT(CONCATENATE($B153,"!M19"))),"",INDIRECT(CONCATENATE($B153,"!M19"))) ->  | G153: =IF(ISERROR(INDIRECT(CONCATENATE($B153,"!M20"))),"",INDIRECT(CONCATENATE($B153,"!M20"))) ->  | H153: =IF(ISERROR(INDIRECT(CONCATENATE($B153,"!M21"))),"",INDIRECT(CONCATENATE($B153,"!M21"))) ->  | J153: =IF(ISERROR(INDIRECT(CONCATENATE($B153,"!N18"))),"",INDIRECT(CONCATENATE($B153,"!N18"))) ->  | K153: =IF(ISERROR(INDIRECT(CONCATENATE($B153,"!N19"))),"",INDIRECT(CONCATENATE($B153,"!N19"))) ->  | L153: =IF(ISERROR(INDIRECT(CONCATENATE($B153,"!N20"))),"",INDIRECT(CONCATENATE($B153,"!N20"))) ->  | M153: =IF(ISERROR(INDIRECT(CONCATENATE($B153,"!N21"))),"",INDIRECT(CONCATENATE($B153,"!N21"))) ->  | O153: =IF(ISERROR(INDIRECT(CONCATENATE($B153,"!O18"))),"",INDIRECT(CONCATENATE($B153,"!O18"))) ->  | P153: =IF(ISERROR(INDIRECT(CONCATENATE($B153,"!O19"))),"",INDIRECT(CONCATENATE($B153,"!O19"))) ->  | Q153: =IF(ISERROR(INDIRECT(CONCATENATE($B153,"!O20"))),"",INDIRECT(CONCATENATE($B153,"!O20"))) ->  | R153: =IF(ISERROR(INDIRECT(CONCATENATE($B153,"!O21"))),"",INDIRECT(CONCATENATE($B153,"!O21"))) ->  | T153: =IF(ISERROR(INDIRECT(CONCATENATE($B153,"!P18"))),"",INDIRECT(CONCATENATE($B153,"!P18"))) ->  | U153: =IF(ISERROR(INDIRECT(CONCATENATE($B153,"!P19"))),"",INDIRECT(CONCATENATE($B153,"!P19"))) ->  | V153: =IF(ISERROR(INDIRECT(CONCATENATE($B153,"!P20"))),"",INDIRECT(CONCATENATE($B153,"!P20"))) ->  | W153: =IF(ISERROR(INDIRECT(CONCATENATE($B153,"!P21"))),"",INDIRECT(CONCATENATE($B153,"!P21"))) ->  | Y153: =IF(ISERROR(INDIRECT(CONCATENATE($B153,"!Q18"))),"",INDIRECT(CONCATENATE($B153,"!Q18"))) ->  | Z153: =IF(ISERROR(INDIRECT(CONCATENATE($B153,"!Q19"))),"",INDIRECT(CONCATENATE($B153,"!Q19"))) ->  | AA153: =IF(ISERROR(INDIRECT(CONCATENATE($B153,"!Q20"))),"",INDIRECT(CONCATENATE($B153,"!Q20"))) ->  | AB153: =IF(ISERROR(INDIRECT(CONCATENATE($B153,"!Q21"))),"",INDIRECT(CONCATENATE($B153,"!Q1"))) -> 
A197: URBAN | D197: Poorest | I197: Poor | N197: Middle | S197: Rich | X197: Richest
D198: Improved | E198: Basic | F198: Limited | G198: Unimproved | H198: Surface water | I198: Improved | J198: Basic | K198: Limited | L198: Unimproved | M198: Surface water | N198: Improved | O198: Basic | P198: Limited | Q198: Unimproved | R198: Surface water | S198: Improved | T198: Basic | U198: Limited | V198: Unimproved | W198: Surface water | X198: Improved | Y198: Basic | Z198: Limited | AA198: Unimproved | AB198: Surface water
A199: Forecast period: | C199: 2000 | D199: =IF((D201+H201)>100,D201*100/(D201+H201),D201) -> 78.62432637 | E199: =D199*AVERAGEIF(E205:E216,">0")/100 -> 67.06741976 | F199: =D199*(100-AVERAGEIF(E205:E216,">0"))/100 -> 11.55690661 | G199: =100-(E199+F199+H199) -> 17.06865254 | H199: =IF((D201+H201)>100,H201*100/(D201+H201),H201) -> 4.307021099 | I199: =IF((I201+M201)>100,I201*100/(I201+M201),I201) -> 90.58496717 | J199: =I199*AVERAGEIF(J205:J216,">0")/100 -> 77.04710691 | K199: =I199*(100-AVERAGEIF(J205:J216,">0"))/100 -> 13.53786026 | L199: =100-(J199+K199+M199) -> 8.4641808 | M199: =IF((I201+M201)>100,M201*100/(I201+M201),M201) -> 0.9508520265 | N199: =IF((N201+R201)>100,N201*100/(N201+R201),N201) -> 95.30823887 | O199: =N199*AVERAGEIF(O205:O216,">0")/100 -> 84.47336016 | P199: =N199*(100-AVERAGEIF(O205:O216,">0"))/100 -> 10.83487871 | Q199: =100-(O199+P199+R199) -> 3.995774755 | R199: =IF((N201+R201)>100,R201*100/(N201+R201),R201) -> 0.6959863772 | S199: =IF((S201+W201)>100,S201*100/(S201+W201),S201) -> 97.78495956 | T199: =S199*AVERAGEIF(T205:T216,">0")/100 -> 91.04187604 | U199: =S199*(100-AVERAGEIF(T205:T216,">0"))/100 -> 6.743083511 | V199: =100-(T199+U199+W199) -> 2.215040444 | W199: =IF((S201+W201)>100,W201*100/(S201+W201),W201) -> 0 | X199: =IF((X201+AB201)>100,X201*100/(X201+AB201),X201) -> 99.45975224 | Y199: =X199*AVERAGEIF(Y205:Y216,">0")/100 -> 96.37979975 | Z199: =X199*(100-AVERAGEIF(Y205:Y216,">0"))/100 -> 3.079952484 | AA199: =100-(Y199+Z199+AB199) -> 0.5402477614 | AB199: =IF((X201+AB201)>100,AB201*100/(X201+AB201),AB201) -> 0
C200: 2020 | D200: =IF((D202+H202)>100,D202*100/(D202+H202),D202) -> 94.25580108 | E200: =D200*AVERAGEIF(E205:E216,">0")/100 -> 80.40124053 | F200: =D200*(100-AVERAGEIF(E205:E216,">0"))/100 -> 13.85456055 | G200: =100-(E200+F200+H200) -> 5.628335962 | H200: =IF((D202+H202)>100,H202*100/(D202+H202),H202) -> 0.1158629594 | I200: =IF((I202+M202)>100,I202*100/(I202+M202),I202) -> 97.59086929 | J200: =I200*AVERAGEIF(J205:J216,">0")/100 -> 83.00598183 | K200: =I200*(100-AVERAGEIF(J205:J216,">0"))/100 -> 14.58488745 | L200: =100-(J200+K200+M200) -> 2.35938306 | M200: =IF((I202+M202)>100,M202*100/(I202+M202),M202) -> 0.04974765189 | N200: =IF((N202+R202)>100,N202*100/(N202+R202),N202) -> 98.02755444 | O200: =N200*AVERAGEIF(O205:O216,">0")/100 -> 86.88353715 | P200: =N200*(100-AVERAGEIF(O205:O216,">0"))/100 -> 11.14401729 | Q200: =100-(O200+P200+R200) -> 1.972445561 | R200: =IF((N202+R202)>100,R202*100/(N202+R202),R202) -> 0 | S200: =IF((S202+W202)>100,S202*100/(S202+W202),S202) -> 99.25652845 | T200: =S200*AVERAGEIF(T205:T216,">0")/100 -> 92.41196806 | U200: =S200*(100-AVERAGEIF(T205:T216,">0"))/100 -> 6.844560384 | V200: =100-(T200+U200+W200) -> 0.6432220012 | W200: =IF((S202+W202)>100,W202*100/(S202+W202),W202) -> 0.1002495514 | X200: =IF((X202+AB202)>100,X202*100/(X202+AB202),X202) -> 99.99883933 | Y200: =X200*AVERAGEIF(Y205:Y216,">0")/100 -> 96.90219304 | Z200: =X200*(100-AVERAGEIF(Y205:Y216,">0"))/100 -> 3.096646298 | AA200: =100-(Y200+Z200+AB200) -> 0.001160666048 | AB200: =IF((X202+AB202)>100,AB202*100/(X202+AB202),AB202) -> 0
A201: Regression period: | C201: =MinRegYear(C199,C205:C216) -> 2000 | D201: =IF(MAX(C205:C216)-MIN(C205:C216)<5,AVERAGEIF(C205:C216,">0",D205:D216), IF(FORECAST($C201,D$205:D$216,$C$205:$C$216)<0,0, IF(FORECAST($C201,D$205:D$216,$C$205:$C$216)>100,100, FORECAST($C201,D$205:D$216,$C$205:$C$216)))) -> 78.62432637 | H201: =IF(MAX(C205:C216)-MIN(C205:C216)<5,AVERAGEIF(C205:C216,">0",H205:H216), IF(FORECAST($C201,H$205:H$216,$C$205:$C$216)<0,0, IF(FORECAST($C201,H$205:H$216,$C$205:$C$216)>100,100, FORECAST($C201,H$205:H$216,$C$205:$C$216)))) -> 4.307021099 | I201: =IF(MAX(C205:C216)-MIN(C205:C216)<5,AVERAGEIF(C205:C216,">0",I205:I216), IF(FORECAST($C201,I$205:I$216,$C$205:$C$216)<0,0, IF(FORECAST($C201,I$205:I$216,$C$205:$C$216)>100,100, FORECAST($C201,I$205:I$216,$C$205:$C$216)))) -> 90.58496717 | M201: =IF(MAX(C205:C216)-MIN(C205:C216)<5,AVERAGEIF(C205:C216,">0",M205:M216), IF(FORECAST($C201,M$205:M$216,$C$205:$C$216)<0,0, IF(FORECAST($C201,M$205:M$216,$C$205:$C$216)>100,100, FORECAST($C201,M$205:M$216,$C$205:$C$216)))) -> 0.9508520265 | N201: =IF(MAX(C205:C216)-MIN(C205:C216)<5,AVERAGEIF(C205:C216,">0",N205:N216), IF(FORECAST($C201,N$205:N$216,$C$205:$C$216)<0,0, IF(FORECAST($C201,N$205:N$216,$C$205:$C$216)>100,100, FORECAST($C201,N$205:N$216,$C$205:$C$216)))) -> 95.30823887 | R201: =IF(MAX(C205:C216)-MIN(C205:C216)<5,AVERAGEIF(C205:C216,">0",R205:R216), IF(FORECAST($C201,R$205:R$216,$C$205:$C$216)<0,0, IF(FORECAST($C201,R$205:R$216,$C$205:$C$216)>100,100, FORECAST($C201,R$205:R$216,$C$205:$C$216)))) -> 0.6959863772 | S201: =IF(MAX(C205:C216)-MIN(C205:C216)<5,AVERAGEIF(C205:C216,">0",S205:S216), IF(FORECAST($C201,S$205:S$216,$C$205:$C$216)<0,0, IF(FORECAST($C201,S$205:S$216,$C$205:$C$216)>100,100, FORECAST($C201,S$205:S$216,$C$205:$C$216)))) -> 97.78495956 | W201: =IF(MAX(C205:C216)-MIN(C205:C216)<5,AVERAGEIF(C205:C216,">0",W205:W216), IF(FORECAST($C201,W$205:W$216,$C$205:$C$216)<0,0, IF(FORECAST($C201,W$205:W$216,$C$205:$C$216)>100,100, FORECAST($C201,W$205:W$216,$C$205:$C$216)))) -> 0 | X201: =IF(MAX(C205:C216)-MIN(C205:C216)<5,AVERAGEIF(C205:C216,">0",X205:X216), IF(FORECAST($C201,X$205:X$216,$C$205:$C$216)<0,0, IF(FORECAST($C201,X$205:X$216,$C$205:$C$216)>100,100, FORECAST($C201,X$205:X$216,$C$205:$C$216)))) -> 99.45975224 | AB201: =IF(MAX(C205:C216)-MIN(C205:C216)<5,AVERAGEIF(C205:C216,">0",AB205:AB216), IF(FORECAST($C201,AB$205:AB$216,$C$205:$C$216)<0,0, IF(FORECAST($C201,AB$205:AB$216,$C$205:$C$216)>100,100, FORECAST($C201,AB$205:AB$216,$C$205:$C$216)))) -> 0
C202: =MaxRegYear(C200,C205:C216) -> 2019 | D202: =IF(MAX(C205:C216)-MIN(C205:C216)<5,AVERAGEIF(C205:C216,">0",D205:D216), IF(FORECAST($C202,D$205:D$216,$C$205:$C$216)<0,0, IF(FORECAST($C202,D$205:D$216,$C$205:$C$216)>100,100, FORECAST($C202,D$205:D$216,$C$205:$C$216)))) -> 94.25580108 | H202: =IF(MAX(C205:C216)-MIN(C205:C216)<5,AVERAGEIF(C205:C216,">0",H205:H216), IF(FORECAST($C202,H$205:H$216,$C$205:$C$216)<0,0, IF(FORECAST($C202,H$205:H$216,$C$205:$C$216)>100,100, FORECAST($C202,H$205:H$216,$C$205:$C$216)))) -> 0.1158629594 | I202: =IF(MAX(C205:C216)-MIN(C205:C216)<5,AVERAGEIF(C205:C216,">0",I205:I216), IF(FORECAST($C202,I$205:I$216,$C$205:$C$216)<0,0, IF(FORECAST($C202,I$205:I$216,$C$205:$C$216)>100,100, FORECAST($C202,I$205:I$216,$C$205:$C$216)))) -> 97.59086929 | M202: =IF(MAX(C205:C216)-MIN(C205:C216)<5,AVERAGEIF(C205:C216,">0",M205:M216), IF(FORECAST($C202,M$205:M$216,$C$205:$C$216)<0,0, IF(FORECAST($C202,M$205:M$216,$C$205:$C$216)>100,100, FORECAST($C202,M$205:M$216,$C$205:$C$216)))) -> 0.04974765189 | N202: =IF(MAX(C205:C216)-MIN(C205:C216)<5,AVERAGEIF(C205:C216,">0",N205:N216), IF(FORECAST($C202,N$205:N$216,$C$205:$C$216)<0,0, IF(FORECAST($C202,N$205:N$216,$C$205:$C$216)>100,100, FORECAST($C202,N$205:N$216,$C$205:$C$216)))) -> 98.02755444 | R202: =IF(MAX(C205:C216)-MIN(C205:C216)<5,AVERAGEIF(C205:C216,">0",R205:R216), IF(FORECAST($C202,R$205:R$216,$C$205:$C$216)<0,0, IF(FORECAST($C202,R$205:R$216,$C$205:$C$216)>100,100, FORECAST($C202,R$205:R$216,$C$205:$C$216)))) -> 0 | S202: =IF(MAX(C205:C216)-MIN(C205:C216)<5,AVERAGEIF(C205:C216,">0",S205:S216), IF(FORECAST($C202,S$205:S$216,$C$205:$C$216)<0,0, IF(FORECAST($C202,S$205:S$216,$C$205:$C$216)>100,100, FORECAST($C202,S$205:S$216,$C$205:$C$216)))) -> 99.25652845 | W202: =IF(MAX(C205:C216)-MIN(C205:C216)<5,AVERAGEIF(C205:C216,">0",W205:W216), IF(FORECAST($C202,W$205:W$216,$C$205:$C$216)<0,0, IF(FORECAST($C202,W$205:W$216,$C$205:$C$216)>100,100, FORECAST($C202,W$205:W$216,$C$205:$C$216)))) -> 0.1002495514 | X202: =IF(MAX(C205:C216)-MIN(C205:C216)<5,AVERAGEIF(C205:C216,">0",X205:X216), IF(FORECAST($C202,X$205:X$216,$C$205:$C$216)<0,0, IF(FORECAST($C202,X$205:X$216,$C$205:$C$216)>100,100, FORECAST($C202,X$205:X$216,$C$205:$C$216)))) -> 99.99883933 | AB202: =IF(MAX(C205:C216)-MIN(C205:C216)<5,AVERAGEIF(C205:C216,">0",AB205:AB216), IF(FORECAST($C202,AB$205:AB$216,$C$205:$C$216)<0,0, IF(FORECAST($C202,AB$205:AB$216,$C$205:$C$216)>100,100, FORECAST($C202,AB$205:AB$216,$C$205:$C$216)))) -> 0
B204: Survey | C204: Year | D204: Improved | E204: % Improved < = 30min | H204: Surface water | I204: Improved | J204: % Improved < = 30min | M204: Surface water | N204: Improved | O204: % Improved < = 30min | R204: Surface water | S204: Improved | T204: % Improved < = 30min | W204: Surface water | X204: Improved | Y204: % Improved < = 30min | AB204: Surface water
B205: MIS17 | C205: 2017 | D205: =IF(ISERROR(INDIRECT(CONCATENATE($B205,"!H16"))),"",INDIRECT(CONCATENATE($B205,"!H16"))) -> 96.43167991 | E205: =IF(ISERROR(INDIRECT(CONCATENATE($B205,"!H23"))),"",INDIRECT(CONCATENATE($B205,"!H23"))) -> 92.47076669 | H205: =IF(ISERROR(INDIRECT(CONCATENATE($B205,"!H21"))),"",INDIRECT(CONCATENATE($B205,"!H21"))) -> 0 | I205: =IF(ISERROR(INDIRECT(CONCATENATE($B205,"!I16"))),"",INDIRECT(CONCATENATE($B205,"!I16"))) -> 98.77243557 | J205: =IF(ISERROR(INDIRECT(CONCATENATE($B205,"!I23"))),"",INDIRECT(CONCATENATE($B205,"!I23"))) -> 93.92072877 | M205: =IF(ISERROR(INDIRECT(CONCATENATE($B205,"!I21"))),"",INDIRECT(CONCATENATE($B205,"!I21"))) -> 0.2524562406 | N205: =IF(ISERROR(INDIRECT(CONCATENATE($B205,"!J16"))),"",INDIRECT(CONCATENATE($B205,"!J16"))) -> 98.78965391 | O205: =IF(ISERROR(INDIRECT(CONCATENATE($B205,"!J23"))),"",INDIRECT(CONCATENATE($B205,"!J23"))) -> 96.90053188 | R205: =IF(ISERROR(INDIRECT(CONCATENATE($B205,"!J21"))),"",INDIRECT(CONCATENATE($B205,"!J21"))) -> 0 | S205: =IF(ISERROR(INDIRECT(CONCATENATE($B205,"!K16"))),"",INDIRECT(CONCATENATE($B205,"!K16"))) -> 99.81103979 | T205: =IF(ISERROR(INDIRECT(CONCATENATE($B205,"!K23"))),"",INDIRECT(CONCATENATE($B205,"!K23"))) -> 98.06948503 | W205: =IF(ISERROR(INDIRECT(CONCATENATE($B205,"!K21"))),"",INDIRECT(CONCATENATE($B205,"!K21"))) -> 0 | X205: =IF(ISERROR(INDIRECT(CONCATENATE($B205,"!L16"))),"",INDIRECT(CONCATENATE($B205,"!L16"))) -> 100 | Y205: =IF(ISERROR(INDIRECT(CONCATENATE($B205,"!L23"))),"",INDIRECT(CONCATENATE($B205,"!L23"))) -> 100 | AB205: =IF(ISERROR(INDIRECT(CONCATENATE($B205,"!L221"))),"",INDIRECT(CONCATENATE($B205,"!L21"))) -> 0
B206: DHS16 | C206: 2016 | D206: 93.84659726 | E206: 78.8149099 | H206: 0.9796391759 | I206: 98.43368753 | J206: 83.25745922 | M206: 0.3265694844 | N206: 99.30625477 | O206: 87.49469311 | R206: 0.2193516337 | S206: 99.57638695 | T206: 94.42758843 | W206: 0.2926318581 | X206: 99.98877432 | Y206: 96.95074118 | AB206: 0
B207: MICS14 | C207: 2014 | D207: 94.8 | E207: 76.6 | H207: 1.3 | I207: 99.2 | J207: 75.5 | M207: 0.2 | N207: 99.3 | O207: 85.7 | R207: 0 | S207: 99.5 | T207: 88.2 | W207: 0 | X207: 100 | Y207: 95.2 | AB207: 0
B208: MIS14 | D208: 84.67167916 | E208: 93.00597161 | H208: 6.472787538 | I208: 95.16542399 | J208: 91.12599467 | M208: 0.5042345734 | N208: 99.69485766 | O208: 94.08694378 | R208: 0 | S208: 99.95177741 | T208: 96.24739447 | W208: 0.03500218089 | X208: 100 | Y208: 96.72080217 | AB208: 0
B209: MIS12 | C209: 2012 | D209: 80.6 | E209: 91.5 | H209: 3 | I209: 87.6 | J209: 94.1 | M209: 0.3 | N209: 95 | O209: 97.4 | R209: 0 | S209: 96.3 | T209: 99.3 | W209: 0 | X209: 100 | Y209: 99.7 | AB209: 0
B210: DHS10 | C210: 2010 | D210: 81.1 | E210: 82 | H210: 0.9 | I210: 89.3 | J210: 82.7 | M210: 0.8 | N210: 92.5 | O210: 84.6 | R210: 0.2 | S210: 98.4 | T210: 88.2 | W210: 0 | X210: 99.2 | Y210: 95.1 | AB210: 0
B211: MICS06 | C211: 2006 | D211: 86.77858123 | E211: 82.71609189 | H211: 2.751959758 | I211: 96.30404296 | J211: 74.7813048 | M211: 0 | N211: 96.48649386 | O211: 74.24008239 | R211: 0.1714511433 | S211: 99.07352872 | T211: 87.2847297 | W211: 0 | X211: 100 | Y211: 94.65168097 | AB211: 0
B212: DHS04 | C212: 2004 | D212: 74.37890414 | E212: N/A | H212: 4.029920487 | I212: 93.42312665 | J212: N/A | M212: 0.5047785045 | N212: 93.831274 | O212: N/A | R212: 1.446935055 | S212: 97.06936153 | T212: N/A | W212: 0 | X212: 98.73071099 | Y212: N/A | AB212: 0
B213: DHS00 | C213: 2000 | D213: 86.05287482 | E213: N/A | H213: 4.068255001 | I213: 90.77624821 | J213: N/A | M213: 1.476314846 | N213: 98.5588623 | O213: N/A | R213: 0.2804991876 | S213: 98.66798801 | T213: N/A | W213: 0 | X213: 100 | Y213: N/A | AB213: 0
B218: =CONCATENATE("Urban use of drinking water sources, ",C199,"–",C200) -> Urban use of drinking water sources, 2000–2020 | S218: Data points used for regression
E253: =IF(ISERROR(INDIRECT(CONCATENATE($B253,"!M18"))),"",INDIRECT(CONCATENATE($B253,"!M18"))) ->  | F253: =IF(ISERROR(INDIRECT(CONCATENATE($B253,"!M19"))),"",INDIRECT(CONCATENATE($B253,"!M19"))) ->  | G253: =IF(ISERROR(INDIRECT(CONCATENATE($B253,"!M20"))),"",INDIRECT(CONCATENATE($B253,"!M20"))) ->  | H253: =IF(ISERROR(INDIRECT(CONCATENATE($B253,"!M21"))),"",INDIRECT(CONCATENATE($B253,"!M21"))) ->  | J253: =IF(ISERROR(INDIRECT(CONCATENATE($B253,"!N18"))),"",INDIRECT(CONCATENATE($B253,"!N18"))) ->  | K253: =IF(ISERROR(INDIRECT(CONCATENATE($B253,"!N19"))),"",INDIRECT(CONCATENATE($B253,"!N19"))) ->  | L253: =IF(ISERROR(INDIRECT(CONCATENATE($B253,"!N20"))),"",INDIRECT(CONCATENATE($B253,"!N20"))) ->  | M253: =IF(ISERROR(INDIRECT(CONCATENATE($B253,"!N21"))),"",INDIRECT(CONCATENATE($B253,"!N21"))) ->  | O253: =IF(ISERROR(INDIRECT(CONCATENATE($B253,"!O18"))),"",INDIRECT(CONCATENATE($B253,"!O18"))) ->  | P253: =IF(ISERROR(INDIRECT(CONCATENATE($B253,"!O19"))),"",INDIRECT(CONCATENATE($B253,"!O19"))) ->  | Q253: =IF(ISERROR(INDIRECT(CONCATENATE($B253,"!O20"))),"",INDIRECT(CONCATENATE($B253,"!O20"))) ->  | R253: =IF(ISERROR(INDIRECT(CONCATENATE($B253,"!O21"))),"",INDIRECT(CONCATENATE($B253,"!O21"))) ->  | T253: =IF(ISERROR(INDIRECT(CONCATENATE($B253,"!P18"))),"",INDIRECT(CONCATENATE($B253,"!P18"))) ->  | U253: =IF(ISERROR(INDIRECT(CONCATENATE($B253,"!P19"))),"",INDIRECT(CONCATENATE($B253,"!P19"))) ->  | V253: =IF(ISERROR(INDIRECT(CONCATENATE($B253,"!P20"))),"",INDIRECT(CONCATENATE($B253,"!P20"))) ->  | W253: =IF(ISERROR(INDIRECT(CONCATENATE($B253,"!P21"))),"",INDIRECT(CONCATENATE($B253,"!P21"))) ->  | Y253: =IF(ISERROR(INDIRECT(CONCATENATE($B253,"!Q18"))),"",INDIRECT(CONCATENATE($B253,"!Q18"))) ->  | Z253: =IF(ISERROR(INDIRECT(CONCATENATE($B253,"!Q19"))),"",INDIRECT(CONCATENATE($B253,"!Q19"))) ->  | AA253: =IF(ISERROR(INDIRECT(CONCATENATE($B253,"!Q20"))),"",INDIRECT(CONCATENATE($B253,"!Q20"))) ->  | AB253: =IF(ISERROR(INDIRECT(CONCATENATE($B253,"!Q21"))),"",INDIRECT(CONCATENATE($B253,"!Q1"))) -> 
E254: =IF(ISERROR(INDIRECT(CONCATENATE($B254,"!M18"))),"",INDIRECT(CONCATENATE($B254,"!M18"))) ->  | F254: =IF(ISERROR(INDIRECT(CONCATENATE($B254,"!M19"))),"",INDIRECT(CONCATENATE($B254,"!M19"))) ->  | G254: =IF(ISERROR(INDIRECT(CONCATENATE($B254,"!M20"))),"",INDIRECT(CONCATENATE($B254,"!M20"))) ->  | H254: =IF(ISERROR(INDIRECT(CONCATENATE($B254,"!M21"))),"",INDIRECT(CONCATENATE($B254,"!M21"))) ->  | J254: =IF(ISERROR(INDIRECT(CONCATENATE($B254,"!N18"))),"",INDIRECT(CONCATENATE($B254,"!N18"))) ->  | K254: =IF(ISERROR(INDIRECT(CONCATENATE($B254,"!N19"))),"",INDIRECT(CONCATENATE($B254,"!N19"))) ->  | L254: =IF(ISERROR(INDIRECT(CONCATENATE($B254,"!N20"))),"",INDIRECT(CONCATENATE($B254,"!N20"))) ->  | M254: =IF(ISERROR(INDIRECT(CONCATENATE($B254,"!N21"))),"",INDIRECT(CONCATENATE($B254,"!N21"))) ->  | O254: =IF(ISERROR(INDIRECT(CONCATENATE($B254,"!O18"))),"",INDIRECT(CONCATENATE($B254,"!O18"))) ->  | P254: =IF(ISERROR(INDIRECT(CONCATENATE($B254,"!O19"))),"",INDIRECT(CONCATENATE($B254,"!O19"))) ->  | Q254: =IF(ISERROR(INDIRECT(CONCATENATE($B254,"!O20"))),"",INDIRECT(CONCATENATE($B254,"!O20"))) ->  | R254: =IF(ISERROR(INDIRECT(CONCATENATE($B254,"!O21"))),"",INDIRECT(CONCATENATE($B254,"!O21"))) ->  | T254: =IF(ISERROR(INDIRECT(CONCATENATE($B254,"!P18"))),"",INDIRECT(CONCATENATE($B254,"!P18"))) ->  | U254: =IF(ISERROR(INDIRECT(CONCATENATE($B254,"!P19"))),"",INDIRECT(CONCATENATE($B254,"!P19"))) ->  | V254: =IF(ISERROR(INDIRECT(CONCATENATE($B254,"!P20"))),"",INDIRECT(CONCATENATE($B254,"!P20"))) ->  | W254: =IF(ISERROR(INDIRECT(CONCATENATE($B254,"!P21"))),"",INDIRECT(CONCATENATE($B254,"!P21"))) ->  | Y254: =IF(ISERROR(INDIRECT(CONCATENATE($B254,"!Q18"))),"",INDIRECT(CONCATENATE($B254,"!Q18"))) ->  | Z254: =IF(ISERROR(INDIRECT(CONCATENATE($B254,"!Q19"))),"",INDIRECT(CONCATENATE($B254,"!Q19"))) ->  | AA254: =IF(ISERROR(INDIRECT(CONCATENATE($B254,"!Q20"))),"",INDIRECT(CONCATENATE($B254,"!Q20"))) ->  | AB254: =IF(ISERROR(INDIRECT(CONCATENATE($B254,"!Q21"))),"",INDIRECT(CONCATENATE($B254,"!Q1"))) -> 
E255: =IF(ISERROR(INDIRECT(CONCATENATE($B255,"!M18"))),"",INDIRECT(CONCATENATE($B255,"!M18"))) ->  | F255: =IF(ISERROR(INDIRECT(CONCATENATE($B255,"!M19"))),"",INDIRECT(CONCATENATE($B255,"!M19"))) ->  | G255: =IF(ISERROR(INDIRECT(CONCATENATE($B255,"!M20"))),"",INDIRECT(CONCATENATE($B255,"!M20"))) ->  | H255: =IF(ISERROR(INDIRECT(CONCATENATE($B255,"!M21"))),"",INDIRECT(CONCATENATE($B255,"!M21"))) ->  | J255: =IF(ISERROR(INDIRECT(CONCATENATE($B255,"!N18"))),"",INDIRECT(CONCATENATE($B255,"!N18"))) ->  | K255: =IF(ISERROR(INDIRECT(CONCATENATE($B255,"!N19"))),"",INDIRECT(CONCATENATE($B255,"!N19"))) ->  | L255: =IF(ISERROR(INDIRECT(CONCATENATE($B255,"!N20"))),"",INDIRECT(CONCATENATE($B255,"!N20"))) ->  | M255: =IF(ISERROR(INDIRECT(CONCATENATE($B255,"!N21"))),"",INDIRECT(CONCATENATE($B255,"!N21"))) ->  | O255: =IF(ISERROR(INDIRECT(CONCATENATE($B255,"!O18"))),"",INDIRECT(CONCATENATE($B255,"!O18"))) ->  | P255: =IF(ISERROR(INDIRECT(CONCATENATE($B255,"!O19"))),"",INDIRECT(CONCATENATE($B255,"!O19"))) ->  | Q255: =IF(ISERROR(INDIRECT(CONCATENATE($B255,"!O20"))),"",INDIRECT(CONCATENATE($B255,"!O20"))) ->  | R255: =IF(ISERROR(INDIRECT(CONCATENATE($B255,"!O21"))),"",INDIRECT(CONCATENATE($B255,"!O21"))) ->  | T255: =IF(ISERROR(INDIRECT(CONCATENATE($B255,"!P18"))),"",INDIRECT(CONCATENATE($B255,"!P18"))) ->  | U255: =IF(ISERROR(INDIRECT(CONCATENATE($B255,"!P19"))),"",INDIRECT(CONCATENATE($B255,"!P19"))) ->  | V255: =IF(ISERROR(INDIRECT(CONCATENATE($B255,"!P20"))),"",INDIRECT(CONCATENATE($B255,"!P20"))) ->  | W255: =IF(ISERROR(INDIRECT(CONCATENATE($B255,"!P21"))),"",INDIRECT(CONCATENATE($B255,"!P21"))) ->  | Y255: =IF(ISERROR(INDIRECT(CONCATENATE($B255,"!Q18"))),"",INDIRECT(CONCATENATE($B255,"!Q18"))) ->  | Z255: =IF(ISERROR(INDIRECT(CONCATENATE($B255,"!Q19"))),"",INDIRECT(CONCATENATE($B255,"!Q19"))) ->  | AA255: =IF(ISERROR(INDIRECT(CONCATENATE($B255,"!Q20"))),"",INDIRECT(CONCATENATE($B255,"!Q20"))) ->  | AB255: =IF(ISERROR(INDIRECT(CONCATENATE($B255,"!Q21"))),"",INDIRECT(CONCATENATE($B255,"!Q1"))) -> 
E256: =IF(ISERROR(INDIRECT(CONCATENATE($B256,"!M18"))),"",INDIRECT(CONCATENATE($B256,"!M18"))) ->  | F256: =IF(ISERROR(INDIRECT(CONCATENATE($B256,"!M19"))),"",INDIRECT(CONCATENATE($B256,"!M19"))) ->  | G256: =IF(ISERROR(INDIRECT(CONCATENATE($B256,"!M20"))),"",INDIRECT(CONCATENATE($B256,"!M20"))) ->  | H256: =IF(ISERROR(INDIRECT(CONCATENATE($B256,"!M21"))),"",INDIRECT(CONCATENATE($B256,"!M21"))) ->  | J256: =IF(ISERROR(INDIRECT(CONCATENATE($B256,"!N18"))),"",INDIRECT(CONCATENATE($B256,"!N18"))) ->  | K256: =IF(ISERROR(INDIRECT(CONCATENATE($B256,"!N19"))),"",INDIRECT(CONCATENATE($B256,"!N19"))) ->  | L256: =IF(ISERROR(INDIRECT(CONCATENATE($B256,"!N20"))),"",INDIRECT(CONCATENATE($B256,"!N20"))) ->  | M256: =IF(ISERROR(INDIRECT(CONCATENATE($B256,"!N21"))),"",INDIRECT(CONCATENATE($B256,"!N21"))) ->  | O256: =IF(ISERROR(INDIRECT(CONCATENATE($B256,"!O18"))),"",INDIRECT(CONCATENATE($B256,"!O18"))) ->  | P256: =IF(ISERROR(INDIRECT(CONCATENATE($B256,"!O19"))),"",INDIRECT(CONCATENATE($B256,"!O19"))) ->  | Q256: =IF(ISERROR(INDIRECT(CONCATENATE($B256,"!O20"))),"",INDIRECT(CONCATENATE($B256,"!O20"))) ->  | R256: =IF(ISERROR(INDIRECT(CONCATENATE($B256,"!O21"))),"",INDIRECT(CONCATENATE($B256,"!O21"))) ->  | T256: =IF(ISERROR(INDIRECT(CONCATENATE($B256,"!P18"))),"",INDIRECT(CONCATENATE($B256,"!P18"))) ->  | U256: =IF(ISERROR(INDIRECT(CONCATENATE($B256,"!P19"))),"",INDIRECT(CONCATENATE($B256,"!P19"))) ->  | V256: =IF(ISERROR(INDIRECT(CONCATENATE($B256,"!P20"))),"",INDIRECT(CONCATENATE($B256,"!P20"))) ->  | W256: =IF(ISERROR(INDIRECT(CONCATENATE($B256,"!P21"))),"",INDIRECT(CONCATENATE($B256,"!P21"))) ->  | Y256: =IF(ISERROR(INDIRECT(CONCATENATE($B256,"!Q18"))),"",INDIRECT(CONCATENATE($B256,"!Q18"))) ->  | Z256: =IF(ISERROR(INDIRECT(CONCATENATE($B256,"!Q19"))),"",INDIRECT(CONCATENATE($B256,"!Q19"))) ->  | AA256: =IF(ISERROR(INDIRECT(CONCATENATE($B256,"!Q20"))),"",INDIRECT(CONCATENATE($B256,"!Q20"))) ->  | AB256: =IF(ISERROR(INDIRECT(CONCATENATE($B256,"!Q21"))),"",INDIRECT(CONCATENATE($B256,"!Q1"))) -> 
E257: =IF(ISERROR(INDIRECT(CONCATENATE($B257,"!M18"))),"",INDIRECT(CONCATENATE($B257,"!M18"))) ->  | F257: =IF(ISERROR(INDIRECT(CONCATENATE($B257,"!M19"))),"",INDIRECT(CONCATENATE($B257,"!M19"))) ->  | G257: =IF(ISERROR(INDIRECT(CONCATENATE($B257,"!M20"))),"",INDIRECT(CONCATENATE($B257,"!M20"))) ->  | H257: =IF(ISERROR(INDIRECT(CONCATENATE($B257,"!M21"))),"",INDIRECT(CONCATENATE($B257,"!M21"))) ->  | J257: =IF(ISERROR(INDIRECT(CONCATENATE($B257,"!N18"))),"",INDIRECT(CONCATENATE($B257,"!N18"))) ->  | K257: =IF(ISERROR(INDIRECT(CONCATENATE($B257,"!N19"))),"",INDIRECT(CONCATENATE($B257,"!N19"))) ->  | L257: =IF(ISERROR(INDIRECT(CONCATENATE($B257,"!N20"))),"",INDIRECT(CONCATENATE($B257,"!N20"))) ->  | M257: =IF(ISERROR(INDIRECT(CONCATENATE($B257,"!N21"))),"",INDIRECT(CONCATENATE($B257,"!N21"))) ->  | O257: =IF(ISERROR(INDIRECT(CONCATENATE($B257,"!O18"))),"",INDIRECT(CONCATENATE($B257,"!O18"))) ->  | P257: =IF(ISERROR(INDIRECT(CONCATENATE($B257,"!O19"))),"",INDIRECT(CONCATENATE($B257,"!O19"))) ->  | Q257: =IF(ISERROR(INDIRECT(CONCATENATE($B257,"!O20"))),"",INDIRECT(CONCATENATE($B257,"!O20"))) ->  | R257: =IF(ISERROR(INDIRECT(CONCATENATE($B257,"!O21"))),"",INDIRECT(CONCATENATE($B257,"!O21"))) ->  | T257: =IF(ISERROR(INDIRECT(CONCATENATE($B257,"!P18"))),"",INDIRECT(CONCATENATE($B257,"!P18"))) ->  | U257: =IF(ISERROR(INDIRECT(CONCATENATE($B257,"!P19"))),"",INDIRECT(CONCATENATE($B257,"!P19"))) ->  | V257: =IF(ISERROR(INDIRECT(CONCATENATE($B257,"!P20"))),"",INDIRECT(CONCATENATE($B257,"!P20"))) ->  | W257: =IF(ISERROR(INDIRECT(CONCATENATE($B257,"!P21"))),"",INDIRECT(CONCATENATE($B257,"!P21"))) ->  | Y257: =IF(ISERROR(INDIRECT(CONCATENATE($B257,"!Q18"))),"",INDIRECT(CONCATENATE($B257,"!Q18"))) ->  | Z257: =IF(ISERROR(INDIRECT(CONCATENATE($B257,"!Q19"))),"",INDIRECT(CONCATENATE($B257,"!Q19"))) ->  | AA257: =IF(ISERROR(INDIRECT(CONCATENATE($B257,"!Q20"))),"",INDIRECT(CONCATENATE($B257,"!Q20"))) ->  | AB257: =IF(ISERROR(INDIRECT(CONCATENATE($B257,"!Q21"))),"",INDIRECT(CONCATENATE($B257,"!Q1"))) -> 
A297: RURAL | D297: Poorest | I297: Poor | N297: Middle | S297: Rich | X297: Richest
D298: Improved | E298: Basic | F298: Limited | G298: Unimproved | H298: Surface water | I298: Improved | J298: Basic | K298: Limited | L298: Unimproved | M298: Surface water | N298: Improved | O298: Basic | P298: Limited | Q298: Unimproved | R298: Surface water | S298: Improved | T298: Basic | U298: Limited | V298: Unimproved | W298: Surface water | X298: Improved | Y298: Basic | Z298: Limited | AA298: Unimproved | AB298: Surface water
A299: Forecast period: | C299: 2000 | D299: =IF((D301+H301)>100,D301*100/(D301+H301),D301) -> 53.51428409 | E299: =D299*AVERAGEIF(E305:E316,">0")/100 -> 39.91312927 | F299: =D299*(100-AVERAGEIF(E305:E316,">0"))/100 -> 13.60115482 | G299: =100-(E299+F299+H299) -> 33.47634268 | H299: =IF((D301+H301)>100,H301*100/(D301+H301),H301) -> 13.00937323 | I299: =IF((I301+M301)>100,I301*100/(I301+M301),I301) -> 54.58850727 | J299: =I299*AVERAGEIF(J305:J316,">0")/100 -> 40.45035462 | K299: =I299*(100-AVERAGEIF(J305:J316,">0"))/100 -> 14.13815264 | L299: =100-(J299+K299+M299) -> 34.10410898 | M299: =IF((I301+M301)>100,M301*100/(I301+M301),M301) -> 11.30738375 | N299: =IF((N301+R301)>100,N301*100/(N301+R301),N301) -> 56.61893675 | O299: =N299*AVERAGEIF(O305:O316,">0")/100 -> 41.67747875 | P299: =N299*(100-AVERAGEIF(O305:O316,">0"))/100 -> 14.941458 | Q299: =100-(O299+P299+R299) -> 32.37405445 | R299: =IF((N301+R301)>100,R301*100/(N301+R301),R301) -> 11.0070088 | S299: =IF((S301+W301)>100,S301*100/(S301+W301),S301) -> 57.38111438 | T299: =S299*AVERAGEIF(T305:T316,">0")/100 -> 43.04172107 | U299: =S299*(100-AVERAGEIF(T305:T316,">0"))/100 -> 14.33939332 | V299: =100-(T299+U299+W299) -> 32.97392836 | W299: =IF((S301+W301)>100,W301*100/(S301+W301),W301) -> 9.644957254 | X299: =IF((X301+AB301)>100,X301*100/(X301+AB301),X301) -> 74.41159008 | Y299: =X299*AVERAGEIF(Y305:Y316,">0")/100 -> 59.45649678 | Z299: =X299*(100-AVERAGEIF(Y305:Y316,">0"))/100 -> 14.9550933 | AA299: =100-(Y299+Z299+AB299) -> 19.52340103 | AB299: =IF((X301+AB301)>100,AB301*100/(X301+AB301),AB301) -> 6.065008893
C300: 2020 | D300: =IF((D302+H302)>100,D302*100/(D302+H302),D302) -> 86.50978038 | E300: =D300*AVERAGEIF(E305:E316,">0")/100 -> 64.5225122 | F300: =D300*(100-AVERAGEIF(E305:E316,">0"))/100 -> 21.98726819 | G300: =100-(E300+F300+H300) -> 11.98932734 | H300: =IF((D302+H302)>100,H302*100/(D302+H302),H302) -> 1.500892275 | I300: =IF((I302+M302)>100,I302*100/(I302+M302),I302) -> 87.29144584 | J300: =I300*AVERAGEIF(J305:J316,">0")/100 -> 64.6833943 | K300: =I300*(100-AVERAGEIF(J305:J316,">0"))/100 -> 22.60805154 | L300: =100-(J300+K300+M300) -> 10.78810775 | M300: =IF((I302+M302)>100,M302*100/(I302+M302),M302) -> 1.920446406 | N300: =IF((N302+R302)>100,N302*100/(N302+R302),N302) -> 90.45714235 | O300: =N300*AVERAGEIF(O305:O316,">0")/100 -> 66.58594888 | P300: =N300*(100-AVERAGEIF(O305:O316,">0"))/100 -> 23.87119347 | Q300: =100-(O300+P300+R300) -> 7.971887387 | R300: =IF((N302+R302)>100,R302*100/(N302+R302),R302) -> 1.570970261 | S300: =IF((S302+W302)>100,S302*100/(S302+W302),S302) -> 92.48449945 | T300: =S300*AVERAGEIF(T305:T316,">0")/100 -> 69.37286024 | U300: =S300*(100-AVERAGEIF(T305:T316,">0"))/100 -> 23.11163921 | V300: =100-(T300+U300+W300) -> 6.084759418 | W300: =IF((S302+W302)>100,W302*100/(S302+W302),W302) -> 1.430741133 | X300: =IF((X302+AB302)>100,X302*100/(X302+AB302),X302) -> 93.00659191 | Y300: =X300*AVERAGEIF(Y305:Y316,">0")/100 -> 74.31431215 | Z300: =X300*(100-AVERAGEIF(Y305:Y316,">0"))/100 -> 18.69227976 | AA300: =100-(Y300+Z300+AB300) -> 5.510176523 | AB300: =IF((X302+AB302)>100,AB302*100/(X302+AB302),AB302) -> 1.483231563
A301: Regression period: | C301: =MinRegYear(C299,C305:C316) -> 2000 | D301: =IF(MAX(C305:C316)-MIN(C305:C316)<5,AVERAGEIF(C305:C316,">0",D305:D316), IF(FORECAST($C301,D$305:D$316,$C$305:$C$316)<0,0, IF(FORECAST($C301,D$305:D$316,$C$305:$C$316)>100,100, FORECAST($C301,D$305:D$316,$C$305:$C$316)))) -> 53.51428409 | H301: =IF(MAX(C305:C316)-MIN(C305:C316)<5,AVERAGEIF(C305:C316,">0",H305:H316), IF(FORECAST($C301,H$305:H$316,$C$305:$C$316)<0,0, IF(FORECAST($C301,H$305:H$316,$C$305:$C$316)>100,100, FORECAST($C301,H$305:H$316,$C$305:$C$316)))) -> 13.00937323 | I301: =IF(MAX(C305:C316)-MIN(C305:C316)<5,AVERAGEIF(C305:C316,">0",I305:I316), IF(FORECAST($C301,I$305:I$316,$C$305:$C$316)<0,0, IF(FORECAST($C301,I$305:I$316,$C$305:$C$316)>100,100, FORECAST($C301,I$305:I$316,$C$305:$C$316)))) -> 54.58850727 | M301: =IF(MAX(C305:C316)-MIN(C305:C316)<5,AVERAGEIF(C305:C316,">0",M305:M316), IF(FORECAST($C301,M$305:M$316,$C$305:$C$316)<0,0, IF(FORECAST($C301,M$305:M$316,$C$305:$C$316)>100,100, FORECAST($C301,M$305:M$316,$C$305:$C$316)))) -> 11.30738375 | N301: =IF(MAX(C305:C316)-MIN(C305:C316)<5,AVERAGEIF(C305:C316,">0",N305:N316), IF(FORECAST($C301,N$305:N$316,$C$305:$C$316)<0,0, IF(FORECAST($C301,N$305:N$316,$C$305:$C$316)>100,100, FORECAST($C301,N$305:N$316,$C$305:$C$316)))) -> 56.61893675 | R301: =IF(MAX(C305:C316)-MIN(C305:C316)<5,AVERAGEIF(C305:C316,">0",R305:R316), IF(FORECAST($C301,R$305:R$316,$C$305:$C$316)<0,0, IF(FORECAST($C301,R$305:R$316,$C$305:$C$316)>100,100, FORECAST($C301,R$305:R$316,$C$305:$C$316)))) -> 11.0070088 | S301: =IF(MAX(C305:C316)-MIN(C305:C316)<5,AVERAGEIF(C305:C316,">0",S305:S316), IF(FORECAST($C301,S$305:S$316,$C$305:$C$316)<0,0, IF(FORECAST($C301,S$305:S$316,$C$305:$C$316)>100,100, FORECAST($C301,S$305:S$316,$C$305:$C$316)))) -> 57.38111438 | W301: =IF(MAX(C305:C316)-MIN(C305:C316)<5,AVERAGEIF(C305:C316,">0",W305:W316), IF(FORECAST($C301,W$305:W$316,$C$305:$C$316)<0,0, IF(FORECAST($C301,W$305:W$316,$C$305:$C$316)>100,100, FORECAST($C301,W$305:W$316,$C$305:$C$316)))) -> 9.644957254 | X301: =IF(MAX(C305:C316)-MIN(C305:C316)<5,AVERAGEIF(C305:C316,">0",X305:X316), IF(FORECAST($C301,X$305:X$316,$C$305:$C$316)<0,0, IF(FORECAST($C301,X$305:X$316,$C$305:$C$316)>100,100, FORECAST($C301,X$305:X$316,$C$305:$C$316)))) -> 74.41159008 | AB301: =IF(MAX(C305:C316)-MIN(C305:C316)<5,AVERAGEIF(C305:C316,">0",AB305:AB316), IF(FORECAST($C301,AB$305:AB$316,$C$305:$C$316)<0,0, IF(FORECAST($C301,AB$305:AB$316,$C$305:$C$316)>100,100, FORECAST($C301,AB$305:AB$316,$C$305:$C$316)))) -> 6.065008893
C302: =MaxRegYear(C300,C305:C316) -> 2019 | D302: =IF(MAX(C305:C316)-MIN(C305:C316)<5,AVERAGEIF(C305:C316,">0",D305:D316), IF(FORECAST($C302,D$305:D$316,$C$305:$C$316)<0,0, IF(FORECAST($C302,D$305:D$316,$C$305:$C$316)>100,100, FORECAST($C302,D$305:D$316,$C$305:$C$316)))) -> 86.50978038 | H302: =IF(MAX(C305:C316)-MIN(C305:C316)<5,AVERAGEIF(C305:C316,">0",H305:H316), IF(FORECAST($C302,H$305:H$316,$C$305:$C$316)<0,0, IF(FORECAST($C302,H$305:H$316,$C$305:$C$316)>100,100, FORECAST($C302,H$305:H$316,$C$305:$C$316)))) -> 1.500892275 | I302: =IF(MAX(C305:C316)-MIN(C305:C316)<5,AVERAGEIF(C305:C316,">0",I305:I316), IF(FORECAST($C302,I$305:I$316,$C$305:$C$316)<0,0, IF(FORECAST($C302,I$305:I$316,$C$305:$C$316)>100,100, FORECAST($C302,I$305:I$316,$C$305:$C$316)))) -> 87.29144584 | M302: =IF(MAX(C305:C316)-MIN(C305:C316)<5,AVERAGEIF(C305:C316,">0",M305:M316), IF(FORECAST($C302,M$305:M$316,$C$305:$C$316)<0,0, IF(FORECAST($C302,M$305:M$316,$C$305:$C$316)>100,100, FORECAST($C302,M$305:M$316,$C$305:$C$316)))) -> 1.920446406 | N302: =IF(MAX(C305:C316)-MIN(C305:C316)<5,AVERAGEIF(C305:C316,">0",N305:N316), IF(FORECAST($C302,N$305:N$316,$C$305:$C$316)<0,0, IF(FORECAST($C302,N$305:N$316,$C$305:$C$316)>100,100, FORECAST($C302,N$305:N$316,$C$305:$C$316)))) -> 90.45714235 | R302: =IF(MAX(C305:C316)-MIN(C305:C316)<5,AVERAGEIF(C305:C316,">0",R305:R316), IF(FORECAST($C302,R$305:R$316,$C$305:$C$316)<0,0, IF(FORECAST($C302,R$305:R$316,$C$305:$C$316)>100,100, FORECAST($C302,R$305:R$316,$C$305:$C$316)))) -> 1.570970261 | S302: =IF(MAX(C305:C316)-MIN(C305:C316)<5,AVERAGEIF(C305:C316,">0",S305:S316), IF(FORECAST($C302,S$305:S$316,$C$305:$C$316)<0,0, IF(FORECAST($C302,S$305:S$316,$C$305:$C$316)>100,100, FORECAST($C302,S$305:S$316,$C$305:$C$316)))) -> 92.48449945 | W302: =IF(MAX(C305:C316)-MIN(C305:C316)<5,AVERAGEIF(C305:C316,">0",W305:W316), IF(FORECAST($C302,W$305:W$316,$C$305:$C$316)<0,0, IF(FORECAST($C302,W$305:W$316,$C$305:$C$316)>100,100, FORECAST($C302,W$305:W$316,$C$305:$C$316)))) -> 1.430741133 | X302: =IF(MAX(C305:C316)-MIN(C305:C316)<5,AVERAGEIF(C305:C316,">0",X305:X316), IF(FORECAST($C302,X$305:X$316,$C$305:$C$316)<0,0, IF(FORECAST($C302,X$305:X$316,$C$305:$C$316)>100,100, FORECAST($C302,X$305:X$316,$C$305:$C$316)))) -> 93.00659191 | AB302: =IF(MAX(C305:C316)-MIN(C305:C316)<5,AVERAGEIF(C305:C316,">0",AB305:AB316), IF(FORECAST($C302,AB$305:AB$316,$C$305:$C$316)<0,0, IF(FORECAST($C302,AB$305:AB$316,$C$305:$C$316)>100,100, FORECAST($C302,AB$305:AB$316,$C$305:$C$316)))) -> 1.483231563
B304: Survey | C304: Year | D304: Improved | E304: % Improved < = 30min | H304: Surface water | I304: Improved | J304: % Improved < = 30min | M304: Surface water | N304: Improved | O304: % Improved < = 30min | R304: Surface water | S304: Improved | T304: % Improved < = 30min | W304: Surface water | X304: Improved | Y304: % Improved < = 30min | AB304: Surface water
B305: MIS17 | C305: 2017 | D305: =IF(ISERROR(INDIRECT(CONCATENATE($B305,"!M16"))),"",INDIRECT(CONCATENATE($B305,"!M16"))) -> 83.20655661 | E305: =IF(ISERROR(INDIRECT(CONCATENATE($B305,"!M23"))),"",INDIRECT(CONCATENATE($B305,"!M23"))) -> 92.94134231 | H305: =IF(ISERROR(INDIRECT(CONCATENATE($B305,"!M21"))),"",INDIRECT(CONCATENATE($B305,"!M21"))) -> 3.546122875 | I305: =IF(ISERROR(INDIRECT(CONCATENATE($B305,"!N16"))),"",INDIRECT(CONCATENATE($B305,"!N16"))) -> 80.30620314 | J305: =IF(ISERROR(INDIRECT(CONCATENATE($B305,"!N23"))),"",INDIRECT(CONCATENATE($B305,"!N23"))) -> 89.4548873 | M305: =IF(ISERROR(INDIRECT(CONCATENATE($B305,"!N21"))),"",INDIRECT(CONCATENATE($B305,"!N21"))) -> 4.289666111 | N305: =IF(ISERROR(INDIRECT(CONCATENATE($B305,"!O16"))),"",INDIRECT(CONCATENATE($B305,"!O16"))) -> 83.84157717 | O305: =IF(ISERROR(INDIRECT(CONCATENATE($B305,"!O23"))),"",INDIRECT(CONCATENATE($B305,"!O23"))) -> 86.13693076 | R305: =IF(ISERROR(INDIRECT(CONCATENATE($B305,"!O21"))),"",INDIRECT(CONCATENATE($B305,"!O21"))) -> 5.661559061 | S305: =IF(ISERROR(INDIRECT(CONCATENATE($B305,"!P16"))),"",INDIRECT(CONCATENATE($B305,"!P16"))) -> 87.96980023 | T305: =IF(ISERROR(INDIRECT(CONCATENATE($B305,"!P23"))),"",INDIRECT(CONCATENATE($B305,"!P23"))) -> 85.54751018 | W305: =IF(ISERROR(INDIRECT(CONCATENATE($B305,"!P21"))),"",INDIRECT(CONCATENATE($B305,"!P21"))) -> 3.303092458 | X305: =IF(ISERROR(INDIRECT(CONCATENATE($B305,"!Q16"))),"",INDIRECT(CONCATENATE($B305,"!Q16"))) -> 87.35700722 | Y305: =IF(ISERROR(INDIRECT(CONCATENATE($B305,"!Q23"))),"",INDIRECT(CONCATENATE($B305,"!Q23"))) -> 89.96570036 | AB305: =IF(ISERROR(INDIRECT(CONCATENATE($B305,"!Q221"))),"",INDIRECT(CONCATENATE($B305,"!Q21"))) -> 3.122374594
B306: DHS16 | C306: 2016 | D306: 80.14709207 | E306: 68.06054567 | H306: 5.278914198 | I306: 82.10997041 | J306: 68.47647885 | M306: 5.378394429 | N306: 84.46433628 | O306: 69.18984012 | R306: 4.444896636 | S306: 87.1160406 | T306: 66.36950976 | W306: 3.609076622 | X306: 92.06401089 | Y306: 72.90826404 | AB306: 2.501903171
B307: MICS14 | C307: 2014 | D307: 81.1 | E307: 59 | H307: 3.5 | I307: 82.7 | J307: 58.7 | M307: 3.2 | N307: 83.8 | O307: 57.7 | R307: 3.4 | S307: 84.4 | T307: 59.7 | W307: 3.3 | X307: 89.3 | Y307: 67.1 | AB307: 2.1
B308: MIS14 | D308: 76.4593718 | E308: 82.82773898 | H308: 3.181914665 | I308: 81.32343097 | J308: 78.01473687 | M308: 4.035750407 | N308: 77.12487454 | O308: 77.40141271 | R308: 8.171172732 | S308: 79.35381523 | T308: 85.83367191 | W308: 8.223317121 | X308: 89.13985626 | Y308: 87.63374324 | AB308: 0.4899030138
B309: MIS12 | C309: 2012 | D309: 71.7 | E309: 88.3 | H309: 4.9 | I309: 74.5 | J309: 85.7 | M309: 4.6 | N309: 81.9 | O309: 84.4 | R309: 2.1 | S309: 77.4 | T309: 86.4 | W309: 4.1 | X309: 89.1 | Y309: 90.7 | AB309: 2.3
B310: DHS10 | C310: 2010 | D310: 72.7 | E310: 68.4 | H310: 4.4 | I310: 73.9 | J310: 71.2 | M310: 3.6 | N310: 74.1 | O310: 72.1 | R310: 3.3 | S310: 78.4 | T310: 74.8 | W310: 2.8 | X310: 86.2 | Y310: 78.3 | AB310: 1.9
B311: MICS06 | C311: 2006 | D311: 65.83652801 | E311: 62.55883908 | H311: 8.634581913 | I311: 68.60548999 | J311: 67.15736871 | M311: 6.890365288 | N311: 69.65717649 | O311: 68.34527082 | R311: 6.018406202 | S311: 73.3410182 | T311: 66.42110348 | W311: 6.226715327 | X311: 79.54159589 | Y311: 72.70768535 | AB311: 5.091407667
B312: DHS04 | C312: 2004 | D312: 53.45094875 | E312: N/A | H312: 12.81637536 | I312: 53.99652941 | J312: N/A | M312: 11.15833264 | N312: 57.01759868 | O312: N/A | R312: 11.31733922 | S312: 56.30611989 | T312: N/A | W312: 9.742566002 | X312: 69.1670926 | Y312: N/A | AB312: 7.351963492
B313: DHS00 | C313: 2000 | D313: 57.16494764 | E313: N/A | H313: 13.14793912 | I313: 56.56524137 | J313: N/A | M313: 12.31241416 | N313: 58.86650238 | O313: N/A | R313: 12.57981429 | S313: 60.07211616 | T313: N/A | W313: 9.924361645 | X313: 79.8790743 | Y313: N/A | AB313: 5.101874375
B318: =CONCATENATE("Rural use of drinking water sources, ",C299,"–",C300) -> Rural use of drinking water sources, 2000–2020 | S318: Data points used for regression

Sheet Sanitation
B4: Summary of trends in use of sanitation facilities by wealth quintile (%)
B5: =IF(ISERROR(INDIRECT(CONCATENATE($B105,"!A2"))),"",INDIRECT(CONCATENATE($B105,"!A2"))) -> Malawi
B7: =B118 -> National use of sanitation facilities, 2000–2020 | J7: =B218 -> Urban use of sanitation facilities, 2000–2020 | R7: =B318 -> Rural use of sanitation facilities, 2000–2020
B31: =IF(ISERROR(INDIRECT(CONCATENATE($B105,"!A2"))),"",INDIRECT(CONCATENATE($B105,"!A2"))) -> Malawi | F31: Poorest | J31: Poor | N31: Middle | R31: Rich | V31: Richest
F32: Basic | G32: Limited | H32: Unimproved | I32: Open defecation | J32: Basic | K32: Limited | L32: Unimproved | M32: Open defecation | N32: Basic | O32: Limited | P32: Unimproved | Q32: Open defecation | R32: Basic | S32: Limited | T32: Unimproved | U32: Open defecation | V32: Basic | W32: Limited | X32: Unimproved | Y32: Open defecation
B33: NATIONAL | D33: Estimate | E33: =C99 -> 2000 | F33: =E99 -> 10.92853408 | G33: =F99 -> 9.811354453 | H33: 47.06592501 | I33: 32.19418646 | J33: =J99 -> 14.79503094 | K33: =K99 -> 10.19562518 | L33: 51.43397764 | M33: 23.57536624 | N33: =O99 -> 15.85645974 | O33: =P99 -> 10.35394641 | P33: 56.01620633 | Q33: 17.77338752 | R33: =T99 -> 21.43967744 | S33: =U99 -> 10.38643428 | T33: 57.3332445 | U33: 10.84064377 | V33: =Y99 -> 41.49981643 | W33: =Z99 -> 19.41071137 | X33: 37.5871974 | Y33: 1.502274803
E34: =C100 -> 2020 | F34: =E100 -> 14.38982127 | G34: 12.91880833 | H34: 59.26853783 | I34: 13.42283257 | J34: =J100 -> 18.62718853 | K34: 12.83646065 | L34: 62.13058692 | M34: 6.405763906 | N34: =O100 -> 19.22629101 | O34: 12.55437784 | P34: 64.38167224 | Q34: 3.837658912 | R34: =T100 -> 24.17941804 | S34: 11.71369938 | T34: 62.73390996 | U34: 1.372972619 | V34: =Y100 -> 40.25108061 | W34: 18.8266401 | X34: 40.47511377 | Y34: 0.4471655155
B36: URBAN | D36: Estimate | E36: =C199 -> 2000 | F36: =E199 -> 16.45721157 | G36: =F199 -> 20.50176102 | H36: 50.62945586 | I36: 12.41157155 | J36: =J199 -> 17.98342148 | K36: =K199 -> 29.05761705 | L36: 50.048115 | M36: 2.910846465 | N36: =O199 -> 23.63549597 | O36: =P199 -> 34.32692701 | P36: 41.10095654 | Q36: 0.9366204713 | R36: =T199 -> 40.56374033 | S36: =U199 -> 28.56812631 | T36: 30.25019197 | U36: 0.6179413869 | V36: =Y199 -> 77.17164431 | W36: =Z199 -> 12.87197513 | X36: 9.937989759 | Y36: 0.0183908046
E37: =C200 -> 2020 | F37: =E200 -> 18.60472996 | G37: 23.17705681 | H37: 53.62782877 | I37: 4.590384466 | J37: =J200 -> 18.58722928 | K37: 30.03324984 | L37: 50.54056394 | M37: 0.8389569322 | N37: =O200 -> 22.80845964 | O37: 33.12578379 | P37: 43.757793 | Q37: 0.3079635728 | R37: =T200 -> 40.62176406 | S37: 28.60899112 | T37: 30.74346934 | U37: 0.02577548152 | V37: =Y200 -> 73.11355229 | W37: 12.1950988 | X37: 14.65226845 | Y37: 0.03908045977
B39: RURAL | D39: Estimate | E39: =C299 -> 2000 | F39: =E299 -> 11.43667821 | G39: =F299 -> 8.374382715 | H39: 46.73186798 | I39: 33.45707109 | J39: =J299 -> 13.95071338 | K39: =K299 -> 10.57926724 | L39: 51.07670843 | M39: 24.39331095 | N39: =O299 -> 16.17021155 | O39: =P299 -> 9.586437111 | P39: 53.90955638 | Q39: 20.33379496 | R39: =T299 -> 18.51978661 | S39: =U299 -> 9.916380427 | T39: 59.53534966 | U39: 12.0284833 | V39: =Y299 -> 35.46163246 | W39: =Z299 -> 10.54437106 | X39: 50.00061296 | Y39: 3.993383522
E40: =C300 -> 2020 | F40: =E300 -> 15.42198932 | G40: 11.29258325 | H40: 60.7040575 | I40: 12.58136992 | J40: =J300 -> 17.75844969 | K40: 13.46679412 | L40: 62.76317021 | M40: 6.011585983 | N40: =O300 -> 19.80152476 | O40: 11.7392448 | P40: 64.69350338 | Q40: 3.765727054 | R40: =T300 -> 20.77840924 | S40: 11.12575512 | T40: 64.61411587 | U40: 3.481719766 | V40: =Y300 -> 34.22807259 | W40: 10.17757709 | X40: 54.25494712 | Y40: 1.339403202
A97: NATIONAL | D97: Poorest | I97: Poor | N97: Middle | S97: Rich | X97: Richest
D98: Improved | E98: Basic | F98: Limited | G98: Unimproved | H98: Open defecation | I98: Improved | J98: Basic | K98: Limited | L98: Unimproved | M98: Open defecation | N98: Improved | O98: Basic | P98: Limited | Q98: Unimproved | R98: Open defecation | S98: Improved | T98: Basic | U98: Limited | V98: Unimproved | W98: Open defecation | X98: Improved | Y98: Basic | Z98: Limited | AA98: Unimproved | AB98: Open defecation
A99: Forecast period: | C99: 2000 | D99: =IF((D101+H101)>100,D101*100/(D101+H101),D101) -> 20.73988853 | E99: =D99*AVERAGEIF(E105:E116,">0")/100 -> 10.92853408 | F99: =D99*(100-AVERAGEIF(E105:E116,">0"))/100 -> 9.811354453 | G99: =100-(E99+F99+H99) -> 47.06592501 | H99: =IF((D101+H101)>100,H101*100/(D101+H101),H101) -> 32.19418646 | I99: =IF((I101+M101)>100,I101*100/(I101+M101),I101) -> 24.99065612 | J99: =I99*AVERAGEIF(J105:J116,">0")/100 -> 14.79503094 | K99: =I99*(100-AVERAGEIF(J105:J116,">0"))/100 -> 10.19562518 | L99: =100-(J99+K99+M99) -> 51.43397764 | M99: =IF((I101+M101)>100,M101*100/(I101+M101),M101) -> 23.57536624 | N99: =IF((N101+R101)>100,N101*100/(N101+R101),N101) -> 26.21040615 | O99: =N99*AVERAGEIF(O105:O116,">0")/100 -> 15.85645974 | P99: =N99*(100-AVERAGEIF(O105:O116,">0"))/100 -> 10.35394641 | Q99: =100-(O99+P99+R99) -> 56.01620633 | R99: =IF((N101+R101)>100,R101*100/(N101+R101),R101) -> 17.77338752 | S99: =IF((S101+W101)>100,S101*100/(S101+W101),S101) -> 31.82611172 | T99: =S99*AVERAGEIF(T105:T116,">0")/100 -> 21.43967744 | U99: =S99*(100-AVERAGEIF(T105:T116,">0"))/100 -> 10.38643428 | V99: =100-(T99+U99+W99) -> 57.3332445 | W99: =IF((S101+W101)>100,W101*100/(S101+W101),W101) -> 10.84064377 | X99: =IF((X101+AB101)>100,X101*100/(X101+AB101),X101) -> 60.9105278 | Y99: =X99*AVERAGEIF(Y105:Y116,">0")/100 -> 41.49981643 | Z99: =X99*(100-AVERAGEIF(Y105:Y116,">0"))/100 -> 19.41071137 | AA99: =100-(Y99+Z99+AB99) -> 37.5871974 | AB99: =IF((X101+AB101)>100,AB101*100/(X101+AB101),AB101) -> 1.502274803
C100: 2020 | D100: =IF((D102+H102)>100,D102*100/(D102+H102),D102) -> 27.30862959 | E100: =D100*AVERAGEIF(E105:E116,">0")/100 -> 14.38982127 | F100: =D100*(100-AVERAGEIF(E105:E116,">0"))/100 -> 12.91880833 | G100: =100-(E100+F100+H100) -> 59.26853783 | H100: =IF((D102+H102)>100,H102*100/(D102+H102),H102) -> 13.42283257 | I100: =IF((I102+M102)>100,I102*100/(I102+M102),I102) -> 31.46364918 | J100: =I100*AVERAGEIF(J105:J116,">0")/100 -> 18.62718853 | K100: =I100*(100-AVERAGEIF(J105:J116,">0"))/100 -> 12.83646065 | L100: =100-(J100+K100+M100) -> 62.13058692 | M100: =IF((I102+M102)>100,M102*100/(I102+M102),M102) -> 6.405763906 | N100: =IF((N102+R102)>100,N102*100/(N102+R102),N102) -> 31.78066885 | O100: =N100*AVERAGEIF(O105:O116,">0")/100 -> 19.22629101 | P100: =N100*(100-AVERAGEIF(O105:O116,">0"))/100 -> 12.55437784 | Q100: =100-(O100+P100+R100) -> 64.38167224 | R100: =IF((N102+R102)>100,R102*100/(N102+R102),R102) -> 3.837658912 | S100: =IF((S102+W102)>100,S102*100/(S102+W102),S102) -> 35.89311742 | T100: =S100*AVERAGEIF(T105:T116,">0")/100 -> 24.17941804 | U100: =S100*(100-AVERAGEIF(T105:T116,">0"))/100 -> 11.71369938 | V100: =100-(T100+U100+W100) -> 62.73390996 | W100: =IF((S102+W102)>100,W102*100/(S102+W102),W102) -> 1.372972619 | X100: =IF((X102+AB102)>100,X102*100/(X102+AB102),X102) -> 59.07772072 | Y100: =X100*AVERAGEIF(Y105:Y116,">0")/100 -> 40.25108061 | Z100: =X100*(100-AVERAGEIF(Y105:Y116,">0"))/100 -> 18.8266401 | AA100: =100-(Y100+Z100+AB100) -> 40.47511377 | AB100: =IF((X102+AB102)>100,AB102*100/(X102+AB102),AB102) -> 0.4471655155
A101: Regression period: | C101: =MinRegYear(C99,C105:C116) -> 2000 | D101: =IF(MAX(C105:C116)-MIN(C105:C116)<5,AVERAGEIF(C105:C116,">0",D105:D116), IF(FORECAST($C101,D$105:D$116,$C$105:$C$116)<0,0, IF(FORECAST($C101,D$105:D$116,$C$105:$C$116)>100,100, FORECAST($C101,D$105:D$116,$C$105:$C$116)))) -> 20.73988853 | H101: =IF(MAX(C105:C116)-MIN(C105:C116)<5,AVERAGEIF(C105:C116,">0",H105:H116), IF(FORECAST($C101,H$105:H$116,$C$105:$C$116)<0,0, IF(FORECAST($C101,H$105:H$116,$C$105:$C$116)>100,100, FORECAST($C101,H$105:H$116,$C$105:$C$116)))) -> 32.19418646 | I101: =IF(MAX(C105:C116)-MIN(C105:C116)<5,AVERAGEIF(C105:C116,">0",I105:I116), IF(FORECAST($C101,I$105:I$116,$C$105:$C$116)<0,0, IF(FORECAST($C101,I$105:I$116,$C$105:$C$116)>100,100, FORECAST($C101,I$105:I$116,$C$105:$C$116)))) -> 24.99065612 | M101: =IF(MAX(C105:C116)-MIN(C105:C116)<5,AVERAGEIF(C105:C116,">0",M105:M116), IF(FORECAST($C101,M$105:M$116,$C$105:$C$116)<0,0, IF(FORECAST($C101,M$105:M$116,$C$105:$C$116)>100,100, FORECAST($C101,M$105:M$116,$C$105:$C$116)))) -> 23.57536624 | N101: =IF(MAX(C105:C116)-MIN(C105:C116)<5,AVERAGEIF(C105:C116,">0",N105:N116), IF(FORECAST($C101,N$105:N$116,$C$105:$C$116)<0,0, IF(FORECAST($C101,N$105:N$116,$C$105:$C$116)>100,100, FORECAST($C101,N$105:N$116,$C$105:$C$116)))) -> 26.21040615 | R101: =IF(MAX(C105:C116)-MIN(C105:C116)<5,AVERAGEIF(C105:C116,">0",R105:R116), IF(FORECAST($C101,R$105:R$116,$C$105:$C$116)<0,0, IF(FORECAST($C101,R$105:R$116,$C$105:$C$116)>100,100, FORECAST($C101,R$105:R$116,$C$105:$C$116)))) -> 17.77338752 | S101: =IF(MAX(C105:C116)-MIN(C105:C116)<5,AVERAGEIF(C105:C116,">0",S105:S116), IF(FORECAST($C101,S$105:S$116,$C$105:$C$116)<0,0, IF(FORECAST($C101,S$105:S$116,$C$105:$C$116)>100,100, FORECAST($C101,S$105:S$116,$C$105:$C$116)))) -> 31.82611172 | W101: =IF(MAX(C105:C116)-MIN(C105:C116)<5,AVERAGEIF(C105:C116,">0",W105:W116), IF(FORECAST($C101,W$105:W$116,$C$105:$C$116)<0,0, IF(FORECAST($C101,W$105:W$116,$C$105:$C$116)>100,100, FORECAST($C101,W$105:W$116,$C$105:$C$116)))) -> 10.84064377 | X101: =IF(MAX(C105:C116)-MIN(C105:C116)<5,AVERAGEIF(C105:C116,">0",X105:X116), IF(FORECAST($C101,X$105:X$116,$C$105:$C$116)<0,0, IF(FORECAST($C101,X$105:X$116,$C$105:$C$116)>100,100, FORECAST($C101,X$105:X$116,$C$105:$C$116)))) -> 60.9105278 | AB101: =IF(MAX(C105:C116)-MIN(C105:C116)<5,AVERAGEIF(C105:C116,">0",AB105:AB116), IF(FORECAST($C101,AB$105:AB$116,$C$105:$C$116)<0,0, IF(FORECAST($C101,AB$105:AB$116,$C$105:$C$116)>100,100, FORECAST($C101,AB$105:AB$116,$C$105:$C$116)))) -> 1.502274803
C102: =MaxRegYear(C100,C105:C116) -> 2018 | D102: =IF(MAX(C105:C116)-MIN(C105:C116)<5,AVERAGEIF(C105:C116,">0",D105:D116), IF(FORECAST($C102,D$105:D$116,$C$105:$C$116)<0,0, IF(FORECAST($C102,D$105:D$116,$C$105:$C$116)>100,100, FORECAST($C102,D$105:D$116,$C$105:$C$116)))) -> 27.30862959 | H102: =IF(MAX(C105:C116)-MIN(C105:C116)<5,AVERAGEIF(C105:C116,">0",H105:H116), IF(FORECAST($C102,H$105:H$116,$C$105:$C$116)<0,0, IF(FORECAST($C102,H$105:H$116,$C$105:$C$116)>100,100, FORECAST($C102,H$105:H$116,$C$105:$C$116)))) -> 13.42283257 | I102: =IF(MAX(C105:C116)-MIN(C105:C116)<5,AVERAGEIF(C105:C116,">0",I105:I116), IF(FORECAST($C102,I$105:I$116,$C$105:$C$116)<0,0, IF(FORECAST($C102,I$105:I$116,$C$105:$C$116)>100,100, FORECAST($C102,I$105:I$116,$C$105:$C$116)))) -> 31.46364918 | M102: =IF(MAX(C105:C116)-MIN(C105:C116)<5,AVERAGEIF(C105:C116,">0",M105:M116), IF(FORECAST($C102,M$105:M$116,$C$105:$C$116)<0,0, IF(FORECAST($C102,M$105:M$116,$C$105:$C$116)>100,100, FORECAST($C102,M$105:M$116,$C$105:$C$116)))) -> 6.405763906 | N102: =IF(MAX(C105:C116)-MIN(C105:C116)<5,AVERAGEIF(C105:C116,">0",N105:N116), IF(FORECAST($C102,N$105:N$116,$C$105:$C$116)<0,0, IF(FORECAST($C102,N$105:N$116,$C$105:$C$116)>100,100, FORECAST($C102,N$105:N$116,$C$105:$C$116)))) -> 31.78066885 | R102: =IF(MAX(C105:C116)-MIN(C105:C116)<5,AVERAGEIF(C105:C116,">0",R105:R116), IF(FORECAST($C102,R$105:R$116,$C$105:$C$116)<0,0, IF(FORECAST($C102,R$105:R$116,$C$105:$C$116)>100,100, FORECAST($C102,R$105:R$116,$C$105:$C$116)))) -> 3.837658912 | S102: =IF(MAX(C105:C116)-MIN(C105:C116)<5,AVERAGEIF(C105:C116,">0",S105:S116), IF(FORECAST($C102,S$105:S$116,$C$105:$C$116)<0,0, IF(FORECAST($C102,S$105:S$116,$C$105:$C$116)>100,100, FORECAST($C102,S$105:S$116,$C$105:$C$116)))) -> 35.89311742 | W102: =IF(MAX(C105:C116)-MIN(C105:C116)<5,AVERAGEIF(C105:C116,">0",W105:W116), IF(FORECAST($C102,W$105:W$116,$C$105:$C$116)<0,0, IF(FORECAST($C102,W$105:W$116,$C$105:$C$116)>100,100, FORECAST($C102,W$105:W$116,$C$105:$C$116)))) -> 1.372972619 | X102: =IF(MAX(C105:C116)-MIN(C105:C116)<5,AVERAGEIF(C105:C116,">0",X105:X116), IF(FORECAST($C102,X$105:X$116,$C$105:$C$116)<0,0, IF(FORECAST($C102,X$105:X$116,$C$105:$C$116)>100,100, FORECAST($C102,X$105:X$116,$C$105:$C$116)))) -> 59.07772072 | AB102: =IF(MAX(C105:C116)-MIN(C105:C116)<5,AVERAGEIF(C105:C116,">0",AB105:AB116), IF(FORECAST($C102,AB$105:AB$116,$C$105:$C$116)<0,0, IF(FORECAST($C102,AB$105:AB$116,$C$105:$C$116)>100,100, FORECAST($C102,AB$105:AB$116,$C$105:$C$116)))) -> 0.4471655155
B104: Survey | C104: Year | D104: Improved | E104: Not shared | H104: Open defecation | I104: Improved | J104: Not shared | M104: Open defecation | N104: Improved | O104: Not shared | R104: Open defecation | S104: Improved | T104: Not shared | W104: Open defecation | X104: Improved | Y104: Not shared | AB104: Open defecation
B105: MIS17 | D105: =IF(ISERROR(INDIRECT(CONCATENATE($B105,"!C122"))),"",INDIRECT(CONCATENATE($B105,"!C122"))) -> 27.10002269 | E105: =IF(ISERROR(INDIRECT(CONCATENATE($B105,"!C129"))),"",INDIRECT(CONCATENATE($B105,"!C129"))) -> 55.53720252 | H105: =IF(ISERROR(INDIRECT(CONCATENATE($B105,"!C127"))),"",INDIRECT(CONCATENATE($B105,"!C127"))) -> 13.15207068 | I105: =IF(ISERROR(INDIRECT(CONCATENATE($B105,"!D122"))),"",INDIRECT(CONCATENATE($B105,"!D122"))) -> 31.15103757 | J105: =IF(ISERROR(INDIRECT(CONCATENATE($B105,"!D129"))),"",INDIRECT(CONCATENATE($B105,"!D129"))) -> 51.42470092 | M105: =IF(ISERROR(INDIRECT(CONCATENATE($B105,"!D127"))),"",INDIRECT(CONCATENATE($B105,"!D127"))) -> 5.857267839 | N105: =IF(ISERROR(INDIRECT(CONCATENATE($B105,"!E122"))),"",INDIRECT(CONCATENATE($B105,"!E122"))) -> 30.07147638 | O105: =IF(ISERROR(INDIRECT(CONCATENATE($B105,"!E129"))),"",INDIRECT(CONCATENATE($B105,"!E129"))) -> 54.0908443 | R105: =IF(ISERROR(INDIRECT(CONCATENATE($B105,"!E127"))),"",INDIRECT(CONCATENATE($B105,"!E127"))) -> 6.720501831 | S105: =IF(ISERROR(INDIRECT(CONCATENATE($B105,"!F122"))),"",INDIRECT(CONCATENATE($B105,"!F122"))) -> 34.42231694 | T105: =IF(ISERROR(INDIRECT(CONCATENATE($B105,"!F129"))),"",INDIRECT(CONCATENATE($B105,"!F129"))) -> 73.44867673 | W105: =IF(ISERROR(INDIRECT(CONCATENATE($B105,"!F127"))),"",INDIRECT(CONCATENATE($B105,"!F127"))) -> 3.553000363 | X105: =IF(ISERROR(INDIRECT(CONCATENATE($B105,"!G122"))),"",INDIRECT(CONCATENATE($B105,"!G122"))) -> 59.47043394 | Y105: =IF(ISERROR(INDIRECT(CONCATENATE($B105,"!G129"))),"",INDIRECT(CONCATENATE($B105,"!G129"))) -> 61.54564548 | AB105: =IF(ISERROR(INDIRECT(CONCATENATE($B105,"!G2127"))),"",INDIRECT(CONCATENATE($B105,"!G127"))) -> 0.7458633435
B106: DHS16 | C106: 2016 | D106: 26.96904556 | E106: 60.5865679 | H106: 13.01219025 | I106: 31.0904945 | J106: 67.5899919 | M106: 6.650287677 | N106: 31.11252687 | O106: 67.53561373 | R106: 4.217639804 | S106: 34.96347181 | T106: 67.52743383 | W106: 2.265311179 | X106: 60.18606903 | Y106: 65.66948571 | AB106: 0.4995469029
B107: MICS14 | C107: 2014 | D107: 26.17860794 | E107: 58.19934995 | H107: 13.0960409 | I107: 30.53726607 | J107: 63.77368021 | M107: 6.093931876 | N107: 30.57512209 | O107: 66.24985716 | R107: 3.456994766 | S107: 34.52467278 | T107: 66.57805844 | W107: 1.716599263 | X107: 58.70506896 | Y107: 67.84538409 | AB107: 0.1214769905
B108: MIS14 | D108: 22.88876508 | E108: 26.31899729 | H108: 24.77355946 | I108: 27.94430259 | J108: 32.91973612 | M108: 14.17713913 | N108: 27.70248256 | O108: 27.86631105 | R108: 13.15994362 | S108: 33.84871892 | T108: 60.46585721 | W108: 3.781580087 | X108: 61.18751071 | Y108: 64.60925192 | AB108: 0.464681399
B109: MIS12 | C109: 2012 | D109: 25.01888778 | E109: 64.22891438 | H109: 25.20822691 | I109: 28.42221785 | J109: 84.20644629 | M109: 17.77500704 | N109: 29.5277999 | O109: 82.56670738 | R109: 15.16061889 | S109: 34.97324415 | T109: 74.99672207 | W109: 7.950288093 | X109: 60.1432982 | Y109: 79.56990652 | AB109: 1.173594545
B110: DHS10 | C110: 2010 | D110: 23.88940185 | E110: 49.6 | H110: 24.9 | I110: 28.8358148 | J110: 56.4 | M110: 15.3 | N110: 30.01258532 | O110: 59.7 | R110: 9.4 | S110: 34.9065864 | T110: 52.6 | W110: 5.5 | X110: 59.89877639 | Y110: 71.5 | AB110: 1.3
B111: MICS06 | C111: 2006 | D111: 22.52841592 | E111: 54.38214875 | H111: 25.48494799 | I111: 26.51946073 | J111: 58.10120088 | M111: 18.00687364 | N111: 27.79879286 | O111: 65.46833991 | R111: 12.19614928 | S111: 32.66246595 | T111: 75.93863174 | W111: 7.15352909 | X111: 57.50062168 | Y111: 66.187264 | AB111: 1.434525609
B112: DHS04 | C112: 2004 | D112: 21.6360914 | E112: N/A | H112: 30.00937345 | I112: 26.22458463 | J112: N/A | M112: 20.52984198 | N112: 27.35404845 | O112: N/A | R112: 14.46464895 | S112: 33.68626269 | T112: N/A | W112: 6.270894781 | X112: 62.43256618 | Y112: N/A | AB112: 0.9779171654
B113: DHS00 | C113: 2000 | D113: 21.58443293 | E113: N/A | H113: 28.99164012 | I113: 25.60061924 | J113: N/A | M113: 21.53188011 | N113: 26.27842794 | O113: N/A | R113: 17.51681795 | S113: 31.07465347 | T113: N/A | W113: 12.4170167 | X113: 61.19429199 | Y113: N/A | AB113: 1.374597085
B118: =CONCATENATE("National use of sanitation facilities, ",C99,"–",C100) -> National use of sanitation facilities, 2000–2020 | S118: Data points used for regression
A197: URBAN | D197: Poorest | I197: Poor | N197: Middle | S197: Rich | X197: Richest
D198: Improved | E198: Basic | F198: Limited | G198: Unimproved | H198: Open defecation | I198: Improved | J198: Basic | K198: Limited | L198: Unimproved | M198: Open defecation | N198: Improved | O198: Basic | P198: Limited | Q198: Unimproved | R198: Open defecation | S198: Improved | T198: Basic | U198: Limited | V198: Unimproved | W198: Open defecation | X198: Improved | Y198: Basic | Z198: Limited | AA198: Unimproved | AB198: Open defecation
A199: Forecast period: | C199: =MinBase(C205:C216) -> 2000 | D199: =IF((D201+H201)>100,D201*100/(D201+H201),D201) -> 36.95897259 | E199: =D199*AVERAGEIF(E205:E216,">0")/100 -> 16.45721157 | F199: =D199*(100-AVERAGEIF(E205:E216,">0"))/100 -> 20.50176102 | G199: =100-(E199+F199+H199) -> 50.62945586 | H199: =IF((D201+H201)>100,H201*100/(D201+H201),H201) -> 12.41157155 | I199: =IF((I201+M201)>100,I201*100/(I201+M201),I201) -> 47.04103853 | J199: =I199*AVERAGEIF(J205:J216,">0")/100 -> 17.98342148 | K199: =I199*(100-AVERAGEIF(J205:J216,">0"))/100 -> 29.05761705 | L199: =100-(J199+K199+M199) -> 50.048115 | M199: =IF((I201+M201)>100,M201*100/(I201+M201),M201) -> 2.910846465 | N199: =IF((N201+R201)>100,N201*100/(N201+R201),N201) -> 57.96242299 | O199: =N199*AVERAGEIF(O205:O216,">0")/100 -> 23.63549597 | P199: =N199*(100-AVERAGEIF(O205:O216,">0"))/100 -> 34.32692701 | Q199: =100-(O199+P199+R199) -> 41.10095654 | R199: =IF((N201+R201)>100,R201*100/(N201+R201),R201) -> 0.9366204713 | S199: =IF((S201+W201)>100,S201*100/(S201+W201),S201) -> 69.13186664 | T199: =S199*AVERAGEIF(T205:T216,">0")/100 -> 40.56374033 | U199: =S199*(100-AVERAGEIF(T205:T216,">0"))/100 -> 28.56812631 | V199: =100-(T199+U199+W199) -> 30.25019197 | W199: =IF((S201+W201)>100,W201*100/(S201+W201),W201) -> 0.6179413869 | X199: =IF((X201+AB201)>100,X201*100/(X201+AB201),X201) -> 90.04361944 | Y199: =X199*AVERAGEIF(Y205:Y216,">0")/100 -> 77.17164431 | Z199: =X199*(100-AVERAGEIF(Y205:Y216,">0"))/100 -> 12.87197513 | AA199: =100-(Y199+Z199+AB199) -> 9.937989759 | AB199: =IF((X201+AB201)>100,AB201*100/(X201+AB201),AB201) -> 0.0183908046
C200: =MaxTarget(C205:C216) -> 2020 | D200: =IF((D202+H202)>100,D202*100/(D202+H202),D202) -> 41.78178677 | E200: =D200*AVERAGEIF(E205:E216,">0")/100 -> 18.60472996 | F200: =D200*(100-AVERAGEIF(E205:E216,">0"))/100 -> 23.17705681 | G200: =100-(E200+F200+H200) -> 53.62782877 | H200: =IF((D202+H202)>100,H202*100/(D202+H202),H202) -> 4.590384466 | I200: =IF((I202+M202)>100,I202*100/(I202+M202),I202) -> 48.62047912 | J200: =I200*AVERAGEIF(J205:J216,">0")/100 -> 18.58722928 | K200: =I200*(100-AVERAGEIF(J205:J216,">0"))/100 -> 30.03324984 | L200: =100-(J200+K200+M200) -> 50.54056394 | M200: =IF((I202+M202)>100,M202*100/(I202+M202),M202) -> 0.8389569322 | N200: =IF((N202+R202)>100,N202*100/(N202+R202),N202) -> 55.93424343 | O200: =N200*AVERAGEIF(O205:O216,">0")/100 -> 22.80845964 | P200: =N200*(100-AVERAGEIF(O205:O216,">0"))/100 -> 33.12578379 | Q200: =100-(O200+P200+R200) -> 43.757793 | R200: =IF((N202+R202)>100,R202*100/(N202+R202),R202) -> 0.3079635728 | S200: =IF((S202+W202)>100,S202*100/(S202+W202),S202) -> 69.23075518 | T200: =S200*AVERAGEIF(T205:T216,">0")/100 -> 40.62176406 | U200: =S200*(100-AVERAGEIF(T205:T216,">0"))/100 -> 28.60899112 | V200: =100-(T200+U200+W200) -> 30.74346934 | W200: =IF((S202+W202)>100,W202*100/(S202+W202),W202) -> 0.02577548152 | X200: =IF((X202+AB202)>100,X202*100/(X202+AB202),X202) -> 85.30865109 | Y200: =X200*AVERAGEIF(Y205:Y216,">0")/100 -> 73.11355229 | Z200: =X200*(100-AVERAGEIF(Y205:Y216,">0"))/100 -> 12.1950988 | AA200: =100-(Y200+Z200+AB200) -> 14.65226845 | AB200: =IF((X202+AB202)>100,AB202*100/(X202+AB202),AB202) -> 0.03908045977
A201: Regression period: | C201: =MinRegYear(C199,C205:C216) -> 2000 | D201: =IF(MAX(C205:C216)-MIN(C205:C216)<5,AVERAGEIF(C205:C216,">0",D205:D216), IF(FORECAST($C201,D$205:D$216,$C$205:$C$216)<0,0, IF(FORECAST($C201,D$205:D$216,$C$205:$C$216)>100,100, FORECAST($C201,D$205:D$216,$C$205:$C$216)))) -> 36.95897259 | H201: =IF(MAX(C205:C216)-MIN(C205:C216)<5,AVERAGEIF(C205:C216,">0",H205:H216), IF(FORECAST($C201,H$205:H$216,$C$205:$C$216)<0,0, IF(FORECAST($C201,H$205:H$216,$C$205:$C$216)>100,100, FORECAST($C201,H$205:H$216,$C$205:$C$216)))) -> 12.41157155 | I201: =IF(MAX(C205:C216)-MIN(C205:C216)<5,AVERAGEIF(C205:C216,">0",I205:I216), IF(FORECAST($C201,I$205:I$216,$C$205:$C$216)<0,0, IF(FORECAST($C201,I$205:I$216,$C$205:$C$216)>100,100, FORECAST($C201,I$205:I$216,$C$205:$C$216)))) -> 47.04103853 | M201: =IF(MAX(C205:C216)-MIN(C205:C216)<5,AVERAGEIF(C205:C216,">0",M205:M216), IF(FORECAST($C201,M$205:M$216,$C$205:$C$216)<0,0, IF(FORECAST($C201,M$205:M$216,$C$205:$C$216)>100,100, FORECAST($C201,M$205:M$216,$C$205:$C$216)))) -> 2.910846465 | N201: =IF(MAX(C205:C216)-MIN(C205:C216)<5,AVERAGEIF(C205:C216,">0",N205:N216), IF(FORECAST($C201,N$205:N$216,$C$205:$C$216)<0,0, IF(FORECAST($C201,N$205:N$216,$C$205:$C$216)>100,100, FORECAST($C201,N$205:N$216,$C$205:$C$216)))) -> 57.96242299 | R201: =IF(MAX(C205:C216)-MIN(C205:C216)<5,AVERAGEIF(C205:C216,">0",R205:R216), IF(FORECAST($C201,R$205:R$216,$C$205:$C$216)<0,0, IF(FORECAST($C201,R$205:R$216,$C$205:$C$216)>100,100, FORECAST($C201,R$205:R$216,$C$205:$C$216)))) -> 0.9366204713 | S201: =IF(MAX(C205:C216)-MIN(C205:C216)<5,AVERAGEIF(C205:C216,">0",S205:S216), IF(FORECAST($C201,S$205:S$216,$C$205:$C$216)<0,0, IF(FORECAST($C201,S$205:S$216,$C$205:$C$216)>100,100, FORECAST($C201,S$205:S$216,$C$205:$C$216)))) -> 69.13186664 | W201: =IF(MAX(C205:C216)-MIN(C205:C216)<5,AVERAGEIF(C205:C216,">0",W205:W216), IF(FORECAST($C201,W$205:W$216,$C$205:$C$216)<0,0, IF(FORECAST($C201,W$205:W$216,$C$205:$C$216)>100,100, FORECAST($C201,W$205:W$216,$C$205:$C$216)))) -> 0.6179413869 | X201: =IF(MAX(C205:C216)-MIN(C205:C216)<5,AVERAGEIF(C205:C216,">0",X205:X216), IF(FORECAST($C201,X$205:X$216,$C$205:$C$216)<0,0, IF(FORECAST($C201,X$205:X$216,$C$205:$C$216)>100,100, FORECAST($C201,X$205:X$216,$C$205:$C$216)))) -> 90.04361944 | AB201: =IF(MAX(C205:C216)-MIN(C205:C216)<5,AVERAGEIF(C205:C216,">0",AB205:AB216), IF(FORECAST($C201,AB$205:AB$216,$C$205:$C$216)<0,0, IF(FORECAST($C201,AB$205:AB$216,$C$205:$C$216)>100,100, FORECAST($C201,AB$205:AB$216,$C$205:$C$216)))) -> 0.0183908046
C202: =MaxRegYear(C200,C205:C216) -> 2018 | D202: =IF(MAX(C205:C216)-MIN(C205:C216)<5,AVERAGEIF(C205:C216,">0",D205:D216), IF(FORECAST($C202,D$205:D$216,$C$205:$C$216)<0,0, IF(FORECAST($C202,D$205:D$216,$C$205:$C$216)>100,100, FORECAST($C202,D$205:D$216,$C$205:$C$216)))) -> 41.78178677 | H202: =IF(MAX(C205:C216)-MIN(C205:C216)<5,AVERAGEIF(C205:C216,">0",H205:H216), IF(FORECAST($C202,H$205:H$216,$C$205:$C$216)<0,0, IF(FORECAST($C202,H$205:H$216,$C$205:$C$216)>100,100, FORECAST($C202,H$205:H$216,$C$205:$C$216)))) -> 4.590384466 | I202: =IF(MAX(C205:C216)-MIN(C205:C216)<5,AVERAGEIF(C205:C216,">0",I205:I216), IF(FORECAST($C202,I$205:I$216,$C$205:$C$216)<0,0, IF(FORECAST($C202,I$205:I$216,$C$205:$C$216)>100,100, FORECAST($C202,I$205:I$216,$C$205:$C$216)))) -> 48.62047912 | M202: =IF(MAX(C205:C216)-MIN(C205:C216)<5,AVERAGEIF(C205:C216,">0",M205:M216), IF(FORECAST($C202,M$205:M$216,$C$205:$C$216)<0,0, IF(FORECAST($C202,M$205:M$216,$C$205:$C$216)>100,100, FORECAST($C202,M$205:M$216,$C$205:$C$216)))) -> 0.8389569322 | N202: =IF(MAX(C205:C216)-MIN(C205:C216)<5,AVERAGEIF(C205:C216,">0",N205:N216), IF(FORECAST($C202,N$205:N$216,$C$205:$C$216)<0,0, IF(FORECAST($C202,N$205:N$216,$C$205:$C$216)>100,100, FORECAST($C202,N$205:N$216,$C$205:$C$216)))) -> 55.93424343 | R202: =IF(MAX(C205:C216)-MIN(C205:C216)<5,AVERAGEIF(C205:C216,">0",R205:R216), IF(FORECAST($C202,R$205:R$216,$C$205:$C$216)<0,0, IF(FORECAST($C202,R$205:R$216,$C$205:$C$216)>100,100, FORECAST($C202,R$205:R$216,$C$205:$C$216)))) -> 0.3079635728 | S202: =IF(MAX(C205:C216)-MIN(C205:C216)<5,AVERAGEIF(C205:C216,">0",S205:S216), IF(FORECAST($C202,S$205:S$216,$C$205:$C$216)<0,0, IF(FORECAST($C202,S$205:S$216,$C$205:$C$216)>100,100, FORECAST($C202,S$205:S$216,$C$205:$C$216)))) -> 69.23075518 | W202: =IF(MAX(C205:C216)-MIN(C205:C216)<5,AVERAGEIF(C205:C216,">0",W205:W216), IF(FORECAST($C202,W$205:W$216,$C$205:$C$216)<0,0, IF(FORECAST($C202,W$205:W$216,$C$205:$C$216)>100,100, FORECAST($C202,W$205:W$216,$C$205:$C$216)))) -> 0.02577548152 | X202: =IF(MAX(C205:C216)-MIN(C205:C216)<5,AVERAGEIF(C205:C216,">0",X205:X216), IF(FORECAST($C202,X$205:X$216,$C$205:$C$216)<0,0, IF(FORECAST($C202,X$205:X$216,$C$205:$C$216)>100,100, FORECAST($C202,X$205:X$216,$C$205:$C$216)))) -> 85.30865109 | AB202: =IF(MAX(C205:C216)-MIN(C205:C216)<5,AVERAGEIF(C205:C216,">0",AB205:AB216), IF(FORECAST($C202,AB$205:AB$216,$C$205:$C$216)<0,0, IF(FORECAST($C202,AB$205:AB$216,$C$205:$C$216)>100,100, FORECAST($C202,AB$205:AB$216,$C$205:$C$216)))) -> 0.03908045977
B204: Survey | C204: Year | D204: Improved | E204: Not shared | H204: Open defecation | I204: Improved | J204: Not shared | M204: Open defecation | N204: Improved | O204: Not shared | R204: Open defecation | S204: Improved | T204: Not shared | W204: Open defecation | X204: Improved | Y204: Not shared | AB204: Open defecation
B205: MIS17 | D205: =IF(ISERROR(INDIRECT(CONCATENATE($B205,"!H122"))),"",INDIRECT(CONCATENATE($B205,"!H122"))) -> 40.52673587 | E205: =IF(ISERROR(INDIRECT(CONCATENATE($B205,"!H129"))),"",INDIRECT(CONCATENATE($B205,"!H129"))) -> 33.63244103 | H205: =IF(ISERROR(INDIRECT(CONCATENATE($B205,"!H127"))),"",INDIRECT(CONCATENATE($B205,"!H127"))) -> 5.291218904 | I205: =IF(ISERROR(INDIRECT(CONCATENATE($B205,"!I122"))),"",INDIRECT(CONCATENATE($B205,"!I122"))) -> 48.66306134 | J205: =IF(ISERROR(INDIRECT(CONCATENATE($B205,"!I129"))),"",INDIRECT(CONCATENATE($B205,"!I129"))) -> 20.86652055 | M205: =IF(ISERROR(INDIRECT(CONCATENATE($B205,"!I127"))),"",INDIRECT(CONCATENATE($B205,"!I127"))) -> 0.6619867356 | N205: =IF(ISERROR(INDIRECT(CONCATENATE($B205,"!J122"))),"",INDIRECT(CONCATENATE($B205,"!J122"))) -> 56.96997909 | O205: =IF(ISERROR(INDIRECT(CONCATENATE($B205,"!J129"))),"",INDIRECT(CONCATENATE($B205,"!J129"))) -> 36.48564148 | R205: =IF(ISERROR(INDIRECT(CONCATENATE($B205,"!J127"))),"",INDIRECT(CONCATENATE($B205,"!J127"))) -> 0 | S205: =IF(ISERROR(INDIRECT(CONCATENATE($B205,"!K122"))),"",INDIRECT(CONCATENATE($B205,"!K122"))) -> 68.75736088 | T205: =IF(ISERROR(INDIRECT(CONCATENATE($B205,"!K129"))),"",INDIRECT(CONCATENATE($B205,"!K129"))) -> 57.88513164 | W205: =IF(ISERROR(INDIRECT(CONCATENATE($B205,"!K127"))),"",INDIRECT(CONCATENATE($B205,"!K127"))) -> 0.241403121 | X205: =IF(ISERROR(INDIRECT(CONCATENATE($B205,"!L122"))),"",INDIRECT(CONCATENATE($B205,"!L122"))) -> 88.22540086 | Y205: =IF(ISERROR(INDIRECT(CONCATENATE($B205,"!L129"))),"",INDIRECT(CONCATENATE($B205,"!L129"))) -> 90.31420113 | AB205: =IF(ISERROR(INDIRECT(CONCATENATE($B205,"!L2127"))),"",INDIRECT(CONCATENATE($B205,"!L127"))) -> 0
B206: DHS16 | C206: 2016 | D206: 41.46192449 | E206: 37.11162487 | H206: 2.130105571 | I206: 48.74972172 | J206: 34.35362371 | M206: 0.2344360713 | N206: 56.488251 | O206: 43.6299697 | R206: 0.05936412719 | S206: 68.04874146 | T206: 56.30681486 | W206: 0.06581227564 | X206: 88.46101154 | Y206: 82.94072488 | AB206: 0
B207: MICS14 | C207: 2014 | D207: 41.03283084 | E207: 44.43985076 | H207: 2.326506347 | I207: 48.1456153 | J207: 42.87102335 | M207: 0.1168320932 | N207: 55.76591804 | O207: 48.72814601 | R207: 0.01966612062 | S207: 68.19495348 | T207: 56.74335091 | W207: 0 | X207: 85.63837026 | Y207: 87.6364471 | AB207: 0
B208: MIS14 | D208: 37.43893793 | E208: 14.80038454 | H208: 12.04497424 | I208: 47.97351601 | J208: 34.72053862 | M208: 0.8442861961 | N208: 57.19514764 | O208: 29.33182153 | R208: 0.5808217268 | S208: 69.21799479 | T208: 56.22514467 | W208: 0 | X208: 84.35420184 | Y208: 84.7426726 | AB208: 0
B209: MIS12 | C209: 2012 | D209: 40.36406215 | E209: 81.00570078 | H209: 13.83959018 | I209: 48.0133792 | J209: 48.75975895 | M209: 2.562732318 | N209: 56.51806803 | O209: 50.7404188 | R209: 0.7428357982 | S209: 72.17922707 | T209: 66.09071448 | W209: 0 | X209: 87.91474197 | Y209: 89.86630211 | AB209: 0
B210: DHS10 | C210: 2010 | D210: 40.19666784 | E210: 29.4 | H210: 8.5 | I210: 47.90871833 | J210: 35.1 | M210: 3.6 | N210: 57.44308701 | O210: 38.9 | R210: 1.3 | S210: 69.52862874 | T210: 62.1 | W210: 0.2 | X210: 84.88935469 | Y210: 85.4 | AB210: 0.2
B211: MICS06 | C211: 2006 | D211: 39.37513828 | E211: 71.30827562 | H211: 6.424812135 | I211: 47.11746424 | J211: 50.9330655 | M211: 2.082221458 | N211: 56.4892703 | O211: 37.62491968 | R211: 0.9542636067 | S211: 67.09541188 | T211: 55.38009677 | W211: 1.7752644 | X211: 84.24143559 | Y211: 79.03278853 | AB211: 0
B212: DHS04 | C212: 2004 | D212: 32.85858638 | E212: N/A | H212: 22.05673216 | I212: 47.54805988 | J212: N/A | M212: 2.435304311 | N212: 58.31748004 | O212: N/A | R212: 0.7703799021 | S212: 70.69160109 | T212: N/A | W212: 0 | X212: 90.57693311 | Y212: N/A | AB212: 0
B213: DHS00 | C213: 2000 | D213: 40.03551364 | E213: N/A | H213: 4.663610038 | I213: 47.24460644 | J213: N/A | M213: 2.207890614 | N213: 57.72893468 | O213: N/A | R213: 0.5444599829 | S213: 68.52511885 | T213: N/A | W213: 0.24483047 | X213: 92.27415347 | Y213: N/A | AB213: 0
B218: =CONCATENATE("Urban use of sanitation facilities, ",C199,"–",C200) -> Urban use of sanitation facilities, 2000–2020 | S218: Data points used for regression
A297: RURAL | D297: Poorest | I297: Poor | N297: Middle | S297: Rich | X297: Richest
D298: Improved | E298: Basic | F298: Limited | G298: Unimproved | H298: Open defecation | I298: Improved | J298: Basic | K298: Limited | L298: Unimproved | M298: Open defecation | N298: Improved | O298: Basic | P298: Limited | Q298: Unimproved | R298: Open defecation | S298: Improved | T298: Basic | U298: Limited | V298: Unimproved | W298: Open defecation | X298: Improved | Y298: Basic | Z298: Limited | AA298: Unimproved | AB298: Open defecation
A299: Forecast period: | C299: 2000 | D299: =IF((D301+H301)>100,D301*100/(D301+H301),D301) -> 19.81106093 | E299: =D299*AVERAGEIF(E305:E316,">0")/100 -> 11.43667821 | F299: =D299*(100-AVERAGEIF(E305:E316,">0"))/100 -> 8.374382715 | G299: =100-(E299+F299+H299) -> 46.73186798 | H299: =IF((D301+H301)>100,H301*100/(D301+H301),H301) -> 33.45707109 | I299: =IF((I301+M301)>100,I301*100/(I301+M301),I301) -> 24.52998062 | J299: =I299*AVERAGEIF(J305:J316,">0")/100 -> 13.95071338 | K299: =I299*(100-AVERAGEIF(J305:J316,">0"))/100 -> 10.57926724 | L299: =100-(J299+K299+M299) -> 51.07670843 | M299: =IF((I301+M301)>100,M301*100/(I301+M301),M301) -> 24.39331095 | N299: =IF((N301+R301)>100,N301*100/(N301+R301),N301) -> 25.75664866 | O299: =N299*AVERAGEIF(O305:O316,">0")/100 -> 16.17021155 | P299: =N299*(100-AVERAGEIF(O305:O316,">0"))/100 -> 9.586437111 | Q299: =100-(O299+P299+R299) -> 53.90955638 | R299: =IF((N301+R301)>100,R301*100/(N301+R301),R301) -> 20.33379496 | S299: =IF((S301+W301)>100,S301*100/(S301+W301),S301) -> 28.43616703 | T299: =S299*AVERAGEIF(T305:T316,">0")/100 -> 18.51978661 | U299: =S299*(100-AVERAGEIF(T305:T316,">0"))/100 -> 9.916380427 | V299: =100-(T299+U299+W299) -> 59.53534966 | W299: =IF((S301+W301)>100,W301*100/(S301+W301),W301) -> 12.0284833 | X299: =IF((X301+AB301)>100,X301*100/(X301+AB301),X301) -> 46.00600352 | Y299: =X299*AVERAGEIF(Y305:Y316,">0")/100 -> 35.46163246 | Z299: =X299*(100-AVERAGEIF(Y305:Y316,">0"))/100 -> 10.54437106 | AA299: =100-(Y299+Z299+AB299) -> 50.00061296 | AB299: =IF((X301+AB301)>100,AB301*100/(X301+AB301),AB301) -> 3.993383522
C300: 2020 | D300: =IF((D302+H302)>100,D302*100/(D302+H302),D302) -> 26.71457257 | E300: =D300*AVERAGEIF(E305:E316,">0")/100 -> 15.42198932 | F300: =D300*(100-AVERAGEIF(E305:E316,">0"))/100 -> 11.29258325 | G300: =100-(E300+F300+H300) -> 60.7040575 | H300: =IF((D302+H302)>100,H302*100/(D302+H302),H302) -> 12.58136992 | I300: =IF((I302+M302)>100,I302*100/(I302+M302),I302) -> 31.22524381 | J300: =I300*AVERAGEIF(J305:J316,">0")/100 -> 17.75844969 | K300: =I300*(100-AVERAGEIF(J305:J316,">0"))/100 -> 13.46679412 | L300: =100-(J300+K300+M300) -> 62.76317021 | M300: =IF((I302+M302)>100,M302*100/(I302+M302),M302) -> 6.011585983 | N300: =IF((N302+R302)>100,N302*100/(N302+R302),N302) -> 31.54076956 | O300: =N300*AVERAGEIF(O305:O316,">0")/100 -> 19.80152476 | P300: =N300*(100-AVERAGEIF(O305:O316,">0"))/100 -> 11.7392448 | Q300: =100-(O300+P300+R300) -> 64.69350338 | R300: =IF((N302+R302)>100,R302*100/(N302+R302),R302) -> 3.765727054 | S300: =IF((S302+W302)>100,S302*100/(S302+W302),S302) -> 31.90416437 | T300: =S300*AVERAGEIF(T305:T316,">0")/100 -> 20.77840924 | U300: =S300*(100-AVERAGEIF(T305:T316,">0"))/100 -> 11.12575512 | V300: =100-(T300+U300+W300) -> 64.61411587 | W300: =IF((S302+W302)>100,W302*100/(S302+W302),W302) -> 3.481719766 | X300: =IF((X302+AB302)>100,X302*100/(X302+AB302),X302) -> 44.40564968 | Y300: =X300*AVERAGEIF(Y305:Y316,">0")/100 -> 34.22807259 | Z300: =X300*(100-AVERAGEIF(Y305:Y316,">0"))/100 -> 10.17757709 | AA300: =100-(Y300+Z300+AB300) -> 54.25494712 | AB300: =IF((X302+AB302)>100,AB302*100/(X302+AB302),AB302) -> 1.339403202
A301: Regression period: | C301: =MinRegYear(C299,C305:C316) -> 2000 | D301: =IF(MAX(C305:C316)-MIN(C305:C316)<5,AVERAGEIF(C305:C316,">0",D305:D316), IF(FORECAST($C301,D$305:D$316,$C$305:$C$316)<0,0, IF(FORECAST($C301,D$305:D$316,$C$305:$C$316)>100,100, FORECAST($C301,D$305:D$316,$C$305:$C$316)))) -> 19.81106093 | H301: =IF(MAX(C305:C316)-MIN(C305:C316)<5,AVERAGEIF(C305:C316,">0",H305:H316), IF(FORECAST($C301,H$305:H$316,$C$305:$C$316)<0,0, IF(FORECAST($C301,H$305:H$316,$C$305:$C$316)>100,100, FORECAST($C301,H$305:H$316,$C$305:$C$316)))) -> 33.45707109 | I301: =IF(MAX(C305:C316)-MIN(C305:C316)<5,AVERAGEIF(C305:C316,">0",I305:I316), IF(FORECAST($C301,I$305:I$316,$C$305:$C$316)<0,0, IF(FORECAST($C301,I$305:I$316,$C$305:$C$316)>100,100, FORECAST($C301,I$305:I$316,$C$305:$C$316)))) -> 24.52998062 | M301: =IF(MAX(C305:C316)-MIN(C305:C316)<5,AVERAGEIF(C305:C316,">0",M305:M316), IF(FORECAST($C301,M$305:M$316,$C$305:$C$316)<0,0, IF(FORECAST($C301,M$305:M$316,$C$305:$C$316)>100,100, FORECAST($C301,M$305:M$316,$C$305:$C$316)))) -> 24.39331095 | N301: =IF(MAX(C305:C316)-MIN(C305:C316)<5,AVERAGEIF(C305:C316,">0",N305:N316), IF(FORECAST($C301,N$305:N$316,$C$305:$C$316)<0,0, IF(FORECAST($C301,N$305:N$316,$C$305:$C$316)>100,100, FORECAST($C301,N$305:N$316,$C$305:$C$316)))) -> 25.75664866 | R301: =IF(MAX(C305:C316)-MIN(C305:C316)<5,AVERAGEIF(C305:C316,">0",R305:R316), IF(FORECAST($C301,R$305:R$316,$C$305:$C$316)<0,0, IF(FORECAST($C301,R$305:R$316,$C$305:$C$316)>100,100, FORECAST($C301,R$305:R$316,$C$305:$C$316)))) -> 20.33379496 | S301: =IF(MAX(C305:C316)-MIN(C305:C316)<5,AVERAGEIF(C305:C316,">0",S305:S316), IF(FORECAST($C301,S$305:S$316,$C$305:$C$316)<0,0, IF(FORECAST($C301,S$305:S$316,$C$305:$C$316)>100,100, FORECAST($C301,S$305:S$316,$C$305:$C$316)))) -> 28.43616703 | W301: =IF(MAX(C305:C316)-MIN(C305:C316)<5,AVERAGEIF(C305:C316,">0",W305:W316), IF(FORECAST($C301,W$305:W$316,$C$305:$C$316)<0,0, IF(FORECAST($C301,W$305:W$316,$C$305:$C$316)>100,100, FORECAST($C301,W$305:W$316,$C$305:$C$316)))) -> 12.0284833 | X301: =IF(MAX(C305:C316)-MIN(C305:C316)<5,AVERAGEIF(C305:C316,">0",X305:X316), IF(FORECAST($C301,X$305:X$316,$C$305:$C$316)<0,0, IF(FORECAST($C301,X$305:X$316,$C$305:$C$316)>100,100, FORECAST($C301,X$305:X$316,$C$305:$C$316)))) -> 46.00600352 | AB301: =IF(MAX(C305:C316)-MIN(C305:C316)<5,AVERAGEIF(C305:C316,">0",AB305:AB316), IF(FORECAST($C301,AB$305:AB$316,$C$305:$C$316)<0,0, IF(FORECAST($C301,AB$305:AB$316,$C$305:$C$316)>100,100, FORECAST($C301,AB$305:AB$316,$C$305:$C$316)))) -> 3.993383522
C302: =MaxRegYear(C300,C305:C316) -> 2019 | D302: =IF(MAX(C305:C316)-MIN(C305:C316)<5,AVERAGEIF(C305:C316,">0",D305:D316), IF(FORECAST($C302,D$305:D$316,$C$305:$C$316)<0,0, IF(FORECAST($C302,D$305:D$316,$C$305:$C$316)>100,100, FORECAST($C302,D$305:D$316,$C$305:$C$316)))) -> 26.71457257 | H302: =IF(MAX(C305:C316)-MIN(C305:C316)<5,AVERAGEIF(C305:C316,">0",H305:H316), IF(FORECAST($C302,H$305:H$316,$C$305:$C$316)<0,0, IF(FORECAST($C302,H$305:H$316,$C$305:$C$316)>100,100, FORECAST($C302,H$305:H$316,$C$305:$C$316)))) -> 12.58136992 | I302: =IF(MAX(C305:C316)-MIN(C305:C316)<5,AVERAGEIF(C305:C316,">0",I305:I316), IF(FORECAST($C302,I$305:I$316,$C$305:$C$316)<0,0, IF(FORECAST($C302,I$305:I$316,$C$305:$C$316)>100,100, FORECAST($C302,I$305:I$316,$C$305:$C$316)))) -> 31.22524381 | M302: =IF(MAX(C305:C316)-MIN(C305:C316)<5,AVERAGEIF(C305:C316,">0",M305:M316), IF(FORECAST($C302,M$305:M$316,$C$305:$C$316)<0,0, IF(FORECAST($C302,M$305:M$316,$C$305:$C$316)>100,100, FORECAST($C302,M$305:M$316,$C$305:$C$316)))) -> 6.011585983 | N302: =IF(MAX(C305:C316)-MIN(C305:C316)<5,AVERAGEIF(C305:C316,">0",N305:N316), IF(FORECAST($C302,N$305:N$316,$C$305:$C$316)<0,0, IF(FORECAST($C302,N$305:N$316,$C$305:$C$316)>100,100, FORECAST($C302,N$305:N$316,$C$305:$C$316)))) -> 31.54076956 | R302: =IF(MAX(C305:C316)-MIN(C305:C316)<5,AVERAGEIF(C305:C316,">0",R305:R316), IF(FORECAST($C302,R$305:R$316,$C$305:$C$316)<0,0, IF(FORECAST($C302,R$305:R$316,$C$305:$C$316)>100,100, FORECAST($C302,R$305:R$316,$C$305:$C$316)))) -> 3.765727054 | S302: =IF(MAX(C305:C316)-MIN(C305:C316)<5,AVERAGEIF(C305:C316,">0",S305:S316), IF(FORECAST($C302,S$305:S$316,$C$305:$C$316)<0,0, IF(FORECAST($C302,S$305:S$316,$C$305:$C$316)>100,100, FORECAST($C302,S$305:S$316,$C$305:$C$316)))) -> 31.90416437 | W302: =IF(MAX(C305:C316)-MIN(C305:C316)<5,AVERAGEIF(C305:C316,">0",W305:W316), IF(FORECAST($C302,W$305:W$316,$C$305:$C$316)<0,0, IF(FORECAST($C302,W$305:W$316,$C$305:$C$316)>100,100, FORECAST($C302,W$305:W$316,$C$305:$C$316)))) -> 3.481719766 | X302: =IF(MAX(C305:C316)-MIN(C305:C316)<5,AVERAGEIF(C305:C316,">0",X305:X316), IF(FORECAST($C302,X$305:X$316,$C$305:$C$316)<0,0, IF(FORECAST($C302,X$305:X$316,$C$305:$C$316)>100,100, FORECAST($C302,X$305:X$316,$C$305:$C$316)))) -> 44.40564968 | AB302: =IF(MAX(C305:C316)-MIN(C305:C316)<5,AVERAGEIF(C305:C316,">0",AB305:AB316), IF(FORECAST($C302,AB$305:AB$316,$C$305:$C$316)<0,0, IF(FORECAST($C302,AB$305:AB$316,$C$305:$C$316)>100,100, FORECAST($C302,AB$305:AB$316,$C$305:$C$316)))) -> 1.339403202
B304: Survey | C304: Year | D304: Improved | E304: Not shared | H304: Open defecation | I304: Improved | J304: Not shared | M304: Open defecation | N304: Improved | O304: Not shared | R304: Open defecation | S304: Improved | T304: Not shared | W304: Open defecation | X304: Improved | Y304: Not shared | AB304: Open defecation
B305: MIS17 | C305: 2017 | D305: =IF(ISERROR(INDIRECT(CONCATENATE($B305,"!M122"))),"",INDIRECT(CONCATENATE($B305,"!M122"))) -> 26.26613868 | E305: =IF(ISERROR(INDIRECT(CONCATENATE($B305,"!M129"))),"",INDIRECT(CONCATENATE($B305,"!M129"))) -> 61.00716478 | H305: =IF(ISERROR(INDIRECT(CONCATENATE($B305,"!M127"))),"",INDIRECT(CONCATENATE($B305,"!M127"))) -> 13.74501857 | I305: =IF(ISERROR(INDIRECT(CONCATENATE($B305,"!N122"))),"",INDIRECT(CONCATENATE($B305,"!N122"))) -> 30.63161952 | J305: =IF(ISERROR(INDIRECT(CONCATENATE($B305,"!N129"))),"",INDIRECT(CONCATENATE($B305,"!N129"))) -> 38.97709496 | M305: =IF(ISERROR(INDIRECT(CONCATENATE($B305,"!N127"))),"",INDIRECT(CONCATENATE($B305,"!N127"))) -> 7.108659331 | N305: =IF(ISERROR(INDIRECT(CONCATENATE($B305,"!O122"))),"",INDIRECT(CONCATENATE($B305,"!O122"))) -> 30.07988115 | O305: =IF(ISERROR(INDIRECT(CONCATENATE($B305,"!O129"))),"",INDIRECT(CONCATENATE($B305,"!O129"))) -> 64.9712545 | R305: =IF(ISERROR(INDIRECT(CONCATENATE($B305,"!O127"))),"",INDIRECT(CONCATENATE($B305,"!O127"))) -> 5.788040395 | S305: =IF(ISERROR(INDIRECT(CONCATENATE($B305,"!P122"))),"",INDIRECT(CONCATENATE($B305,"!P122"))) -> 30.23906148 | T305: =IF(ISERROR(INDIRECT(CONCATENATE($B305,"!P129"))),"",INDIRECT(CONCATENATE($B305,"!P129"))) -> 61.21334329 | W305: =IF(ISERROR(INDIRECT(CONCATENATE($B305,"!P127"))),"",INDIRECT(CONCATENATE($B305,"!P127"))) -> 6.747819868 | X305: =IF(ISERROR(INDIRECT(CONCATENATE($B305,"!Q122"))),"",INDIRECT(CONCATENATE($B305,"!Q122"))) -> 43.98627647 | Y305: =IF(ISERROR(INDIRECT(CONCATENATE($B305,"!Q129"))),"",INDIRECT(CONCATENATE($B305,"!Q129"))) -> 80.79437692 | AB305: =IF(ISERROR(INDIRECT(CONCATENATE($B305,"!Q2127"))),"",INDIRECT(CONCATENATE($B305,"!Q127"))) -> 1.290711011
B306: DHS16 | C306: 2016 | D306: 25.84896044 | E306: 61.1471074 | H306: 13.60067136 | I306: 30.7940113 | J306: 66.79716646 | M306: 7.466034635 | N306: 30.80476644 | O306: 67.90130998 | R306: 5.262589455 | S306: 31.80869758 | T306: 71.90779929 | W306: 2.916573847 | X306: 45.69960955 | Y306: 74.68640988 | AB306: 1.526026936
B307: MICS14 | C307: 2014 | D307: 25.15814454 | E307: 58.72919943 | H307: 13.87169417 | I307: 30.13860629 | J307: 63.16785443 | M307: 6.531021117 | N307: 30.42218297 | O307: 65.29729996 | R307: 4.291082168 | S307: 31.21789807 | T307: 71.05585874 | W307: 2.610845841 | X307: 44.72525404 | Y307: 72.51769035 | AB307: 0.6911408005
B308: MIS14 | D308: 21.9301809 | E308: 0 | H308: 25.04524858 | I308: 27.1218519 | J308: 34.34822399 | M308: 16.59532625 | N308: 27.37969232 | O308: 34.42451207 | R308: 14.00506988 | S308: 30.10198806 | T308: 39.29981533 | W308: 6.368129944 | X308: 45.69164421 | Y308: 77.30270176 | AB308: 3.169462227
B309: MIS12 | C309: 2012 | D309: 24.15073504 | E309: 63.35301651 | H309: 25.8921989 | I309: 27.27157738 | J309: 81.32676548 | M309: 18.63342281 | N309: 29.27512375 | O309: 84.05365853 | R309: 16.63337413 | S309: 31.26175177 | T309: 79.61856789 | W309: 10.25796843 | X309: 44.99320702 | Y309: 86.08144374 | AB309: 4.203299302
B310: DHS10 | C310: 2010 | D310: 22.80554255 | E310: 51.5 | H310: 26.2 | I310: 28.16698862 | J310: 53.7 | M310: 16.9 | N310: 29.68891645 | O310: 63.4 | R310: 11.1 | S310: 30.81432682 | T310: 54.7 | W310: 7.3 | X310: 46.10687401 | Y310: 72.1 | AB310: 2.8
B311: MICS06 | C311: 2006 | D311: 21.17324963 | E311: 50.63602334 | H311: 27.75396965 | I311: 26.21424538 | J311: 59.78754538 | M311: 18.35098039 | N311: 27.44937975 | O311: 59.41706125 | R311: 13.7776511 | S311: 29.0192104 | T311: 78.0976551 | W311: 9.272057102 | X311: 43.00082837 | Y311: 76.0804957 | AB311: 3.412426894
B312: DHS04 | C312: 2004 | D312: 21.15868006 | E312: N/A | H312: 29.75621011 | I312: 25.4230996 | J312: N/A | M312: 22.34283777 | N312: 26.8586856 | O312: N/A | R312: 16.54060781 | S312: 29.57087711 | T312: N/A | W312: 8.529724692 | X312: 45.75561155 | Y312: N/A | AB312: 3.919300925
B313: DHS00 | C313: 2000 | D313: 20.63111123 | E313: N/A | H313: 30.03783796 | I313: 25.43789643 | J313: N/A | M313: 21.38425406 | N313: 25.52401903 | O313: N/A | R313: 20.3887323 | S313: 27.97708091 | T313: N/A | W313: 13.05633351 | X313: 47.12626435 | Y313: N/A | AB313: 3.069191506
B318: =CONCATENATE("Rural use of sanitation facilities, ",C299,"–",C300) -> Rural use of sanitation facilities, 2000–2020 | S318: Data points used for regression

Sheet Hygiene
B4: Access to hygiene facilities by wealth quintile (%)
B5: =IF(ISERROR(INDIRECT(CONCATENATE($E$32,"!A2"))),"",INDIRECT(CONCATENATE($E$32,"!A2"))) -> Malawi
B7: =CONCATENATE("National ",IF(ISERROR(INDIRECT(CONCATENATE($E$32,"!A2"))),"",INDIRECT(CONCATENATE($E$32,"!A210")))) -> National Access to hygiene facilities | K7: =CONCATENATE("Urban ",IF(ISERROR(INDIRECT(CONCATENATE($E$32,"!A2"))),"",INDIRECT(CONCATENATE($E$32,"!A210")))) -> Urban Access to hygiene facilities | S7: =CONCATENATE("Rural ",IF(ISERROR(INDIRECT(CONCATENATE($E$32,"!A2"))),"",INDIRECT(CONCATENATE($E$32,"!A210")))) -> Rural Access to hygiene facilities
E32: =INDEX(B88:B100,A88) -> DHS16 | G32: =IF(ISERROR(INDIRECT(CONCATENATE($E$32,"!A2"))),"",INDIRECT(CONCATENATE($E$32,"!A2"))) -> Malawi | K32: Poorest | N32: Poor | Q32: Middle | T32: Rich | W32: Richest
K33: Basic | L33: Limited | M33: No facility | N33: Basic | O33: Limited | P33: No facility | Q33: Basic | R33: Limited | S33: No facility | T33: Basic | U33: Limited | V33: No facility | W33: Basic | X33: Limited | Y33: No facility
B34: >>> Select Survey : | G34: NATIONAL | J34: =IF(ISERROR(INDIRECT(CONCATENATE(#REF!,"!A2"))),"",INDIRECT(CONCATENATE(#REF!,"!A210"))) ->  | K34: =IF(ISERROR(INDIRECT(CONCATENATE($E$32,"!C222"))),"",INDIRECT(CONCATENATE($E$32,"!C222"))) -> 3.459357278 | L34: =IF(ISERROR(INDIRECT(CONCATENATE($E$32,"!C223"))),"",INDIRECT(CONCATENATE($E$32,"!C223"))) -> 75.6899811 | M34: =IF(ISERROR(INDIRECT(CONCATENATE($E$32,"!C224"))),"",INDIRECT(CONCATENATE($E$32,"!C224"))) -> 20.85066163 | N34: =IF(ISERROR(INDIRECT(CONCATENATE($E$32,"!D222"))),"",INDIRECT(CONCATENATE($E$32,"!D222"))) -> 5.816733068 | O34: =IF(ISERROR(INDIRECT(CONCATENATE($E$32,"!D223"))),"",INDIRECT(CONCATENATE($E$32,"!D223"))) -> 75.97609562 | P34: =IF(ISERROR(INDIRECT(CONCATENATE($E$32,"!D224"))),"",INDIRECT(CONCATENATE($E$32,"!D224"))) -> 18.20717131 | Q34: =IF(ISERROR(INDIRECT(CONCATENATE($E$32,"!E222"))),"",INDIRECT(CONCATENATE($E$32,"!E222"))) -> 6.633366633 | R34: =IF(ISERROR(INDIRECT(CONCATENATE($E$32,"!E223"))),"",INDIRECT(CONCATENATE($E$32,"!E223"))) -> 76.9030969 | S34: =IF(ISERROR(INDIRECT(CONCATENATE($E$32,"!E224"))),"",INDIRECT(CONCATENATE($E$32,"!E224"))) -> 16.46353646 | T34: =IF(ISERROR(INDIRECT(CONCATENATE($E$32,"!F222"))),"",INDIRECT(CONCATENATE($E$32,"!F222"))) -> 9.776589651 | U34: =IF(ISERROR(INDIRECT(CONCATENATE($E$32,"!F223"))),"",INDIRECT(CONCATENATE($E$32,"!F223"))) -> 76.85697919 | V34: =IF(ISERROR(INDIRECT(CONCATENATE($E$32,"!F224"))),"",INDIRECT(CONCATENATE($E$32,"!F224"))) -> 13.36643116 | W34: =IF(ISERROR(INDIRECT(CONCATENATE($E$32,"!G222"))),"",INDIRECT(CONCATENATE($E$32,"!G222"))) -> 22.41137241 | X34: =IF(ISERROR(INDIRECT(CONCATENATE($E$32,"!G223"))),"",INDIRECT(CONCATENATE($E$32,"!G223"))) -> 68.63811864 | Y34: =IF(ISERROR(INDIRECT(CONCATENATE($E$32,"!G224"))),"",INDIRECT(CONCATENATE($E$32,"!G224"))) -> 8.950508951
G37: URBAN | J37: =IF(ISERROR(INDIRECT(CONCATENATE(#REF!,"!A2"))),"",INDIRECT(CONCATENATE(#REF!,"!A210"))) ->  | K37: =IF(ISERROR(INDIRECT(CONCATENATE($E$32,"!H222"))),"",INDIRECT(CONCATENATE($E$32,"!H222"))) -> 4.855842185 | L37: =IF(ISERROR(INDIRECT(CONCATENATE($E$32,"!H223"))),"",INDIRECT(CONCATENATE($E$32,"!H223"))) -> 80.27314112 | M37: =IF(ISERROR(INDIRECT(CONCATENATE($E$32,"!H224"))),"",INDIRECT(CONCATENATE($E$32,"!H224"))) -> 14.87101669 | N37: =IF(ISERROR(INDIRECT(CONCATENATE($E$32,"!I222"))),"",INDIRECT(CONCATENATE($E$32,"!I222"))) -> 7.803468208 | O37: =IF(ISERROR(INDIRECT(CONCATENATE($E$32,"!I223"))),"",INDIRECT(CONCATENATE($E$32,"!I223"))) -> 78.9017341 | P37: =IF(ISERROR(INDIRECT(CONCATENATE($E$32,"!I224"))),"",INDIRECT(CONCATENATE($E$32,"!I224"))) -> 13.29479769 | Q37: =IF(ISERROR(INDIRECT(CONCATENATE($E$32,"!J222"))),"",INDIRECT(CONCATENATE($E$32,"!J222"))) -> 13.94129979 | R37: =IF(ISERROR(INDIRECT(CONCATENATE($E$32,"!J223"))),"",INDIRECT(CONCATENATE($E$32,"!J223"))) -> 74.9475891 | S37: =IF(ISERROR(INDIRECT(CONCATENATE($E$32,"!J224"))),"",INDIRECT(CONCATENATE($E$32,"!J224"))) -> 11.11111111 | T37: =IF(ISERROR(INDIRECT(CONCATENATE($E$32,"!K222"))),"",INDIRECT(CONCATENATE($E$32,"!K222"))) -> 22.95258621 | U37: =IF(ISERROR(INDIRECT(CONCATENATE($E$32,"!K223"))),"",INDIRECT(CONCATENATE($E$32,"!K223"))) -> 70.25862069 | V37: =IF(ISERROR(INDIRECT(CONCATENATE($E$32,"!K224"))),"",INDIRECT(CONCATENATE($E$32,"!K224"))) -> 6.788793103 | W37: =IF(ISERROR(INDIRECT(CONCATENATE($E$32,"!L222"))),"",INDIRECT(CONCATENATE($E$32,"!L222"))) -> 52.87049399 | X37: =IF(ISERROR(INDIRECT(CONCATENATE($E$32,"!L223"))),"",INDIRECT(CONCATENATE($E$32,"!L223"))) -> 43.39118825 | Y37: =IF(ISERROR(INDIRECT(CONCATENATE($E$32,"!L224"))),"",INDIRECT(CONCATENATE($E$32,"!L224"))) -> 3.738317757
G40: RURAL | J40: =IF(ISERROR(INDIRECT(CONCATENATE(#REF!,"!A2"))),"",INDIRECT(CONCATENATE(#REF!,"!A210"))) ->  | K40: =IF(ISERROR(INDIRECT(CONCATENATE($E$32,"!M222"))),"",INDIRECT(CONCATENATE($E$32,"!M222"))) -> 3.25443787 | L40: =IF(ISERROR(INDIRECT(CONCATENATE($E$32,"!M223"))),"",INDIRECT(CONCATENATE($E$32,"!M223"))) -> 75.14792899 | M40: =IF(ISERROR(INDIRECT(CONCATENATE($E$32,"!M224"))),"",INDIRECT(CONCATENATE($E$32,"!M224"))) -> 21.59763314 | N40: =IF(ISERROR(INDIRECT(CONCATENATE($E$32,"!N222"))),"",INDIRECT(CONCATENATE($E$32,"!N222"))) -> 5.359695093 | O40: =IF(ISERROR(INDIRECT(CONCATENATE($E$32,"!N223"))),"",INDIRECT(CONCATENATE($E$32,"!N223"))) -> 75.91710338 | P40: =IF(ISERROR(INDIRECT(CONCATENATE($E$32,"!N224"))),"",INDIRECT(CONCATENATE($E$32,"!N224"))) -> 18.72320152 | Q40: =IF(ISERROR(INDIRECT(CONCATENATE($E$32,"!O222"))),"",INDIRECT(CONCATENATE($E$32,"!O222"))) -> 6.549178376 | R40: =IF(ISERROR(INDIRECT(CONCATENATE($E$32,"!O223"))),"",INDIRECT(CONCATENATE($E$32,"!O223"))) -> 76.73255537 | S40: =IF(ISERROR(INDIRECT(CONCATENATE($E$32,"!O224"))),"",INDIRECT(CONCATENATE($E$32,"!O224"))) -> 16.71826625 | T40: =IF(ISERROR(INDIRECT(CONCATENATE($E$32,"!P222"))),"",INDIRECT(CONCATENATE($E$32,"!P222"))) -> 9.095272378 | U40: =IF(ISERROR(INDIRECT(CONCATENATE($E$32,"!P223"))),"",INDIRECT(CONCATENATE($E$32,"!P223"))) -> 76.48188145 | V40: =IF(ISERROR(INDIRECT(CONCATENATE($E$32,"!P224"))),"",INDIRECT(CONCATENATE($E$32,"!P224"))) -> 14.42284617 | W40: =IF(ISERROR(INDIRECT(CONCATENATE($E$32,"!Q222"))),"",INDIRECT(CONCATENATE($E$32,"!Q222"))) -> 15.95818815 | X40: =IF(ISERROR(INDIRECT(CONCATENATE($E$32,"!Q223"))),"",INDIRECT(CONCATENATE($E$32,"!Q223"))) -> 72.84552846 | Y40: =IF(ISERROR(INDIRECT(CONCATENATE($E$32,"!Q224"))),"",INDIRECT(CONCATENATE($E$32,"!Q224"))) -> 11.19628339
A88: 2 | B88: MIS17
B89: DHS16
B90: MICS14
B91: MIS14
B92: MIS12
B93: DHS10
B94: MICS06
B95: DHS04
B96: DHS00
B97: Template

Sheet MIS17
A2: =A1026 -> Malawi
A3: =A1034 -> 2017
A4: Use of drinking water sources
A5: by wealth quintile and sub-national region
A6: Notes:
A7: WHO/UNICEF JMP customised wealth index excludes water,
A8: sanitation and hygiene assets.
A9: Survey used for analysis: | B9: =A1025 -> MIS17
A10: =B1028 -> 
A11: =B1027 -> 
A14: Use of drinking water sources | C14: NATIONAL wealth index quintile | H14: URBAN wealth index quintile | M14: RURAL wealth index quintile | R14: SUB-REGIONS: | BA14: Raw numbers of respondents: | BB14: Use of drinking water sources | BC14: NATIONAL wealth index quintile | BH14: URBAN wealth index quintile | BM14: RURAL wealth index quintile | BR14: SUB-REGIONS:
A15: Weighted percentage (used in graphs) | C15: Poorest | D15: Poor | E15: Middle | F15: Rich | G15: Richest | H15: Poorest | I15: Poor | J15: Middle | K15: Rich | L15: Richest | M15: Poorest | N15: Poor | O15: Middle | P15: Rich | Q15: Richest | R15: Central | S15: North | T15: South | BA15: Water data, raw numbers (weighted) | BC15: Poorest | BD15: Poor | BE15: Middle | BF15: Rich | BG15: Richest | BH15: Poorest | BI15: Poor | BJ15: Middle | BK15: Rich | BL15: Richest | BM15: Poorest | BN15: Poor | BO15: Middle | BP15: Rich | BQ15: Richest | BR15: Central | BS15: North | BT15: South
A16: Water | B16: Improved | C16: 82.66583171 | D16: 81.1364578 | E16: 86.37606452 | F16: 87.69725465 | G16: 96.25977471 | H16: 96.43167991 | I16: 98.77243557 | J16: 98.78965391 | K16: 99.81103979 | L16: 100 | M16: 83.20655661 | N16: 80.30620314 | O16: 83.84157717 | P16: 87.96980023 | Q16: 87.35700722 | R16: 86.21622581 | S16: 82.95742841 | T16: 88.47615503 | BA16: Water | BB16: Improved | BC16: N/A | BD16: N/A | BE16: N/A | BF16: N/A | BG16: N/A | BH16: N/A | BI16: N/A | BJ16: N/A | BK16: N/A | BL16: N/A | BM16: N/A | BN16: N/A | BO16: N/A | BP16: N/A | BQ16: N/A | BR16: N/A | BS16: N/A | BT16: N/A
B17: Not Improved | C17: 17.33416829 | D17: 18.8635422 | E17: 13.62393548 | F17: 12.30274535 | G17: 3.740225295 | H17: 3.568320092 | I17: 1.22756443 | J17: 1.210346088 | K17: 0.1889602144 | L17: 0 | M17: 16.79344339 | N17: 19.69379686 | O17: 16.15842283 | P17: 12.03019977 | Q17: 12.64299278 | R17: 13.78377419 | S17: 17.04257159 | T17: 11.52384497 | BB17: Not Improved | BC17: N/A | BD17: N/A | BE17: N/A | BF17: N/A | BG17: N/A | BH17: N/A | BI17: N/A | BJ17: N/A | BK17: N/A | BL17: N/A | BM17: N/A | BN17: N/A | BO17: N/A | BP17: N/A | BQ17: N/A | BR17: N/A | BS17: N/A | BT17: N/A
A18: Water ladder | B18: Basic | C18: 76.72601165 | D18: 71.71452932 | E18: 73.14508578 | F18: 78.74241022 | G18: 91.06054572 | H18: 89.17111374 | I18: 92.76779131 | J18: 95.72770009 | K18: 97.88417272 | L18: 100 | M18: 77.3332906 | N18: 71.83782351 | O18: 72.21856128 | P18: 75.25597381 | Q18: 78.59134336 | R18: 77.21081224 | S18: 68.97863239 | T18: 81.85777969 | BA18: Water ladder | BB18: Basic | BC18: N/A | BD18: N/A | BE18: N/A | BF18: N/A | BG18: N/A | BH18: N/A | BI18: N/A | BJ18: N/A | BK18: N/A | BL18: N/A | BM18: N/A | BN18: N/A | BO18: N/A | BP18: N/A | BQ18: N/A | BR18: N/A | BS18: N/A | BT18: N/A
B19: Limited | C19: 5.939820056 | D19: 9.421928475 | E19: 13.23097874 | F19: 8.95484443 | G19: 5.19922899 | H19: 7.260566168 | I19: 6.004644257 | J19: 3.061953824 | K19: 1.926867064 | L19: 0 | M19: 5.873266008 | N19: 8.46837963 | O19: 11.62301589 | P19: 12.71382642 | Q19: 8.76566386 | R19: 9.005413567 | S19: 13.97879602 | T19: 6.618375346 | BB19: Limited | BC19: N/A | BD19: N/A | BE19: N/A | BF19: N/A | BG19: N/A | BH19: N/A | BI19: N/A | BJ19: N/A | BK19: N/A | BL19: N/A | BM19: N/A | BN19: N/A | BO19: N/A | BP19: N/A | BQ19: N/A | BR19: N/A | BS19: N/A | BT19: N/A
B20: Unimproved | C20: 13.63495652 | D20: 13.922707 | E20: 9.74356315 | F20: 8.971565449 | G20: 2.833381786 | H20: 3.568320092 | I20: 0.9751081896 | J20: 1.210346088 | K20: 0.1889602144 | L20: 0 | M20: 13.24732051 | N20: 15.40413075 | O20: 10.49686377 | P20: 8.727107311 | Q20: 9.520618186 | R20: 12.60862524 | S20: 5.175073391 | T20: 8.437918745 | BB20: Unimproved | BC20: N/A | BD20: N/A | BE20: N/A | BF20: N/A | BG20: N/A | BH20: N/A | BI20: N/A | BJ20: N/A | BK20: N/A | BL20: N/A | BM20: N/A | BN20: N/A | BO20: N/A | BP20: N/A | BQ20: N/A | BR20: N/A | BS20: N/A | BT20: N/A
B21: Surface water | C21: 3.699211769 | D21: 4.940835207 | E21: 3.880372332 | F21: 3.331179905 | G21: 0.9068435087 | H21: 0 | I21: 0.2524562406 | J21: 0 | K21: 0 | L21: 0 | M21: 3.546122875 | N21: 4.289666111 | O21: 5.661559061 | P21: 3.303092458 | Q21: 3.122374594 | R21: 1.175148949 | S21: 11.8674982 | T21: 3.08592622 | BB21: Surface water | BC21: N/A | BD21: N/A | BE21: N/A | BF21: N/A | BG21: N/A | BH21: N/A | BI21: N/A | BJ21: N/A | BK21: N/A | BL21: N/A | BM21: N/A | BN21: N/A | BO21: N/A | BP21: N/A | BQ21: N/A | BR21: N/A | BS21: N/A | BT21: N/A
A22: Improved water point at more than 30 minutes | B22: Yes | C22: 7.185338771 | D22: 11.61244739 | E22: 15.31787633 | F22: 10.21108867 | G22: 5.401247828 | H22: 7.529233313 | I22: 6.079271228 | J22: 3.099468115 | K22: 1.930514969 | L22: 0 | M22: 7.058657691 | N22: 10.5451127 | O22: 13.86306924 | P22: 14.45248982 | Q22: 10.03429964 | R22: 10.44514937 | S22: 16.85056575 | T22: 7.480405701 | BA22: Improved water point at more than 30 minutes | BB22: Yes | BC22: N/A | BD22: N/A | BE22: N/A | BF22: N/A | BG22: N/A | BH22: N/A | BI22: N/A | BJ22: N/A | BK22: N/A | BL22: N/A | BM22: N/A | BN22: N/A | BO22: N/A | BP22: N/A | BQ22: N/A | BR22: N/A | BS22: N/A | BT22: N/A
B23: No | C23: 92.81466123 | D23: 88.38755261 | E23: 84.68212367 | F23: 89.78891133 | G23: 94.59875217 | H23: 92.47076669 | I23: 93.92072877 | J23: 96.90053188 | K23: 98.06948503 | L23: 100 | M23: 92.94134231 | N23: 89.4548873 | O23: 86.13693076 | P23: 85.54751018 | Q23: 89.96570036 | R23: 89.55485063 | S23: 83.14943425 | T23: 92.5195943 | BB23: No | BC23: N/A | BD23: N/A | BE23: N/A | BF23: N/A | BG23: N/A | BH23: N/A | BI23: N/A | BJ23: N/A | BK23: N/A | BL23: N/A | BM23: N/A | BN23: N/A | BO23: N/A | BP23: N/A | BQ23: N/A | BR23: N/A | BS23: N/A | BT23: N/A
A24: Manually calculated ratios | B24: Improved wells
B25: Improved springs
B26: Other
C27: NATIONAL wealth index quintile | H27: URBAN wealth index quintile | M27: RURAL wealth index quintile | R27: SUB-REGIONS: | BA27: Raw numbers of respondents: | BB27: Use of drinking water sources | BC27: NATIONAL wealth index quintile | BH27: URBAN wealth index quintile | BM27: RURAL wealth index quintile | BR27: SUB-REGIONS:
A28: Percentage based on weighted population | C28: Poorest | D28: Poor | E28: Middle | F28: Rich | G28: Richest | H28: Poorest | I28: Poor | J28: Middle | K28: Rich | L28: Richest | M28: Poorest | N28: Poor | O28: Middle | P28: Rich | Q28: Richest | R28: Central | S28: North | T28: South | BA28: Water data, raw numbers (weighted) | BC28: Poorest | BD28: Poor | BE28: Middle | BF28: Rich | BG28: Richest | BH28: Poorest | BI28: Poor | BJ28: Middle | BK28: Rich | BL28: Richest | BM28: Poorest | BN28: Poor | BO28: Middle | BP28: Rich | BQ28: Richest | BR28: Central | BS28: North | BT28: South
A29: Piped water | B29: Yes | C29: 12.30377256 | D29: 11.53370883 | E29: 12.23442794 | F29: 18.52312787 | G29: 67.10760164 | H29: 72.51257635 | I29: 88.38259077 | J29: 90.85937395 | K29: 97.62369528 | L29: 99.15270511 | M29: 11.03752046 | N29: 11.78935249 | O29: 8.586706389 | P29: 11.78410092 | Q29: 15.59213171 | R29: 22.84846902 | S29: 28.04590429 | T29: 24.74090692 | BA29: Piped water | BB29: Yes | BC29: N/A | BD29: N/A | BE29: N/A | BF29: N/A | BG29: N/A | BH29: N/A | BI29: N/A | BJ29: N/A | BK29: N/A | BL29: N/A | BM29: N/A | BN29: N/A | BO29: N/A | BP29: N/A | BQ29: N/A | BR29: N/A | BS29: N/A | BT29: N/A
B30: No | C30: 87.69622744 | D30: 88.46629117 | E30: 87.76557206 | F30: 81.47687213 | G30: 32.89239836 | H30: 27.48742365 | I30: 11.61740923 | J30: 9.140626054 | K30: 2.376304719 | L30: 0.8472948866 | M30: 88.96247954 | N30: 88.21064751 | O30: 91.41329361 | P30: 88.21589908 | Q30: 84.40786829 | R30: 77.15153098 | S30: 71.95409571 | T30: 75.25909308 | BB30: No | BC30: N/A | BD30: N/A | BE30: N/A | BF30: N/A | BG30: N/A | BH30: N/A | BI30: N/A | BJ30: N/A | BK30: N/A | BL30: N/A | BM30: N/A | BN30: N/A | BO30: N/A | BP30: N/A | BQ30: N/A | BR30: N/A | BS30: N/A | BT30: N/A
A31: Piped water on premises | B31: Yes | C31: 0.1066023986 | D31: 0.957787452 | E31: 1.362284609 | F31: 4.041841243 | G31: 40.29427194 | H31: 13.52140503 | I31: 28.01996568 | J31: 49.32807772 | K31: 58.60399879 | L31: 88.00952596 | M31: 0 | N31: 0.9284553028 | O31: 0.4763529085 | P31: 1.515349693 | Q31: 7.113345365 | R31: 8.594321154 | S31: 18.1329582 | T31: 7.659039888 | BA31: Piped water on premises | BB31: Yes | BC31: N/A | BD31: N/A | BE31: N/A | BF31: N/A | BG31: N/A | BH31: N/A | BI31: N/A | BJ31: N/A | BK31: N/A | BL31: N/A | BM31: N/A | BN31: N/A | BO31: N/A | BP31: N/A | BQ31: N/A | BR31: N/A | BS31: N/A | BT31: N/A
B32: No | C32: 99.8933976 | D32: 99.04221255 | E32: 98.63771539 | F32: 95.95815876 | G32: 59.70572806 | H32: 86.47859497 | I32: 71.98003432 | J32: 50.67192228 | K32: 41.39600121 | L32: 11.99047404 | M32: 100 | N32: 99.0715447 | O32: 99.52364709 | P32: 98.48465031 | Q32: 92.88665464 | R32: 91.40567885 | S32: 81.8670418 | T32: 92.34096011 | BB32: No | BC32: N/A | BD32: N/A | BE32: N/A | BF32: N/A | BG32: N/A | BH32: N/A | BI32: N/A | BJ32: N/A | BK32: N/A | BL32: N/A | BM32: N/A | BN32: N/A | BO32: N/A | BP32: N/A | BQ32: N/A | BR32: N/A | BS32: N/A | BT32: N/A
A33: Piped water into dwelling | B33: Yes | C33: N/A | D33: N/A | E33: N/A | F33: N/A | G33: N/A | H33: N/A | I33: N/A | J33: N/A | K33: N/A | L33: N/A | M33: N/A | N33: N/A | O33: N/A | P33: N/A | Q33: N/A | R33: N/A | S33: N/A | T33: N/A | BA33: Piped water into dwelling | BB33: Yes | BC33: N/A | BD33: N/A | BE33: N/A | BF33: N/A | BG33: N/A | BH33: N/A | BI33: N/A | BJ33: N/A | BK33: N/A | BL33: N/A | BM33: N/A | BN33: N/A | BO33: N/A | BP33: N/A | BQ33: N/A | BR33: N/A | BS33: N/A | BT33: N/A
B34: No | C34: N/A | D34: N/A | E34: N/A | F34: N/A | G34: N/A | H34: N/A | I34: N/A | J34: N/A | K34: N/A | L34: N/A | M34: N/A | N34: N/A | O34: N/A | P34: N/A | Q34: N/A | R34: N/A | S34: N/A | T34: N/A | BB34: No | BC34: N/A | BD34: N/A | BE34: N/A | BF34: N/A | BG34: N/A | BH34: N/A | BI34: N/A | BJ34: N/A | BK34: N/A | BL34: N/A | BM34: N/A | BN34: N/A | BO34: N/A | BP34: N/A | BQ34: N/A | BR34: N/A | BS34: N/A | BT34: N/A
A35: Water source on premises | B35: Yes | C35: 3.227788158 | D35: 2.979640914 | E35: 4.420631373 | F35: 9.869530862 | G35: 49.919109 | H35: 28.36106009 | I35: 43.75973357 | J35: 57.38811392 | K35: 68.34422875 | L35: 93.09589949 | M35: 1.976180384 | N35: 4.1342718 | O35: 3.234416287 | P35: 3.350405211 | Q35: 15.26153247 | R35: 13.80690815 | S35: 25.70534094 | T35: 11.15445706 | BA35: Water source on premises | BB35: Yes | BC35: N/A | BD35: N/A | BE35: N/A | BF35: N/A | BG35: N/A | BH35: N/A | BI35: N/A | BJ35: N/A | BK35: N/A | BL35: N/A | BM35: N/A | BN35: N/A | BO35: N/A | BP35: N/A | BQ35: N/A | BR35: N/A | BS35: N/A | BT35: N/A
B36: No | C36: 96.77221184 | D36: 97.02035909 | E36: 95.57936863 | F36: 90.13046914 | G36: 50.080891 | H36: 71.63893991 | I36: 56.24026643 | J36: 42.61188608 | K36: 31.65577125 | L36: 6.904100508 | M36: 98.02381962 | N36: 95.8657282 | O36: 96.76558371 | P36: 96.64959479 | Q36: 84.73846753 | R36: 86.19309185 | S36: 74.29465906 | T36: 88.84554294 | BB36: No | BC36: N/A | BD36: N/A | BE36: N/A | BF36: N/A | BG36: N/A | BH36: N/A | BI36: N/A | BJ36: N/A | BK36: N/A | BL36: N/A | BM36: N/A | BN36: N/A | BO36: N/A | BP36: N/A | BQ36: N/A | BR36: N/A | BS36: N/A | BT36: N/A
A37: Improved Water source on premises | B37: Yes | C37: 2.598579991 | D37: 3.34431988 | E37: 4.988307656 | F37: 10.43081042 | G37: 51.37220576 | H37: 28.86365506 | I37: 44.30358867 | J37: 57.30120297 | K37: 68.47361664 | L37: 93.09589949 | M37: 1.648396124 | N37: 3.897474794 | O37: 3.794720046 | P37: 3.808585676 | Q37: 16.04112507 | R37: 14.87594301 | S37: 30.03444757 | T37: 12.57320461 | BA37: Improved water source on premises | BB37: Yes | BC37: N/A | BD37: N/A | BE37: N/A | BF37: N/A | BG37: N/A | BH37: N/A | BI37: N/A | BJ37: N/A | BK37: N/A | BL37: N/A | BM37: N/A | BN37: N/A | BO37: N/A | BP37: N/A | BQ37: N/A | BR37: N/A | BS37: N/A | BT37: N/A
B38: No | C38: 97.40142001 | D38: 96.65568012 | E38: 95.01169234 | F38: 89.56918958 | G38: 48.62779424 | H38: 71.13634494 | I38: 55.69641133 | J38: 42.69879703 | K38: 31.52638336 | L38: 6.904100508 | M38: 98.35160388 | N38: 96.10252521 | O38: 96.20527995 | P38: 96.19141432 | Q38: 83.95887493 | R38: 85.12405699 | S38: 69.96555243 | T38: 87.42679539 | BB38: No | BC38: N/A | BD38: N/A | BE38: N/A | BF38: N/A | BG38: N/A | BH38: N/A | BI38: N/A | BJ38: N/A | BK38: N/A | BL38: N/A | BM38: N/A | BN38: N/A | BO38: N/A | BP38: N/A | BQ38: N/A | BR38: N/A | BS38: N/A | BT38: N/A
A39: Piped water on premises available when needed | B39: Yes | C39: N/A | D39: N/A | E39: N/A | F39: N/A | G39: N/A | H39: N/A | I39: N/A | J39: N/A | K39: N/A | L39: N/A | M39: N/A | N39: N/A | O39: N/A | P39: N/A | Q39: N/A | R39: N/A | S39: N/A | T39: N/A | BA39: Piped water on premises available when needed | BB39: Yes | BC39: N/A | BD39: N/A | BE39: N/A | BF39: N/A | BG39: N/A | BH39: N/A | BI39: N/A | BJ39: N/A | BK39: N/A | BL39: N/A | BM39: N/A | BN39: N/A | BO39: N/A | BP39: N/A | BQ39: N/A | BR39: N/A | BS39: N/A | BT39: N/A
B40: No | C40: N/A | D40: N/A | E40: N/A | F40: N/A | G40: N/A | H40: N/A | I40: N/A | J40: N/A | K40: N/A | L40: N/A | M40: N/A | N40: N/A | O40: N/A | P40: N/A | Q40: N/A | R40: N/A | S40: N/A | T40: N/A | BB40: No | BC40: N/A | BD40: N/A | BE40: N/A | BF40: N/A | BG40: N/A | BH40: N/A | BI40: N/A | BJ40: N/A | BK40: N/A | BL40: N/A | BM40: N/A | BN40: N/A | BO40: N/A | BP40: N/A | BQ40: N/A | BR40: N/A | BS40: N/A | BT40: N/A
A41: Water point at more than 30 minutes | B41: Yes | C41: 10.56005742 | D41: 16.88563677 | E41: 17.10445356 | F41: 13.6184462 | G41: 6.320697377 | H41: 7.625795235 | I41: 6.004644257 | J41: 3.061953824 | K41: 1.926867064 | L41: 0 | M41: 10.15722097 | N41: 15.97140826 | O41: 17.78647917 | P41: 16.78349929 | Q41: 12.56843643 | R41: 13.37347104 | S41: 22.19054483 | T41: 9.879066315 | BA41: Water point at more than 30 minutes | BB41: Yes | BC41: N/A | BD41: N/A | BE41: N/A | BF41: N/A | BG41: N/A | BH41: N/A | BI41: N/A | BJ41: N/A | BK41: N/A | BL41: N/A | BM41: N/A | BN41: N/A | BO41: N/A | BP41: N/A | BQ41: N/A | BR41: N/A | BS41: N/A | BT41: N/A
B42: No | C42: 89.43994258 | D42: 83.11436323 | E42: 82.89554644 | F42: 86.3815538 | G42: 93.67930262 | H42: 92.37420476 | I42: 93.99535574 | J42: 96.93804618 | K42: 98.07313294 | L42: 100 | M42: 89.84277903 | N42: 84.02859174 | O42: 82.21352083 | P42: 83.21650071 | Q42: 87.43156357 | R42: 86.62652896 | S42: 77.80945517 | T42: 90.12093368 | BB42: No | BC42: N/A | BD42: N/A | BE42: N/A | BF42: N/A | BG42: N/A | BH42: N/A | BI42: N/A | BJ42: N/A | BK42: N/A | BL42: N/A | BM42: N/A | BN42: N/A | BO42: N/A | BP42: N/A | BQ42: N/A | BR42: N/A | BS42: N/A | BT42: N/A
A43: Water source available when needed | B43: Yes | C43: N/A | D43: N/A | E43: N/A | F43: N/A | G43: N/A | H43: N/A | I43: N/A | J43: N/A | K43: N/A | L43: N/A | M43: N/A | N43: N/A | O43: N/A | P43: N/A | Q43: N/A | R43: N/A | S43: N/A | T43: N/A | BA43: Water source available when needed | BB43: Yes | BC43: N/A | BD43: N/A | BE43: N/A | BF43: N/A | BG43: N/A | BH43: N/A | BI43: N/A | BJ43: N/A | BK43: N/A | BL43: N/A | BM43: N/A | BN43: N/A | BO43: N/A | BP43: N/A | BQ43: N/A | BR43: N/A | BS43: N/A | BT43: N/A
B44: No | C44: N/A | D44: N/A | E44: N/A | F44: N/A | G44: N/A | H44: N/A | I44: N/A | J44: N/A | K44: N/A | L44: N/A | M44: N/A | N44: N/A | O44: N/A | P44: N/A | Q44: N/A | R44: N/A | S44: N/A | T44: N/A | BB44: No | BC44: N/A | BD44: N/A | BE44: N/A | BF44: N/A | BG44: N/A | BH44: N/A | BI44: N/A | BJ44: N/A | BK44: N/A | BL44: N/A | BM44: N/A | BN44: N/A | BO44: N/A | BP44: N/A | BQ44: N/A | BR44: N/A | BS44: N/A | BT44: N/A
A45: Improved water source available when needed | B45: Yes | C45: N/A | D45: N/A | E45: N/A | F45: N/A | G45: N/A | H45: N/A | I45: N/A | J45: N/A | K45: N/A | L45: N/A | M45: N/A | N45: N/A | O45: N/A | P45: N/A | Q45: N/A | R45: N/A | S45: N/A | T45: N/A | BA45: Improved water source available when needed | BB45: Yes | BC45: N/A | BD45: N/A | BE45: N/A | BF45: N/A | BG45: N/A | BH45: N/A | BI45: N/A | BJ45: N/A | BK45: N/A | BL45: N/A | BM45: N/A | BN45: N/A | BO45: N/A | BP45: N/A | BQ45: N/A | BR45: N/A | BS45: N/A | BT45: N/A
B46: No | C46: N/A | D46: N/A | E46: N/A | F46: N/A | G46: N/A | H46: N/A | I46: N/A | J46: N/A | K46: N/A | L46: N/A | M46: N/A | N46: N/A | O46: N/A | P46: N/A | Q46: N/A | R46: N/A | S46: N/A | T46: N/A | BB46: No | BC46: N/A | BD46: N/A | BE46: N/A | BF46: N/A | BG46: N/A | BH46: N/A | BI46: N/A | BJ46: N/A | BK46: N/A | BL46: N/A | BM46: N/A | BN46: N/A | BO46: N/A | BP46: N/A | BQ46: N/A | BR46: N/A | BS46: N/A | BT46: N/A
A47: Microbiological quality at point of collection | B47: Not contaminated (No E. coli in 100 mL) | C47: N/A | D47: N/A | E47: N/A | F47: N/A | G47: N/A | H47: N/A | I47: N/A | J47: N/A | K47: N/A | L47: N/A | M47: N/A | N47: N/A | O47: N/A | P47: N/A | Q47: N/A | R47: N/A | S47: N/A | T47: N/A | BA47: Microbiological quality at point of collection | BB47: Not contaminated (No E. coli in 100 mL) | BC47: N/A | BD47: N/A | BE47: N/A | BF47: N/A | BG47: N/A | BH47: N/A | BI47: N/A | BJ47: N/A | BK47: N/A | BL47: N/A | BM47: N/A | BN47: N/A | BO47: N/A | BP47: N/A | BQ47: N/A | BR47: N/A | BS47: N/A | BT47: N/A
B48: Contaminated (E. coli detected in 100 mL) | C48: N/A | D48: N/A | E48: N/A | F48: N/A | G48: N/A | H48: N/A | I48: N/A | J48: N/A | K48: N/A | L48: N/A | M48: N/A | N48: N/A | O48: N/A | P48: N/A | Q48: N/A | R48: N/A | S48: N/A | T48: N/A | BB48: Contaminated (E. coli detected in 100 mL) | BC48: N/A | BD48: N/A | BE48: N/A | BF48: N/A | BG48: N/A | BH48: N/A | BI48: N/A | BJ48: N/A | BK48: N/A | BL48: N/A | BM48: N/A | BN48: N/A | BO48: N/A | BP48: N/A | BQ48: N/A | BR48: N/A | BS48: N/A | BT48: N/A
B49: Highly contaminated (>100 CFU/100 mL) | C49: N/A | D49: N/A | E49: N/A | F49: N/A | G49: N/A | H49: N/A | I49: N/A | J49: N/A | K49: N/A | L49: N/A | M49: N/A | N49: N/A | O49: N/A | P49: N/A | Q49: N/A | R49: N/A | S49: N/A | T49: N/A | BB49: Highly contaminated (>100 CFU/100 mL) | BC49: N/A | BD49: N/A | BE49: N/A | BF49: N/A | BG49: N/A | BH49: N/A | BI49: N/A | BJ49: N/A | BK49: N/A | BL49: N/A | BM49: N/A | BN49: N/A | BO49: N/A | BP49: N/A | BQ49: N/A | BR49: N/A | BS49: N/A | BT49: N/A
A50: Microbiological quality of improved water sources at point of collection | B50: Not contaminated (No E. coli in 100 mL) | C50: N/A | D50: N/A | E50: N/A | F50: N/A | G50: N/A | H50: N/A | I50: N/A | J50: N/A | K50: N/A | L50: N/A | M50: N/A | N50: N/A | O50: N/A | P50: N/A | Q50: N/A | R50: N/A | S50: N/A | T50: N/A | BA50: Microbiological quality of improved water sources at point of collection | BB50: Not contaminated (No E. coli in 100 mL) | BC50: N/A | BD50: N/A | BE50: N/A | BF50: N/A | BG50: N/A | BH50: N/A | BI50: N/A | BJ50: N/A | BK50: N/A | BL50: N/A | BM50: N/A | BN50: N/A | BO50: N/A | BP50: N/A | BQ50: N/A | BR50: N/A | BS50: N/A | BT50: N/A
B51: Contaminated (E. coli detected in 100 mL) | C51: N/A | D51: N/A | E51: N/A | F51: N/A | G51: N/A | H51: N/A | I51: N/A | J51: N/A | K51: N/A | L51: N/A | M51: N/A | N51: N/A | O51: N/A | P51: N/A | Q51: N/A | R51: N/A | S51: N/A | T51: N/A | BB51: Contaminated (E. coli detected in 100 mL) | BC51: N/A | BD51: N/A | BE51: N/A | BF51: N/A | BG51: N/A | BH51: N/A | BI51: N/A | BJ51: N/A | BK51: N/A | BL51: N/A | BM51: N/A | BN51: N/A | BO51: N/A | BP51: N/A | BQ51: N/A | BR51: N/A | BS51: N/A | BT51: N/A
B52: Highly contaminated (>100 CFU/100 mL) | C52: N/A | D52: N/A | E52: N/A | F52: N/A | G52: N/A | H52: N/A | I52: N/A | J52: N/A | K52: N/A | L52: N/A | M52: N/A | N52: N/A | O52: N/A | P52: N/A | Q52: N/A | R52: N/A | S52: N/A | T52: N/A | BB52: Highly contaminated (>100 CFU/100 mL) | BC52: N/A | BD52: N/A | BE52: N/A | BF52: N/A | BG52: N/A | BH52: N/A | BI52: N/A | BJ52: N/A | BK52: N/A | BL52: N/A | BM52: N/A | BN52: N/A | BO52: N/A | BP52: N/A | BQ52: N/A | BR52: N/A | BS52: N/A | BT52: N/A
A53: Microbiological quality of piped on premises at point of collection | B53: Not contaminated (No E. coli in 100 mL) | C53: N/A | D53: N/A | E53: N/A | F53: N/A | G53: N/A | H53: N/A | I53: N/A | J53: N/A | K53: N/A | L53: N/A | M53: N/A | N53: N/A | O53: N/A | P53: N/A | Q53: N/A | R53: N/A | S53: N/A | T53: N/A | BA53: Microbiological quality of piped on premises at point of collection | BB53: Not contaminated (No E. coli in 100 mL) | BC53: N/A | BD53: N/A | BE53: N/A | BF53: N/A | BG53: N/A | BH53: N/A | BI53: N/A | BJ53: N/A | BK53: N/A | BL53: N/A | BM53: N/A | BN53: N/A | BO53: N/A | BP53: N/A | BQ53: N/A | BR53: N/A | BS53: N/A | BT53: N/A
B54: Contaminated (E. coli detected in 100 mL) | C54: N/A | D54: N/A | E54: N/A | F54: N/A | G54: N/A | H54: N/A | I54: N/A | J54: N/A | K54: N/A | L54: N/A | M54: N/A | N54: N/A | O54: N/A | P54: N/A | Q54: N/A | R54: N/A | S54: N/A | T54: N/A | BB54: Contaminated (E. coli detected in 100 mL) | BC54: N/A | BD54: N/A | BE54: N/A | BF54: N/A | BG54: N/A | BH54: N/A | BI54: N/A | BJ54: N/A | BK54: N/A | BL54: N/A | BM54: N/A | BN54: N/A | BO54: N/A | BP54: N/A | BQ54: N/A | BR54: N/A | BS54: N/A | BT54: N/A
B55: Highly contaminated (>100 CFU/100 mL) | C55: N/A | D55: N/A | E55: N/A | F55: N/A | G55: N/A | H55: N/A | I55: N/A | J55: N/A | K55: N/A | L55: N/A | M55: N/A | N55: N/A | O55: N/A | P55: N/A | Q55: N/A | R55: N/A | S55: N/A | T55: N/A | BB55: Highly contaminated (>100 CFU/100 mL) | BC55: N/A | BD55: N/A | BE55: N/A | BF55: N/A | BG55: N/A | BH55: N/A | BI55: N/A | BJ55: N/A | BK55: N/A | BL55: N/A | BM55: N/A | BN55: N/A | BO55: N/A | BP55: N/A | BQ55: N/A | BR55: N/A | BS55: N/A | BT55: N/A
C56: NATIONAL wealth index quintile | H56: URBAN wealth index quintile | M56: RURAL wealth index quintile | R56: SUB-REGIONS: | BA56: Raw numbers of respondents: | BB56: Use of drinking water sources | BC56: NATIONAL wealth index quintile | BH56: URBAN wealth index quintile | BM56: RURAL wealth index quintile | BR56: SUB-REGIONS:
A57: Percentage based on weighted population | C57: Poorest | D57: Poor | E57: Middle | F57: Rich | G57: Richest | H57: Poorest | I57: Poor | J57: Middle | K57: Rich | L57: Richest | M57: Poorest | N57: Poor | O57: Middle | P57: Rich | Q57: Richest | R57: Central | S57: North | T57: South | BA57: Water data, raw numbers (weighted) | BC57: Poorest | BD57: Poor | BE57: Middle | BF57: Rich | BG57: Richest | BH57: Poorest | BI57: Poor | BJ57: Middle | BK57: Rich | BL57: Richest | BM57: Poorest | BN57: Poor | BO57: Middle | BP57: Rich | BQ57: Richest | BR57: Central | BS57: North | BT57: South
A58: Source of drinking water | B58: Piped into dwelling | C58: 0.04631518155 | D58: 0 | E58: 0.03474476389 | F58: 0.4874401688 | G58: 18.25652205 | H58: 1.147148083 | I58: 4.446804457 | J58: 10.84208174 | K58: 24.57295812 | L58: 64.2663431 | M58: 0 | N58: 0 | O58: 0 | P58: 0 | Q58: 2.175051736 | R58: 3.631253392 | S58: 4.533380613 | T58: 3.679215228
B59: Piped to yard/plot | C59: 0.06028721707 | D59: 0.957787452 | E59: 1.327539845 | F59: 3.554401074 | G59: 22.0377499 | H59: 12.37425695 | I59: 23.57316123 | J59: 38.48599598 | K59: 34.03104067 | L59: 23.74318287 | M59: 0 | N59: 0.9284553028 | O59: 0.4763529085 | P59: 1.515349693 | Q59: 4.938293629 | R59: 4.963067762 | S59: 13.59957758 | T59: 3.97982466
B60: Piped to neighbor | C60: 0.1936091275 | D60: 0.3390008365 | E60: 0.9681511157 | F60: 2.557101654 | G60: 5.443296612 | H60: 12.98693129 | I60: 11.9604276 | J60: 6.293170581 | K60: 8.178295118 | L60: 4.443017129 | M60: 0.03448804176 | N60: 0 | O60: 0.4188888559 | P60: 0.8347482496 | Q60: 1.600922374 | R60: 1.791197758 | S60: 4.124149933 | T60: 1.393553344
B61: Public tap/standpipe | C61: 12.00356103 | D61: 10.23692054 | E61: 9.903992213 | F61: 11.92418497 | G61: 21.37003308 | H61: 46.00424003 | I61: 48.40219748 | J61: 35.23812564 | K61: 30.84140137 | L61: 6.700162022 | M61: 11.00303242 | N61: 10.86089718 | O61: 7.691464625 | P61: 9.434002981 | Q61: 6.877863969 | R61: 12.4629501 | S61: 5.788796157 | T61: 15.68831369
B62: Tube well or borehole | C62: 65.33366323 | D62: 62.59549646 | E62: 64.94693031 | F62: 61.34854831 | G62: 27.00665966 | H62: 18.96404933 | I62: 6.891018463 | J62: 5.377396382 | K62: 2.187344505 | L62: 0.8472948866 | M62: 66.64181499 | N62: 61.8360234 | O62: 68.27486059 | P62: 66.77662975 | Q62: 65.28207013 | R62: 52.10834026 | S62: 53.57766422 | T62: 60.93477627
B63: Protected well | C63: 4.83490763 | D63: 7.007252502 | E63: 8.416581178 | F63: 7.436629038 | G63: 1.998353615 | H63: 4.459211895 | I63: 2.91082314 | J63: 2.230044235 | K63: 0 | L63: 0 | M63: 5.294774631 | N63: 6.68082725 | O63: 6.687513995 | P63: 8.867210437 | Q63: 6.018831313 | R63: 11.01763165 | S63: 1.082592872 | T63: 2.427189116
B64: Unprotected well | C64: 11.74278957 | D64: 12.05233027 | E64: 8.289988863 | F64: 7.275349782 | G64: 2.521561152 | H64: 3.35300145 | I64: 0.8348547227 | J64: 1.210346088 | K64: 0.1889602144 | L64: 0 | M64: 11.15639154 | N64: 13.39880759 | O64: 8.603127632 | P64: 8.020630879 | Q64: 7.672609722 | R64: 11.62851691 | S64: 3.819773768 | T64: 6.525745856
B65: Protected spring | C65: 0.1934882871 | D65: 0 | E65: 0.7781250932 | F65: 0.04497843566 | G65: 0.09496707751 | H65: 0.4958423334 | I65: 0.5880031977 | J65: 0 | K65: 0 | L65: 0 | M65: 0.2324465322 | N65: 0 | O65: 0.2924961926 | P65: 0.5418591249 | Q65: 0.05365434892 | R65: 0.2417848845 | S65: 0.2512670343 | T65: 0.1968083869
B66: Unprotected spring | C66: 1.892166952 | D66: 1.870376723 | E66: 1.453574287 | F66: 1.577574731 | G66: 0.3118206336 | H66: 0.2153186415 | I66: 0 | J66: 0 | K66: 0 | L66: 0 | M66: 2.090928975 | N66: 2.005323164 | O66: 1.893736141 | P66: 0.7064764319 | Q66: 1.733489627 | R66: 0.9801083322 | S66: 1.162593031 | T66: 1.912172889
B67: River/dam/lake/ponds/stream/canal/irrigation channel | C67: 3.699211769 | D67: 4.940835207 | E67: 3.880372332 | F67: 3.331179905 | G67: 0.9068435087 | H67: 0 | I67: 0.2524562406 | J67: 0 | K67: 0 | L67: 0 | M67: 3.546122875 | N67: 4.289666111 | O67: 5.661559061 | P67: 3.303092458 | Q67: 3.122374594 | R67: 1.175148949 | S67: 11.8674982 | T67: 3.08592622
B68: Tanker truck | C68: 0 | D68: 0 | E68: 0 | F68: 0 | G68: 0.05219272021 | H68: 0 | I68: 0 | J68: 0.3228393493 | K68: 0 | L68: 0 | M68: 0 | N68: 0 | O68: 0 | P68: 0 | Q68: 0 | R68: 0 | S68: 0 | T68: 0.02323878328
B69: Cart with small tank | C69: 0 | D69: 0 | E69: 0 | F69: 0.3439709867 | G69: 0 | H69: 0 | I69: 0 | J69: 0 | K69: 0 | L69: 0 | M69: 0 | N69: 0 | O69: 0 | P69: 0 | Q69: 0.4103197247 | R69: 0 | S69: 0 | T69: 0.1532355621
B70: Other | C70: 0 | D70: 0 | E70: 0 | F70: 0.1186409356 | G70: 0 | H70: 0 | I70: 0.140253467 | J70: 0 | K70: 0 | L70: 0 | M70: 0 | N70: 0 | O70: 0 | P70: 0 | Q70: 0.1145188367 | R70: 0 | S70: 0.192706592 | T70: 0
A108: =A1026 -> Malawi
A109: =A1034 -> 2017
A110: Use of sanitation facilities
A111: by wealth quintile and sub-national region
A112: Notes:
A113: WHO/UNICEF JMP customised wealth index excludes water,
A114: sanitation and hygiene assets.
A115: Survey used for analysis: | B115: =A1025 -> MIS17
A116: =B1030 -> 
A117: =B1029 -> 
A120: Use of sanitation facilities | C120: NATIONAL wealth index quintile | H120: URBAN wealth index quintile | M120: RURAL wealth index quintile | R120: SUB-REGIONS: | BA120: Raw numbers of respondents: | BB120: Use of sanitation facilities | BC120: NATIONAL wealth index quintile | BH120: URBAN wealth index quintile | BM120: RURAL wealth index quintile | BR120: SUB-REGIONS:
A121: Weighted percentage (used in graphs) | C121: Poorest | D121: Poor | E121: Middle | F121: Rich | G121: Richest | H121: Poorest | I121: Poor | J121: Middle | K121: Rich | L121: Richest | M121: Poorest | N121: Poor | O121: Middle | P121: Rich | Q121: Richest | R121: Central | S121: North | T121: South | BA121: Sanitation data, raw numbers (weighted) | BC121: Poorest | BD121: Poor | BE121: Middle | BF121: Rich | BG121: Richest | BH121: Poorest | BI121: Poor | BJ121: Middle | BK121: Rich | BL121: Richest | BM121: Poorest | BN121: Poor | BO121: Middle | BP121: Rich | BQ121: Richest | BR121: Central | BS121: North | BT121: South
A122: Sanitation | B122: Improved | C122: =C153+C154+C155+C156+C157+C161+((C158+C159)*MICS14!C130/100-'MIS17'!C158)+'MIS17'!C158 -> 27.10002269 | D122: =D153+D154+D155+D156+D157+D161+((D158+D159)*MICS14!D130/100-'MIS17'!D158)+'MIS17'!D158 -> 31.15103757 | E122: =E153+E154+E155+E156+E157+E161+((E158+E159)*MICS14!E130/100-'MIS17'!E158)+'MIS17'!E158 -> 30.07147638 | F122: =F153+F154+F155+F156+F157+F161+((F158+F159)*MICS14!F130/100-'MIS17'!F158)+'MIS17'!F158 -> 34.42231694 | G122: =G153+G154+G155+G156+G157+G161+((G158+G159)*MICS14!G130/100-'MIS17'!G158)+'MIS17'!G158 -> 59.47043394 | H122: =H153+H154+H155+H156+H157+H161+((H158+H159)*MICS14!H130/100-'MIS17'!H158)+'MIS17'!H158 -> 40.52673587 | I122: =I153+I154+I155+I156+I157+I161+((I158+I159)*MICS14!I130/100-'MIS17'!I158)+'MIS17'!I158 -> 48.66306134 | J122: =J153+J154+J155+J156+J157+J161+((J158+J159)*MICS14!J130/100-'MIS17'!J158)+'MIS17'!J158 -> 56.96997909 | K122: =K153+K154+K155+K156+K157+K161+((K158+K159)*MICS14!K130/100-'MIS17'!K158)+'MIS17'!K158 -> 68.75736088 | L122: =L153+L154+L155+L156+L157+L161+((L158+L159)*MICS14!L130/100-'MIS17'!L158)+'MIS17'!L158 -> 88.22540086 | M122: =M153+M154+M155+M156+M157+M161+((M158+M159)*MICS14!M130/100-'MIS17'!M158)+'MIS17'!M158 -> 26.26613868 | N122: =N153+N154+N155+N156+N157+N161+((N158+N159)*MICS14!N130/100-'MIS17'!N158)+'MIS17'!N158 -> 30.63161952 | O122: =O153+O154+O155+O156+O157+O161+((O158+O159)*MICS14!O130/100-'MIS17'!O158)+'MIS17'!O158 -> 30.07988115 | P122: =P153+P154+P155+P156+P157+P161+((P158+P159)*MICS14!P130/100-'MIS17'!P158)+'MIS17'!P158 -> 30.23906148 | Q122: =Q153+Q154+Q155+Q156+Q157+Q161+((Q158+Q159)*MICS14!Q130/100-'MIS17'!Q158)+'MIS17'!Q158 -> 43.98627647 | R122: =R153+R154+R155+R156+R157+R161+((R158+R159)*MICS14!R130/100-'MIS17'!R158)+'MIS17'!R158 -> 44.36035855 | S122: =S153+S154+S155+S156+S157+S161+((S158+S159)*MICS14!S130/100-'MIS17'!S158)+'MIS17'!S158 -> 48.40045796 | T122: =T153+T154+T155+T156+T157+T161+((T158+T159)*MICS14!T130/100-'MIS17'!T158)+'MIS17'!T158 -> 26.91959906 | BA122: Sanitation | BB122: Improved | BC122: 211.277788 | BD122: 228.92868 | BE122: 306.041555 | BF122: 525.250228 | BG122: 1710.618733 | BH122: 118.930853 | BI122: 227.28001 | BJ122: 304.114009 | BK122: 370.071507 | BL122: 480.574247 | BM122: 184.270363 | BN122: 177.394316 | BO122: 256.932881 | BP122: 269.678353 | BQ122: 592.870445 | BR122: 1175.646468 | BS122: 328.974414 | BT122: 1477.496102
B123: Not Improved | C123: =100-C122 -> 72.89997731 | D123: =100-D122 -> 68.84896243 | E123: 69.92852362 | F123: 65.57768306 | G123: 40.52956606 | H123: 59.47326413 | I123: 51.33693866 | J123: 43.03002091 | K123: 31.24263912 | L123: 11.77459914 | M123: 73.73386132 | N123: 69.36838048 | O123: 69.92011885 | P123: 69.76093852 | Q123: 56.01372353 | R123: 55.63964145 | S123: 51.59954204 | T123: 73.08040094 | BB123: Not Improved | BC123: 3168.387254 | BD123: 3103.154543 | BE123: 3056.013239 | BF123: 2833.259195 | BG123: 1646.079276 | BH123: 422.993428 | BI123: 314.852756 | BJ123: 238.555899 | BK123: 170.25705 | BL123: 62.085466 | BM123: 2628.959819 | BN123: 2645.192288 | BO123: 2559.102407 | BP123: 2542.326705 | BQ123: 2222.567689 | BR123: 6006.763648 | BS123: 1738.71147 | BT123: 6061.418389
A124: Sanitation ladder | B124: Basic | C124: =C122*C129/100 -> 15.05059449 | D124: =D122*D129/100 -> 16.0193279 | E124: 16.26591547 | F124: 25.28273629 | G124: 36.60146244 | H124: 13.63013054 | I124: 10.1542877 | J124: 20.78586232 | K124: 39.80028886 | L124: 79.68006598 | M124: 16.0242265 | N124: 11.93931543 | O124: 19.54327613 | P124: 18.51034051 | Q124: 35.53843801 | R124: 27.67191097 | S124: 34.24860244 | T124: 15.90680851 | BA124: Sanitation ladder | BB124: Basic | BC124: 117.337773 | BD124: 117.725889 | BE124: 165.540461 | BF124: 385.789342 | BG124: 1052.811341 | BH124: 39.999349 | BI124: 47.42543 | BJ124: 110.957947 | BK124: 214.216379 | BL124: 434.026792 | BM124: 112.418124 | BN124: 69.143151 | BO124: 166.932516 | BP124: 165.079136 | BQ124: 479.005982 | BR124: 733.366128 | BS124: 232.785275 | BT124: 873.053403
B125: Limited | C125: =C122*C128/100 -> 12.04942821 | D125: =D122*D128/100 -> 15.13170967 | E125: 13.80556091 | F125: 9.139580647 | G125: 22.8689715 | H125: 26.89660533 | I125: 38.50877365 | J125: 36.18411677 | K125: 28.95707202 | L125: 8.545334882 | M125: 10.24191217 | N125: 18.69230409 | O125: 10.53660501 | P125: 11.72872097 | Q125: 8.447838464 | R125: 16.68844759 | S125: 14.15185553 | T125: 11.01279055 | BB125: Limited | BC125: 93.940015 | BD125: 111.202791 | BE125: 140.501094 | BF125: 139.460886 | BG125: 657.807392 | BH125: 78.931504 | BI125: 179.85458 | BJ125: 193.156062 | BK125: 155.855128 | BL125: 46.547455 | BM125: 71.852239 | BN125: 108.251165 | BO125: 90.000365 | BP125: 104.599217 | BQ125: 113.864463 | BR125: 442.28034 | BS125: 96.189139 | BT125: 604.442699
B126: Unimproved | C126: =100-(C124+C125+C127) -> 59.74790663 | D126: =100-(D124+D125+D127) -> 62.99169459 | E126: 63.20802179 | F126: 62.0246827 | G126: 39.78370272 | H126: 54.18204522 | I126: 50.67495192 | J126: 43.03002091 | K126: 31.001236 | L126: 11.77459914 | M126: 59.98884275 | N126: 62.25972115 | O126: 64.13207846 | P126: 63.01311865 | Q126: 54.72301252 | R126: 50.78318888 | S126: 47.55409115 | T126: 65.41990017 | BB126: Unimproved | BC126: 2723.891319 | BD126: 2907.985504 | BE126: 2830.066285 | BF126: 2713.931343 | BG126: 1621.042896 | BH126: 394.319028 | BI126: 311.263909 | BJ126: 238.555899 | BK126: 168.95268 | BL126: 62.085466 | BM126: 2242.280808 | BN126: 2444.544222 | BO126: 2396.109147 | BP126: 2352.577669 | BQ126: 2186.228519 | BR126: 5657.953308 | BS126: 1655.064253 | BT126: 5483.899786
B127: Open defecation | C127: =C160 -> 13.15207068 | D127: =D160 -> 5.857267839 | E127: 6.720501831 | F127: 3.553000363 | G127: 0.7458633435 | H127: 5.291218904 | I127: 0.6619867356 | J127: 0 | K127: 0.241403121 | L127: 0 | M127: 13.74501857 | N127: 7.108659331 | O127: 5.788040395 | P127: 6.747819868 | Q127: 1.290711011 | R127: 4.856452561 | S127: 4.04545089 | T127: 7.660500775 | BB127: Open defecation | BC127: 444.495935 | BD127: 195.169039 | BE127: 225.946954 | BF127: 119.327852 | BG127: 25.03638 | BH127: 28.6744 | BI127: 3.588847 | BJ127: 0 | BK127: 1.30437 | BL127: 0 | BM127: 386.679011 | BN127: 200.648066 | BO127: 162.99326 | BP127: 189.749036 | BQ127: 36.33917 | BR127: 348.81034 | BS127: 83.647217 | BT127: 577.518603
A128: Shared among Improved Sanitation | B128: Yes | C128: 44.46279748 | D128: 48.57529908 | E128: 45.9091557 | F128: 26.55132327 | G128: 38.45435452 | H128: 66.36755897 | I128: 79.13347945 | J128: 63.51435852 | K128: 42.11486836 | L128: 9.685798873 | M128: 38.99283522 | N128: 61.02290504 | O128: 35.0287455 | P128: 38.78665671 | Q128: 19.20562308 | R128: 37.62018192 | S128: 29.23909426 | T128: 40.90993527 | BA128: Shared among improved sanitation facilities | BB128: Yes | BC128: N/A | BD128: N/A | BE128: N/A | BF128: N/A | BG128: N/A | BH128: N/A | BI128: N/A | BJ128: N/A | BK128: N/A | BL128: N/A | BM128: N/A | BN128: N/A | BO128: N/A | BP128: N/A | BQ128: N/A | BR128: N/A | BS128: N/A | BT128: N/A
B129: No | C129: 55.53720252 | D129: 51.42470092 | E129: 54.0908443 | F129: 73.44867673 | G129: 61.54564548 | H129: 33.63244103 | I129: 20.86652055 | J129: 36.48564148 | K129: 57.88513164 | L129: 90.31420113 | M129: 61.00716478 | N129: 38.97709496 | O129: 64.9712545 | P129: 61.21334329 | Q129: 80.79437692 | R129: 62.37981808 | S129: 70.76090574 | T129: 59.09006473 | BB129: No | BC129: N/A | BD129: N/A | BE129: N/A | BF129: N/A | BG129: N/A | BH129: N/A | BI129: N/A | BJ129: N/A | BK129: N/A | BL129: N/A | BM129: N/A | BN129: N/A | BO129: N/A | BP129: N/A | BQ129: N/A | BR129: N/A | BS129: N/A | BT129: N/A
A130: Manually calculated ratios | B130: Improved latrines
B131: Other
B132: Other
C133: NATIONAL wealth index quintile | H133: URBAN wealth index quintile | M133: RURAL wealth index quintile | R133: SUB-REGIONS: | BA133: Raw numbers of respondents: | BB133: Use of sanitation facilities | BC133: NATIONAL wealth index quintile | BH133: URBAN wealth index quintile | BM133: RURAL wealth index quintile | BR133: SUB-REGIONS:
A134: Percentage based on weighted population | C134: Poorest | D134: Poor | E134: Middle | F134: Rich | G134: Richest | H134: Poorest | I134: Poor | J134: Middle | K134: Rich | L134: Richest | M134: Poorest | N134: Poor | O134: Middle | P134: Rich | Q134: Richest | R134: Central | S134: North | T134: South | BA134: Sanitation data, raw numbers (weighted) | BC134: Poorest | BD134: Poor | BE134: Middle | BF134: Rich | BG134: Richest | BH134: Poorest | BI134: Poor | BJ134: Middle | BK134: Rich | BL134: Richest | BM134: Poorest | BN134: Poor | BO134: Middle | BP134: Rich | BQ134: Richest | BR134: Central | BS134: North | BT134: South
A135: Sanitation type | B135: Sewer connection | C135: 0 | D135: 0 | E135: 0 | F135: 0.01528895517 | G135: 2.297669221 | H135: 0 | I135: 0.4513278211 | J135: 0 | K135: 0.9748975751 | L135: 12.58254434 | M135: 0 | N135: 0 | O135: 0 | P135: 0 | Q135: 0.05840842248 | R135: 0.2885073487 | S135: 0.175911923 | T135: 0.7067358446 | BA135: Sanitation type | BB135: Sewer connection | BC135: N/A | BD135: N/A | BE135: N/A | BF135: N/A | BG135: N/A | BH135: N/A | BI135: N/A | BJ135: N/A | BK135: N/A | BL135: N/A | BM135: N/A | BN135: N/A | BO135: N/A | BP135: N/A | BQ135: N/A | BR135: N/A | BS135: N/A | BT135: N/A
B136: Septic tank connection | C136: 0 | D136: 0 | E136: 0 | F136: 0.09547896391 | G136: 11.11743285 | H136: 0.5917191963 | I136: 0.9315775243 | J136: 4.780261374 | K136: 12.39649915 | L136: 47.8440947 | M136: 0 | N136: 0 | O136: 0 | P136: 0 | Q136: 0.5531916263 | R136: 3.068973846 | S136: 2.562884063 | T136: 1.365801895 | BB136: Septic tank connection | BC136: N/A | BD136: N/A | BE136: N/A | BF136: N/A | BG136: N/A | BH136: N/A | BI136: N/A | BJ136: N/A | BK136: N/A | BL136: N/A | BM136: N/A | BN136: N/A | BO136: N/A | BP136: N/A | BQ136: N/A | BR136: N/A | BS136: N/A | BT136: N/A
B137: Improved latrines | C137: 6.251441648 | D137: 6.870437041 | E137: 9.102812826 | F137: 15.52861735 | G137: 37.54625127 | H137: 21.35430854 | I137: 40.54040648 | J137: 51.26006895 | K137: 55.11869179 | L137: 28.13240367 | M137: 6.550134581 | N137: 6.284813927 | O137: 9.123922633 | P137: 9.590251349 | Q137: 20.44623951 | R137: 13.01093065 | S137: 13.17147436 | T137: 17.52572278 | BB137: Improved latrines | BC137: N/A | BD137: N/A | BE137: N/A | BF137: N/A | BG137: N/A | BH137: N/A | BI137: N/A | BJ137: N/A | BK137: N/A | BL137: N/A | BM137: N/A | BN137: N/A | BO137: N/A | BP137: N/A | BQ137: N/A | BR137: N/A | BS137: N/A | BT137: N/A
B138: Unimproved facilities | C138: 80.59648767 | D138: 87.27229512 | E138: 84.17668534 | F138: 80.80761437 | G138: 48.29278331 | H138: 72.76275336 | I138: 57.41470144 | J138: 43.95966968 | K138: 31.26850836 | L138: 11.44095729 | M138: 79.70484685 | N138: 86.60652674 | O138: 85.08803697 | P138: 83.66192878 | Q138: 77.65144944 | R138: 78.7751356 | S138: 80.04427877 | T138: 72.74123871 | BB138: Unimproved facilities | BC138: N/A | BD138: N/A | BE138: N/A | BF138: N/A | BG138: N/A | BH138: N/A | BI138: N/A | BJ138: N/A | BK138: N/A | BL138: N/A | BM138: N/A | BN138: N/A | BO138: N/A | BP138: N/A | BQ138: N/A | BR138: N/A | BS138: N/A | BT138: N/A
B139: Open defecation | C139: 13.15207068 | D139: 5.857267839 | E139: 6.720501831 | F139: 3.553000363 | G139: 0.7458633435 | H139: 5.291218904 | I139: 0.6619867356 | J139: 0 | K139: 0.241403121 | L139: 0 | M139: 13.74501857 | N139: 7.108659331 | O139: 5.788040395 | P139: 6.747819868 | Q139: 1.290711011 | R139: 4.856452561 | S139: 4.04545089 | T139: 7.660500775 | BB139: Open defecation | BC139: N/A | BD139: N/A | BE139: N/A | BF139: N/A | BG139: N/A | BH139: N/A | BI139: N/A | BJ139: N/A | BK139: N/A | BL139: N/A | BM139: N/A | BN139: N/A | BO139: N/A | BP139: N/A | BQ139: N/A | BR139: N/A | BS139: N/A | BT139: N/A
A140: Septic tank emptying practices | B140: Not emptied/treated and disposed in situ | C140: N/A | D140: N/A | E140: N/A | F140: N/A | G140: N/A | H140: N/A | I140: N/A | J140: N/A | K140: N/A | L140: N/A | M140: N/A | N140: N/A | O140: N/A | P140: N/A | Q140: N/A | R140: N/A | S140: N/A | T140: N/A | BA140: Septic tank emptying practices | BB140: Not emptied/treated and disposed in situ | BC140: N/A | BD140: N/A | BE140: N/A | BF140: N/A | BG140: N/A | BH140: N/A | BI140: N/A | BJ140: N/A | BK140: N/A | BL140: N/A | BM140: N/A | BN140: N/A | BO140: N/A | BP140: N/A | BQ140: N/A | BR140: N/A | BS140: N/A | BT140: N/A
B141: Emptied and buried on site | C141: N/A | D141: N/A | E141: N/A | F141: N/A | G141: N/A | H141: N/A | I141: N/A | J141: N/A | K141: N/A | L141: N/A | M141: N/A | N141: N/A | O141: N/A | P141: N/A | Q141: N/A | R141: N/A | S141: N/A | T141: N/A | BB141: Emptied and buried on site | BC141: N/A | BD141: N/A | BE141: N/A | BF141: N/A | BG141: N/A | BH141: N/A | BI141: N/A | BJ141: N/A | BK141: N/A | BL141: N/A | BM141: N/A | BN141: N/A | BO141: N/A | BP141: N/A | BQ141: N/A | BR141: N/A | BS141: N/A | BT141: N/A
B142: Emptied and discharged locally | C142: N/A | D142: N/A | E142: N/A | F142: N/A | G142: N/A | H142: N/A | I142: N/A | J142: N/A | K142: N/A | L142: N/A | M142: N/A | N142: N/A | O142: N/A | P142: N/A | Q142: N/A | R142: N/A | S142: N/A | T142: N/A | BB142: Emptied and discharged locally | BC142: N/A | BD142: N/A | BE142: N/A | BF142: N/A | BG142: N/A | BH142: N/A | BI142: N/A | BJ142: N/A | BK142: N/A | BL142: N/A | BM142: N/A | BN142: N/A | BO142: N/A | BP142: N/A | BQ142: N/A | BR142: N/A | BS142: N/A | BT142: N/A
B143: Emptied and removed offsite | C143: N/A | D143: N/A | E143: N/A | F143: N/A | G143: N/A | H143: N/A | I143: N/A | J143: N/A | K143: N/A | L143: N/A | M143: N/A | N143: N/A | O143: N/A | P143: N/A | Q143: N/A | R143: N/A | S143: N/A | T143: N/A | BB143: Emptied and removed offsite | BC143: N/A | BD143: N/A | BE143: N/A | BF143: N/A | BG143: N/A | BH143: N/A | BI143: N/A | BJ143: N/A | BK143: N/A | BL143: N/A | BM143: N/A | BN143: N/A | BO143: N/A | BP143: N/A | BQ143: N/A | BR143: N/A | BS143: N/A | BT143: N/A
A144: Latrine emptying practices | B144: Not emptied/treated and disposed in situ | C144: N/A | D144: N/A | E144: N/A | F144: N/A | G144: N/A | H144: N/A | I144: N/A | J144: N/A | K144: N/A | L144: N/A | M144: N/A | N144: N/A | O144: N/A | P144: N/A | Q144: N/A | R144: N/A | S144: N/A | T144: N/A | BA144: Latrine emptying practices | BB144: Not emptied/treated and disposed in situ | BC144: N/A | BD144: N/A | BE144: N/A | BF144: N/A | BG144: N/A | BH144: N/A | BI144: N/A | BJ144: N/A | BK144: N/A | BL144: N/A | BM144: N/A | BN144: N/A | BO144: N/A | BP144: N/A | BQ144: N/A | BR144: N/A | BS144: N/A | BT144: N/A
B145: Emptied and buried on site | C145: N/A | D145: N/A | E145: N/A | F145: N/A | G145: N/A | H145: N/A | I145: N/A | J145: N/A | K145: N/A | L145: N/A | M145: N/A | N145: N/A | O145: N/A | P145: N/A | Q145: N/A | R145: N/A | S145: N/A | T145: N/A | BB145: Emptied and buried on site | BC145: N/A | BD145: N/A | BE145: N/A | BF145: N/A | BG145: N/A | BH145: N/A | BI145: N/A | BJ145: N/A | BK145: N/A | BL145: N/A | BM145: N/A | BN145: N/A | BO145: N/A | BP145: N/A | BQ145: N/A | BR145: N/A | BS145: N/A | BT145: N/A
B146: Emptied and discharged locally | C146: N/A | D146: N/A | E146: N/A | F146: N/A | G146: N/A | H146: N/A | I146: N/A | J146: N/A | K146: N/A | L146: N/A | M146: N/A | N146: N/A | O146: N/A | P146: N/A | Q146: N/A | R146: N/A | S146: N/A | T146: N/A | BB146: Emptied and discharged locally | BC146: N/A | BD146: N/A | BE146: N/A | BF146: N/A | BG146: N/A | BH146: N/A | BI146: N/A | BJ146: N/A | BK146: N/A | BL146: N/A | BM146: N/A | BN146: N/A | BO146: N/A | BP146: N/A | BQ146: N/A | BR146: N/A | BS146: N/A | BT146: N/A
B147: Emptied and removed offsite | C147: N/A | D147: N/A | E147: N/A | F147: N/A | G147: N/A | H147: N/A | I147: N/A | J147: N/A | K147: N/A | L147: N/A | M147: N/A | N147: N/A | O147: N/A | P147: N/A | Q147: N/A | R147: N/A | S147: N/A | T147: N/A | BB147: Emptied and removed offsite | BC147: N/A | BD147: N/A | BE147: N/A | BF147: N/A | BG147: N/A | BH147: N/A | BI147: N/A | BJ147: N/A | BK147: N/A | BL147: N/A | BM147: N/A | BN147: N/A | BO147: N/A | BP147: N/A | BQ147: N/A | BR147: N/A | BS147: N/A | BT147: N/A
A148: Shared among improved sanitation facilities | B148: Yes | C148: 2.77956584 | D148: 3.337335341 | E148: 4.179024514 | F148: 4.15246374 | G148: 19.59685948 | H148: 14.5650429 | I148: 33.17537535 | J148: 35.59365632 | K148: 28.84451062 | L148: 8.577650761 | M148: 2.554083184 | N148: 3.835176035 | O148: 3.195995639 | P148: 3.719737868 | Q148: 4.044289293 | R148: 6.157826313 | S148: 4.652018943 | T148: 8.017635692 | BA148: Shared among improved sanitation facilities | BB148: Yes | BC148: N/A | BD148: N/A | BE148: N/A | BF148: N/A | BG148: N/A | BH148: N/A | BI148: N/A | BJ148: N/A | BK148: N/A | BL148: N/A | BM148: N/A | BN148: N/A | BO148: N/A | BP148: N/A | BQ148: N/A | BR148: N/A | BS148: N/A | BT148: N/A
B149: No | C149: 3.471875808 | D149: 3.5331017 | E149: 4.923788312 | F149: 11.48692153 | G149: 31.36449386 | H149: 7.380984835 | I149: 8.747936479 | J149: 20.446674 | K149: 39.6455779 | L149: 79.98139195 | M149: 3.996051397 | N149: 2.449637892 | O149: 5.927926994 | P149: 5.87051348 | Q149: 17.01355026 | R149: 10.21058553 | S149: 11.2582514 | T149: 11.58062482 | BB149: No | BC149: N/A | BD149: N/A | BE149: N/A | BF149: N/A | BG149: N/A | BH149: N/A | BI149: N/A | BJ149: N/A | BK149: N/A | BL149: N/A | BM149: N/A | BN149: N/A | BO149: N/A | BP149: N/A | BQ149: N/A | BR149: N/A | BS149: N/A | BT149: N/A
B150: DK/missing | C150: 93.74855835 | D150: 93.12956296 | E150: 90.89718717 | F150: 84.36061473 | G150: 49.03864666 | H150: 78.05397227 | I150: 58.07668817 | J150: 43.95966968 | K150: 31.50991148 | L150: 11.44095729 | M150: 93.44986542 | N150: 93.71518607 | O150: 90.87607737 | P150: 90.40974865 | Q150: 78.94216045 | R150: 83.63158816 | S150: 84.08972966 | T150: 80.40173948 | BB150: DK/missing | BC150: N/A | BD150: N/A | BE150: N/A | BF150: N/A | BG150: N/A | BH150: N/A | BI150: N/A | BJ150: N/A | BK150: N/A | BL150: N/A | BM150: N/A | BN150: N/A | BO150: N/A | BP150: N/A | BQ150: N/A | BR150: N/A | BS150: N/A | BT150: N/A
A151: Shared among all sanitation facilities | B151: Yes | C151: 39.21554786 | D151: 32.12945041 | E151: 37.59059245 | F151: 35.53347837 | G151: 38.02024536 | H151: 64.08359089 | I151: 73.02308301 | J151: 67.19928591 | K151: 39.977148 | L151: 12.92823575 | M151: 37.40608568 | N151: 34.92317767 | O151: 36.81656298 | P151: 36.27879261 | Q151: 22.7264317 | R151: 36.01384293 | S151: 38.82118629 | T151: 36.26037166 | BA151: Shared among all sanitation facilities | BB151: Yes | BC151: N/A | BD151: N/A | BE151: N/A | BF151: N/A | BG151: N/A | BH151: N/A | BI151: N/A | BJ151: N/A | BK151: N/A | BL151: N/A | BM151: N/A | BN151: N/A | BO151: N/A | BP151: N/A | BQ151: N/A | BR151: N/A | BS151: N/A | BT151: N/A
B152: No | C152: 60.78445214 | D152: 67.87054959 | E152: 62.40940755 | F152: 64.46652163 | G152: 61.97975464 | H152: 35.91640911 | I152: 26.97691699 | J152: 32.80071409 | K152: 60.022852 | L152: 87.07176425 | M152: 62.59391432 | N152: 65.07682233 | O152: 63.18343702 | P152: 63.72120739 | Q152: 77.2735683 | R152: 63.98615707 | S152: 61.17881371 | T152: 63.73962834 | BB152: No | BC152: N/A | BD152: N/A | BE152: N/A | BF152: N/A | BG152: N/A | BH152: N/A | BI152: N/A | BJ152: N/A | BK152: N/A | BL152: N/A | BM152: N/A | BN152: N/A | BO152: N/A | BP152: N/A | BQ152: N/A | BR152: N/A | BS152: N/A | BT152: N/A
A153: Type of toilet facility | B153: Flush to piped sewer system | C153: 0 | D153: 0 | E153: 0 | F153: 0.01528895517 | G153: 2.297669221 | H153: 0 | I153: 0.4513278211 | J153: 0 | K153: 0.9748975751 | L153: 12.58254434 | M153: 0 | N153: 0 | O153: 0 | P153: 0 | Q153: 0.05840842248 | R153: 0.2885073487 | S153: 0.175911923 | T153: 0.7067358446 | BA153: Type of toilet facility | BB153: Flush to piped sewer system | BC153: 0 | BD153: 0 | BE153: 0 | BF153: 0.513481 | BG153: 77.125817 | BH153: 0 | BI153: 2.446796 | BJ153: 0 | BK153: 5.26765 | BL153: 68.280399 | BM153: 0 | BN153: 0 | BO153: 0 | BP153: 0 | BQ153: 1.644453 | BR153: 20.721781 | BS153: 3.637306 | BT153: 53.280211
B154: Flush to septic tank | C154: 0 | D154: 0 | E154: 0 | F154: 0.09547896391 | G154: 11.11743285 | H154: 0.5917191963 | I154: 0.9315775243 | J154: 4.780261374 | K154: 12.39649915 | L154: 47.8440947 | M154: 0 | N154: 0 | O154: 0 | P154: 0 | Q154: 0.5531916263 | R154: 3.068973846 | S154: 2.562884063 | T154: 1.365801895 | BB154: Flush to septic tank | BC154: 0 | BD154: 0 | BE154: 0 | BF154: 3.20667 | BG154: 373.178647 | BH154: 3.20667 | BI154: 5.050387 | BJ154: 25.94104 | BK154: 66.981825 | BL154: 259.630627 | BM154: 0 | BN154: 0 | BO154: 0 | BP154: 0 | BQ154: 15.574768 | BR154: 220.426288 | BS154: 52.992392 | BT154: 102.966637
B155: Flush to pit latrine | C155: 0 | D155: 0 | E155: 0 | F155: 0.01579039786 | G155: 0.8888231506 | H155: 0.09785905865 | I155: 0.4553174342 | J155: 0.2729200529 | K155: 0.5172156762 | L155: 1.893509828 | M155: 0 | N155: 0 | O155: 0 | P155: 0 | Q155: 0.4551920302 | R155: 0.11940045 | S155: 0.03965418569 | T155: 0.2781524718 | BB155: Flush to pit latrine | BC155: 0 | BD155: 0 | BE155: 0 | BF155: 0.530322 | BG155: 29.835109 | BH155: 0.530322 | BI155: 2.468425 | BJ155: 1.481055 | BK155: 2.794664 | BL155: 10.275315 | BM155: 0 | BN155: 0 | BO155: 0 | BP155: 0 | BQ155: 12.81565 | BR155: 8.57583 | BS155: 0.819924 | BT155: 20.969677
B156: Flush, don't know where | C156: 0 | D156: 0 | E156: 0 | F156: 0 | G156: 0.0343171175 | H156: 0 | I156: 0 | J156: 0 | K156: 0 | L156: 0.2122733589 | M156: 0 | N156: 0 | O156: 0 | P156: 0 | Q156: 0 | R156: 0 | S156: 0 | T156: 0.01527967987 | BB156: Flush, don't know where | BC156: 0 | BD156: 0 | BE156: 0 | BF156: 0 | BG156: 1.151922 | BH156: 0 | BI156: 0 | BJ156: 0 | BK156: 0 | BL156: 1.151922 | BM156: 0 | BN156: 0 | BO156: 0 | BP156: 0 | BQ156: 0 | BR156: 0 | BS156: 0 | BT156: 1.151922
B157: Ventilated Improved Pit latrine (VIP) | C157: 1.005474998 | D157: 0.2536528182 | E157: 0.7092661619 | F157: 0.8148330867 | G157: 0.4457598199 | H157: 0.6490755486 | I157: 0.232548571 | J157: 0.3744047661 | K157: 0.7542882839 | L157: 0.4317092174 | M157: 1.033048706 | N157: 0.4508821441 | O157: 0.09117091007 | P157: 0.6545524144 | Q157: 1.158548135 | R157: 0.71573163 | S157: 1.184477207 | T157: 0.4338891897 | BB157: Ventilated Improved Pit latrine (VIP) | BC157: 33.981687 | BD157: 8.451923 | BE157: 23.845917 | BF157: 27.366246 | BG157: 14.962811 | BH157: 3.517498 | BI157: 1.260722 | BJ157: 2.031782 | BK157: 4.075635 | BL157: 2.342712 | BM157: 29.062038 | BN157: 12.726539 | BO157: 2.567405 | BP157: 18.406047 | BQ157: 32.618206 | BR157: 51.406781 | BS157: 24.491268 | BT157: 32.710535
B158: Pit latrine with slab | C158: 4.968817144 | D158: 6.037608623 | E158: 8.393546664 | F158: 14.69799387 | G158: 36.04221714 | H158: 20.60737393 | I158: 39.85254048 | J158: 50.51367506 | K158: 53.65695691 | L158: 25.59491126 | M158: 5.184133205 | N158: 5.150210938 | O158: 9.032751723 | P158: 8.935698934 | Q158: 18.72698994 | R158: 12.06366207 | S158: 11.7539662 | T158: 16.51787228 | BB158: Pit latrine with slab | BC158: 167.929376 | BD158: 201.178144 | BE158: 282.195638 | BF158: 493.633509 | BG158: 1209.828385 | BH158: 111.676363 | BI158: 216.05368 | BJ158: 274.122514 | BK158: 289.923861 | BL158: 138.893272 | BM158: 145.8416 | BN158: 145.369164 | BO158: 254.365476 | BP158: 251.272306 | BQ158: 527.246816 | BR158: 866.461685 | BS158: 243.0351 | BT158: 1245.268267
B159: Pit latrine without slab/open pit | C159: 80.34112769 | D159: 87.07121977 | E159: 84.17668534 | F159: 80.80761437 | G159: 48.15801135 | H159: 72.71103101 | I159: 57.41470144 | J159: 43.95966968 | K159: 31.26850836 | L159: 11.44095729 | M159: 79.66920483 | N159: 86.1905732 | O159: 85.00612489 | P159: 83.66192878 | Q159: 77.49076794 | R159: 78.64072393 | S159: 79.64156499 | T159: 72.71638971 | BB159: Pit latrine without slab/open pit | BC159: 2715.261007 | BD159: 2901.285506 | BE159: 2830.066285 | BF159: 2713.931343 | BG159: 1616.519008 | BH159: 394.038732 | BI159: 311.263909 | BJ159: 238.555899 | BK159: 168.95268 | BL159: 62.085466 | BM159: 2241.278116 | BN159: 2432.803573 | BO159: 2393.802474 | BP159: 2352.577669 | BQ159: 2181.704631 | BR159: 5648.299311 | BS159: 1646.737397 | BT159: 5482.026441
B160: No facility/bush/field | C160: 13.15207068 | D160: 5.857267839 | E160: 6.720501831 | F160: 3.553000363 | G160: 0.7458633435 | H160: 5.291218904 | I160: 0.6619867356 | J160: 0 | K160: 0.241403121 | L160: 0 | M160: 13.74501857 | N160: 7.108659331 | O160: 5.788040395 | P160: 6.747819868 | Q160: 1.290711011 | R160: 4.856452561 | S160: 4.04545089 | T160: 7.660500775 | BB160: No facility/bush/field | BC160: 444.495935 | BD160: 195.169039 | BE160: 225.946954 | BF160: 119.327852 | BG160: 25.03638 | BH160: 28.6744 | BI160: 3.588847 | BJ160: 0 | BK160: 1.30437 | BL160: 0 | BM160: 386.679011 | BN160: 200.648066 | BO160: 162.99326 | BP160: 189.749036 | BQ160: 36.33917 | BR160: 348.81034 | BS160: 83.647217 | BT160: 577.518603
B161: Composting toilet | C161: 0.2771495069 | D161: 0.5791756 | E161: 0 | F161: 0 | G161: 0.135134051 | H161: 0 | I161: 0 | J161: 0.09906906428 | K161: 0.1902309228 | L161: 0 | M161: 0.3329526699 | N161: 0.6837208457 | O161: 0 | P161: 0 | Q161: 0.1055094042 | R161: 0.1121364955 | S161: 0.1933767615 | T161: 0.2805291534 | BB161: Composting toilet | BC161: 9.366725 | BD161: 19.298613 | BE161: 0 | BF161: 0 | BG161: 4.536042 | BH161: 0 | BI161: 0 | BJ161: 0.537618 | BK161: 1.027872 | BL161: 0 | BM161: 9.366725 | BN161: 19.298613 | BO161: 0 | BP161: 0 | BQ161: 2.970552 | BR161: 8.054103 | BS161: 3.998424 | BT161: 21.148853
B162: Hanging toilet/latrine | C162: 0.2173979938 | D162: 0.0562214349 | E162: 0 | F162: 0 | G162: 0.134771969 | H162: 0 | I162: 0 | J162: 0 | K162: 0 | L162: 0 | M162: 0 | N162: 0.3266744406 | O162: 0 | P162: 0 | Q162: 0.160681492 | R162: 0.10229608 | S162: 0.2187899059 | T162: 0.02484900183 | BB162: Hanging toilet/latrine | BC162: 7.347324 | BD162: 1.873345 | BE162: 0 | BF162: 0 | BG162: 4.523888 | BH162: 0 | BI162: 0 | BJ162: 0 | BK162: 0 | BL162: 0 | BM162: 0 | BN162: 9.220669 | BO162: 0 | BP162: 0 | BQ162: 4.523888 | BR162: 7.347324 | BS162: 4.523888 | BT162: 1.873345
B163: Other | C163: 0.03796198688 | D163: 0.144853915 | E163: 0 | F163: 0 | G163: 0 | H163: 0.05172235492 | I163: 0 | J163: 0 | K163: 0 | L163: 0 | M163: 0.03564201772 | N163: 0.08927910295 | O163: 0.08191207723 | P163: 0 | Q163: 0 | R163: 0.03211558464 | S163: 0.183923875 | T163: 0 | BB163: Other | BC163: 1.282988 | BD163: 4.826653 | BE163: 0 | BF163: 0 | BG163: 0 | BH163: 0.280296 | BI163: 0 | BJ163: 0 | BK163: 0 | BL163: 0 | BM163: 1.002692 | BN163: 2.51998 | BO163: 2.306673 | BP163: 0 | BQ163: 0 | BR163: 2.306673 | BS163: 3.802968 | BT163: 0
BB164: Total | BC164: 3379.665042 | BD164: 3332.083223 | BE164: 3362.054794 | BF164: 3358.509423 | BG164: 3356.698009 | BH164: 541.924281 | BI164: 542.132766 | BJ164: 542.669908 | BK164: 540.328557 | BL164: 542.659713 | BM164: 2813.230182 | BN164: 2822.586604 | BO164: 2816.035288 | BP164: 2812.005058 | BQ164: 2815.438134 | BR164: 7182.410116 | BS164: 2067.685884 | BT164: 7538.914491
A208: =A1026 -> Malawi
A209: =A1034 -> 2017
A210: Access to hygiene facilities
A211: by wealth quintile and sub-national region
A212: Notes:
A213: WHO/UNICEF JMP customised wealth index excludes water,
A214: sanitation and hygiene assets.
A215: Survey used for analysis: | B215: =A1025 -> MIS17
A220: Access to handwashing | C220: NATIONAL wealth index quintile | H220: URBAN wealth index quintile | M220: RURAL wealth index quintile | R220: SUB-REGIONS: | BA220: Raw numbers of respondents: | BB220: Access to handwashing | BC220: NATIONAL wealth index quintile | BH220: URBAN wealth index quintile | BM220: RURAL wealth index quintile | BR220: SUB-REGIONS:
A221: Weighted percentage (used in graphs) | C221: Poorest | D221: Poor | E221: Middle | F221: Rich | G221: Richest | H221: Poorest | I221: Poor | J221: Middle | K221: Rich | L221: Richest | M221: Poorest | N221: Poor | O221: Middle | P221: Rich | Q221: Richest | R221: Central | S221: North | T221: South | BA221: Hygiene data, raw numbers (weighted) | BC221: Poorest | BD221: Poor | BE221: Middle | BF221: Rich | BG221: Richest | BH221: Poorest | BI221: Poor | BJ221: Middle | BK221: Rich | BL221: Richest | BM221: Poorest | BN221: Poor | BO221: Middle | BP221: Rich | BQ221: Richest | BR221: Central | BS221: North | BT221: South
A222: Hygiene ladder | B222: Basic | C222: N/A | D222: N/A | E222: N/A | F222: N/A | G222: N/A | H222: N/A | I222: N/A | J222: N/A | K222: N/A | L222: N/A | M222: N/A | N222: N/A | O222: N/A | P222: N/A | Q222: N/A | R222: N/A | S222: N/A | T222: N/A | BA222: Hygiene ladder | BB222: Basic | BC222: N/A | BD222: N/A | BE222: N/A | BF222: N/A | BG222: N/A | BH222: N/A | BI222: N/A | BJ222: N/A | BK222: N/A | BL222: N/A | BM222: N/A | BN222: N/A | BO222: N/A | BP222: N/A | BQ222: N/A | BR222: N/A | BS222: N/A | BT222: N/A
B223: Limited | C223: N/A | D223: N/A | E223: N/A | F223: N/A | G223: N/A | H223: N/A | I223: N/A | J223: N/A | K223: N/A | L223: N/A | M223: N/A | N223: N/A | O223: N/A | P223: N/A | Q223: N/A | R223: N/A | S223: N/A | T223: N/A | BB223: Limited | BC223: N/A | BD223: N/A | BE223: N/A | BF223: N/A | BG223: N/A | BH223: N/A | BI223: N/A | BJ223: N/A | BK223: N/A | BL223: N/A | BM223: N/A | BN223: N/A | BO223: N/A | BP223: N/A | BQ223: N/A | BR223: N/A | BS223: N/A | BT223: N/A
B224: No facility | C224: N/A | D224: N/A | E224: N/A | F224: N/A | G224: N/A | H224: N/A | I224: N/A | J224: N/A | K224: N/A | L224: N/A | M224: N/A | N224: N/A | O224: N/A | P224: N/A | Q224: N/A | R224: N/A | S224: N/A | T224: N/A | BB224: No facility | BC224: N/A | BD224: N/A | BE224: N/A | BF224: N/A | BG224: N/A | BH224: N/A | BI224: N/A | BJ224: N/A | BK224: N/A | BL224: N/A | BM224: N/A | BN224: N/A | BO224: N/A | BP224: N/A | BQ224: N/A | BR224: N/A | BS224: N/A | BT224: N/A
BA225: Observed handwashing place | BB225: Fixed | BC225: N/A | BD225: N/A | BE225: N/A | BF225: N/A | BG225: N/A | BH225: N/A | BI225: N/A | BJ225: N/A | BK225: N/A | BL225: N/A | BM225: N/A | BN225: N/A | BO225: N/A | BP225: N/A | BQ225: N/A | BR225: N/A | BS225: N/A | BT225: N/A
BB226: Mobile | BC226: N/A | BD226: N/A | BE226: N/A | BF226: N/A | BG226: N/A | BH226: N/A | BI226: N/A | BJ226: N/A | BK226: N/A | BL226: N/A | BM226: N/A | BN226: N/A | BO226: N/A | BP226: N/A | BQ226: N/A | BR226: N/A | BS226: N/A | BT226: N/A
BA227: Water / Soap | BB227: Water and soap | BC227: N/A | BD227: N/A | BE227: N/A | BF227: N/A | BG227: N/A | BH227: N/A | BI227: N/A | BJ227: N/A | BK227: N/A | BL227: N/A | BM227: N/A | BN227: N/A | BO227: N/A | BP227: N/A | BQ227: N/A | BR227: N/A | BS227: N/A | BT227: N/A
BB228: Water only | BC228: N/A | BD228: N/A | BE228: N/A | BF228: N/A | BG228: N/A | BH228: N/A | BI228: N/A | BJ228: N/A | BK228: N/A | BL228: N/A | BM228: N/A | BN228: N/A | BO228: N/A | BP228: N/A | BQ228: N/A | BR228: N/A | BS228: N/A | BT228: N/A
BB229: Soap only | BC229: N/A | BD229: N/A | BE229: N/A | BF229: N/A | BG229: N/A | BH229: N/A | BI229: N/A | BJ229: N/A | BK229: N/A | BL229: N/A | BM229: N/A | BN229: N/A | BO229: N/A | BP229: N/A | BQ229: N/A | BR229: N/A | BS229: N/A | BT229: N/A
BB230: Neither | BC230: N/A | BD230: N/A | BE230: N/A | BF230: N/A | BG230: N/A | BH230: N/A | BI230: N/A | BJ230: N/A | BK230: N/A | BL230: N/A | BM230: N/A | BN230: N/A | BO230: N/A | BP230: N/A | BQ230: N/A | BR230: N/A | BS230: N/A | BT230: N/A
BA259: Raw numbers of respondents: | BB259: Menstrual health and hygiene | BC259: NATIONAL wealth index quintile | BH259: URBAN wealth index quintile | BM259: RURAL wealth index quintile | BR259: SUB-REGIONS:
BA260: MHH data, raw numbers (weighted) | BC260: Poorest | BD260: Poor | BE260: Middle | BF260: Rich | BG260: Richest | BH260: Poorest | BI260: Poor | BJ260: Middle | BK260: Rich | BL260: Richest | BM260: Poorest | BN260: Poor | BO260: Middle | BP260: Rich | BQ260: Richest | BR260: Central | BS260: North | BT260: South
BA261: Private place to wash and change | BB261: Yes | BC261: N/A | BD261: N/A | BE261: N/A | BF261: N/A | BG261: N/A | BH261: N/A | BI261: N/A | BJ261: N/A | BK261: N/A | BL261: N/A | BM261: N/A | BN261: N/A | BO261: N/A | BP261: N/A | BQ261: N/A | BR261: N/A | BS261: N/A | BT261: N/A
BB262: No | BC262: N/A | BD262: N/A | BE262: N/A | BF262: N/A | BG262: N/A | BH262: N/A | BI262: N/A | BJ262: N/A | BK262: N/A | BL262: N/A | BM262: N/A | BN262: N/A | BO262: N/A | BP262: N/A | BQ262: N/A | BR262: N/A | BS262: N/A | BT262: N/A
BB263: DK/not sure/missing | BC263: N/A | BD263: N/A | BE263: N/A | BF263: N/A | BG263: N/A | BH263: N/A | BI263: N/A | BJ263: N/A | BK263: N/A | BL263: N/A | BM263: N/A | BN263: N/A | BO263: N/A | BP263: N/A | BQ263: N/A | BR263: N/A | BS263: N/A | BT263: N/A
BA264: Use of menstrual materials | BB264: Materials reusable | BC264: N/A | BD264: N/A | BE264: N/A | BF264: N/A | BG264: N/A | BH264: N/A | BI264: N/A | BJ264: N/A | BK264: N/A | BL264: N/A | BM264: N/A | BN264: N/A | BO264: N/A | BP264: N/A | BQ264: N/A | BR264: N/A | BS264: N/A | BT264: N/A
BB265: Materials not reusable | BC265: N/A | BD265: N/A | BE265: N/A | BF265: N/A | BG265: N/A | BH265: N/A | BI265: N/A | BJ265: N/A | BK265: N/A | BL265: N/A | BM265: N/A | BN265: N/A | BO265: N/A | BP265: N/A | BQ265: N/A | BR265: N/A | BS265: N/A | BT265: N/A
BB266: No materials used | BC266: N/A | BD266: N/A | BE266: N/A | BF266: N/A | BG266: N/A | BH266: N/A | BI266: N/A | BJ266: N/A | BK266: N/A | BL266: N/A | BM266: N/A | BN266: N/A | BO266: N/A | BP266: N/A | BQ266: N/A | BR266: N/A | BS266: N/A | BT266: N/A
BB267: DK/not sure/missing | BC267: N/A | BD267: N/A | BE267: N/A | BF267: N/A | BG267: N/A | BH267: N/A | BI267: N/A | BJ267: N/A | BK267: N/A | BL267: N/A | BM267: N/A | BN267: N/A | BO267: N/A | BP267: N/A | BQ267: N/A | BR267: N/A | BS267: N/A | BT267: N/A
BA268: Use of menstrual materials with private place to wash and change | BB268: Materials reusable | BC268: N/A | BD268: N/A | BE268: N/A | BF268: N/A | BG268: N/A | BH268: N/A | BI268: N/A | BJ268: N/A | BK268: N/A | BL268: N/A | BM268: N/A | BN268: N/A | BO268: N/A | BP268: N/A | BQ268: N/A | BR268: N/A | BS268: N/A | BT268: N/A
BB269: Materials not reusable | BC269: N/A | BD269: N/A | BE269: N/A | BF269: N/A | BG269: N/A | BH269: N/A | BI269: N/A | BJ269: N/A | BK269: N/A | BL269: N/A | BM269: N/A | BN269: N/A | BO269: N/A | BP269: N/A | BQ269: N/A | BR269: N/A | BS269: N/A | BT269: N/A
BB270: No materials used | BC270: N/A | BD270: N/A | BE270: N/A | BF270: N/A | BG270: N/A | BH270: N/A | BI270: N/A | BJ270: N/A | BK270: N/A | BL270: N/A | BM270: N/A | BN270: N/A | BO270: N/A | BP270: N/A | BQ270: N/A | BR270: N/A | BS270: N/A | BT270: N/A
BA271: Awareness of menstruation before menarche | BB271: Yes | BC271: N/A | BD271: N/A | BE271: N/A | BF271: N/A | BG271: N/A | BH271: N/A | BI271: N/A | BJ271: N/A | BK271: N/A | BL271: N/A | BM271: N/A | BN271: N/A | BO271: N/A | BP271: N/A | BQ271: N/A | BR271: N/A | BS271: N/A | BT271: N/A
BB272: No | BC272: N/A | BD272: N/A | BE272: N/A | BF272: N/A | BG272: N/A | BH272: N/A | BI272: N/A | BJ272: N/A | BK272: N/A | BL272: N/A | BM272: N/A | BN272: N/A | BO272: N/A | BP272: N/A | BQ272: N/A | BR272: N/A | BS272: N/A | BT272: N/A
BB273: DK/not sure/missing | BC273: N/A | BD273: N/A | BE273: N/A | BF273: N/A | BG273: N/A | BH273: N/A | BI273: N/A | BJ273: N/A | BK273: N/A | BL273: N/A | BM273: N/A | BN273: N/A | BO273: N/A | BP273: N/A | BQ273: N/A | BR273: N/A | BS273: N/A | BT273: N/A
BA274: Participation in (all) activities during menstruation | BB274: Yes | BC274: N/A | BD274: N/A | BE274: N/A | BF274: N/A | BG274: N/A | BH274: N/A | BI274: N/A | BJ274: N/A | BK274: N/A | BL274: N/A | BM274: N/A | BN274: N/A | BO274: N/A | BP274: N/A | BQ274: N/A | BR274: N/A | BS274: N/A | BT274: N/A
BB275: No | BC275: N/A | BD275: N/A | BE275: N/A | BF275: N/A | BG275: N/A | BH275: N/A | BI275: N/A | BJ275: N/A | BK275: N/A | BL275: N/A | BM275: N/A | BN275: N/A | BO275: N/A | BP275: N/A | BQ275: N/A | BR275: N/A | BS275: N/A | BT275: N/A
BB276: DK/not sure/missing/no such activity | BC276: N/A | BD276: N/A | BE276: N/A | BF276: N/A | BG276: N/A | BH276: N/A | BI276: N/A | BJ276: N/A | BK276: N/A | BL276: N/A | BM276: N/A | BN276: N/A | BO276: N/A | BP276: N/A | BQ276: N/A | BR276: N/A | BS276: N/A | BT276: N/A
BA277: Participation in specific activities during menstruation | BB277: Did not go to school (amongst those usually attending school) | BC277: N/A | BD277: N/A | BE277: N/A | BF277: N/A | BG277: N/A | BH277: N/A | BI277: N/A | BJ277: N/A | BK277: N/A | BL277: N/A | BM277: N/A | BN277: N/A | BO277: N/A | BP277: N/A | BQ277: N/A | BR277: N/A | BS277: N/A | BT277: N/A
BB278: Did not go to work (amongst those who usually work) | BC278: N/A | BD278: N/A | BE278: N/A | BF278: N/A | BG278: N/A | BH278: N/A | BI278: N/A | BJ278: N/A | BK278: N/A | BL278: N/A | BM278: N/A | BN278: N/A | BO278: N/A | BP278: N/A | BQ278: N/A | BR278: N/A | BS278: N/A | BT278: N/A
BB279: Did not participate in social activities | BC279: N/A | BD279: N/A | BE279: N/A | BF279: N/A | BG279: N/A | BH279: N/A | BI279: N/A | BJ279: N/A | BK279: N/A | BL279: N/A | BM279: N/A | BN279: N/A | BO279: N/A | BP279: N/A | BQ279: N/A | BR279: N/A | BS279: N/A | BT279: N/A
BB280: Did not cook food | BC280: N/A | BD280: N/A | BE280: N/A | BF280: N/A | BG280: N/A | BH280: N/A | BI280: N/A | BJ280: N/A | BK280: N/A | BL280: N/A | BM280: N/A | BN280: N/A | BO280: N/A | BP280: N/A | BQ280: N/A | BR280: N/A | BS280: N/A | BT280: N/A
BB281: Did not eat with others | BC281: N/A | BD281: N/A | BE281: N/A | BF281: N/A | BG281: N/A | BH281: N/A | BI281: N/A | BJ281: N/A | BK281: N/A | BL281: N/A | BM281: N/A | BN281: N/A | BO281: N/A | BP281: N/A | BQ281: N/A | BR281: N/A | BS281: N/A | BT281: N/A
BB282: Did not bathe in regular place | BC282: N/A | BD282: N/A | BE282: N/A | BF282: N/A | BG282: N/A | BH282: N/A | BI282: N/A | BJ282: N/A | BK282: N/A | BL282: N/A | BM282: N/A | BN282: N/A | BO282: N/A | BP282: N/A | BQ282: N/A | BR282: N/A | BS282: N/A | BT282: N/A
BB283: Did not participate in other activities | BC283: N/A | BD283: N/A | BE283: N/A | BF283: N/A | BG283: N/A | BH283: N/A | BI283: N/A | BJ283: N/A | BK283: N/A | BL283: N/A | BM283: N/A | BN283: N/A | BO283: N/A | BP283: N/A | BQ283: N/A | BR283: N/A | BS283: N/A | BT283: N/A
BB284: DK/not sure/missing/no such activity | BC284: N/A | BD284: N/A | BE284: N/A | BF284: N/A | BG284: N/A | BH284: N/A | BI284: N/A | BJ284: N/A | BK284: N/A | BL284: N/A | BM284: N/A | BN284: N/A | BO284: N/A | BP284: N/A | BQ284: N/A | BR284: N/A | BS284: N/A | BT284: N/A
BA339: Raw numbers of respondents: | BB339: Basic water, sanitation and hygiene | BC339: NATIONAL wealth index quintile | BH339: URBAN wealth index quintile | BM339: RURAL wealth index quintile | BR339: SUB-REGIONS:
BA340: WatSan data, raw numbers (weighted) | BC340: Poorest | BD340: Poor | BE340: Middle | BF340: Rich | BG340: Richest | BH340: Poorest | BI340: Poor | BJ340: Middle | BK340: Rich | BL340: Richest | BM340: Poorest | BN340: Poor | BO340: Middle | BP340: Rich | BQ340: Richest | BR340: Central | BS340: North | BT340: South
BA341: Use of Basic Water Sanitation and Hygiene | BB341: Yes | BC341: N/A | BD341: N/A | BE341: N/A | BF341: N/A | BG341: N/A | BH341: N/A | BI341: N/A | BJ341: N/A | BK341: N/A | BL341: N/A | BM341: N/A | BN341: N/A | BO341: N/A | BP341: N/A | BQ341: N/A | BR341: N/A | BS341: N/A | BT341: N/A
BB342: No | BC342: N/A | BD342: N/A | BE342: N/A | BF342: N/A | BG342: N/A | BH342: N/A | BI342: N/A | BJ342: N/A | BK342: N/A | BL342: N/A | BM342: N/A | BN342: N/A | BO342: N/A | BP342: N/A | BQ342: N/A | BR342: N/A | BS342: N/A | BT342: N/A
BA343: Use of Basic Water and Sanitation | BB343: Yes | BC343: N/A | BD343: N/A | BE343: N/A | BF343: N/A | BG343: N/A | BH343: N/A | BI343: N/A | BJ343: N/A | BK343: N/A | BL343: N/A | BM343: N/A | BN343: N/A | BO343: N/A | BP343: N/A | BQ343: N/A | BR343: N/A | BS343: N/A | BT343: N/A
BB344: No | BC344: N/A | BD344: N/A | BE344: N/A | BF344: N/A | BG344: N/A | BH344: N/A | BI344: N/A | BJ344: N/A | BK344: N/A | BL344: N/A | BM344: N/A | BN344: N/A | BO344: N/A | BP344: N/A | BQ344: N/A | BR344: N/A | BS344: N/A | BT344: N/A
BA345: Use of Basic Water and Hygiene | BB345: Yes | BC345: N/A | BD345: N/A | BE345: N/A | BF345: N/A | BG345: N/A | BH345: N/A | BI345: N/A | BJ345: N/A | BK345: N/A | BL345: N/A | BM345: N/A | BN345: N/A | BO345: N/A | BP345: N/A | BQ345: N/A | BR345: N/A | BS345: N/A | BT345: N/A
BB346: No | BC346: N/A | BD346: N/A | BE346: N/A | BF346: N/A | BG346: N/A | BH346: N/A | BI346: N/A | BJ346: N/A | BK346: N/A | BL346: N/A | BM346: N/A | BN346: N/A | BO346: N/A | BP346: N/A | BQ346: N/A | BR346: N/A | BS346: N/A | BT346: N/A
BA347: Use of Basic Sanitation and Hygiene | BB347: Yes | BC347: N/A | BD347: N/A | BE347: N/A | BF347: N/A | BG347: N/A | BH347: N/A | BI347: N/A | BJ347: N/A | BK347: N/A | BL347: N/A | BM347: N/A | BN347: N/A | BO347: N/A | BP347: N/A | BQ347: N/A | BR347: N/A | BS347: N/A | BT347: N/A
BB348: No | BC348: N/A | BD348: N/A | BE348: N/A | BF348: N/A | BG348: N/A | BH348: N/A | BI348: N/A | BJ348: N/A | BK348: N/A | BL348: N/A | BM348: N/A | BN348: N/A | BO348: N/A | BP348: N/A | BQ348: N/A | BR348: N/A | BS348: N/A | BT348: N/A
BA349: Use of Basic Water | BB349: Yes | BC349: N/A | BD349: N/A | BE349: N/A | BF349: N/A | BG349: N/A | BH349: N/A | BI349: N/A | BJ349: N/A | BK349: N/A | BL349: N/A | BM349: N/A | BN349: N/A | BO349: N/A | BP349: N/A | BQ349: N/A | BR349: N/A | BS349: N/A | BT349: N/A
BB350: No | BC350: N/A | BD350: N/A | BE350: N/A | BF350: N/A | BG350: N/A | BH350: N/A | BI350: N/A | BJ350: N/A | BK350: N/A | BL350: N/A | BM350: N/A | BN350: N/A | BO350: N/A | BP350: N/A | BQ350: N/A | BR350: N/A | BS350: N/A | BT350: N/A
BA351: Use of Basic Sanitation | BB351: Yes | BC351: N/A | BD351: N/A | BE351: N/A | BF351: N/A | BG351: N/A | BH351: N/A | BI351: N/A | BJ351: N/A | BK351: N/A | BL351: N/A | BM351: N/A | BN351: N/A | BO351: N/A | BP351: N/A | BQ351: N/A | BR351: N/A | BS351: N/A | BT351: N/A
BB352: No | BC352: N/A | BD352: N/A | BE352: N/A | BF352: N/A | BG352: N/A | BH352: N/A | BI352: N/A | BJ352: N/A | BK352: N/A | BL352: N/A | BM352: N/A | BN352: N/A | BO352: N/A | BP352: N/A | BQ352: N/A | BR352: N/A | BS352: N/A | BT352: N/A
BA353: Access to Basic Hygiene | BB353: Yes | BC353: N/A | BD353: N/A | BE353: N/A | BF353: N/A | BG353: N/A | BH353: N/A | BI353: N/A | BJ353: N/A | BK353: N/A | BL353: N/A | BM353: N/A | BN353: N/A | BO353: N/A | BP353: N/A | BQ353: N/A | BR353: N/A | BS353: N/A | BT353: N/A
BB354: No | BC354: N/A | BD354: N/A | BE354: N/A | BF354: N/A | BG354: N/A | BH354: N/A | BI354: N/A | BJ354: N/A | BK354: N/A | BL354: N/A | BM354: N/A | BN354: N/A | BO354: N/A | BP354: N/A | BQ354: N/A | BR354: N/A | BS354: N/A | BT354: N/A
C399: INITIAL (national) Wealth Index | H399: URBAN Wealth Index | M399: RURAL Wealth Index
C400: Component Matrix | H400: Component Matrix | M400: Component Matrix
E401: Component | J401: Component | O401: Component
B402: Note: The INITIAL (national) Wealth Index is based on the first component of the Principal Component Analysis (PCA) which has been obtained at national level. The final national-level (NATIONAL) Wealth Index is based on the URBAN and RURAL specific wealth indexes. Regression procedures are used to establish the relationships between the two sets of scores (urban and rural) and the initial (national) wealth factors. This allows best use of the available information for each area and a better precision of the FINAL (NATIONAL) Wealth Index. For dependency reasons, all WASH variables (contained in the generic MICS and DHS scripts) have been excluded from the sets of asset variables used in the PCAs. The PCA can extracts as many components as there are asset variables in the input. Only the first of the components is used to represent the Wealth Index. The scores represent the weights of the asset variables on the Wealth Index (correlations between the variables and the component). The communalities are the proportion of each variable's variance that can be explained by the component. Proportion of explained variance is the part of the model's total variance that is explained by the component. For more information on the procedure used: The DHS Wealth Index, DHS Comparative Reports No. 6, Shea Oscar Rutstein, Kiersten Johnson, ORC Macro International Inc., 2004. The DHS Wealth Index: Approaches for Rural and Urban Areas, Shea O. Rutstein, ORC Macro International Inc., 2008. MICS Methodological Paper No. 4, Review of options for reporting water, sanitation and hygiene coverage by wealth quintile, UNICEF, 2016. | E402: 1 | J402: 1 | O402: 1
C403: Has electricity | E403: 0.7960396808 | H403: Has television | J403: 0.761945494 | M403: Concrete, cement floor | O403: 0.7486867607
C404: Concrete, cement floor | E404: 0.7751925435 | H404: Has electricity | J404: 0.7507692525 | M404: Metal/ corrugated iron roof | O404: 0.697546102
C405: Has television | E405: 0.7731168281 | H405: Sofa set | J405: 0.6961630881 | M405: Thatch, palm leaf roof | O405: -0.6818151799
C406: Earth, sand floor | E406: -0.748149174 | H406: Has refrigerator | J406: 0.6825297207 | M406: Earth, sand floor | O406: -0.6436975146
C407: Sofa set | E407: 0.7437224168 | H407: Earth, sand floor | J407: -0.677157912 | M407: Bed with a mattress | O407: 0.6313672368
C408: Wood for cooking | E408: -0.7259879131 | H408: Bed with a mattress | J408: 0.61582783 | M408: Sofa set | O408: 0.6020396597
C409: Bed with a mattress | E409: 0.715825203 | H409: Concrete, cement floor | J409: 0.5680039735 | M409: Has television | O409: 0.5954588991
C410: Thatch, palm leaf roof | E410: -0.6953473874 | H410: Thatch, palm leaf roof | J410: -0.5614335668 | M410: Has electricity | O410: 0.5777789438
C411: Has refrigerator | E411: 0.6559462431 | H411: Has radio | J411: 0.5325225108 | M411: Has mobile telephone | O411: 0.500873955
C412: Metal/ corrugated iron roof | E412: 0.6438209851 | H412: Has a computer | J412: 0.512431496 | M412: Has radio | O412: 0.4899969919
C413: Charcoal for cooking | E413: 0.5836552689 | H413: Has watch | J413: 0.5057544685 | M413: Cement walls | O413: 0.4786344426
C414: Has radio | E414: 0.5610491718 | H414: Wood for cooking | J414: -0.4589712901 | M414: Has bicycle | O414: 0.4357269669
C415: Has mobile telephone | E415: 0.558676641 | H415: Has car/truck | J415: 0.456212499 | M415: Has refrigerator | O415: 0.3903434506
... 292 more rows

Sheet DHS16
A2: =A1026 -> Malawi
A3: =A1034 -> 2016
A4: Use of drinking water sources
A5: by wealth quintile and sub-national region
A6: Notes:
A7: WHO/UNICEF JMP customised wealth index excludes water,
A8: sanitation and hygiene assets.
A9: Survey used for analysis: | B9: =A1025 -> DHS16
A10: =B1028 -> 
A11: =B1027 -> 
A14: Use of drinking water sources | C14: NATIONAL wealth index quintile | H14: URBAN wealth index quintile | M14: RURAL wealth index quintile | R14: SUB-REGIONS: | BA14: Raw numbers of respondents: | BB14: Use of drinking water sources | BC14: NATIONAL wealth index quintile | BH14: URBAN wealth index quintile | BM14: RURAL wealth index quintile | BR14: SUB-REGIONS:
A15: Weighted percentage (used in graphs) | C15: Poorest | D15: Poor | E15: Middle | F15: Rich | G15: Richest | H15: Poorest | I15: Poor | J15: Middle | K15: Rich | L15: Richest | M15: Poorest | N15: Poor | O15: Middle | P15: Rich | Q15: Richest | R15: Central region | S15: Northern region | T15: Southern region | BA15: Water data, raw numbers (weighted) | BC15: Poorest | BD15: Poor | BE15: Middle | BF15: Rich | BG15: Richest | BH15: Poorest | BI15: Poor | BJ15: Middle | BK15: Rich | BL15: Richest | BM15: Poorest | BN15: Poor | BO15: Middle | BP15: Rich | BQ15: Richest | BR15: Central region | BS15: Northern region | BT15: Southern region
A16: Water | B16: Improved | C16: 80.55180493 | D16: 82.92418064 | E16: 85.24007894 | F16: 89.65568984 | G16: 97.03076108 | H16: 93.84659726 | I16: 98.43368753 | J16: 99.30625477 | K16: 99.57638695 | L16: 99.98877432 | M16: 80.14709207 | N16: 82.10997041 | O16: 84.46433628 | P16: 87.1160406 | Q16: 92.06401089 | R16: 86.12893105 | S16: 86.74073726 | T16: 88.03069305 | BA16: Water | BB16: Improved | BC16: N/A | BD16: N/A | BE16: N/A | BF16: N/A | BG16: N/A | BH16: N/A | BI16: N/A | BJ16: N/A | BK16: N/A | BL16: N/A | BM16: N/A | BN16: N/A | BO16: N/A | BP16: N/A | BQ16: N/A | BR16: N/A | BS16: N/A | BT16: N/A
B17: Not Improved | C17: 19.44819507 | D17: 17.07581936 | E17: 14.75992106 | F17: 10.34431016 | G17: 2.969238923 | H17: 6.153402742 | I17: 1.566312472 | J17: 0.69374523 | K17: 0.4236130492 | L17: 0.01122568064 | M17: 19.85290793 | N17: 17.89002959 | O17: 15.53566372 | P17: 12.8839594 | Q17: 7.935989108 | R17: 13.87106895 | S17: 13.25926274 | T17: 11.96930695 | BB17: Not Improved | BC17: N/A | BD17: N/A | BE17: N/A | BF17: N/A | BG17: N/A | BH17: N/A | BI17: N/A | BJ17: N/A | BK17: N/A | BL17: N/A | BM17: N/A | BN17: N/A | BO17: N/A | BP17: N/A | BQ17: N/A | BR17: N/A | BS17: N/A | BT17: N/A
A18: Water ladder | B18: Basic | C18: 54.94099586 | D18: 57.15293667 | E18: 58.51457275 | F18: 61.77575277 | G18: 82.09321517 | H18: 73.96511107 | I18: 81.95338726 | J18: 86.88770285 | K18: 94.02758084 | L18: 96.9398578 | M18: 54.5485482 | N18: 56.22601652 | O18: 58.44073923 | P18: 57.81848907 | Q18: 67.12227215 | R18: 61.4996419 | S18: 66.05995203 | T18: 63.31343909 | BA18: Water ladder | BB18: Basic | BC18: N/A | BD18: N/A | BE18: N/A | BF18: N/A | BG18: N/A | BH18: N/A | BI18: N/A | BJ18: N/A | BK18: N/A | BL18: N/A | BM18: N/A | BN18: N/A | BO18: N/A | BP18: N/A | BQ18: N/A | BR18: N/A | BS18: N/A | BT18: N/A
B19: Limited | C19: 25.61080908 | D19: 25.77124398 | E19: 26.72550618 | F19: 27.87993706 | G19: 14.93754591 | H19: 19.88148619 | I19: 16.48030027 | J19: 12.41855192 | K19: 5.548806111 | L19: 3.048916516 | M19: 25.59854387 | N19: 25.88395388 | O19: 26.02359705 | P19: 29.29755153 | Q19: 24.94173874 | R19: 24.62928916 | S19: 20.68078523 | T19: 24.71725396 | BB19: Limited | BC19: N/A | BD19: N/A | BE19: N/A | BF19: N/A | BG19: N/A | BH19: N/A | BI19: N/A | BJ19: N/A | BK19: N/A | BL19: N/A | BM19: N/A | BN19: N/A | BO19: N/A | BP19: N/A | BQ19: N/A | BR19: N/A | BS19: N/A | BT19: N/A
B20: Unimproved | C20: 14.35304894 | D20: 11.94327916 | E20: 10.442657 | F20: 7.344174378 | G20: 2.124020667 | H20: 5.173763566 | I20: 1.239742988 | J20: 0.4743935963 | K20: 0.130981191 | L20: 0.01122568064 | M20: 14.57399373 | N20: 12.51163516 | O20: 11.09076708 | P20: 9.274882779 | Q20: 5.434085937 | R20: 10.66656365 | S20: 7.874006384 | T20: 8.317597964 | BB20: Unimproved | BC20: N/A | BD20: N/A | BE20: N/A | BF20: N/A | BG20: N/A | BH20: N/A | BI20: N/A | BJ20: N/A | BK20: N/A | BL20: N/A | BM20: N/A | BN20: N/A | BO20: N/A | BP20: N/A | BQ20: N/A | BR20: N/A | BS20: N/A | BT20: N/A
B21: Surface water | C21: 5.095146129 | D21: 5.132540193 | E21: 4.317264063 | F21: 3.000135783 | G21: 0.8452182557 | H21: 0.9796391759 | I21: 0.3265694844 | J21: 0.2193516337 | K21: 0.2926318581 | L21: 0 | M21: 5.278914198 | N21: 5.378394429 | O21: 4.444896636 | P21: 3.609076622 | Q21: 2.501903171 | R21: 3.204505296 | S21: 5.385256353 | T21: 3.651708988 | BB21: Surface water | BC21: N/A | BD21: N/A | BE21: N/A | BF21: N/A | BG21: N/A | BH21: N/A | BI21: N/A | BJ21: N/A | BK21: N/A | BL21: N/A | BM21: N/A | BN21: N/A | BO21: N/A | BP21: N/A | BQ21: N/A | BR21: N/A | BS21: N/A | BT21: N/A
A22: Improved water point at more than 30 minutes | B22: Yes | C22: 31.79420883 | D22: 31.07808094 | E22: 31.35321614 | F22: 31.09667341 | G22: 15.39464984 | H22: 21.1850901 | I22: 16.74254078 | J22: 12.50530689 | K22: 5.572411573 | L22: 3.049258816 | M22: 31.93945433 | N22: 31.52352115 | O22: 30.81015988 | P22: 33.63049024 | Q22: 27.09173596 | R22: 28.59583749 | S22: 23.84206762 | T22: 28.07799541 | BA22: Improved water point at more than 30 minutes | BB22: Yes | BC22: N/A | BD22: N/A | BE22: N/A | BF22: N/A | BG22: N/A | BH22: N/A | BI22: N/A | BJ22: N/A | BK22: N/A | BL22: N/A | BM22: N/A | BN22: N/A | BO22: N/A | BP22: N/A | BQ22: N/A | BR22: N/A | BS22: N/A | BT22: N/A
B23: No | C23: 68.20579117 | D23: 68.92191906 | E23: 68.64678386 | F23: 68.90332659 | G23: 84.60535016 | H23: 78.8149099 | I23: 83.25745922 | J23: 87.49469311 | K23: 94.42758843 | L23: 96.95074118 | M23: 68.06054567 | N23: 68.47647885 | O23: 69.18984012 | P23: 66.36950976 | Q23: 72.90826404 | R23: 71.40416251 | S23: 76.15793238 | T23: 71.92200459 | BB23: No | BC23: N/A | BD23: N/A | BE23: N/A | BF23: N/A | BG23: N/A | BH23: N/A | BI23: N/A | BJ23: N/A | BK23: N/A | BL23: N/A | BM23: N/A | BN23: N/A | BO23: N/A | BP23: N/A | BQ23: N/A | BR23: N/A | BS23: N/A | BT23: N/A
A24: Manually calculated ratios | B24: Improved wells
B25: Improved springs
B26: Other
C27: NATIONAL wealth index quintile | H27: URBAN wealth index quintile | M27: RURAL wealth index quintile | R27: SUB-REGIONS: | BA27: Raw numbers of respondents: | BB27: Use of drinking water sources | BC27: NATIONAL wealth index quintile | BH27: URBAN wealth index quintile | BM27: RURAL wealth index quintile | BR27: SUB-REGIONS:
A28: Percentage based on weighted population | C28: Poorest | D28: Poor | E28: Middle | F28: Rich | G28: Richest | H28: Poorest | I28: Poor | J28: Middle | K28: Rich | L28: Richest | M28: Poorest | N28: Poor | O28: Middle | P28: Rich | Q28: Richest | R28: Central region | S28: Northern region | T28: Southern region | BA28: Water data, raw numbers (weighted) | BC28: Poorest | BD28: Poor | BE28: Middle | BF28: Rich | BG28: Richest | BH28: Poorest | BI28: Poor | BJ28: Middle | BK28: Rich | BL28: Richest | BM28: Poorest | BN28: Poor | BO28: Middle | BP28: Rich | BQ28: Richest | BR28: Central region | BS28: Northern region | BT28: Southern region
A29: Piped water | B29: Yes | C29: 6.171559334 | D29: 6.950117759 | E29: 9.381430263 | F29: 17.93669351 | G29: 61.09020623 | H29: 68.37061853 | I29: 78.59922788 | J29: 89.75937684 | K29: 93.82819676 | L29: 99.30350346 | M29: 5.114455762 | N29: 6.08898403 | O29: 6.522458403 | P29: 8.313589984 | Q29: 19.56442963 | R29: 18.65000769 | S29: 26.22315484 | T29: 20.22584788 | BA29: Piped water | BB29: Yes | BC29: N/A | BD29: N/A | BE29: N/A | BF29: N/A | BG29: N/A | BH29: N/A | BI29: N/A | BJ29: N/A | BK29: N/A | BL29: N/A | BM29: N/A | BN29: N/A | BO29: N/A | BP29: N/A | BQ29: N/A | BR29: N/A | BS29: N/A | BT29: N/A
B30: No | C30: 93.82844067 | D30: 93.04988224 | E30: 90.61856974 | F30: 82.06330649 | G30: 38.90979377 | H30: 31.62938147 | I30: 21.40077212 | J30: 10.24062316 | K30: 6.171803238 | L30: 0.6964965394 | M30: 94.88554424 | N30: 93.91101597 | O30: 93.4775416 | P30: 91.68641002 | Q30: 80.43557037 | R30: 81.34999231 | S30: 73.77684516 | T30: 79.77415212 | BB30: No | BC30: N/A | BD30: N/A | BE30: N/A | BF30: N/A | BG30: N/A | BH30: N/A | BI30: N/A | BJ30: N/A | BK30: N/A | BL30: N/A | BM30: N/A | BN30: N/A | BO30: N/A | BP30: N/A | BQ30: N/A | BR30: N/A | BS30: N/A | BT30: N/A
A31: Piped water on premises | B31: Yes | C31: 0.4945131331 | D31: 0.3775836524 | E31: 0.7961221641 | F31: 3.453740975 | G31: 36.06103118 | H31: 8.810928279 | I31: 18.74739544 | J31: 38.79205611 | K31: 61.07478599 | L31: 87.395177 | M31: 0.3903738295 | N31: 0.4069154358 | O31: 0.481896351 | P31: 1.210658968 | Q31: 9.125526436 | R31: 8.93817782 | S31: 13.0039797 | T31: 6.32976927 | BA31: Piped water on premises | BB31: Yes | BC31: N/A | BD31: N/A | BE31: N/A | BF31: N/A | BG31: N/A | BH31: N/A | BI31: N/A | BJ31: N/A | BK31: N/A | BL31: N/A | BM31: N/A | BN31: N/A | BO31: N/A | BP31: N/A | BQ31: N/A | BR31: N/A | BS31: N/A | BT31: N/A
B32: No | C32: 99.50548687 | D32: 99.62241635 | E32: 99.20387784 | F32: 96.54625903 | G32: 63.93896882 | H32: 91.18907172 | I32: 81.25260456 | J32: 61.20794389 | K32: 38.92521401 | L32: 12.604823 | M32: 99.60962617 | N32: 99.59308456 | O32: 99.51810365 | P32: 98.78934103 | Q32: 90.87447356 | R32: 91.06182218 | S32: 86.9960203 | T32: 93.67023073 | BB32: No | BC32: N/A | BD32: N/A | BE32: N/A | BF32: N/A | BG32: N/A | BH32: N/A | BI32: N/A | BJ32: N/A | BK32: N/A | BL32: N/A | BM32: N/A | BN32: N/A | BO32: N/A | BP32: N/A | BQ32: N/A | BR32: N/A | BS32: N/A | BT32: N/A
A33: Piped water into dwelling | B33: Yes | C33: N/A | D33: N/A | E33: N/A | F33: N/A | G33: N/A | H33: N/A | I33: N/A | J33: N/A | K33: N/A | L33: N/A | M33: N/A | N33: N/A | O33: N/A | P33: N/A | Q33: N/A | R33: N/A | S33: N/A | T33: N/A | BA33: Piped water into dwelling | BB33: Yes | BC33: N/A | BD33: N/A | BE33: N/A | BF33: N/A | BG33: N/A | BH33: N/A | BI33: N/A | BJ33: N/A | BK33: N/A | BL33: N/A | BM33: N/A | BN33: N/A | BO33: N/A | BP33: N/A | BQ33: N/A | BR33: N/A | BS33: N/A | BT33: N/A
B34: No | C34: N/A | D34: N/A | E34: N/A | F34: N/A | G34: N/A | H34: N/A | I34: N/A | J34: N/A | K34: N/A | L34: N/A | M34: N/A | N34: N/A | O34: N/A | P34: N/A | Q34: N/A | R34: N/A | S34: N/A | T34: N/A | BB34: No | BC34: N/A | BD34: N/A | BE34: N/A | BF34: N/A | BG34: N/A | BH34: N/A | BI34: N/A | BJ34: N/A | BK34: N/A | BL34: N/A | BM34: N/A | BN34: N/A | BO34: N/A | BP34: N/A | BQ34: N/A | BR34: N/A | BS34: N/A | BT34: N/A
A35: Water source on premises | B35: Yes | C35: 5.006354395 | D35: 5.021567558 | E35: 6.431571819 | F35: 11.03571948 | G35: 48.20713161 | H35: 22.72529187 | I35: 34.20600271 | J35: 56.11202876 | K35: 76.22691304 | L35: 93.70703874 | M35: 4.764400677 | N35: 4.784880049 | O35: 5.941945895 | P35: 6.734745861 | Q35: 18.1747008 | R35: 15.57036508 | S35: 20.86005536 | T35: 13.22551198 | BA35: Water source on premises | BB35: Yes | BC35: N/A | BD35: N/A | BE35: N/A | BF35: N/A | BG35: N/A | BH35: N/A | BI35: N/A | BJ35: N/A | BK35: N/A | BL35: N/A | BM35: N/A | BN35: N/A | BO35: N/A | BP35: N/A | BQ35: N/A | BR35: N/A | BS35: N/A | BT35: N/A
B36: No | C36: 94.9936456 | D36: 94.97843244 | E36: 93.56842818 | F36: 88.96428052 | G36: 51.79286839 | H36: 77.27470813 | I36: 65.79399729 | J36: 43.88797124 | K36: 23.77308696 | L36: 6.292961256 | M36: 95.23559932 | N36: 95.21511995 | O36: 94.0580541 | P36: 93.26525414 | Q36: 81.8252992 | R36: 84.42963492 | S36: 79.13994464 | T36: 86.77448802 | BB36: No | BC36: N/A | BD36: N/A | BE36: N/A | BF36: N/A | BG36: N/A | BH36: N/A | BI36: N/A | BJ36: N/A | BK36: N/A | BL36: N/A | BM36: N/A | BN36: N/A | BO36: N/A | BP36: N/A | BQ36: N/A | BR36: N/A | BS36: N/A | BT36: N/A
A37: Improved Water source on premises | B37: Yes | C37: 4.842198573 | D37: 5.055271758 | E37: 6.353062155 | F37: 11.55669421 | G37: 49.27172691 | H37: 23.40805779 | I37: 34.37845378 | J37: 56.50402273 | K37: 76.55119389 | L37: 93.71755918 | M37: 4.50109739 | N37: 4.854730507 | O37: 5.820028801 | P37: 6.691886234 | Q37: 19.05423486 | R37: 16.49717465 | S37: 23.39654705 | T37: 14.60914798 | BA37: Improved water source on premises | BB37: Yes | BC37: N/A | BD37: N/A | BE37: N/A | BF37: N/A | BG37: N/A | BH37: N/A | BI37: N/A | BJ37: N/A | BK37: N/A | BL37: N/A | BM37: N/A | BN37: N/A | BO37: N/A | BP37: N/A | BQ37: N/A | BR37: N/A | BS37: N/A | BT37: N/A
B38: No | C38: 95.15780143 | D38: 94.94472824 | E38: 93.64693784 | F38: 88.44330579 | G38: 50.72827309 | H38: 76.59194221 | I38: 65.62154622 | J38: 43.49597727 | K38: 23.44880611 | L38: 6.282440822 | M38: 95.49890261 | N38: 95.14526949 | O38: 94.1799712 | P38: 93.30811377 | Q38: 80.94576514 | R38: 83.50282535 | S38: 76.60345295 | T38: 85.39085202 | BB38: No | BC38: N/A | BD38: N/A | BE38: N/A | BF38: N/A | BG38: N/A | BH38: N/A | BI38: N/A | BJ38: N/A | BK38: N/A | BL38: N/A | BM38: N/A | BN38: N/A | BO38: N/A | BP38: N/A | BQ38: N/A | BR38: N/A | BS38: N/A | BT38: N/A
A39: Piped water on premises available when needed | B39: Yes | C39: N/A | D39: N/A | E39: N/A | F39: N/A | G39: N/A | H39: N/A | I39: N/A | J39: N/A | K39: N/A | L39: N/A | M39: N/A | N39: N/A | O39: N/A | P39: N/A | Q39: N/A | R39: N/A | S39: N/A | T39: N/A | BA39: Piped water on premises available when needed | BB39: Yes | BC39: N/A | BD39: N/A | BE39: N/A | BF39: N/A | BG39: N/A | BH39: N/A | BI39: N/A | BJ39: N/A | BK39: N/A | BL39: N/A | BM39: N/A | BN39: N/A | BO39: N/A | BP39: N/A | BQ39: N/A | BR39: N/A | BS39: N/A | BT39: N/A
B40: No | C40: N/A | D40: N/A | E40: N/A | F40: N/A | G40: N/A | H40: N/A | I40: N/A | J40: N/A | K40: N/A | L40: N/A | M40: N/A | N40: N/A | O40: N/A | P40: N/A | Q40: N/A | R40: N/A | S40: N/A | T40: N/A | BB40: No | BC40: N/A | BD40: N/A | BE40: N/A | BF40: N/A | BG40: N/A | BH40: N/A | BI40: N/A | BJ40: N/A | BK40: N/A | BL40: N/A | BM40: N/A | BN40: N/A | BO40: N/A | BP40: N/A | BQ40: N/A | BR40: N/A | BS40: N/A | BT40: N/A
A41: Water point at more than 30 minutes | B41: Yes | C41: 33.37862915 | D41: 32.84459921 | E41: 32.56208306 | F41: 32.00880821 | G41: 15.90834097 | H41: 20.98295585 | I41: 17.03641754 | J41: 12.73739889 | K41: 5.841437969 | L41: 3.060142197 | M41: 33.7279688 | N41: 33.29514049 | O41: 31.9300427 | P41: 34.69523214 | Q41: 27.87767402 | R41: 29.71842063 | S41: 25.34610719 | T41: 30.06400226 | BA41: Water point at more than 30 minutes | BB41: Yes | BC41: N/A | BD41: N/A | BE41: N/A | BF41: N/A | BG41: N/A | BH41: N/A | BI41: N/A | BJ41: N/A | BK41: N/A | BL41: N/A | BM41: N/A | BN41: N/A | BO41: N/A | BP41: N/A | BQ41: N/A | BR41: N/A | BS41: N/A | BT41: N/A
B42: No | C42: 66.62137085 | D42: 67.15540079 | E42: 67.43791694 | F42: 67.99119179 | G42: 84.09165903 | H42: 79.01704415 | I42: 82.96358246 | J42: 87.26260111 | K42: 94.15856203 | L42: 96.9398578 | M42: 66.2720312 | N42: 66.70485951 | O42: 68.0699573 | P42: 65.30476786 | Q42: 72.12232598 | R42: 70.28157937 | S42: 74.65389281 | T42: 69.93599774 | BB42: No | BC42: N/A | BD42: N/A | BE42: N/A | BF42: N/A | BG42: N/A | BH42: N/A | BI42: N/A | BJ42: N/A | BK42: N/A | BL42: N/A | BM42: N/A | BN42: N/A | BO42: N/A | BP42: N/A | BQ42: N/A | BR42: N/A | BS42: N/A | BT42: N/A
A43: Water source available when needed | B43: Yes | C43: 83.58014822 | D43: 83.36658472 | E43: 80.81954801 | F43: 77.61586049 | G43: 56.38735083 | H43: 47.58951255 | I43: 50.76690447 | J43: 38.06428507 | K43: 44.96075037 | L43: 43.04359517 | M43: 84.73391577 | N43: 83.54029165 | O43: 81.8466172 | P43: 82.7984541 | Q43: 76.717304 | R43: 76.47353845 | S43: 71.37056778 | T43: 76.00931724 | BA43: Water source available when needed | BB43: Yes | BC43: N/A | BD43: N/A | BE43: N/A | BF43: N/A | BG43: N/A | BH43: N/A | BI43: N/A | BJ43: N/A | BK43: N/A | BL43: N/A | BM43: N/A | BN43: N/A | BO43: N/A | BP43: N/A | BQ43: N/A | BR43: N/A | BS43: N/A | BT43: N/A
B44: No | C44: 16.41985178 | D44: 16.63341528 | E44: 19.18045199 | F44: 22.38413951 | G44: 43.61264917 | H44: 52.41048745 | I44: 49.23309553 | J44: 61.93571493 | K44: 55.03924963 | L44: 56.95640483 | M44: 15.26608423 | N44: 16.45970835 | O44: 18.1533828 | P44: 17.2015459 | Q44: 23.282696 | R44: 23.52646155 | S44: 28.62943222 | T44: 23.99068276 | BB44: No | BC44: N/A | BD44: N/A | BE44: N/A | BF44: N/A | BG44: N/A | BH44: N/A | BI44: N/A | BJ44: N/A | BK44: N/A | BL44: N/A | BM44: N/A | BN44: N/A | BO44: N/A | BP44: N/A | BQ44: N/A | BR44: N/A | BS44: N/A | BT44: N/A
A45: Improved water source available when needed | B45: Yes | C45: 83.58014822 | D45: 83.36658472 | E45: 80.81954801 | F45: 77.61586049 | G45: 56.38735083 | H45: 47.58951255 | I45: 50.76690447 | J45: 38.06428507 | K45: 44.96075037 | L45: 43.04359517 | M45: 84.73391577 | N45: 83.54029165 | O45: 81.8466172 | P45: 82.7984541 | Q45: 76.717304 | R45: 76.47353845 | S45: 71.37056778 | T45: 76.00931724 | BA45: Improved water source available when needed | BB45: Yes | BC45: N/A | BD45: N/A | BE45: N/A | BF45: N/A | BG45: N/A | BH45: N/A | BI45: N/A | BJ45: N/A | BK45: N/A | BL45: N/A | BM45: N/A | BN45: N/A | BO45: N/A | BP45: N/A | BQ45: N/A | BR45: N/A | BS45: N/A | BT45: N/A
B46: No | C46: 16.41985178 | D46: 16.63341528 | E46: 19.18045199 | F46: 22.38413951 | G46: 43.61264917 | H46: 52.41048745 | I46: 49.23309553 | J46: 61.93571493 | K46: 55.03924963 | L46: 56.95640483 | M46: 15.26608423 | N46: 16.45970835 | O46: 18.1533828 | P46: 17.2015459 | Q46: 23.282696 | R46: 23.52646155 | S46: 28.62943222 | T46: 23.99068276 | BB46: No | BC46: N/A | BD46: N/A | BE46: N/A | BF46: N/A | BG46: N/A | BH46: N/A | BI46: N/A | BJ46: N/A | BK46: N/A | BL46: N/A | BM46: N/A | BN46: N/A | BO46: N/A | BP46: N/A | BQ46: N/A | BR46: N/A | BS46: N/A | BT46: N/A
A47: Microbiological quality at point of collection | B47: Not contaminated (No E. coli in 100 mL) | C47: N/A | D47: N/A | E47: N/A | F47: N/A | G47: N/A | H47: N/A | I47: N/A | J47: N/A | K47: N/A | L47: N/A | M47: N/A | N47: N/A | O47: N/A | P47: N/A | Q47: N/A | R47: N/A | S47: N/A | T47: N/A | BA47: Microbiological quality at point of collection | BB47: Not contaminated (No E. coli in 100 mL) | BC47: N/A | BD47: N/A | BE47: N/A | BF47: N/A | BG47: N/A | BH47: N/A | BI47: N/A | BJ47: N/A | BK47: N/A | BL47: N/A | BM47: N/A | BN47: N/A | BO47: N/A | BP47: N/A | BQ47: N/A | BR47: N/A | BS47: N/A | BT47: N/A
B48: Contaminated (E. coli detected in 100 mL) | C48: N/A | D48: N/A | E48: N/A | F48: N/A | G48: N/A | H48: N/A | I48: N/A | J48: N/A | K48: N/A | L48: N/A | M48: N/A | N48: N/A | O48: N/A | P48: N/A | Q48: N/A | R48: N/A | S48: N/A | T48: N/A | BB48: Contaminated (E. coli detected in 100 mL) | BC48: N/A | BD48: N/A | BE48: N/A | BF48: N/A | BG48: N/A | BH48: N/A | BI48: N/A | BJ48: N/A | BK48: N/A | BL48: N/A | BM48: N/A | BN48: N/A | BO48: N/A | BP48: N/A | BQ48: N/A | BR48: N/A | BS48: N/A | BT48: N/A
B49: Highly contaminated (>100 CFU/100 mL) | C49: N/A | D49: N/A | E49: N/A | F49: N/A | G49: N/A | H49: N/A | I49: N/A | J49: N/A | K49: N/A | L49: N/A | M49: N/A | N49: N/A | O49: N/A | P49: N/A | Q49: N/A | R49: N/A | S49: N/A | T49: N/A | BB49: Highly contaminated (>100 CFU/100 mL) | BC49: N/A | BD49: N/A | BE49: N/A | BF49: N/A | BG49: N/A | BH49: N/A | BI49: N/A | BJ49: N/A | BK49: N/A | BL49: N/A | BM49: N/A | BN49: N/A | BO49: N/A | BP49: N/A | BQ49: N/A | BR49: N/A | BS49: N/A | BT49: N/A
A50: Microbiological quality of improved water sources at point of collection | B50: Not contaminated (No E. coli in 100 mL) | C50: N/A | D50: N/A | E50: N/A | F50: N/A | G50: N/A | H50: N/A | I50: N/A | J50: N/A | K50: N/A | L50: N/A | M50: N/A | N50: N/A | O50: N/A | P50: N/A | Q50: N/A | R50: N/A | S50: N/A | T50: N/A | BA50: Microbiological quality of improved water sources at point of collection | BB50: Not contaminated (No E. coli in 100 mL) | BC50: N/A | BD50: N/A | BE50: N/A | BF50: N/A | BG50: N/A | BH50: N/A | BI50: N/A | BJ50: N/A | BK50: N/A | BL50: N/A | BM50: N/A | BN50: N/A | BO50: N/A | BP50: N/A | BQ50: N/A | BR50: N/A | BS50: N/A | BT50: N/A
B51: Contaminated (E. coli detected in 100 mL) | C51: N/A | D51: N/A | E51: N/A | F51: N/A | G51: N/A | H51: N/A | I51: N/A | J51: N/A | K51: N/A | L51: N/A | M51: N/A | N51: N/A | O51: N/A | P51: N/A | Q51: N/A | R51: N/A | S51: N/A | T51: N/A | BB51: Contaminated (E. coli detected in 100 mL) | BC51: N/A | BD51: N/A | BE51: N/A | BF51: N/A | BG51: N/A | BH51: N/A | BI51: N/A | BJ51: N/A | BK51: N/A | BL51: N/A | BM51: N/A | BN51: N/A | BO51: N/A | BP51: N/A | BQ51: N/A | BR51: N/A | BS51: N/A | BT51: N/A
B52: Highly contaminated (>100 CFU/100 mL) | C52: N/A | D52: N/A | E52: N/A | F52: N/A | G52: N/A | H52: N/A | I52: N/A | J52: N/A | K52: N/A | L52: N/A | M52: N/A | N52: N/A | O52: N/A | P52: N/A | Q52: N/A | R52: N/A | S52: N/A | T52: N/A | BB52: Highly contaminated (>100 CFU/100 mL) | BC52: N/A | BD52: N/A | BE52: N/A | BF52: N/A | BG52: N/A | BH52: N/A | BI52: N/A | BJ52: N/A | BK52: N/A | BL52: N/A | BM52: N/A | BN52: N/A | BO52: N/A | BP52: N/A | BQ52: N/A | BR52: N/A | BS52: N/A | BT52: N/A
A53: Microbiological quality of piped on premises at point of collection | B53: Not contaminated (No E. coli in 100 mL) | C53: N/A | D53: N/A | E53: N/A | F53: N/A | G53: N/A | H53: N/A | I53: N/A | J53: N/A | K53: N/A | L53: N/A | M53: N/A | N53: N/A | O53: N/A | P53: N/A | Q53: N/A | R53: N/A | S53: N/A | T53: N/A | BA53: Microbiological quality of piped on premises at point of collection | BB53: Not contaminated (No E. coli in 100 mL) | BC53: N/A | BD53: N/A | BE53: N/A | BF53: N/A | BG53: N/A | BH53: N/A | BI53: N/A | BJ53: N/A | BK53: N/A | BL53: N/A | BM53: N/A | BN53: N/A | BO53: N/A | BP53: N/A | BQ53: N/A | BR53: N/A | BS53: N/A | BT53: N/A
B54: Contaminated (E. coli detected in 100 mL) | C54: N/A | D54: N/A | E54: N/A | F54: N/A | G54: N/A | H54: N/A | I54: N/A | J54: N/A | K54: N/A | L54: N/A | M54: N/A | N54: N/A | O54: N/A | P54: N/A | Q54: N/A | R54: N/A | S54: N/A | T54: N/A | BB54: Contaminated (E. coli detected in 100 mL) | BC54: N/A | BD54: N/A | BE54: N/A | BF54: N/A | BG54: N/A | BH54: N/A | BI54: N/A | BJ54: N/A | BK54: N/A | BL54: N/A | BM54: N/A | BN54: N/A | BO54: N/A | BP54: N/A | BQ54: N/A | BR54: N/A | BS54: N/A | BT54: N/A
B55: Highly contaminated (>100 CFU/100 mL) | C55: N/A | D55: N/A | E55: N/A | F55: N/A | G55: N/A | H55: N/A | I55: N/A | J55: N/A | K55: N/A | L55: N/A | M55: N/A | N55: N/A | O55: N/A | P55: N/A | Q55: N/A | R55: N/A | S55: N/A | T55: N/A | BB55: Highly contaminated (>100 CFU/100 mL) | BC55: N/A | BD55: N/A | BE55: N/A | BF55: N/A | BG55: N/A | BH55: N/A | BI55: N/A | BJ55: N/A | BK55: N/A | BL55: N/A | BM55: N/A | BN55: N/A | BO55: N/A | BP55: N/A | BQ55: N/A | BR55: N/A | BS55: N/A | BT55: N/A
C56: NATIONAL wealth index quintile | H56: URBAN wealth index quintile | M56: RURAL wealth index quintile | R56: SUB-REGIONS: | BA56: Raw numbers of respondents: | BB56: Use of drinking water sources | BC56: NATIONAL wealth index quintile | BH56: URBAN wealth index quintile | BM56: RURAL wealth index quintile | BR56: SUB-REGIONS:
A57: Percentage based on weighted population | C57: Poorest | D57: Poor | E57: Middle | F57: Rich | G57: Richest | H57: Poorest | I57: Poor | J57: Middle | K57: Rich | L57: Richest | M57: Poorest | N57: Poor | O57: Middle | P57: Rich | Q57: Richest | R57: Central region | S57: Northern region | T57: Southern region | BA57: Water data, raw numbers (weighted) | BC57: Poorest | BD57: Poor | BE57: Middle | BF57: Rich | BG57: Richest | BH57: Poorest | BI57: Poor | BJ57: Middle | BK57: Rich | BL57: Richest | BM57: Poorest | BN57: Poor | BO57: Middle | BP57: Rich | BQ57: Richest | BR57: Central region | BS57: Northern region | BT57: Southern region
A58: Source of drinking water | B58: Piped into dwelling | C58: 0.004793254698 | D58: 0.006838790839 | E58: 0.135409837 | F58: 0.2426765537 | G58: 12.07175985 | H58: 0.2901105663 | I58: 2.360095046 | J58: 3.33836447 | K58: 12.58781518 | L58: 55.42278421 | M58: 0 | N58: 0.005658572764 | O58: 0.1299526872 | P58: 0.1574452486 | Q58: 1.707074204 | R58: 3.441367766 | S58: 3.348708111 | T58: 1.404524958
B59: Piped to yard/plot | C59: 0.4897198784 | D59: 0.3707448616 | E59: 0.6607123271 | F59: 3.211064421 | G59: 23.97333482 | H59: 8.520817712 | I59: 16.3873004 | J59: 35.45369164 | K59: 48.48697081 | L59: 31.86259777 | M59: 0.3903738295 | N59: 0.4012568631 | O59: 0.3519436638 | P59: 1.053213719 | Q59: 7.418452231 | R59: 5.492767254 | S59: 9.650558163 | T59: 4.92323873
B60: Piped to neighbor | C60: 0.5163338782 | D60: 0.728112103 | E60: 1.181898472 | F60: 2.638654219 | G60: 7.026897634 | H60: 11.17269314 | I60: 12.52419931 | J60: 14.79515326 | K60: 12.07657281 | L60: 4.759633678 | M60: 0.4675221809 | N60: 0.4724107076 | O60: 0.6883437268 | P60: 1.048509418 | Q60: 2.045987323 | R60: 1.25143434 | S60: 4.359490383 | T60: 2.956992266
B61: Public tap/standpipe | C61: 5.160712323 | D61: 5.844422003 | E61: 7.403409627 | F61: 11.84429831 | G61: 18.00227741 | H61: 48.38699711 | I61: 47.32763312 | J61: 36.17216747 | K61: 20.67683797 | L61: 7.148692782 | M61: 4.256559752 | N61: 5.209657887 | O61: 5.352218325 | P61: 6.054421598 | Q61: 8.392915868 | R61: 8.46039553 | S61: 8.859684758 | T61: 10.93908634
B62: Tube well or borehole | C62: 69.99637991 | D62: 71.8647479 | E62: 71.47484074 | F62: 66.65536796 | G62: 33.09161388 | H62: 20.5936193 | I62: 15.49745036 | J62: 7.887973162 | K62: 3.210259376 | L62: 0.4367310929 | M62: 70.70445463 | N62: 71.49071658 | O62: 73.75169378 | P62: 74.69788841 | Q62: 67.64913774 | R62: 62.37101939 | S62: 58.35329813 | T62: 63.97518656
B63: Protected well | C63: 3.904680928 | D63: 3.921361862 | E63: 4.023950782 | F63: 4.86791835 | G63: 2.577205872 | H63: 4.822882658 | I63: 4.025841578 | J63: 1.285715137 | K63: 2.537930812 | L63: 0 | M63: 3.948462022 | N63: 4.171178233 | O63: 3.946241446 | P63: 3.84287633 | Q63: 4.514473992 | R63: 4.676745124 | S63: 1.936136142 | T63: 3.631476123
B64: Unprotected well | C64: 13.1056707 | D64: 10.37686842 | E64: 9.012691096 | F64: 6.451977272 | G64: 1.808213981 | H64: 4.730224308 | I64: 1.213601706 | J64: 0.4743935963 | K64: 0.130981191 | L64: 0.01122568064 | M64: 13.20119531 | N64: 11.02818779 | O64: 9.62341189 | P64: 7.923426922 | Q64: 4.809324143 | R64: 9.647734464 | S64: 6.399259498 | T64: 7.265150917
B65: Protected spring | C65: 0.3079251001 | D65: 0.131077042 | E65: 0.3409603174 | F65: 0.1864301709 | G65: 0.2312859963 | H65: 0.05947677056 | I65: 0.3061109767 | J65: 0.3731896337 | K65: 0 | L65: 0.01683852096 | M65: 0.2997046021 | N65: 0.1719793552 | O65: 0.2218072011 | P65: 0.2616858703 | Q65: 0.317987192 | R65: 0.3155877046 | S65: 0.2230130776 | T65: 0.1751954988
B66: Unprotected spring | C66: 1.054251506 | D66: 1.351964553 | E66: 1.306805151 | F66: 0.7863349282 | G66: 0.3120086229 | H66: 0.2156296056 | I66: 0 | J66: 0 | K66: 0 | L66: 0 | M66: 1.172060476 | N66: 1.263415762 | O66: 1.353225586 | P66: 1.199393169 | Q66: 0.6056043283 | R66: 0.8836052793 | S66: 1.391394205 | T66: 0.9189203944
B67: River/dam/lake/ponds/stream/canal/irrigation channel | C67: 5.095146129 | D67: 5.132540193 | E67: 4.317264063 | F67: 3.000135783 | G67: 0.8452182557 | H67: 0.9796391759 | I67: 0.3265694844 | J67: 0.2193516337 | K67: 0.2926318581 | L67: 0 | M67: 5.278914198 | N67: 5.378394429 | O67: 4.444896636 | P67: 3.609076622 | Q67: 2.501903171 | R67: 3.204505296 | S67: 5.385256353 | T67: 3.651708988
B68: Rainwater | C68: 0.06826521907 | D68: 0.04978435988 | E68: 0 | F68: 0.006620124156 | G68: 0 | H68: 0 | I68: 0 | J68: 0 | K68: 0 | L68: 0 | M68: 0.08001505069 | N68: 0.05816419073 | O68: 0 | P68: 0 | Q68: 0.007749315601 | R68: 0.05666047895 | S68: 0 | T68: 0.002875797249
B69: Tanker truck | C69: 0 | D69: 0.001227532826 | E69: 0.01889683268 | F69: 0.0007345386112 | G69: 0 | H69: 0 | I69: 0.005056736147 | J69: 0 | K69: 0 | L69: 0 | M69: 0 | N69: 0.001434154292 | O69: 0.02213544661 | P69: 0 | Q69: 0 | R69: 0.009418815821 | S69: 0.001997589893 | T69: 0
B70: Cart with small tank | C70: 0.1029944457 | D70: 0 | E70: 0 | F70: 0 | G70: 0 | H70: 0 | I70: 0 | J70: 0 | K70: 0 | L70: 0 | M70: 0 | N70: 0.120662607 | O70: 0 | P70: 0 | Q70: 0 | R70: 0.04949184472 | S70: 0 | T70: 0
B71: Bottled water | C71: 0 | D71: 0.005864184248 | E71: 0 | F71: 0.001925187056 | G71: 0.0563856089 | H71: 0 | I71: 0 | J71: 0 | K71: 0 | L71: 0.3414962586 | M71: 0 | N71: 0.006851258747 | O71: 0 | P71: 0 | Q71: 0.01023302084 | R71: 0.004042799941 | S71: 0.007850908372 | T71: 0.02211677469
B72: Other | C72: 0.1931267333 | D72: 0.2144461931 | E72: 0.1231607541 | F72: 0.1058621777 | G72: 0.003798063203 | H72: 0.2279096524 | I72: 0.02614128153 | J72: 0 | K72: 0 | L72: 0 | M72: 0.2007379431 | N72: 0.2200316072 | O72: 0.1141296089 | P72: 0.1520626876 | Q72: 0.01915746516 | R72: 0.1352239077 | S72: 0.08335268102 | T72: 0.1335266522
A108: =A1026 -> Malawi
A109: =A1034 -> 2016
A110: Use of sanitation facilities
A111: by wealth quintile and sub-national region
A112: Notes:
A113: WHO/UNICEF JMP customised wealth index excludes water,
A114: sanitation and hygiene assets.
A115: Survey used for analysis: | B115: =A1025 -> DHS16
A116: =B1030 -> 
A117: =B1029 -> 
A120: Use of sanitation facilities | C120: NATIONAL wealth index quintile | H120: URBAN wealth index quintile | M120: RURAL wealth index quintile | R120: SUB-REGIONS: | BA120: Raw numbers of respondents: | BB120: Use of sanitation facilities | BC120: NATIONAL wealth index quintile | BH120: URBAN wealth index quintile | BM120: RURAL wealth index quintile | BR120: SUB-REGIONS:
A121: Weighted percentage (used in graphs) | C121: Poorest | D121: Poor | E121: Middle | F121: Rich | G121: Richest | H121: Poorest | I121: Poor | J121: Middle | K121: Rich | L121: Richest | M121: Poorest | N121: Poor | O121: Middle | P121: Rich | Q121: Richest | R121: Central region | S121: Northern region | T121: Southern region | BA121: Sanitation data, raw numbers (weighted) | BC121: Poorest | BD121: Poor | BE121: Middle | BF121: Rich | BG121: Richest | BH121: Poorest | BI121: Poor | BJ121: Middle | BK121: Rich | BL121: Richest | BM121: Poorest | BN121: Poor | BO121: Middle | BP121: Rich | BQ121: Richest | BR121: Central region | BS121: Northern region | BT121: Southern region
A122: Sanitation | B122: Improved | C122: =C153+C154+C155+C157+C158+C162+((C159+C160)*MICS14!C130/100-'DHS16'!C159)+'DHS16'!C159 -> 26.96904556 | D122: =D153+D154+D155+D157+D158+D162+((D159+D160)*MICS14!D130/100-'DHS16'!D159)+'DHS16'!D159 -> 31.0904945 | E122: =E153+E154+E155+E157+E158+E162+((E159+E160)*MICS14!E130/100-'DHS16'!E159)+'DHS16'!E159 -> 31.11252687 | F122: =F153+F154+F155+F157+F158+F162+((F159+F160)*MICS14!F130/100-'DHS16'!F159)+'DHS16'!F159 -> 34.96347181 | G122: =G153+G154+G155+G157+G158+G162+((G159+G160)*MICS14!G130/100-'DHS16'!G159)+'DHS16'!G159 -> 60.18606903 | H122: =H153+H154+H155+H157+H158+H162+((H159+H160)*MICS14!H130/100-'DHS16'!H159)+'DHS16'!H159 -> 41.46192449 | I122: =I153+I154+I155+I157+I158+I162+((I159+I160)*MICS14!I130/100-'DHS16'!I159)+'DHS16'!I159 -> 48.74972172 | J122: =J153+J154+J155+J157+J158+J162+((J159+J160)*MICS14!J130/100-'DHS16'!J159)+'DHS16'!J159 -> 56.488251 | K122: =K153+K154+K155+K157+K158+K162+((K159+K160)*MICS14!K130/100-'DHS16'!K159)+'DHS16'!K159 -> 68.04874146 | L122: =L153+L154+L155+L157+L158+L162+((L159+L160)*MICS14!L130/100-'DHS16'!L159)+'DHS16'!L159 -> 88.46101154 | M122: =M153+M154+M155+M157+M158+M162+((M159+M160)*MICS14!M130/100-'DHS16'!M159)+'DHS16'!M159 -> 25.84896044 | N122: =N153+N154+N155+N157+N158+N162+((N159+N160)*MICS14!N130/100-'DHS16'!N159)+'DHS16'!N159 -> 30.7940113 | O122: =O153+O154+O155+O157+O158+O162+((O159+O160)*MICS14!O130/100-'DHS16'!O159)+'DHS16'!O159 -> 30.80476644 | P122: =P153+P154+P155+P157+P158+P162+((P159+P160)*MICS14!P130/100-'DHS16'!P159)+'DHS16'!P159 -> 31.80869758 | Q122: =Q153+Q154+Q155+Q157+Q158+Q162+((Q159+Q160)*MICS14!Q130/100-'DHS16'!Q159)+'DHS16'!Q159 -> 45.69960955 | R122: =R153+R154+R155+R157+R158+R162+((R159+R160)*MICS14!R130/100-'DHS16'!R159)+'DHS16'!R159 -> 44.95902171 | S122: =S153+S154+S155+S157+S158+S162+((S159+S160)*MICS14!S130/100-'DHS16'!S159)+'DHS16'!S159 -> 48.06931596 | T122: =T153+T154+T155+T157+T158+T162+((T159+T160)*MICS14!T130/100-'DHS16'!T159)+'DHS16'!T159 -> 27.46723668 | BA122: Sanitation | BB122: Improved | BC122: 17818.81211 | BD122: 18967.88717 | BE122: 19847.33622 | BF122: 20958.98014 | BG122: 22836.39607 | BH122: 3122.958954 | BI122: 3322.333325 | BJ122: 3385.185255 | BK122: 3464.566614 | BL122: 3468.743384 | BM122: 15082.12962 | BN122: 16001.07905 | BO122: 16679.68292 | BP122: 17489.99742 | BQ122: 18412.73517 | BR122: 41774.58023 | BS122: 12564.71916 | BT122: 46090.11232
B123: Not Improved | C123: =100-C122 -> 73.03095444 | D123: =100-D122 -> 68.9095055 | E123: 68.88747313 | F123: 65.03652819 | G123: 39.81393097 | H123: 58.53807551 | I123: 51.25027828 | J123: 43.511749 | K123: 31.95125854 | L123: 11.53898846 | M123: 74.15103956 | N123: 69.2059887 | O123: 69.19523356 | P123: 68.19130242 | Q123: 54.30039045 | R123: 55.04097829 | S123: 51.93068404 | T123: 72.53276332 | BB123: Not Improved | BC123: 6218.71714 | BD123: 5003.52881 | BE123: 4152.664608 | BF123: 3047.518262 | BG123: 1165.073927 | BH123: 369.698735 | BI123: 164.836954 | BJ123: 116.98196 | BK123: 35.649687 | BL123: 15.018649 | BM123: 5425.602187 | BN123: 4516.727268 | BO123: 3808.903013 | BP123: 3038.427731 | BQ123: 2095.656563 | BR123: 8248.449094 | BS123: 2165.882002 | BT123: 9173.171651
A124: Sanitation ladder | B124: Basic | C124: =C122*C129/100 -> 16.3396191 | D124: =D122*D129/100 -> 21.01406271 | E124: 21.01203597 | F124: 23.60993529 | G124: 39.523882 | H124: 15.38719388 | I124: 16.74729596 | J124: 24.64580679 | K124: 38.31607887 | L124: 73.37020421 | M124: 15.8058916 | N124: 20.56952699 | O124: 20.91683995 | P124: 22.87293441 | Q124: 34.1313977 | R124: 30.45870597 | S124: 31.09086537 | T124: 17.724484 | BA124: Sanitation ladder | BB124: Basic | BC124: 10795.8067 | BD124: 12820.3934 | BE124: 13404.02033 | BF124: 14153.06145 | BG124: 14996.54385 | BH124: 1158.980812 | BI124: 1141.341889 | BJ124: 1476.955301 | BK124: 1950.787109 | BL124: 2877.000907 | BM124: 9222.285996 | BN124: 10688.26741 | BO124: 11325.72321 | BP124: 12576.67224 | BQ124: 13751.81086 | BR124: 28301.31992 | BS124: 8126.764112 | BT124: 29741.7417
B125: Limited | C125: =C122*C128/100 -> 10.62942646 | D125: =D122*D128/100 -> 10.07643178 | E125: 10.1004909 | F125: 11.35353652 | G125: 20.66218703 | H125: 26.07473061 | I125: 32.00242576 | J125: 31.8424442 | K125: 29.73266259 | L125: 15.09080733 | M125: 10.04306884 | N125: 10.22448431 | O125: 9.88792649 | P125: 8.935763165 | Q125: 11.56821185 | R125: 14.50031573 | S125: 16.97845059 | T125: 9.742752678 | BB125: Limited | BC125: 7023.005412 | BD125: 6147.493768 | BE125: 6443.315895 | BF125: 6805.918695 | BG125: 7839.852215 | BH125: 1963.978142 | BI125: 2180.991436 | BJ125: 1908.229954 | BK125: 1513.779505 | BL125: 591.742477 | BM125: 5859.843623 | BN125: 5312.811642 | BO125: 5353.959717 | BP125: 4913.325178 | BQ125: 4660.924311 | BR125: 13473.26032 | BS125: 4437.955049 | BT125: 16348.37062
B126: Unimproved | C126: =100-(C124+C125+C127) -> 60.01876419 | D126: =100-(D124+D125+D127) -> 62.25921783 | E126: 64.66983333 | F126: 62.77121702 | G126: 39.31438407 | H126: 56.40796994 | I126: 51.0158422 | J126: 43.45238488 | K126: 31.88544627 | L126: 11.53898846 | M126: 60.5503682 | N126: 61.73995406 | O126: 63.9326441 | P126: 65.27472858 | Q126: 52.77436351 | R126: 50.7042387 | S126: 46.59740649 | T126: 66.30269766 | BB126: Unimproved | BC126: 3090.908103 | BD126: 3409.360687 | BE126: 3140.43102 | BF126: 2503.69637 | BG126: 1045.175327 | BH126: 295.301439 | BI126: 156.661769 | BJ126: 114.902929 | BK126: 33.346115 | BL126: 15.018649 | BM126: 2636.412981 | BN126: 2984.860742 | BO126: 2730.67285 | BP126: 2439.701052 | BQ126: 1782.692981 | BR126: 6079.080573 | BS126: 1380.258157 | BT126: 5730.232777
B127: Open defecation | C127: =C161 -> 13.01219025 | D127: =D161 -> 6.650287677 | E127: 4.217639804 | F127: 2.265311179 | G127: 0.4995469029 | H127: 2.130105571 | I127: 0.2344360713 | J127: 0.05936412719 | K127: 0.06581227564 | L127: 0 | M127: 13.60067136 | N127: 7.466034635 | O127: 5.262589455 | P127: 2.916573847 | Q127: 1.526026936 | R127: 4.336739598 | S127: 5.333277551 | T127: 6.230065654 | BB127: Open defecation | BC127: 3127.809037 | BD127: 1594.168123 | BE127: 1012.233588 | BF127: 543.821892 | BG127: 119.8986 | BH127: 74.397296 | BI127: 8.175185 | BJ127: 2.079031 | BK127: 2.303572 | BL127: 0 | BM127: 2789.189206 | BN127: 1531.866526 | BO127: 1078.230163 | BP127: 598.726679 | BQ127: 312.963582 | BR127: 2169.368521 | BS127: 785.623845 | BT127: 3442.938874
A128: Shared among Improved Sanitation | B128: Yes | C128: 39.4134321 | D128: 32.4100081 | E128: 32.46438627 | F128: 32.47256617 | G128: 34.33051429 | H128: 62.88837513 | I128: 65.64637629 | J128: 56.3700303 | K128: 43.69318514 | L128: 17.05927512 | M128: 38.8528926 | N128: 33.20283354 | O128: 32.09869002 | P128: 28.09220071 | Q128: 25.31359012 | R128: 32.25229372 | S128: 35.32076596 | T128: 35.47045082 | BA128: Shared among improved sanitation facilities | BB128: Yes | BC128: N/A | BD128: N/A | BE128: N/A | BF128: N/A | BG128: N/A | BH128: N/A | BI128: N/A | BJ128: N/A | BK128: N/A | BL128: N/A | BM128: N/A | BN128: N/A | BO128: N/A | BP128: N/A | BQ128: N/A | BR128: N/A | BS128: N/A | BT128: N/A
B129: No | C129: 60.5865679 | D129: 67.5899919 | E129: 67.53561373 | F129: 67.52743383 | G129: 65.66948571 | H129: 37.11162487 | I129: 34.35362371 | J129: 43.6299697 | K129: 56.30681486 | L129: 82.94072488 | M129: 61.1471074 | N129: 66.79716646 | O129: 67.90130998 | P129: 71.90779929 | Q129: 74.68640988 | R129: 67.74770628 | S129: 64.67923404 | T129: 64.52954918 | BB129: No | BC129: N/A | BD129: N/A | BE129: N/A | BF129: N/A | BG129: N/A | BH129: N/A | BI129: N/A | BJ129: N/A | BK129: N/A | BL129: N/A | BM129: N/A | BN129: N/A | BO129: N/A | BP129: N/A | BQ129: N/A | BR129: N/A | BS129: N/A | BT129: N/A
A130: Manually calculated ratios | B130: Improved latrines
B131: Other
B132: Other
C133: NATIONAL wealth index quintile | H133: URBAN wealth index quintile | M133: RURAL wealth index quintile | R133: SUB-REGIONS: | BA133: Raw numbers of respondents: | BB133: Use of sanitation facilities | BC133: NATIONAL wealth index quintile | BH133: URBAN wealth index quintile | BM133: RURAL wealth index quintile | BR133: SUB-REGIONS:
A134: Percentage based on weighted population | C134: Poorest | D134: Poor | E134: Middle | F134: Rich | G134: Richest | H134: Poorest | I134: Poor | J134: Middle | K134: Rich | L134: Richest | M134: Poorest | N134: Poor | O134: Middle | P134: Rich | Q134: Richest | R134: Central region | S134: Northern region | T134: Southern region | BA134: Sanitation data, raw numbers (weighted) | BC134: Poorest | BD134: Poor | BE134: Middle | BF134: Rich | BG134: Richest | BH134: Poorest | BI134: Poor | BJ134: Middle | BK134: Rich | BL134: Richest | BM134: Poorest | BN134: Poor | BO134: Middle | BP134: Rich | BQ134: Richest | BR134: Central region | BS134: Northern region | BT134: Southern region
A135: Sanitation type | B135: Sewer connection | C135: 0.008609399821 | D135: 0 | E135: 0 | F135: 0.05848781344 | G135: 2.577816639 | H135: 0 | I135: 0.08995276253 | J135: 0.7023240608 | K135: 2.291133607 | L135: 11.02592934 | M135: 0.01009125251 | N135: 0 | O135: 0 | P135: 0 | Q135: 0.68610754 | R135: 0.7649723061 | S135: 0.1027724587 | T135: 0.4288976532 | BA135: Sanitation type | BB135: Sewer connection | BC135: N/A | BD135: N/A | BE135: N/A | BF135: N/A | BG135: N/A | BH135: N/A | BI135: N/A | BJ135: N/A | BK135: N/A | BL135: N/A | BM135: N/A | BN135: N/A | BO135: N/A | BP135: N/A | BQ135: N/A | BR135: N/A | BS135: N/A | BT135: N/A
B136: Septic tank connection | C136: 0 | D136: 0.0316903474 | E136: 0.01991197014 | F136: 0.1753510166 | G136: 10.03410049 | H136: 0.02397586808 | I136: 0.7501628515 | J136: 1.477793744 | K136: 8.616064696 | L136: 47.55064001 | M136: 0 | N136: 0 | O136: 0.043567443 | P136: 0.02016216037 | Q136: 2.013096548 | R136: 2.939277053 | S136: 2.394776344 | T136: 1.157590241 | BB136: Septic tank connection | BC136: N/A | BD136: N/A | BE136: N/A | BF136: N/A | BG136: N/A | BH136: N/A | BI136: N/A | BJ136: N/A | BK136: N/A | BL136: N/A | BM136: N/A | BN136: N/A | BO136: N/A | BP136: N/A | BQ136: N/A | BR136: N/A | BS136: N/A | BT136: N/A
B137: Improved latrines | C137: 74.12052394 | D137: 79.09541331 | E137: 82.67731943 | F137: 87.07160568 | G137: 82.53390549 | H137: 89.39099783 | I137: 94.43292984 | J137: 94.47960879 | K137: 88.07430215 | L137: 40.99232633 | M137: 73.53353494 | N137: 77.98630517 | O137: 81.36606705 | P137: 85.17876221 | Q137: 87.08226396 | R137: 79.8064472 | S137: 82.79916802 | T137: 81.81447746 | BB137: Improved latrines | BC137: N/A | BD137: N/A | BE137: N/A | BF137: N/A | BG137: N/A | BH137: N/A | BI137: N/A | BJ137: N/A | BK137: N/A | BL137: N/A | BM137: N/A | BN137: N/A | BO137: N/A | BP137: N/A | BQ137: N/A | BR137: N/A | BS137: N/A | BT137: N/A
B138: Unimproved facilities | C138: 12.85867641 | D138: 14.22260867 | E138: 13.0851288 | F138: 10.42924431 | G138: 4.354630476 | H138: 8.454920731 | I138: 4.492518474 | J138: 3.280909275 | K138: 0.9526872665 | L138: 0.4311043308 | M138: 12.85570245 | N138: 14.54766019 | O138: 13.32777605 | P138: 11.88450178 | Q138: 8.692505021 | R138: 12.15256384 | S138: 9.370005621 | T138: 10.36896899 | BB138: Unimproved facilities | BC138: N/A | BD138: N/A | BE138: N/A | BF138: N/A | BG138: N/A | BH138: N/A | BI138: N/A | BJ138: N/A | BK138: N/A | BL138: N/A | BM138: N/A | BN138: N/A | BO138: N/A | BP138: N/A | BQ138: N/A | BR138: N/A | BS138: N/A | BT138: N/A
B139: Open defecation | C139: 13.01219025 | D139: 6.650287677 | E139: 4.217639804 | F139: 2.265311179 | G139: 0.4995469029 | H139: 2.130105571 | I139: 0.2344360713 | J139: 0.05936412719 | K139: 0.06581227564 | L139: 0 | M139: 13.60067136 | N139: 7.466034635 | O139: 5.262589455 | P139: 2.916573847 | Q139: 1.526026936 | R139: 4.336739598 | S139: 5.333277551 | T139: 6.230065654 | BB139: Open defecation | BC139: N/A | BD139: N/A | BE139: N/A | BF139: N/A | BG139: N/A | BH139: N/A | BI139: N/A | BJ139: N/A | BK139: N/A | BL139: N/A | BM139: N/A | BN139: N/A | BO139: N/A | BP139: N/A | BQ139: N/A | BR139: N/A | BS139: N/A | BT139: N/A
A140: Septic tank emptying practices | B140: Not emptied/treated and disposed in situ | C140: N/A | D140: N/A | E140: N/A | F140: N/A | G140: N/A | H140: N/A | I140: N/A | J140: N/A | K140: N/A | L140: N/A | M140: N/A | N140: N/A | O140: N/A | P140: N/A | Q140: N/A | R140: N/A | S140: N/A | T140: N/A | BA140: Septic tank emptying practices | BB140: Not emptied/treated and disposed in situ | BC140: N/A | BD140: N/A | BE140: N/A | BF140: N/A | BG140: N/A | BH140: N/A | BI140: N/A | BJ140: N/A | BK140: N/A | BL140: N/A | BM140: N/A | BN140: N/A | BO140: N/A | BP140: N/A | BQ140: N/A | BR140: N/A | BS140: N/A | BT140: N/A
B141: Emptied and buried on site | C141: N/A | D141: N/A | E141: N/A | F141: N/A | G141: N/A | H141: N/A | I141: N/A | J141: N/A | K141: N/A | L141: N/A | M141: N/A | N141: N/A | O141: N/A | P141: N/A | Q141: N/A | R141: N/A | S141: N/A | T141: N/A | BB141: Emptied and buried on site | BC141: N/A | BD141: N/A | BE141: N/A | BF141: N/A | BG141: N/A | BH141: N/A | BI141: N/A | BJ141: N/A | BK141: N/A | BL141: N/A | BM141: N/A | BN141: N/A | BO141: N/A | BP141: N/A | BQ141: N/A | BR141: N/A | BS141: N/A | BT141: N/A
B142: Emptied and discharged locally | C142: N/A | D142: N/A | E142: N/A | F142: N/A | G142: N/A | H142: N/A | I142: N/A | J142: N/A | K142: N/A | L142: N/A | M142: N/A | N142: N/A | O142: N/A | P142: N/A | Q142: N/A | R142: N/A | S142: N/A | T142: N/A | BB142: Emptied and discharged locally | BC142: N/A | BD142: N/A | BE142: N/A | BF142: N/A | BG142: N/A | BH142: N/A | BI142: N/A | BJ142: N/A | BK142: N/A | BL142: N/A | BM142: N/A | BN142: N/A | BO142: N/A | BP142: N/A | BQ142: N/A | BR142: N/A | BS142: N/A | BT142: N/A
B143: Emptied and removed offsite | C143: N/A | D143: N/A | E143: N/A | F143: N/A | G143: N/A | H143: N/A | I143: N/A | J143: N/A | K143: N/A | L143: N/A | M143: N/A | N143: N/A | O143: N/A | P143: N/A | Q143: N/A | R143: N/A | S143: N/A | T143: N/A | BB143: Emptied and removed offsite | BC143: N/A | BD143: N/A | BE143: N/A | BF143: N/A | BG143: N/A | BH143: N/A | BI143: N/A | BJ143: N/A | BK143: N/A | BL143: N/A | BM143: N/A | BN143: N/A | BO143: N/A | BP143: N/A | BQ143: N/A | BR143: N/A | BS143: N/A | BT143: N/A
A144: Latrine emptying practices | B144: Not emptied/treated and disposed in situ | C144: N/A | D144: N/A | E144: N/A | F144: N/A | G144: N/A | H144: N/A | I144: N/A | J144: N/A | K144: N/A | L144: N/A | M144: N/A | N144: N/A | O144: N/A | P144: N/A | Q144: N/A | R144: N/A | S144: N/A | T144: N/A | BA144: Latrine emptying practices | BB144: Not emptied/treated and disposed in situ | BC144: N/A | BD144: N/A | BE144: N/A | BF144: N/A | BG144: N/A | BH144: N/A | BI144: N/A | BJ144: N/A | BK144: N/A | BL144: N/A | BM144: N/A | BN144: N/A | BO144: N/A | BP144: N/A | BQ144: N/A | BR144: N/A | BS144: N/A | BT144: N/A
B145: Emptied and buried on site | C145: N/A | D145: N/A | E145: N/A | F145: N/A | G145: N/A | H145: N/A | I145: N/A | J145: N/A | K145: N/A | L145: N/A | M145: N/A | N145: N/A | O145: N/A | P145: N/A | Q145: N/A | R145: N/A | S145: N/A | T145: N/A | BB145: Emptied and buried on site | BC145: N/A | BD145: N/A | BE145: N/A | BF145: N/A | BG145: N/A | BH145: N/A | BI145: N/A | BJ145: N/A | BK145: N/A | BL145: N/A | BM145: N/A | BN145: N/A | BO145: N/A | BP145: N/A | BQ145: N/A | BR145: N/A | BS145: N/A | BT145: N/A
B146: Emptied and discharged locally | C146: N/A | D146: N/A | E146: N/A | F146: N/A | G146: N/A | H146: N/A | I146: N/A | J146: N/A | K146: N/A | L146: N/A | M146: N/A | N146: N/A | O146: N/A | P146: N/A | Q146: N/A | R146: N/A | S146: N/A | T146: N/A | BB146: Emptied and discharged locally | BC146: N/A | BD146: N/A | BE146: N/A | BF146: N/A | BG146: N/A | BH146: N/A | BI146: N/A | BJ146: N/A | BK146: N/A | BL146: N/A | BM146: N/A | BN146: N/A | BO146: N/A | BP146: N/A | BQ146: N/A | BR146: N/A | BS146: N/A | BT146: N/A
B147: Emptied and removed offsite | C147: N/A | D147: N/A | E147: N/A | F147: N/A | G147: N/A | H147: N/A | I147: N/A | J147: N/A | K147: N/A | L147: N/A | M147: N/A | N147: N/A | O147: N/A | P147: N/A | Q147: N/A | R147: N/A | S147: N/A | T147: N/A | BB147: Emptied and removed offsite | BC147: N/A | BD147: N/A | BE147: N/A | BF147: N/A | BG147: N/A | BH147: N/A | BI147: N/A | BJ147: N/A | BK147: N/A | BL147: N/A | BM147: N/A | BN147: N/A | BO147: N/A | BP147: N/A | BQ147: N/A | BR147: N/A | BS147: N/A | BT147: N/A
A148: Shared among improved sanitation facilities | B148: Yes | C148: 29.21683564 | D148: 25.6451007 | E148: 26.84714863 | F148: 28.35031823 | G148: 32.66405023 | H148: 56.23162408 | I148: 62.54330192 | J148: 54.48711717 | K148: 43.24817025 | L148: 16.98573184 | M148: 28.5738261 | N148: 25.89366309 | O148: 26.13142622 | P148: 23.93425283 | Q148: 22.72691283 | R148: 26.93411514 | S148: 30.12745373 | T148: 29.5826984 | BA148: Shared among improved sanitation facilities | BB148: Yes | BC148: N/A | BD148: N/A | BE148: N/A | BF148: N/A | BG148: N/A | BH148: N/A | BI148: N/A | BJ148: N/A | BK148: N/A | BL148: N/A | BM148: N/A | BN148: N/A | BO148: N/A | BP148: N/A | BQ148: N/A | BR148: N/A | BS148: N/A | BT148: N/A
B149: No | C149: 44.9122977 | D149: 53.48200295 | E149: 55.85008277 | F149: 58.95512627 | G149: 62.48177239 | H149: 33.18334962 | I149: 32.72974354 | J149: 42.17260943 | K149: 55.73333021 | L149: 82.58316383 | M149: 44.96980009 | N149: 52.09264208 | O149: 55.27820827 | P149: 61.26467154 | Q149: 67.05455522 | R149: 56.57658142 | S149: 55.1692631 | T149: 53.81826696 | BB149: No | BC149: N/A | BD149: N/A | BE149: N/A | BF149: N/A | BG149: N/A | BH149: N/A | BI149: N/A | BJ149: N/A | BK149: N/A | BL149: N/A | BM149: N/A | BN149: N/A | BO149: N/A | BP149: N/A | BQ149: N/A | BR149: N/A | BS149: N/A | BT149: N/A
B150: DK/missing | C150: 25.87086666 | D150: 20.87289635 | E150: 17.3027686 | F150: 12.69455549 | G150: 4.854177379 | H150: 10.5850263 | I150: 4.726954545 | J150: 3.340273403 | K150: 1.018499542 | L150: 0.4311043308 | M150: 26.45637381 | N150: 22.01369483 | O150: 18.59036551 | P150: 14.80107563 | Q150: 10.21853196 | R150: 16.48930344 | S150: 14.70328317 | T150: 16.59903464 | BB150: DK/missing | BC150: N/A | BD150: N/A | BE150: N/A | BF150: N/A | BG150: N/A | BH150: N/A | BI150: N/A | BJ150: N/A | BK150: N/A | BL150: N/A | BM150: N/A | BN150: N/A | BO150: N/A | BP150: N/A | BQ150: N/A | BR150: N/A | BS150: N/A | BT150: N/A
A151: Shared among all sanitation facilities | B151: Yes | C151: 39.97284639 | D151: 33.34847839 | E151: 32.47728612 | F151: 32.41942615 | G151: 34.2242464 | H151: 62.135125 | I151: 65.33366942 | J151: 56.56755056 | K151: 43.55778223 | L151: 17.06070522 | M151: 39.78709667 | N151: 34.05126142 | O151: 32.26963158 | P151: 28.3777562 | Q151: 25.43923986 | R151: 32.16485199 | S151: 36.00530799 | T151: 35.99599082 | BA151: Shared among all sanitation facilities | BB151: Yes | BC151: N/A | BD151: N/A | BE151: N/A | BF151: N/A | BG151: N/A | BH151: N/A | BI151: N/A | BJ151: N/A | BK151: N/A | BL151: N/A | BM151: N/A | BN151: N/A | BO151: N/A | BP151: N/A | BQ151: N/A | BR151: N/A | BS151: N/A | BT151: N/A
B152: No | C152: 60.02715361 | D152: 66.65152161 | E152: 67.52271388 | F152: 67.58057385 | G152: 65.7757536 | H152: 37.864875 | I152: 34.66633058 | J152: 43.43244944 | K152: 56.44221777 | L152: 82.93929478 | M152: 60.21290333 | N152: 65.94873858 | O152: 67.73036842 | P152: 71.6222438 | Q152: 74.56076014 | R152: 67.83514801 | S152: 63.99469201 | T152: 64.00400918 | BB152: No | BC152: N/A | BD152: N/A | BE152: N/A | BF152: N/A | BG152: N/A | BH152: N/A | BI152: N/A | BJ152: N/A | BK152: N/A | BL152: N/A | BM152: N/A | BN152: N/A | BO152: N/A | BP152: N/A | BQ152: N/A | BR152: N/A | BS152: N/A | BT152: N/A
A153: Type of toilet facility | B153: Flush to piped sewer system | C153: 0.008609399821 | D153: 0 | E153: 0 | F153: 0.05848781344 | G153: 2.577816639 | H153: 0 | I153: 0.08995276253 | J153: 0.7023240608 | K153: 2.291133607 | L153: 11.02592934 | M153: 0.01009125251 | N153: 0 | O153: 0 | P153: 0 | Q153: 0.68610754 | R153: 0.7649723061 | S153: 0.1027724587 | T153: 0.4288976532 | BA153: Type of toilet facility | BB153: Flush to piped sewer system | BC153: 2.069487 | BD153: 0 | BE153: 0 | BF153: 14.040876 | BG153: 618.713887 | BH153: 0 | BI153: 3.136806 | BJ153: 24.596563 | BK153: 80.194632 | BL153: 384.11714 | BM153: 2.069487 | BN153: 0 | BO153: 0 | BP153: 0 | BQ153: 140.709622 | BR153: 382.662321 | BS153: 15.139001 | BT153: 237.022928
B154: Flush to septic tank | C154: 0 | D154: 0.0316903474 | E154: 0.01991197014 | F154: 0.1753510166 | G154: 10.03410049 | H154: 0.02397586808 | I154: 0.7501628515 | J154: 1.477793744 | K154: 8.616064696 | L154: 47.55064001 | M154: 0 | N154: 0 | O154: 0.043567443 | P154: 0.02016216037 | Q154: 2.013096548 | R154: 2.939277053 | S154: 2.394776344 | T154: 1.157590241 | BB154: Flush to septic tank | BC154: 0 | BD154: 7.596625 | BE154: 4.778873 | BF154: 42.095639 | BG154: 2408.331619 | BH154: 0.837395 | BI154: 26.159456 | BJ154: 51.754808 | BK154: 301.580901 | BL154: 1656.551143 | BM154: 0 | BN154: 0 | BO154: 8.926353 | BP154: 4.138974 | BQ154: 412.853726 | BR154: 1470.315422 | BS154: 352.764952 | BT154: 639.722382
B155: Flush to pit latrine | C155: 0.3152140855 | D155: 0.2518473003 | E155: 0.1914084225 | F155: 0.1663939793 | G155: 1.209708285 | H155: 0.210601114 | I155: 0.05820131619 | J155: 1.335773855 | K155: 0.6477205135 | L155: 4.527533612 | M155: 0.1223091429 | N155: 0.4980322283 | O155: 0.1686899482 | P155: 0.1327339082 | Q155: 0.4228874459 | R155: 0.4141231605 | S155: 0.5781392494 | T155: 0.3981881843 | BB155: Flush to pit latrine | BC155: 75.769678 | BD155: 60.371364 | BE155: 45.938023 | BF155: 39.945368 | BG155: 290.347771 | BH155: 7.355576 | BI155: 2.029579 | BJ155: 46.781034 | BK155: 22.671619 | BL155: 157.728497 | BM155: 25.082831 | BN155: 102.185288 | BO155: 34.562185 | BP155: 27.248181 | BQ155: 86.727414 | BR155: 207.15695 | BS155: 85.163387 | BT155: 220.051867
B156: Flush to somewhere else | C156: 0 | D156: 0.002818143912 | E156: 0 | F156: 0 | G156: 0.04900330273 | H156: 0.01934197566 | I156: 0 | J156: 0 | K156: 0 | L156: 0.04742778021 | M156: 0 | N156: 0 | O156: 0 | P156: 0 | Q156: 0.0492931973 | R156: 0.0235121966 | S156: 0 | T156: 0.001222419211 | BB156: Flush to somewhere else | BC156: 0 | BD156: 0.675549 | BE156: 0 | BF156: 0 | BG156: 11.761513 | BH156: 0.675549 | BI156: 0 | BJ156: 0 | BK156: 0 | BL156: 1.652271 | BM156: 0 | BN156: 0 | BO156: 0 | BP156: 0 | BQ156: 10.109242 | BR156: 11.761513 | BS156: 0 | BT156: 0.675549
B157: Flush, don't know where | C157: 0 | D157: 0.01154965565 | E157: 0 | F157: 0 | G157: 0.002424701488 | H157: 0 | I157: 0 | J157: 0 | K157: 0 | L157: 0.01670504456 | M157: 0 | N157: 0 | O157: 0.0135129677 | P157: 0 | Q157: 0 | R157: 0 | S157: 0 | T157: 0.006062940454 | BB157: Flush, don't know where | BC157: 0 | BD157: 2.768616 | BE157: 0 | BF157: 0 | BG157: 0.581964 | BH157: 0 | BI157: 0 | BJ157: 0 | BK157: 0 | BL157: 0.581964 | BM157: 0 | BN157: 0 | BO157: 2.768616 | BP157: 0 | BQ157: 0 | BR157: 0 | BS157: 0 | BT157: 3.35058
B158: Ventilated Improved Pit latrine (VIP) | C158: 0.4870841541 | D158: 0.480612731 | E158: 0.5730685302 | F158: 0.5767759365 | G158: 2.414425409 | H158: 0.3566214359 | I158: 0.4361393561 | J158: 1.00285794 | K158: 0.9929005813 | L158: 0.6508203139 | M158: 0.425687296 | N158: 0.5770500129 | O158: 0.3917887415 | P158: 0.8150027232 | Q158: 2.507761061 | R158: 0.7165381802 | S158: 1.327133501 | T158: 0.9660330253 | BB158: Ventilated Improved Pit latrine (VIP) | BC158: 117.082996 | BD158: 115.209677 | BE158: 137.536452 | BF158: 138.463706 | BG158: 579.49759 | BH158: 12.455566 | BI158: 15.208922 | BJ158: 35.121762 | BK158: 34.753668 | BL158: 22.673031 | BM158: 87.298809 | BN158: 118.398004 | BO158: 80.271973 | BP158: 167.307224 | BQ158: 514.301462 | BR158: 358.434104 | BS158: 195.494743 | BT158: 533.861574
B159: Pit latrine with slab | C159: 73.16618457 | D159: 78.06660176 | E159: 81.60274192 | F159: 86.05454351 | G159: 78.7321253 | H159: 88.77604939 | I159: 93.42903995 | J159: 92.11974472 | K159: 86.39500299 | L159: 35.76192177 | M159: 72.807328 | N159: 76.60333936 | O159: 80.50247044 | P159: 83.94264195 | Q159: 83.92716648 | R159: 78.61657152 | S159: 80.85681967 | T159: 79.98825301 | BB159: Pit latrine with slab | BC159: 17587.34302 | BD159: 18713.66985 | BE159: 19584.65874 | BF159: 20658.68261 | BG159: 18896.86743 | BH159: 3100.643515 | BI159: 3258.029713 | BJ159: 3226.187498 | BK159: 3024.011978 | BL159: 1245.860253 | BM159: 14931.13156 | BN159: 15717.3248 | BO159: 16493.81784 | BP159: 17232.10242 | BQ159: 17212.11207 | BR159: 39326.39063 | BS159: 11910.69562 | BT159: 44204.1354
B160: Pit latrine without slab/open pit | C160: 12.76728814 | D160: 14.15709832 | E160: 13.03511622 | F160: 10.11184163 | G160: 3.995963144 | H160: 8.435578755 | I160: 4.492518474 | J160: 3.280909275 | K160: 0.9526872665 | L160: 0.3836765506 | M160: 12.77024103 | N160: 14.47122594 | O160: 13.25070935 | P160: 11.68447011 | Q160: 8.109489636 | R160: 12.10884654 | S160: 9.26884808 | T160: 10.05196443 | BB160: Pit latrine without slab/open pit | BC160: 3068.940622 | BD160: 3393.656928 | BE160: 3128.428002 | BF160: 2427.4991 | BG160: 959.089895 | BH160: 294.62589 | BI160: 156.661769 | BJ160: 114.902929 | BK160: 33.346115 | BL160: 13.366378 | BM160: 2618.886782 | BN160: 2969.17811 | BO160: 2714.882972 | BP160: 2398.6377 | BQ160: 1663.125902 | BR160: 6057.211854 | BS160: 1365.357043 | BT160: 5555.04565
B161: No facility/bush/field | C161: 13.01219025 | D161: 6.650287677 | E161: 4.217639804 | F161: 2.265311179 | G161: 0.4995469029 | H161: 2.130105571 | I161: 0.2344360713 | J161: 0.05936412719 | K161: 0.06581227564 | L161: 0 | M161: 13.60067136 | N161: 7.466034635 | O161: 5.262589455 | P161: 2.916573847 | Q161: 1.526026936 | R161: 4.336739598 | S161: 5.333277551 | T161: 6.230065654 | BB161: No facility/bush/field | BC161: 3127.809037 | BD161: 1594.168123 | BE161: 1012.233588 | BF161: 543.821892 | BG161: 119.8986 | BH161: 74.397296 | BI161: 8.175185 | BJ161: 2.079031 | BK161: 2.303572 | BL161: 0 | BM161: 2789.189206 | BN161: 1531.866526 | BO161: 1078.230163 | BP161: 598.726679 | BQ161: 312.963582 | BR161: 2169.368521 | BS161: 785.623845 | BT161: 3442.938874
B162: Composting toilet | C162: 0.1520411296 | D162: 0.2848018576 | E162: 0.3101005559 | F162: 0.2738922557 | G162: 0.1752217886 | H162: 0.04772589095 | I162: 0.5095492212 | J162: 0.02123228145 | K162: 0.03867806683 | L162: 0.03534558297 | M162: 0.1782104981 | N162: 0.3078835672 | O162: 0.2896049497 | P162: 0.2883836367 | Q162: 0.22444897 | R162: 0.05921433868 | S162: 0.0370756016 | T162: 0.4559403041 | BB162: Composting toilet | BC162: 36.546931 | BD162: 68.271038 | BE162: 74.424136 | BF162: 65.75194 | BG162: 42.055805 | BH162: 1.666902 | BI162: 17.768849 | BJ162: 0.74359 | BK162: 1.353816 | BL162: 1.231356 | BM162: 36.546931 | BN162: 63.170954 | BO162: 59.335959 | BP162: 59.200619 | BQ162: 46.030874 | BR162: 29.620806 | BS162: 5.461459 | BT162: 251.967585
B163: Bucket toilet | C163: 0 | D163: 0 | E163: 0 | F163: 0.2845609753 | G163: 0.309664029 | H163: 0 | I163: 0 | J163: 0 | K163: 0 | L163: 0 | M163: 0 | N163: 0 | O163: 0 | P163: 0.1616256861 | Q163: 0.5337221876 | R163: 0 | S163: 0 | T163: 0.2581045402 | BB163: Bucket toilet | BC163: 0 | BD163: 0 | BE163: 0 | BF163: 68.313126 | BG163: 74.323919 | BH163: 0 | BI163: 0 | BJ163: 0 | BK163: 0 | BL163: 0 | BM163: 0 | BN163: 0 | BO163: 0 | BP163: 33.179208 | BQ163: 109.457837 | BR163: 0 | BS163: 0 | BT163: 142.637045
B164: Hanging toilet/latrine | C164: 0.04373798526 | D164: 0.04999446011 | E164: 0.0374613237 | F164: 0 | G164: 0 | H164: 0 | I164: 0 | J164: 0 | K164: 0 | L164: 0 | M164: 0.02960955925 | N164: 0.06159918758 | O164: 0.06236437224 | P164: 0 | Q164: 0 | R164: 0.006605649527 | S164: 0.05813472176 | T164: 0.03550402291 | BB164: Hanging toilet/latrine | BC164: 10.513531 | BD164: 11.98438 | BE164: 8.990718 | BF164: 0 | BG164: 0 | BH164: 0 | BI164: 0 | BJ164: 0 | BK164: 0 | BL164: 0 | BM164: 6.072249 | BN164: 12.638802 | BO164: 12.777578 | BP164: 0 | BQ164: 0 | BR164: 3.304346 | BS164: 8.563594 | BT164: 19.620689
B165: Other | C165: 0.04765028003 | D165: 0.01269774803 | E165: 0.01255124957 | F165: 0.03284170755 | G165: 0 | H165: 0 | I165: 0 | J165: 0 | K165: 0 | L165: 0 | M165: 0.05585186167 | N165: 0.01483506547 | O165: 0.01470233236 | P165: 0.03840598557 | Q165: 0 | R165: 0.01359945627 | S165: 0.04302281984 | T165: 0.02217357189 | BB165: Other | BC165: 11.45395 | BD165: 3.04383 | BE165: 3.0123 | BF165: 7.884144 | BG165: 0 | BH165: 0 | BI165: 0 | BJ165: 0 | BK165: 0 | BL165: 0 | BM165: 11.45395 | BN165: 3.04383 | BO165: 3.0123 | BP165: 7.884144 | BQ165: 0 | BR165: 6.80286 | BS165: 6.33752 | BT165: 12.253844
BB166: Total | BC166: 24037.52925 | BD166: 23971.41598 | BE166: 24000.00083 | BF166: 24006.49841 | BG166: 24001.46999 | BH166: 3492.657689 | BI166: 3487.170279 | BJ166: 3502.167215 | BK166: 3500.216301 | BL166: 3483.762033 | BM166: 20507.73181 | BN166: 20517.80632 | BO166: 20488.58594 | BP166: 20528.42515 | BQ166: 20508.39173 | BR166: 50023.02932 | BS166: 14730.60116 | BT166: 55263.28397
A208: =A1026 -> Malawi
A209: =A1034 -> 2016
A210: Access to hygiene facilities
A211: by wealth quintile and sub-national region
A212: Notes:
A213: WHO/UNICEF JMP customised wealth index excludes water,
A214: sanitation and hygiene assets.
A215: Survey used for analysis: | B215: =A1025 -> DHS16
A220: Access to handwashing | C220: NATIONAL wealth index quintile | H220: URBAN wealth index quintile | M220: RURAL wealth index quintile | R220: SUB-REGIONS: | BA220: Raw numbers of respondents: | BB220: Access to handwashing | BC220: NATIONAL wealth index quintile | BH220: URBAN wealth index quintile | BM220: RURAL wealth index quintile | BR220: SUB-REGIONS:
A221: Weighted percentage (used in graphs) | C221: Poorest | D221: Poor | E221: Middle | F221: Rich | G221: Richest | H221: Poorest | I221: Poor | J221: Middle | K221: Rich | L221: Richest | M221: Poorest | N221: Poor | O221: Middle | P221: Rich | Q221: Richest | R221: Central region | S221: Northern region | T221: Southern region | BA221: Hygiene data, raw numbers (weighted) | BC221: Poorest | BD221: Poor | BE221: Middle | BF221: Rich | BG221: Richest | BH221: Poorest | BI221: Poor | BJ221: Middle | BK221: Rich | BL221: Richest | BM221: Poorest | BN221: Poor | BO221: Middle | BP221: Rich | BQ221: Richest | BR221: Central region | BS221: Northern region | BT221: Southern region
A222: Hygiene ladder | B222: Basic | C222: 3.459357278 | D222: 5.816733068 | E222: 6.633366633 | F222: 9.776589651 | G222: 22.41137241 | H222: 4.855842185 | I222: 7.803468208 | J222: 13.94129979 | K222: 22.95258621 | L222: 52.87049399 | M222: 3.25443787 | N222: 5.359695093 | O222: 6.549178376 | P222: 9.095272378 | Q222: 15.95818815 | R222: 9.209921911 | S222: 14.66720615 | T222: 8.484800381 | BA222: Hygiene ladder | BB222: Basic | BC222: 183 | BD222: 292 | BE222: 332 | BF222: 512 | BG222: 1277 | BH222: 64 | BI222: 81 | BJ222: 133 | BK222: 213 | BL222: 396 | BM222: 143 | BN222: 225 | BO222: 275 | BP222: 379 | BQ222: 687 | BR222: 802 | BS222: 725 | BT222: 1069
B223: Limited | C223: 75.6899811 | D223: 75.97609562 | E223: 76.9030969 | F223: 76.85697919 | G223: 68.63811864 | H223: 80.27314112 | I223: 78.9017341 | J223: 74.9475891 | K223: 70.25862069 | L223: 43.39118825 | M223: 75.14792899 | N223: 75.91710338 | O223: 76.73255537 | P223: 76.48188145 | Q223: 72.84552846 | R223: 75.19522278 | S223: 76.10762695 | T223: 73.75982221 | BB223: Limited | BC223: 4004 | BD223: 3814 | BE223: 3849 | BF223: 4025 | BG223: 3911 | BH223: 1058 | BI223: 819 | BJ223: 715 | BK223: 652 | BL223: 325 | BM223: 3302 | BN223: 3187 | BO223: 3222 | BP223: 3187 | BQ223: 3136 | BR223: 6548 | BS223: 3762 | BT223: 9293
B224: No facility | C224: 20.85066163 | D224: 18.20717131 | E224: 16.46353646 | F224: 13.36643116 | G224: 8.950508951 | H224: 14.87101669 | I224: 13.29479769 | J224: 11.11111111 | K224: 6.788793103 | L224: 3.738317757 | M224: 21.59763314 | N224: 18.72320152 | O224: 16.71826625 | P224: 14.42284617 | Q224: 11.19628339 | R224: 15.59485531 | S224: 9.225166903 | T224: 17.75537741 | BB224: No facility | BC224: 1103 | BD224: 914 | BE224: 824 | BF224: 700 | BG224: 510 | BH224: 196 | BI224: 138 | BJ224: 106 | BK224: 63 | BL224: 28 | BM224: 949 | BN224: 786 | BO224: 702 | BP224: 601 | BQ224: 482 | BR224: 1358 | BS224: 456 | BT224: 2237
A225: Place where household members wash their hands | B225: Observed, fixed place | C225: 13.98010884 | D225: 17.12926249 | E225: 18.00796813 | F225: 20.72706509 | G225: 39.18445922 | H225: 16.23672231 | I225: 21.0982659 | J225: 32.88100209 | K225: 48.16810345 | L225: 71.16154873 | M225: 13.09066245 | N225: 17.0217803 | O225: 17.584243 | P225: 20.69789675 | Q225: 27.93063584 | R225: 19.08841672 | S225: 29.33950866 | T225: 21.46190966 | BA225: Observed handwashing place | BB225: Fixed | BC225: N/A | BD225: N/A | BE225: N/A | BF225: N/A | BG225: N/A | BH225: N/A | BI225: N/A | BJ225: N/A | BK225: N/A | BL225: N/A | BM225: N/A | BN225: N/A | BO225: N/A | BP225: N/A | BQ225: N/A | BR225: N/A | BS225: N/A | BT225: N/A
B226: Observed, mobile place | C226: 64.58997936 | D226: 64.27438541 | E226: 65.27888446 | F226: 65.62618957 | G226: 51.6100805 | H226: 68.892261 | I226: 65.60693642 | J226: 55.63674322 | K226: 45.04310345 | L226: 25.10013351 | M226: 64.79764865 | N226: 63.75473485 | O226: 65.40104414 | P226: 64.53154876 | Q226: 60.46242775 | R226: 64.87320082 | S226: 61.01490133 | T226: 60.50945337 | BB226: Mobile | BC226: N/A | BD226: N/A | BE226: N/A | BF226: N/A | BG226: N/A | BH226: N/A | BI226: N/A | BJ226: N/A | BK226: N/A | BL226: N/A | BM226: N/A | BN226: N/A | BO226: N/A | BP226: N/A | BQ226: N/A | BR226: N/A | BS226: N/A | BT226: N/A
B227: Not observed: not in dwelling | C227: 15.14355414 | D227: 12.88659794 | E227: 12.15139442 | F227: 9.725923106 | G227: 6.370318516 | H227: 10.92564492 | I227: 10.5973025 | J227: 8.037578288 | K227: 4.63362069 | L227: 2.269692924 | M227: 15.91679855 | N227: 13.35227273 | O227: 11.81775036 | P227: 10.70745698 | Q227: 7.791907514 | R227: 9.846927119 | S227: 7.249295207 | T227: 13.60651847 | BA227: Water / Soap | BB227: Water and soap | BC227: N/A | BD227: N/A | BE227: N/A | BF227: N/A | BG227: N/A | BH227: N/A | BI227: N/A | BJ227: N/A | BK227: N/A | BL227: N/A | BM227: N/A | BN227: N/A | BO227: N/A | BP227: N/A | BQ227: N/A | BR227: N/A | BS227: N/A | BT227: N/A
B228: Not observed: no permission to see | C228: 0.7318446238 | D228: 0.4758128469 | E228: 0.2988047809 | F228: 0.3235629996 | G228: 0.2800140007 | H228: 0 | I228: 0 | J228: 0.4175365344 | K228: 0 | L228: 0 | M228: 0.6556635768 | N228: 0.615530303 | O228: 0.355956336 | P228: 0.4063097514 | Q228: 0.4624277457 | R228: 0.525474069 | S228: 0.463149416 | T228: 0.3322521952 | BB228: Water only | BC228: N/A | BD228: N/A | BE228: N/A | BF228: N/A | BG228: N/A | BH228: N/A | BI228: N/A | BJ228: N/A | BK228: N/A | BL228: N/A | BM228: N/A | BN228: N/A | BO228: N/A | BP228: N/A | BQ228: N/A | BR228: N/A | BS228: N/A | BT228: N/A
B229: Not observed: other reason | C229: 5.554513042 | D229: 5.233941316 | E229: 4.262948207 | F229: 3.597259231 | G229: 2.555127756 | H229: 3.945371775 | I229: 2.697495183 | J229: 3.027139875 | K229: 2.155172414 | L229: 1.468624833 | M229: 5.539226769 | N229: 5.255681818 | O229: 4.84100617 | P229: 3.656787763 | Q229: 3.352601156 | R229: 5.665981266 | S229: 1.933145389 | T229: 4.089866308 | BB229: Soap only | BC229: N/A | BD229: N/A | BE229: N/A | BF229: N/A | BG229: N/A | BH229: N/A | BI229: N/A | BJ229: N/A | BK229: N/A | BL229: N/A | BM229: N/A | BN229: N/A | BO229: N/A | BP229: N/A | BQ229: N/A | BR229: N/A | BS229: N/A | BT229: N/A
BB230: Neither | BC230: N/A | BD230: N/A | BE230: N/A | BF230: N/A | BG230: N/A | BH230: N/A | BI230: N/A | BJ230: N/A | BK230: N/A | BL230: N/A | BM230: N/A | BN230: N/A | BO230: N/A | BP230: N/A | BQ230: N/A | BR230: N/A | BS230: N/A | BT230: N/A
BA231: Place where household members wash their hands | BB231: Observed, fixed place | BC231: 745 | BD231: 864 | BE231: 904 | BF231: 1089 | BG231: 2239 | BH231: 214 | BI231: 219 | BJ231: 315 | BK231: 447 | BL231: 533 | BM231: 579 | BN231: 719 | BO231: 741 | BP231: 866 | BQ231: 1208 | BR231: 1671 | BS231: 1457 | BT231: 2713
BB232: Observed, mobile place | BC232: 3442 | BD232: 3242 | BE232: 3277 | BF232: 3448 | BG232: 2949 | BH232: 908 | BI232: 681 | BJ232: 533 | BK232: 418 | BL232: 188 | BM232: 2866 | BN232: 2693 | BO232: 2756 | BP232: 2700 | BQ232: 2615 | BR232: 5679 | BS232: 3030 | BT232: 7649
BB233: Not observed: not in dwelling | BC233: 807 | BD233: 650 | BE233: 610 | BF233: 511 | BG233: 364 | BH233: 144 | BI233: 110 | BJ233: 77 | BK233: 43 | BL233: 17 | BM233: 704 | BN233: 564 | BO233: 498 | BP233: 448 | BQ233: 337 | BR233: 862 | BS233: 360 | BT233: 1720
BB234: Not observed: no permission to see | BC234: 39 | BD234: 24 | BE234: 15 | BF234: 17 | BG234: 16 | BH234: 0 | BI234: 0 | BJ234: 4 | BK234: 0 | BL234: 0 | BM234: 29 | BN234: 26 | BO234: 15 | BP234: 17 | BQ234: 20 | BR234: 46 | BS234: 23 | BT234: 42
BB235: Not observed: other reason | BC235: 296 | BD235: 264 | BE235: 214 | BF235: 189 | BG235: 146 | BH235: 52 | BI235: 28 | BJ235: 29 | BK235: 20 | BL235: 11 | BM235: 245 | BN235: 222 | BO235: 204 | BP235: 153 | BQ235: 145 | BR235: 496 | BS235: 96 | BT235: 517
BB236: Total | BC236: 5329 | BD236: 5044 | BE236: 5020 | BF236: 5254 | BG236: 5714 | BH236: 1318 | BI236: 1038 | BJ236: 958 | BK236: 928 | BL236: 749 | BM236: 4423 | BN236: 4224 | BO236: 4214 | BP236: 4184 | BQ236: 4325 | BR236: 8754 | BS236: 4966 | BT236: 12641
BC238: 24.56375839 | BD238: 33.7962963 | BE238: 36.72566372 | BF238: 47.01561065 | BG238: 57.03439035 | BH238: 29.90654206 | BI238: 36.98630137 | BJ238: 42.22222222 | BK238: 47.65100671 | BL238: 74.29643527 | BM238: 24.69775475 | BN238: 31.29346314 | BO238: 37.1120108 | BP238: 43.76443418 | BQ238: 56.87086093 | BR238: 47.99521245 | BS238: 49.75978037 | BT238: 39.40287505
BC239: 19.44205224 | BD239: 27.64294673 | BE239: 30.67932068 | BF239: 40.73130142 | BG239: 51.92952214 | BH239: 25.45913519 | BI239: 32.06904743 | BJ239: 37.5308642 | BK239: 44.41607845 | BL239: 71.51899844 | BM239: 19.36362429 | BN239: 25.43432497 | BO239: 30.90752602 | BP239: 37.45235716 | BQ239: 50.50343817 | BR239: 40.51042851 | BS239: 45.16935758 | BT239: 32.40674587
BA259: Raw numbers of respondents: | BB259: Menstrual health and hygiene | BC259: NATIONAL wealth index quintile | BH259: URBAN wealth index quintile | BM259: RURAL wealth index quintile | BR259: SUB-REGIONS:
BA260: MHH data, raw numbers (weighted) | BC260: Poorest | BD260: Poor | BE260: Middle | BF260: Rich | BG260: Richest | BH260: Poorest | BI260: Poor | BJ260: Middle | BK260: Rich | BL260: Richest | BM260: Poorest | BN260: Poor | BO260: Middle | BP260: Rich | BQ260: Richest | BR260: Central region | BS260: Northern region | BT260: Southern region
BA261: Private place to wash and change | BB261: Yes | BC261: N/A | BD261: N/A | BE261: N/A | BF261: N/A | BG261: N/A | BH261: N/A | BI261: N/A | BJ261: N/A | BK261: N/A | BL261: N/A | BM261: N/A | BN261: N/A | BO261: N/A | BP261: N/A | BQ261: N/A | BR261: N/A | BS261: N/A | BT261: N/A
BB262: No | BC262: N/A | BD262: N/A | BE262: N/A | BF262: N/A | BG262: N/A | BH262: N/A | BI262: N/A | BJ262: N/A | BK262: N/A | BL262: N/A | BM262: N/A | BN262: N/A | BO262: N/A | BP262: N/A | BQ262: N/A | BR262: N/A | BS262: N/A | BT262: N/A
BB263: DK/not sure/missing | BC263: N/A | BD263: N/A | BE263: N/A | BF263: N/A | BG263: N/A | BH263: N/A | BI263: N/A | BJ263: N/A | BK263: N/A | BL263: N/A | BM263: N/A | BN263: N/A | BO263: N/A | BP263: N/A | BQ263: N/A | BR263: N/A | BS263: N/A | BT263: N/A
BA264: Use of menstrual materials | BB264: Materials reusable | BC264: N/A | BD264: N/A | BE264: N/A | BF264: N/A | BG264: N/A | BH264: N/A | BI264: N/A | BJ264: N/A | BK264: N/A | BL264: N/A | BM264: N/A | BN264: N/A | BO264: N/A | BP264: N/A | BQ264: N/A | BR264: N/A | BS264: N/A | BT264: N/A
BB265: Materials not reusable | BC265: N/A | BD265: N/A | BE265: N/A | BF265: N/A | BG265: N/A | BH265: N/A | BI265: N/A | BJ265: N/A | BK265: N/A | BL265: N/A | BM265: N/A | BN265: N/A | BO265: N/A | BP265: N/A | BQ265: N/A | BR265: N/A | BS265: N/A | BT265: N/A
BB266: No materials used | BC266: N/A | BD266: N/A | BE266: N/A | BF266: N/A | BG266: N/A | BH266: N/A | BI266: N/A | BJ266: N/A | BK266: N/A | BL266: N/A | BM266: N/A | BN266: N/A | BO266: N/A | BP266: N/A | BQ266: N/A | BR266: N/A | BS266: N/A | BT266: N/A
BB267: DK/not sure/missing | BC267: N/A | BD267: N/A | BE267: N/A | BF267: N/A | BG267: N/A | BH267: N/A | BI267: N/A | BJ267: N/A | BK267: N/A | BL267: N/A | BM267: N/A | BN267: N/A | BO267: N/A | BP267: N/A | BQ267: N/A | BR267: N/A | BS267: N/A | BT267: N/A
BA268: Use of menstrual materials with private place to wash and change | BB268: Materials reusable | BC268: N/A | BD268: N/A | BE268: N/A | BF268: N/A | BG268: N/A | BH268: N/A | BI268: N/A | BJ268: N/A | BK268: N/A | BL268: N/A | BM268: N/A | BN268: N/A | BO268: N/A | BP268: N/A | BQ268: N/A | BR268: N/A | BS268: N/A | BT268: N/A
BB269: Materials not reusable | BC269: N/A | BD269: N/A | BE269: N/A | BF269: N/A | BG269: N/A | BH269: N/A | BI269: N/A | BJ269: N/A | BK269: N/A | BL269: N/A | BM269: N/A | BN269: N/A | BO269: N/A | BP269: N/A | BQ269: N/A | BR269: N/A | BS269: N/A | BT269: N/A
BB270: No materials used | BC270: N/A | BD270: N/A | BE270: N/A | BF270: N/A | BG270: N/A | BH270: N/A | BI270: N/A | BJ270: N/A | BK270: N/A | BL270: N/A | BM270: N/A | BN270: N/A | BO270: N/A | BP270: N/A | BQ270: N/A | BR270: N/A | BS270: N/A | BT270: N/A
BA271: Awareness of menstruation before menarche | BB271: Yes | BC271: N/A | BD271: N/A | BE271: N/A | BF271: N/A | BG271: N/A | BH271: N/A | BI271: N/A | BJ271: N/A | BK271: N/A | BL271: N/A | BM271: N/A | BN271: N/A | BO271: N/A | BP271: N/A | BQ271: N/A | BR271: N/A | BS271: N/A | BT271: N/A
BB272: No | BC272: N/A | BD272: N/A | BE272: N/A | BF272: N/A | BG272: N/A | BH272: N/A | BI272: N/A | BJ272: N/A | BK272: N/A | BL272: N/A | BM272: N/A | BN272: N/A | BO272: N/A | BP272: N/A | BQ272: N/A | BR272: N/A | BS272: N/A | BT272: N/A
BB273: DK/not sure/missing | BC273: N/A | BD273: N/A | BE273: N/A | BF273: N/A | BG273: N/A | BH273: N/A | BI273: N/A | BJ273: N/A | BK273: N/A | BL273: N/A | BM273: N/A | BN273: N/A | BO273: N/A | BP273: N/A | BQ273: N/A | BR273: N/A | BS273: N/A | BT273: N/A
BA274: Participation in (all) activities during menstruation | BB274: Yes | BC274: N/A | BD274: N/A | BE274: N/A | BF274: N/A | BG274: N/A | BH274: N/A | BI274: N/A | BJ274: N/A | BK274: N/A | BL274: N/A | BM274: N/A | BN274: N/A | BO274: N/A | BP274: N/A | BQ274: N/A | BR274: N/A | BS274: N/A | BT274: N/A
BB275: No | BC275: N/A | BD275: N/A | BE275: N/A | BF275: N/A | BG275: N/A | BH275: N/A | BI275: N/A | BJ275: N/A | BK275: N/A | BL275: N/A | BM275: N/A | BN275: N/A | BO275: N/A | BP275: N/A | BQ275: N/A | BR275: N/A | BS275: N/A | BT275: N/A
BB276: DK/not sure/missing/no such activity | BC276: N/A | BD276: N/A | BE276: N/A | BF276: N/A | BG276: N/A | BH276: N/A | BI276: N/A | BJ276: N/A | BK276: N/A | BL276: N/A | BM276: N/A | BN276: N/A | BO276: N/A | BP276: N/A | BQ276: N/A | BR276: N/A | BS276: N/A | BT276: N/A
BA277: Participation in specific activities during menstruation | BB277: Did not go to school (amongst those usually attending school) | BC277: N/A | BD277: N/A | BE277: N/A | BF277: N/A | BG277: N/A | BH277: N/A | BI277: N/A | BJ277: N/A | BK277: N/A | BL277: N/A | BM277: N/A | BN277: N/A | BO277: N/A | BP277: N/A | BQ277: N/A | BR277: N/A | BS277: N/A | BT277: N/A
BB278: Did not go to work (amongst those who usually work) | BC278: N/A | BD278: N/A | BE278: N/A | BF278: N/A | BG278: N/A | BH278: N/A | BI278: N/A | BJ278: N/A | BK278: N/A | BL278: N/A | BM278: N/A | BN278: N/A | BO278: N/A | BP278: N/A | BQ278: N/A | BR278: N/A | BS278: N/A | BT278: N/A
BB279: Did not participate in social activities | BC279: N/A | BD279: N/A | BE279: N/A | BF279: N/A | BG279: N/A | BH279: N/A | BI279: N/A | BJ279: N/A | BK279: N/A | BL279: N/A | BM279: N/A | BN279: N/A | BO279: N/A | BP279: N/A | BQ279: N/A | BR279: N/A | BS279: N/A | BT279: N/A
BB280: Did not cook food | BC280: N/A | BD280: N/A | BE280: N/A | BF280: N/A | BG280: N/A | BH280: N/A | BI280: N/A | BJ280: N/A | BK280: N/A | BL280: N/A | BM280: N/A | BN280: N/A | BO280: N/A | BP280: N/A | BQ280: N/A | BR280: N/A | BS280: N/A | BT280: N/A
BB281: Did not eat with others | BC281: N/A | BD281: N/A | BE281: N/A | BF281: N/A | BG281: N/A | BH281: N/A | BI281: N/A | BJ281: N/A | BK281: N/A | BL281: N/A | BM281: N/A | BN281: N/A | BO281: N/A | BP281: N/A | BQ281: N/A | BR281: N/A | BS281: N/A | BT281: N/A
BB282: Did not bathe in regular place | BC282: N/A | BD282: N/A | BE282: N/A | BF282: N/A | BG282: N/A | BH282: N/A | BI282: N/A | BJ282: N/A | BK282: N/A | BL282: N/A | BM282: N/A | BN282: N/A | BO282: N/A | BP282: N/A | BQ282: N/A | BR282: N/A | BS282: N/A | BT282: N/A
BB283: Did not participate in other activities | BC283: N/A | BD283: N/A | BE283: N/A | BF283: N/A | BG283: N/A | BH283: N/A | BI283: N/A | BJ283: N/A | BK283: N/A | BL283: N/A | BM283: N/A | BN283: N/A | BO283: N/A | BP283: N/A | BQ283: N/A | BR283: N/A | BS283: N/A | BT283: N/A
BB284: DK/not sure/missing/no such activity | BC284: N/A | BD284: N/A | BE284: N/A | BF284: N/A | BG284: N/A | BH284: N/A | BI284: N/A | BJ284: N/A | BK284: N/A | BL284: N/A | BM284: N/A | BN284: N/A | BO284: N/A | BP284: N/A | BQ284: N/A | BR284: N/A | BS284: N/A | BT284: N/A
BA339: Raw numbers of respondents: | BB339: Basic water, sanitation and hygiene | BC339: NATIONAL wealth index quintile | BH339: URBAN wealth index quintile | BM339: RURAL wealth index quintile | BR339: SUB-REGIONS:
BA340: WatSan data, raw numbers (weighted) | BC340: Poorest | BD340: Poor | BE340: Middle | BF340: Rich | BG340: Richest | BH340: Poorest | BI340: Poor | BJ340: Middle | BK340: Rich | BL340: Richest | BM340: Poorest | BN340: Poor | BO340: Middle | BP340: Rich | BQ340: Richest | BR340: Central region | BS340: Northern region | BT340: Southern region
BA341: Use of Basic Water Sanitation and Hygiene | BB341: Yes | BC341: N/A | BD341: N/A | BE341: N/A | BF341: N/A | BG341: N/A | BH341: N/A | BI341: N/A | BJ341: N/A | BK341: N/A | BL341: N/A | BM341: N/A | BN341: N/A | BO341: N/A | BP341: N/A | BQ341: N/A | BR341: N/A | BS341: N/A | BT341: N/A
BB342: No | BC342: N/A | BD342: N/A | BE342: N/A | BF342: N/A | BG342: N/A | BH342: N/A | BI342: N/A | BJ342: N/A | BK342: N/A | BL342: N/A | BM342: N/A | BN342: N/A | BO342: N/A | BP342: N/A | BQ342: N/A | BR342: N/A | BS342: N/A | BT342: N/A
BA343: Use of Basic Water and Sanitation | BB343: Yes | BC343: N/A | BD343: N/A | BE343: N/A | BF343: N/A | BG343: N/A | BH343: N/A | BI343: N/A | BJ343: N/A | BK343: N/A | BL343: N/A | BM343: N/A | BN343: N/A | BO343: N/A | BP343: N/A | BQ343: N/A | BR343: N/A | BS343: N/A | BT343: N/A
BB344: No | BC344: N/A | BD344: N/A | BE344: N/A | BF344: N/A | BG344: N/A | BH344: N/A | BI344: N/A | BJ344: N/A | BK344: N/A | BL344: N/A | BM344: N/A | BN344: N/A | BO344: N/A | BP344: N/A | BQ344: N/A | BR344: N/A | BS344: N/A | BT344: N/A
BA345: Use of Basic Water and Hygiene | BB345: Yes | BC345: N/A | BD345: N/A | BE345: N/A | BF345: N/A | BG345: N/A | BH345: N/A | BI345: N/A | BJ345: N/A | BK345: N/A | BL345: N/A | BM345: N/A | BN345: N/A | BO345: N/A | BP345: N/A | BQ345: N/A | BR345: N/A | BS345: N/A | BT345: N/A
BB346: No | BC346: N/A | BD346: N/A | BE346: N/A | BF346: N/A | BG346: N/A | BH346: N/A | BI346: N/A | BJ346: N/A | BK346: N/A | BL346: N/A | BM346: N/A | BN346: N/A | BO346: N/A | BP346: N/A | BQ346: N/A | BR346: N/A | BS346: N/A | BT346: N/A
BA347: Use of Basic Sanitation and Hygiene | BB347: Yes | BC347: N/A | BD347: N/A | BE347: N/A | BF347: N/A | BG347: N/A | BH347: N/A | BI347: N/A | BJ347: N/A | BK347: N/A | BL347: N/A | BM347: N/A | BN347: N/A | BO347: N/A | BP347: N/A | BQ347: N/A | BR347: N/A | BS347: N/A | BT347: N/A
BB348: No | BC348: N/A | BD348: N/A | BE348: N/A | BF348: N/A | BG348: N/A | BH348: N/A | BI348: N/A | BJ348: N/A | BK348: N/A | BL348: N/A | BM348: N/A | BN348: N/A | BO348: N/A | BP348: N/A | BQ348: N/A | BR348: N/A | BS348: N/A | BT348: N/A
BA349: Use of Basic Water | BB349: Yes | BC349: N/A | BD349: N/A | BE349: N/A | BF349: N/A | BG349: N/A | BH349: N/A | BI349: N/A | BJ349: N/A | BK349: N/A | BL349: N/A | BM349: N/A | BN349: N/A | BO349: N/A | BP349: N/A | BQ349: N/A | BR349: N/A | BS349: N/A | BT349: N/A
BB350: No | BC350: N/A | BD350: N/A | BE350: N/A | BF350: N/A | BG350: N/A | BH350: N/A | BI350: N/A | BJ350: N/A | BK350: N/A | BL350: N/A | BM350: N/A | BN350: N/A | BO350: N/A | BP350: N/A | BQ350: N/A | BR350: N/A | BS350: N/A | BT350: N/A
BA351: Use of Basic Sanitation | BB351: Yes | BC351: N/A | BD351: N/A | BE351: N/A | BF351: N/A | BG351: N/A | BH351: N/A | BI351: N/A | BJ351: N/A | BK351: N/A | BL351: N/A | BM351: N/A | BN351: N/A | BO351: N/A | BP351: N/A | BQ351: N/A | BR351: N/A | BS351: N/A | BT351: N/A
BB352: No | BC352: N/A | BD352: N/A | BE352: N/A | BF352: N/A | BG352: N/A | BH352: N/A | BI352: N/A | BJ352: N/A | BK352: N/A | BL352: N/A | BM352: N/A | BN352: N/A | BO352: N/A | BP352: N/A | BQ352: N/A | BR352: N/A | BS352: N/A | BT352: N/A
BA353: Access to Basic Hygiene | BB353: Yes | BC353: N/A | BD353: N/A | BE353: N/A | BF353: N/A | BG353: N/A | BH353: N/A | BI353: N/A | BJ353: N/A | BK353: N/A | BL353: N/A | BM353: N/A | BN353: N/A | BO353: N/A | BP353: N/A | BQ353: N/A | BR353: N/A | BS353: N/A | BT353: N/A
BB354: No | BC354: N/A | BD354: N/A | BE354: N/A | BF354: N/A | BG354: N/A | BH354: N/A | BI354: N/A | BJ354: N/A | BK354: N/A | BL354: N/A | BM354: N/A | BN354: N/A | BO354: N/A | BP354: N/A | BQ354: N/A | BR354: N/A | BS354: N/A | BT354: N/A
C399: INITIAL (national) Wealth Index | H399: URBAN Wealth Index | M399: RURAL Wealth Index
C400: Component Matrix | H400: Component Matrix | M400: Component Matrix
E401: Component | J401: Component | O401: Component
B402: Note: The INITIAL (national) Wealth Index is based on the first component of the Principal Component Analysis (PCA) which has been obtained at national level. The final national-level (NATIONAL) Wealth Index is based on the URBAN and RURAL specific wealth indexes. Regression procedures are used to establish the relationships between the two sets of scores (urban and rural) and the initial (national) wealth factors. This allows best use of the available information for each area and a better precision of the FINAL (NATIONAL) Wealth Index. For dependency reasons, all WASH variables (contained in the generic MICS and DHS scripts) have been excluded from the sets of asset variables used in the PCAs. The PCA can extracts as many components as there are asset variables in the input. Only the first of the components is used to represent the Wealth Index. The scores represent the weights of the asset variables on the Wealth Index (correlations between the variables and the component). The communalities are the proportion of each variable's variance that can be explained by the component. Proportion of explained variance is the part of the model's total variance that is explained by the component. For more information on the procedure used: The DHS Wealth Index, DHS Comparative Reports No. 6, Shea Oscar Rutstein, Kiersten Johnson, ORC Macro International Inc., 2004. The DHS Wealth Index: Approaches for Rural and Urban Areas, Shea O. Rutstein, ORC Macro International Inc., 2008. MICS Methodological Paper No. 4, Review of options for reporting water, sanitation and hygiene coverage by wealth quintile, UNICEF, 2016. | E402: 1 | J402: 1 | O402: 1
C403: Earth, sand floor | E403: -0.8057935539 | H403: Has electricity | J403: 0.7813827293 | M403: Concrete, cement floor | O403: 0.7764728903
... 346 more rows

Sheet MICS14
A2: =A1026 -> Malawi
A3: =A1034 -> 2014
A4: Use of drinking water sources
A5: by wealth quintile and sub-national region
A6: Notes:
A7: WHO/UNICEF JMP customised wealth index excludes water,
A8: sanitation and hygiene assets.
A9: Survey used for analysis: | B9: =A1025 -> MICS14
A10: =B1028 -> 
A11: =B1027 -> 
A14: Use of drinking water sources | C14: NATIONAL wealth index quintile | H14: URBAN wealth index quintile | M14: RURAL wealth index quintile | R14: SUB-REGIONS: | BA14: Raw numbers of respondents: | BB14: Use of drinking water sources | BC14: NATIONAL wealth index quintile | BH14: URBAN wealth index quintile | BM14: RURAL wealth index quintile | BR14: SUB-REGIONS:
A15: Weighted percentage (used in graphs) | C15: Poorest | D15: Poor | E15: Middle | F15: Rich | G15: Richest | H15: Poorest | I15: Poor | J15: Middle | K15: Rich | L15: Richest | M15: Poorest | N15: Poor | O15: Middle | P15: Rich | Q15: Richest | R15: Central | S15: Northern | T15: Southern | BA15: Water data, raw numbers (weighted) | BC15: Poorest | BD15: Poor | BE15: Middle | BF15: Rich | BG15: Richest | BH15: Poorest | BI15: Poor | BJ15: Middle | BK15: Rich | BL15: Richest | BM15: Poorest | BN15: Poor | BO15: Middle | BP15: Rich | BQ15: Richest | BR15: Central | BS15: Northern | BT15: Southern
A16: Water | B16: Improved | C16: 81.5 | D16: 83.9 | E16: 83.3 | F16: 86.2 | G16: 96.2 | H16: 94.8 | I16: 99.2 | J16: 99.3 | K16: 99.5 | L16: 100 | M16: 81.1 | N16: 82.7 | O16: 83.8 | P16: 84.4 | Q16: 89.3 | R16: 83.9 | S16: 90.3 | T16: 87.1 | BA16: Water | BB16: Improved | BC16: N/A | BD16: N/A | BE16: N/A | BF16: N/A | BG16: N/A | BH16: N/A | BI16: N/A | BJ16: N/A | BK16: N/A | BL16: N/A | BM16: N/A | BN16: N/A | BO16: N/A | BP16: N/A | BQ16: N/A | BR16: N/A | BS16: N/A | BT16: N/A
B17: Not Improved | C17: 18.5 | D17: 16.1 | E17: 16.7 | F17: 13.8 | G17: 3.8 | H17: 5.2 | I17: 0.8 | J17: 0.7 | K17: 0.5 | L17: 0 | M17: 18.9 | N17: 17.3 | O17: 16.2 | P17: 15.6 | Q17: 10.7 | R17: 16.1 | S17: 9.7 | T17: 12.9 | BB17: Not Improved | BC17: N/A | BD17: N/A | BE17: N/A | BF17: N/A | BG17: N/A | BH17: N/A | BI17: N/A | BJ17: N/A | BK17: N/A | BL17: N/A | BM17: N/A | BN17: N/A | BO17: N/A | BP17: N/A | BQ17: N/A | BR17: N/A | BS17: N/A | BT17: N/A
A18: Water ladder | B18: Basic | C18: 48.4 | D18: 49.7 | E18: 48.5 | F18: 53.1 | G18: 76.5 | H18: 72.1 | I18: 74.8 | J18: 85 | K18: 87.6 | L18: 95.2 | M18: 47.8 | N18: 48.6 | O18: 48.3 | P18: 50.3 | Q18: 59.8 | R18: 58.1 | S18: 62 | T18: 50.6 | BA18: Water ladder | BB18: Basic | BC18: N/A | BD18: N/A | BE18: N/A | BF18: N/A | BG18: N/A | BH18: N/A | BI18: N/A | BJ18: N/A | BK18: N/A | BL18: N/A | BM18: N/A | BN18: N/A | BO18: N/A | BP18: N/A | BQ18: N/A | BR18: N/A | BS18: N/A | BT18: N/A
B19: Limited | C19: 33 | D19: 34.1 | E19: 34.7 | F19: 32.9 | G19: 19.4 | H19: 22.1 | I19: 24.2 | J19: 14.1 | K19: 11.8 | L19: 4.8 | M19: 33.3 | N19: 34.1 | O19: 35.4 | P19: 34 | Q19: 29.3 | R19: 25.6 | S19: 28 | T19: 36.2 | BB19: Limited | BC19: N/A | BD19: N/A | BE19: N/A | BF19: N/A | BG19: N/A | BH19: N/A | BI19: N/A | BJ19: N/A | BK19: N/A | BL19: N/A | BM19: N/A | BN19: N/A | BO19: N/A | BP19: N/A | BQ19: N/A | BR19: N/A | BS19: N/A | BT19: N/A
B20: Unimproved | C20: 15.2 | D20: 13 | E20: 13.5 | F20: 11.1 | G20: 3.3 | H20: 4.4 | I20: 0.8 | J20: 0.8 | K20: 0.6 | L20: 0 | M20: 15.5 | N20: 14.1 | O20: 12.9 | P20: 12.4 | Q20: 8.7 | R20: 14.1 | S20: 5.2 | T20: 10.6 | BB20: Unimproved | BC20: N/A | BD20: N/A | BE20: N/A | BF20: N/A | BG20: N/A | BH20: N/A | BI20: N/A | BJ20: N/A | BK20: N/A | BL20: N/A | BM20: N/A | BN20: N/A | BO20: N/A | BP20: N/A | BQ20: N/A | BR20: N/A | BS20: N/A | BT20: N/A
B21: Surface water | C21: 3.4 | D21: 3.2 | E21: 3.2 | F21: 2.9 | G21: 0.8 | H21: 1.3 | I21: 0.2 | J21: 0 | K21: 0 | L21: 0 | M21: 3.5 | N21: 3.2 | O21: 3.4 | P21: 3.3 | Q21: 2.1 | R21: 2.2 | S21: 4.8 | T21: 2.7 | BB21: Surface water | BC21: N/A | BD21: N/A | BE21: N/A | BF21: N/A | BG21: N/A | BH21: N/A | BI21: N/A | BJ21: N/A | BK21: N/A | BL21: N/A | BM21: N/A | BN21: N/A | BO21: N/A | BP21: N/A | BQ21: N/A | BR21: N/A | BS21: N/A | BT21: N/A
A22: Improved water point at more than 30 minutes | B22: Yes | C22: 40.5 | D22: 40.7 | E22: 41.7 | F22: 38.3 | G22: 20.2 | H22: 23.4 | I22: 24.5 | J22: 14.3 | K22: 11.8 | L22: 4.8 | M22: 41 | N22: 41.3 | O22: 42.3 | P22: 40.3 | Q22: 32.9 | R22: 30.6 | S22: 31.1 | T22: 41.7 | BA22: Improved water point at more than 30 minutes | BB22: Yes | BC22: N/A | BD22: N/A | BE22: N/A | BF22: N/A | BG22: N/A | BH22: N/A | BI22: N/A | BJ22: N/A | BK22: N/A | BL22: N/A | BM22: N/A | BN22: N/A | BO22: N/A | BP22: N/A | BQ22: N/A | BR22: N/A | BS22: N/A | BT22: N/A
B23: No | C23: 59.5 | D23: 59.3 | E23: 58.3 | F23: 61.7 | G23: 79.8 | H23: 76.6 | I23: 75.5 | J23: 85.7 | K23: 88.2 | L23: 95.2 | M23: 59 | N23: 58.7 | O23: 57.7 | P23: 59.7 | Q23: 67.1 | R23: 69.4 | S23: 68.9 | T23: 58.3 | BB23: No | BC23: N/A | BD23: N/A | BE23: N/A | BF23: N/A | BG23: N/A | BH23: N/A | BI23: N/A | BJ23: N/A | BK23: N/A | BL23: N/A | BM23: N/A | BN23: N/A | BO23: N/A | BP23: N/A | BQ23: N/A | BR23: N/A | BS23: N/A | BT23: N/A
A24: Manually calculated ratios | B24: Improved wells
B25: Improved springs
B26: Other
C27: NATIONAL wealth index quintile | H27: URBAN wealth index quintile | M27: RURAL wealth index quintile | R27: SUB-REGIONS: | BA27: Raw numbers of respondents: | BB27: Use of drinking water sources | BC27: NATIONAL wealth index quintile | BH27: URBAN wealth index quintile | BM27: RURAL wealth index quintile | BR27: SUB-REGIONS:
A28: Percentage based on weighted population | C28: Poorest | D28: Poor | E28: Middle | F28: Rich | G28: Richest | H28: Poorest | I28: Poor | J28: Middle | K28: Rich | L28: Richest | M28: Poorest | N28: Poor | O28: Middle | P28: Rich | Q28: Richest | R28: Central | S28: Northern | T28: Southern | BA28: Water data, raw numbers (weighted) | BC28: Poorest | BD28: Poor | BE28: Middle | BF28: Rich | BG28: Richest | BH28: Poorest | BI28: Poor | BJ28: Middle | BK28: Rich | BL28: Richest | BM28: Poorest | BN28: Poor | BO28: Middle | BP28: Rich | BQ28: Richest | BR28: Central | BS28: Northern | BT28: Southern
A29: Piped water | B29: Yes | C29: 0.4 | D29: 0.5 | E29: 0.7 | F29: 1.7 | G29: 7.4 | H29: 10 | I29: 16.6 | J29: 14.5 | K29: 13.8 | L29: 2 | M29: 0.2 | N29: 0.3 | O29: 0.3 | P29: 0.6 | Q29: 2 | R29: 1.4 | S29: 2.8 | T29: 2.6 | BA29: Piped water | BB29: Yes | BC29: N/A | BD29: N/A | BE29: N/A | BF29: N/A | BG29: N/A | BH29: N/A | BI29: N/A | BJ29: N/A | BK29: N/A | BL29: N/A | BM29: N/A | BN29: N/A | BO29: N/A | BP29: N/A | BQ29: N/A | BR29: N/A | BS29: N/A | BT29: N/A
B30: No | C30: 5.9 | D30: 5.8 | E30: 7.4 | F30: 10.8 | G30: 23 | H30: 47.6 | I30: 57.1 | J30: 51.3 | K30: 28.4 | L30: 13.4 | M30: 5 | N30: 4.9 | O30: 6.1 | P30: 6 | Q30: 8 | R30: 7 | S30: 11.1 | T30: 13.4 | BB30: No | BC30: N/A | BD30: N/A | BE30: N/A | BF30: N/A | BG30: N/A | BH30: N/A | BI30: N/A | BJ30: N/A | BK30: N/A | BL30: N/A | BM30: N/A | BN30: N/A | BO30: N/A | BP30: N/A | BQ30: N/A | BR30: N/A | BS30: N/A | BT30: N/A
A31: Piped water on premises | B31: Yes | C31: 0.1 | D31: 0.1 | E31: 0.2 | F31: 0.8 | G31: 14 | H31: 2.2 | I31: 3.8 | J31: 6.9 | K31: 16.2 | L31: 53.1 | M31: 0 | N31: 0.1 | O31: 0.1 | P31: 0.6 | Q31: 3.6 | R31: 2.5 | S31: 4.7 | T31: 3.1 | BA31: Piped water on premises | BB31: Yes | BC31: N/A | BD31: N/A | BE31: N/A | BF31: N/A | BG31: N/A | BH31: N/A | BI31: N/A | BJ31: N/A | BK31: N/A | BL31: N/A | BM31: N/A | BN31: N/A | BO31: N/A | BP31: N/A | BQ31: N/A | BR31: N/A | BS31: N/A | BT31: N/A
B32: No | C32: 0.5 | D32: 0.4 | E32: 0.7 | F32: 2.5 | G32: 16.9 | H32: 5.9 | I32: 11.9 | J32: 20.7 | K32: 38 | L32: 29.9 | M32: 0.3 | N32: 0.3 | O32: 0.4 | P32: 1.3 | Q32: 4.9 | R32: 4.4 | S32: 6.8 | T32: 3.3 | BB32: No | BC32: N/A | BD32: N/A | BE32: N/A | BF32: N/A | BG32: N/A | BH32: N/A | BI32: N/A | BJ32: N/A | BK32: N/A | BL32: N/A | BM32: N/A | BN32: N/A | BO32: N/A | BP32: N/A | BQ32: N/A | BR32: N/A | BS32: N/A | BT32: N/A
A33: Piped water into dwelling | B33: Yes | C33: N/A | D33: N/A | E33: N/A | F33: N/A | G33: N/A | H33: N/A | I33: N/A | J33: N/A | K33: N/A | L33: N/A | M33: N/A | N33: N/A | O33: N/A | P33: N/A | Q33: N/A | R33: N/A | S33: N/A | T33: N/A | BA33: Piped water into dwelling | BB33: Yes | BC33: N/A | BD33: N/A | BE33: N/A | BF33: N/A | BG33: N/A | BH33: N/A | BI33: N/A | BJ33: N/A | BK33: N/A | BL33: N/A | BM33: N/A | BN33: N/A | BO33: N/A | BP33: N/A | BQ33: N/A | BR33: N/A | BS33: N/A | BT33: N/A
B34: No | C34: N/A | D34: N/A | E34: N/A | F34: N/A | G34: N/A | H34: N/A | I34: N/A | J34: N/A | K34: N/A | L34: N/A | M34: N/A | N34: N/A | O34: N/A | P34: N/A | Q34: N/A | R34: N/A | S34: N/A | T34: N/A | BB34: No | BC34: N/A | BD34: N/A | BE34: N/A | BF34: N/A | BG34: N/A | BH34: N/A | BI34: N/A | BJ34: N/A | BK34: N/A | BL34: N/A | BM34: N/A | BN34: N/A | BO34: N/A | BP34: N/A | BQ34: N/A | BR34: N/A | BS34: N/A | BT34: N/A
A35: Water source on premises | B35: Yes | C35: 70.8 | D35: 73.5 | E35: 70.9 | F35: 65.8 | G35: 32 | H35: 24.2 | I35: 8.1 | J35: 5.6 | K35: 2.5 | L35: 0.4 | M35: 71.9 | N35: 73.7 | O35: 73.4 | P35: 71.4 | Q35: 65.9 | R35: 63.3 | S35: 62.1 | T35: 62.2 | BA35: Water source on premises | BB35: Yes | BC35: N/A | BD35: N/A | BE35: N/A | BF35: N/A | BG35: N/A | BH35: N/A | BI35: N/A | BJ35: N/A | BK35: N/A | BL35: N/A | BM35: N/A | BN35: N/A | BO35: N/A | BP35: N/A | BQ35: N/A | BR35: N/A | BS35: N/A | BT35: N/A
B36: No | C36: 3.6 | D36: 3.2 | E36: 3.3 | F36: 4.1 | G36: 2.7 | H36: 4.8 | I36: 1.7 | J36: 0.3 | K36: 0.6 | L36: 0 | M36: 3.5 | N36: 3.1 | O36: 3.1 | P36: 4 | Q36: 4.5 | R36: 5.1 | S36: 2.4 | T36: 2.2 | BB36: No | BC36: N/A | BD36: N/A | BE36: N/A | BF36: N/A | BG36: N/A | BH36: N/A | BI36: N/A | BJ36: N/A | BK36: N/A | BL36: N/A | BM36: N/A | BN36: N/A | BO36: N/A | BP36: N/A | BQ36: N/A | BR36: N/A | BS36: N/A | BT36: N/A
A37: Improved Water source on premises | B37: Yes | C37: 14 | D37: 11.8 | E37: 12.2 | F37: 10.3 | G37: 2.8 | H37: 3.4 | I37: 0.7 | J37: 0.7 | K37: 0.5 | L37: 0 | M37: 14.3 | N37: 13 | O37: 11.5 | P37: 11.5 | Q37: 8 | R37: 13.2 | S37: 4.5 | T37: 9.2 | BA37: Improved water source on premises | BB37: Yes | BC37: N/A | BD37: N/A | BE37: N/A | BF37: N/A | BG37: N/A | BH37: N/A | BI37: N/A | BJ37: N/A | BK37: N/A | BL37: N/A | BM37: N/A | BN37: N/A | BO37: N/A | BP37: N/A | BQ37: N/A | BR37: N/A | BS37: N/A | BT37: N/A
B38: No | C38: 0.1 | D38: 0.3 | E38: 0.1 | F38: 0.4 | G38: 0.1 | H38: 0.1 | I38: 0 | J38: 0 | K38: 0 | L38: 0.3 | M38: 0 | N38: 0.3 | O38: 0.1 | P38: 0.4 | Q38: 0.2 | R38: 0.1 | S38: 0.2 | T38: 0.3 | BB38: No | BC38: N/A | BD38: N/A | BE38: N/A | BF38: N/A | BG38: N/A | BH38: N/A | BI38: N/A | BJ38: N/A | BK38: N/A | BL38: N/A | BM38: N/A | BN38: N/A | BO38: N/A | BP38: N/A | BQ38: N/A | BR38: N/A | BS38: N/A | BT38: N/A
A39: Piped water on premises available when needed | B39: Yes | C39: N/A | D39: N/A | E39: N/A | F39: N/A | G39: N/A | H39: N/A | I39: N/A | J39: N/A | K39: N/A | L39: N/A | M39: N/A | N39: N/A | O39: N/A | P39: N/A | Q39: N/A | R39: N/A | S39: N/A | T39: N/A | BA39: Piped water on premises available when needed | BB39: Yes | BC39: N/A | BD39: N/A | BE39: N/A | BF39: N/A | BG39: N/A | BH39: N/A | BI39: N/A | BJ39: N/A | BK39: N/A | BL39: N/A | BM39: N/A | BN39: N/A | BO39: N/A | BP39: N/A | BQ39: N/A | BR39: N/A | BS39: N/A | BT39: N/A
B40: No | C40: N/A | D40: N/A | E40: N/A | F40: N/A | G40: N/A | H40: N/A | I40: N/A | J40: N/A | K40: N/A | L40: N/A | M40: N/A | N40: N/A | O40: N/A | P40: N/A | Q40: N/A | R40: N/A | S40: N/A | T40: N/A | BB40: No | BC40: N/A | BD40: N/A | BE40: N/A | BF40: N/A | BG40: N/A | BH40: N/A | BI40: N/A | BJ40: N/A | BK40: N/A | BL40: N/A | BM40: N/A | BN40: N/A | BO40: N/A | BP40: N/A | BQ40: N/A | BR40: N/A | BS40: N/A | BT40: N/A
A41: Water point at more than 30 minutes | B41: Yes | C41: 1.1 | D41: 1 | E41: 1.3 | F41: 0.6 | G41: 0.3 | H41: 0.6 | I41: 0 | J41: 0 | K41: 0 | L41: 0 | M41: 1.1 | N41: 1.1 | O41: 1.3 | P41: 0.8 | Q41: 0.6 | R41: 0.7 | S41: 0.6 | T41: 1 | BA41: Water point at more than 30 minutes | BB41: Yes | BC41: N/A | BD41: N/A | BE41: N/A | BF41: N/A | BG41: N/A | BH41: N/A | BI41: N/A | BJ41: N/A | BK41: N/A | BL41: N/A | BM41: N/A | BN41: N/A | BO41: N/A | BP41: N/A | BQ41: N/A | BR41: N/A | BS41: N/A | BT41: N/A
B42: No | C42: 0 | D42: 0 | E42: 0 | F42: 0 | G42: 0 | H42: 0 | I42: 0 | J42: 0 | K42: 0 | L42: 0 | M42: 0 | N42: 0 | O42: 0.1 | P42: 0 | Q42: 0 | R42: 0.1 | S42: 0 | T42: 0 | BB42: No | BC42: N/A | BD42: N/A | BE42: N/A | BF42: N/A | BG42: N/A | BH42: N/A | BI42: N/A | BJ42: N/A | BK42: N/A | BL42: N/A | BM42: N/A | BN42: N/A | BO42: N/A | BP42: N/A | BQ42: N/A | BR42: N/A | BS42: N/A | BT42: N/A
A43: Water source available when needed | B43: Yes | C43: 0 | D43: 0 | E43: 0 | F43: 0.1 | G43: 0.1 | H43: 0 | I43: 0 | J43: 0 | K43: 0 | L43: 0 | M43: 0 | N43: 0 | O43: 0 | P43: 0.1 | Q43: 0.1 | R43: 0.1 | S43: 0 | T43: 0 | BA43: Water source available when needed | BB43: Yes | BC43: N/A | BD43: N/A | BE43: N/A | BF43: N/A | BG43: N/A | BH43: N/A | BI43: N/A | BJ43: N/A | BK43: N/A | BL43: N/A | BM43: N/A | BN43: N/A | BO43: N/A | BP43: N/A | BQ43: N/A | BR43: N/A | BS43: N/A | BT43: N/A
B44: No | C44: 0.1 | D44: 0.1 | E44: 0 | F44: 0 | G44: 0 | H44: 0 | I44: 0 | J44: 0 | K44: 0 | L44: 0 | M44: 0.1 | N44: 0 | O44: 0.1 | P44: 0 | Q44: 0 | R44: 0 | S44: 0.1 | T44: 0 | BB44: No | BC44: N/A | BD44: N/A | BE44: N/A | BF44: N/A | BG44: N/A | BH44: N/A | BI44: N/A | BJ44: N/A | BK44: N/A | BL44: N/A | BM44: N/A | BN44: N/A | BO44: N/A | BP44: N/A | BQ44: N/A | BR44: N/A | BS44: N/A | BT44: N/A
A45: Improved water source available when needed | B45: Yes | C45: 3.4 | D45: 3.2 | E45: 3.2 | F45: 2.9 | G45: 0.7 | H45: 1.2 | I45: 0.1 | J45: 0 | K45: 0 | L45: 0 | M45: 3.4 | N45: 3.1 | O45: 3.4 | P45: 3.3 | Q45: 2.1 | R45: 2.2 | S45: 4.6 | T45: 2.6 | BA45: Improved water source available when needed | BB45: Yes | BC45: N/A | BD45: N/A | BE45: N/A | BF45: N/A | BG45: N/A | BH45: N/A | BI45: N/A | BJ45: N/A | BK45: N/A | BL45: N/A | BM45: N/A | BN45: N/A | BO45: N/A | BP45: N/A | BQ45: N/A | BR45: N/A | BS45: N/A | BT45: N/A
B46: No | C46: 0 | D46: 0 | E46: 0 | F46: 0 | G46: 0.1 | H46: 0 | I46: 0 | J46: 0 | K46: 0 | L46: 0.8 | M46: 0 | N46: 0 | O46: 0 | P46: 0 | Q46: 0 | R46: 0 | S46: 0 | T46: 0 | BB46: No | BC46: N/A | BD46: N/A | BE46: N/A | BF46: N/A | BG46: N/A | BH46: N/A | BI46: N/A | BJ46: N/A | BK46: N/A | BL46: N/A | BM46: N/A | BN46: N/A | BO46: N/A | BP46: N/A | BQ46: N/A | BR46: N/A | BS46: N/A | BT46: N/A
A47: Microbiological quality at point of collection | B47: Not contaminated (No E. coli in 100 mL) | C47: N/A | D47: N/A | E47: N/A | F47: N/A | G47: N/A | H47: N/A | I47: N/A | J47: N/A | K47: N/A | L47: N/A | M47: N/A | N47: N/A | O47: N/A | P47: N/A | Q47: N/A | R47: N/A | S47: N/A | T47: N/A | BA47: Microbiological quality at point of collection | BB47: Not contaminated (No E. coli in 100 mL) | BC47: N/A | BD47: N/A | BE47: N/A | BF47: N/A | BG47: N/A | BH47: N/A | BI47: N/A | BJ47: N/A | BK47: N/A | BL47: N/A | BM47: N/A | BN47: N/A | BO47: N/A | BP47: N/A | BQ47: N/A | BR47: N/A | BS47: N/A | BT47: N/A
B48: Contaminated (E. coli detected in 100 mL) | C48: N/A | D48: N/A | E48: N/A | F48: N/A | G48: N/A | H48: N/A | I48: N/A | J48: N/A | K48: N/A | L48: N/A | M48: N/A | N48: N/A | O48: N/A | P48: N/A | Q48: N/A | R48: N/A | S48: N/A | T48: N/A | BB48: Contaminated (E. coli detected in 100 mL) | BC48: N/A | BD48: N/A | BE48: N/A | BF48: N/A | BG48: N/A | BH48: N/A | BI48: N/A | BJ48: N/A | BK48: N/A | BL48: N/A | BM48: N/A | BN48: N/A | BO48: N/A | BP48: N/A | BQ48: N/A | BR48: N/A | BS48: N/A | BT48: N/A
B49: Highly contaminated (>100 CFU/100 mL) | C49: N/A | D49: N/A | E49: N/A | F49: N/A | G49: N/A | H49: N/A | I49: N/A | J49: N/A | K49: N/A | L49: N/A | M49: N/A | N49: N/A | O49: N/A | P49: N/A | Q49: N/A | R49: N/A | S49: N/A | T49: N/A | BB49: Highly contaminated (>100 CFU/100 mL) | BC49: N/A | BD49: N/A | BE49: N/A | BF49: N/A | BG49: N/A | BH49: N/A | BI49: N/A | BJ49: N/A | BK49: N/A | BL49: N/A | BM49: N/A | BN49: N/A | BO49: N/A | BP49: N/A | BQ49: N/A | BR49: N/A | BS49: N/A | BT49: N/A
A50: Microbiological quality of improved water sources at point of collection | B50: Not contaminated (No E. coli in 100 mL) | C50: N/A | D50: N/A | E50: N/A | F50: N/A | G50: N/A | H50: N/A | I50: N/A | J50: N/A | K50: N/A | L50: N/A | M50: N/A | N50: N/A | O50: N/A | P50: N/A | Q50: N/A | R50: N/A | S50: N/A | T50: N/A | BA50: Microbiological quality of improved water sources at point of collection | BB50: Not contaminated (No E. coli in 100 mL) | BC50: N/A | BD50: N/A | BE50: N/A | BF50: N/A | BG50: N/A | BH50: N/A | BI50: N/A | BJ50: N/A | BK50: N/A | BL50: N/A | BM50: N/A | BN50: N/A | BO50: N/A | BP50: N/A | BQ50: N/A | BR50: N/A | BS50: N/A | BT50: N/A
B51: Contaminated (E. coli detected in 100 mL) | C51: N/A | D51: N/A | E51: N/A | F51: N/A | G51: N/A | H51: N/A | I51: N/A | J51: N/A | K51: N/A | L51: N/A | M51: N/A | N51: N/A | O51: N/A | P51: N/A | Q51: N/A | R51: N/A | S51: N/A | T51: N/A | BB51: Contaminated (E. coli detected in 100 mL) | BC51: N/A | BD51: N/A | BE51: N/A | BF51: N/A | BG51: N/A | BH51: N/A | BI51: N/A | BJ51: N/A | BK51: N/A | BL51: N/A | BM51: N/A | BN51: N/A | BO51: N/A | BP51: N/A | BQ51: N/A | BR51: N/A | BS51: N/A | BT51: N/A
B52: Highly contaminated (>100 CFU/100 mL) | C52: N/A | D52: N/A | E52: N/A | F52: N/A | G52: N/A | H52: N/A | I52: N/A | J52: N/A | K52: N/A | L52: N/A | M52: N/A | N52: N/A | O52: N/A | P52: N/A | Q52: N/A | R52: N/A | S52: N/A | T52: N/A | BB52: Highly contaminated (>100 CFU/100 mL) | BC52: N/A | BD52: N/A | BE52: N/A | BF52: N/A | BG52: N/A | BH52: N/A | BI52: N/A | BJ52: N/A | BK52: N/A | BL52: N/A | BM52: N/A | BN52: N/A | BO52: N/A | BP52: N/A | BQ52: N/A | BR52: N/A | BS52: N/A | BT52: N/A
A53: Microbiological quality of piped on premises at point of collection | B53: Not contaminated (No E. coli in 100 mL) | C53: N/A | D53: N/A | E53: N/A | F53: N/A | G53: N/A | H53: N/A | I53: N/A | J53: N/A | K53: N/A | L53: N/A | M53: N/A | N53: N/A | O53: N/A | P53: N/A | Q53: N/A | R53: N/A | S53: N/A | T53: N/A | BA53: Microbiological quality of piped on premises at point of collection | BB53: Not contaminated (No E. coli in 100 mL) | BC53: N/A | BD53: N/A | BE53: N/A | BF53: N/A | BG53: N/A | BH53: N/A | BI53: N/A | BJ53: N/A | BK53: N/A | BL53: N/A | BM53: N/A | BN53: N/A | BO53: N/A | BP53: N/A | BQ53: N/A | BR53: N/A | BS53: N/A | BT53: N/A
B54: Contaminated (E. coli detected in 100 mL) | C54: N/A | D54: N/A | E54: N/A | F54: N/A | G54: N/A | H54: N/A | I54: N/A | J54: N/A | K54: N/A | L54: N/A | M54: N/A | N54: N/A | O54: N/A | P54: N/A | Q54: N/A | R54: N/A | S54: N/A | T54: N/A | BB54: Contaminated (E. coli detected in 100 mL) | BC54: N/A | BD54: N/A | BE54: N/A | BF54: N/A | BG54: N/A | BH54: N/A | BI54: N/A | BJ54: N/A | BK54: N/A | BL54: N/A | BM54: N/A | BN54: N/A | BO54: N/A | BP54: N/A | BQ54: N/A | BR54: N/A | BS54: N/A | BT54: N/A
B55: Highly contaminated (>100 CFU/100 mL) | C55: N/A | D55: N/A | E55: N/A | F55: N/A | G55: N/A | H55: N/A | I55: N/A | J55: N/A | K55: N/A | L55: N/A | M55: N/A | N55: N/A | O55: N/A | P55: N/A | Q55: N/A | R55: N/A | S55: N/A | T55: N/A | BB55: Highly contaminated (>100 CFU/100 mL) | BC55: N/A | BD55: N/A | BE55: N/A | BF55: N/A | BG55: N/A | BH55: N/A | BI55: N/A | BJ55: N/A | BK55: N/A | BL55: N/A | BM55: N/A | BN55: N/A | BO55: N/A | BP55: N/A | BQ55: N/A | BR55: N/A | BS55: N/A | BT55: N/A
C56: NATIONAL wealth index quintile | H56: 9.8 | I56: 16.7 | J56: 14.1 | K56: 14 | L56: 2.3 | M56: 0.5 | N56: 0.3 | O56: 0.3 | P56: 0.6 | Q56: 2 | R56: 1.3 | S56: 3.1 | T56: 2.7 | BA56: Raw numbers of respondents: | BB56: Use of drinking water sources | BC56: NATIONAL wealth index quintile | BH56: URBAN wealth index quintile | BM56: RURAL wealth index quintile | BR56: SUB-REGIONS:
A57: Percentage based on weighted population | C57: Poorest | D57: Poor | E57: Middle | F57: Rich | G57: Richest | H57: 15 | I57: 20.4 | J57: 28.8 | K57: 56 | L57: 87.3 | M57: 7.3 | N57: 5.9 | O57: 6 | P57: 8.4 | Q57: 15.8 | R57: 14.6 | S57: 14.3 | T57: 11.8 | BA57: Water data, raw numbers (weighted) | BC57: Poorest | BD57: Poor | BE57: Middle | BF57: Rich | BG57: Richest | BH57: Poorest | BI57: Poor | BJ57: Middle | BK57: Rich | BL57: Richest | BM57: Poorest | BN57: Poor | BO57: Middle | BP57: Rich | BQ57: Richest | BR57: Central | BS57: Northern | BT57: Southern
A58: Main source of drinking water | B58: Piped into dwelling | C58: 92.4 | D58: 94 | E58: 93.8 | F58: 90.1 | G58: 63.8 | H58: 85 | I58: 79.6 | J58: 71.2 | K58: 44 | L58: 12.7 | M58: 92.7 | N58: 94.1 | O58: 94 | P58: 91.6 | Q58: 84.2 | R58: 85.4 | S58: 85.7 | T58: 88.2
B59: Piped into compound, yard or plot | C59: 32.7 | D59: 34 | E59: 34.4 | F59: 32.4 | G59: 18 | H59: 19.9 | I59: 20.2 | J59: 12.1 | K59: 10.1 | L59: 4.7 | M59: 33.1 | N59: 34.1 | O59: 35.3 | P59: 33.8 | Q59: 28.8 | R59: 25.2 | S59: 27.1 | T59: 35.2
B60: Piped to neighbour | C60: 48.1 | D60: 49.4 | E60: 48.2 | F60: 52.2 | G60: 70.9 | H60: 65.1 | I60: 62.4 | J60: 73.1 | K60: 75.4 | L60: 93 | M60: 47.5 | N60: 48.4 | O60: 48.1 | P60: 50 | Q60: 58.7 | R60: 57.4 | S60: 60.1 | T60: 49.2
B61: Public tap / standpipe | C61: 19.1 | D61: 16.6 | E61: 17.4 | F61: 15.5 | G61: 11.1 | H61: 15 | I61: 17.4 | J61: 14.8 | K61: 14.5 | L61: 2.3 | M61: 19.4 | N61: 17.5 | O61: 16.6 | P61: 16.2 | Q61: 12.6 | R61: 17.4 | S61: 12.8 | T61: 15.5
B62: Tube well, Borehole | C62: 5.7 | D62: 4.8 | E62: 5.2 | F62: 8.7 | G62: 35.8 | H62: 13.8 | I62: 19.9 | J62: 28.8 | K62: 56 | L62: 87.3 | M62: 5.2 | N62: 4.9 | O62: 4.6 | P62: 7.5 | Q62: 14.8 | R62: 12.3 | S62: 14.1 | T62: 11.4
B63: Protected well | C63: 94.3 | D63: 95.2 | E63: 94.8 | F63: 91.3 | G63: 64.2 | H63: 86.2 | I63: 80.1 | J63: 71.2 | K63: 44 | L63: 12.7 | M63: 94.8 | N63: 95.1 | O63: 95.4 | P63: 92.5 | Q63: 85.2 | R63: 87.7 | S63: 85.9 | T63: 88.6
B64: Unprotected well | C64: 100 | D64: 100 | E64: 100 | F64: 100 | G64: 100 | H64: 100 | I64: 100 | J64: 100 | K64: 100 | L64: 100 | M64: 100 | N64: 100 | O64: 100 | P64: 100 | Q64: 100 | R64: 100 | S64: 100 | T64: 100
B65: Protected spring | C65: 100 | D65: 100 | E65: 100 | F65: 100 | G65: 100 | H65: 100 | I65: 100 | J65: 100 | K65: 100 | L65: 100 | M65: 100 | N65: 100 | O65: 100 | P65: 100 | Q65: 100 | R65: 100 | S65: 100 | T65: 100
B66: Unprotected spring | C66: 100 | D66: 100 | E66: 100 | F66: 100 | G66: 100 | H66: 100 | I66: 100 | J66: 100 | K66: 100 | L66: 100 | M66: 100 | N66: 100 | O66: 100 | P66: 100 | Q66: 100 | R66: 100 | S66: 100 | T66: 100
B67: Rainwater collection | C67: 100 | D67: 100 | E67: 100 | F67: 100 | G67: 100 | H67: 100 | I67: 100 | J67: 100 | K67: 100 | L67: 100 | M67: 100 | N67: 100 | O67: 100 | P67: 100 | Q67: 100 | R67: 100 | S67: 100 | T67: 100
B68: Tanker-truck | C68: 0 | D68: 0 | E68: 0.02090250394 | F68: 0.1132599384 | G68: 0.05016224516 | H68: 0 | I68: 0 | J68: 0 | K68: 0 | L68: 0 | M68: 0 | N68: 0 | O68: 0.01938313987 | P68: 0.08236820279 | Q68: 0.111955727 | R68: 0.08261706396 | S68: 0 | T68: 0.008814670242
B69: Cart with small tank / drum | C69: 0.08254768081 | D69: 0.05958593879 | E69: 0.01263267474 | F69: 0.04889612685 | G69: 0 | H69: 0 | I69: 0 | J69: 0 | K69: 0 | L69: 0 | M69: 0.09567792168 | N69: 0.02247109818 | O69: 0.06126722967 | P69: 0.02433161051 | Q69: 0.03236089214 | R69: 0.03945342141 | S69: 0.06283102919 | T69: 0.0361984516
B70: Surface water (river, stream, dam, lake, pond, canal, irrigation channel) | C70: 3.418239153 | D70: 3.19739087 | E70: 3.205933778 | F70: 2.850059012 | G70: 0.7183136536 | H70: 1.183531793 | I70: 0.125649549 | J70: 0 | K70: 0 | L70: 0 | M70: 3.435630986 | N70: 3.146605052 | O70: 3.381853129 | P70: 3.255331322 | Q70: 2.096903122 | R70: 2.168046088 | S70: 4.638645288 | T70: 2.59931213
B71: Bottled water | C71: 0 | D71: 0 | E71: 0 | F71: 0 | G71: 0.1168077373 | H71: 0 | I71: 0 | J71: 0 | K71: 0 | L71: 0.8484654993 | M71: 0 | N71: 0 | O71: 0 | P71: 0 | Q71: 0 | R71: 0 | S71: 0 | T71: 0.04833732837
B72: Other | C72: 0 | D72: 0.003926733748 | E72: 0 | F72: 0.01358688861 | G72: 0 | H72: 0 | I72: 0 | J72: 0 | K72: 0 | L72: 0 | M72: 0 | N72: 0.001928703017 | O72: 0.002625161972 | P72: 0.01574903272 | Q72: 0 | R72: 0 | S72: 0.02597904742 | T72: 0.0006877966647
B73: Missing | C73: 0.007691527972 | D73: 0.006146223616 | E73: 0 | F73: 0.0302630552 | G73: 0 | H73: 0 | I73: 0 | J73: 0 | K73: 0 | L73: 0 | M73: 0.008914961676 | N73: 0.007132065355 | O73: 0 | P73: 0 | Q73: 0.03509555836 | R73: 0 | S73: 0.01135435678 | T73: 0.01538333968
A108: =A1026 -> Malawi
A109: =A1034 -> 2014
A110: Use of sanitation facilities
A111: by wealth quintile and sub-national region
A112: Notes:
A113: WHO/UNICEF JMP customised wealth index excludes water,
A114: sanitation and hygiene assets.
A115: Survey used for analysis: | B115: =A1025 -> MICS14
A116: =B1030 -> 
A117: =B1029 -> 
A120: Use of sanitation facilities | C120: NATIONAL wealth index quintile | H120: URBAN wealth index quintile | M120: RURAL wealth index quintile | R120: SUB-REGIONS: | BA120: Raw numbers of respondents: | BB120: Use of sanitation facilities | BC120: NATIONAL wealth index quintile | BH120: URBAN wealth index quintile | BM120: RURAL wealth index quintile | BR120: SUB-REGIONS:
A121: Weighted percentage (used in graphs) | C121: Poorest | D121: Poor | E121: Middle | F121: Rich | G121: Richest | H121: Poorest | I121: Poor | J121: Middle | K121: Rich | L121: Richest | M121: Poorest | N121: Poor | O121: Middle | P121: Rich | Q121: Richest | R121: Central | S121: Northern | T121: Southern | BA121: Sanitation data, raw numbers (weighted) | BC121: Poorest | BD121: Poor | BE121: Middle | BF121: Rich | BG121: Richest | BH121: Poorest | BI121: Poor | BJ121: Middle | BK121: Rich | BL121: Richest | BM121: Poorest | BN121: Poor | BO121: Middle | BP121: Rich | BQ121: Richest | BR121: Central | BS121: Northern | BT121: Southern
A122: Sanitation | B122: Improved | C122: =C153+C154+C155+C157+C158+C159+C162+C161*0.5 -> 26.17860794 | D122: =D153+D154+D155+D157+D158+D159+D162+D161*0.5 -> 30.53726607 | E122: 30.57512209 | F122: 34.52467278 | G122: 58.70506896 | H122: 41.03283084 | I122: 48.1456153 | J122: 55.76591804 | K122: 68.19495348 | L122: 85.63837026 | M122: 25.15814454 | N122: 30.13860629 | O122: 30.42218297 | P122: 31.21789807 | Q122: 44.72525404 | R122: 43.80551111 | S122: 47.67725727 | T122: 26.89306365 | BA122: Sanitation | BB122: Improved | BC122: 12220.76236 | BD122: 14104.79947 | BE122: 13873.69609 | BF122: 14929.03545 | BG122: 20102.23665 | BH122: 2441.794141 | BI122: 2598.536432 | BJ122: 2829.526036 | BK122: 2984.478319 | BL122: 3231.652882 | BM122: 10174.58111 | BN122: 12014.19757 | BO122: 11988.5119 | BP122: 12023.44929 | BQ122: 14943.80234 | BR122: 37169.20167 | BS122: 12677.47697 | BT122: 25383.85138
B123: Not Improved | C123: =100-C122 -> 73.82139206 | D123: =100-D122 -> 69.46273393 | E123: 69.42487791 | F123: 65.47532722 | G123: 41.29493104 | H123: 58.96716916 | I123: 51.8543847 | J123: 44.23408196 | K123: 31.80504652 | L123: 14.36162974 | M123: 74.84185546 | N123: 69.86139371 | O123: 69.57781703 | P123: 68.78210193 | Q123: 55.27474596 | R123: 56.19448889 | S123: 52.32274273 | T123: 73.10693635 | BB123: Not Improved | BC123: 11919.23123 | BD123: 10033.70991 | BE123: 10263.52269 | BF123: 9211.046391 | BG123: 4036.793454 | BH123: 874.5778426 | BI123: 724.9515852 | BJ123: 491.741348 | BK123: 331.4874575 | BL123: 91.55294213 | BM123: 10652.59041 | BN123: 8787.725715 | BO123: 8834.876432 | BP123: 8802.502943 | BQ123: 5872.296998 | BR123: 10464.06725 | BS123: 2051.83023 | BT123: 32948.40619
A124: Sanitation ladder | B124: Basic | C124: =C122*C129/100 -> 15.23577965 | D124: =D122*D129/100 -> 19.47473841 | E124: 20.25597471 | F124: 22.98585682 | G124: 39.82867951 | H124: 18.23492879 | I124: 20.64051797 | J124: 27.17369797 | K124: 38.69610176 | L124: 75.05042505 | M124: 14.77517688 | N124: 19.03791095 | O124: 19.86486407 | P124: 22.18214555 | Q124: 32.43372123 | R124: 27.88872855 | S124: 32.63847203 | T124: 17.51596896 | BA124: Sanitation ladder | BB124: Basic | BC124: 7111.613502 | BD124: 8993.114775 | BE124: 9191.303843 | BF124: 9931.332454 | BG124: 13611.41631 | BH124: 1080.683004 | BI124: 1114.01916 | BJ124: 1378.775578 | BK124: 1693.493005 | BL124: 2832.105768 | BM124: 5974.652082 | BN124: 7587.095229 | BO124: 7828.174578 | BP124: 8543.365144 | BQ124: 10806.41734 | BR124: 23634.93659 | BS124: 8670.854279 | BT124: 16532.99001
B125: Limited | C125: =C122*C128/100 -> 10.94282829 | D125: =D122*D128/100 -> 11.06252766 | E125: 10.31914738 | F125: 11.53881596 | G125: 18.87638945 | H125: 22.79790205 | I125: 27.50509732 | J125: 28.59222007 | K125: 29.49885172 | L125: 10.58794521 | M125: 10.38296766 | N125: 11.10069534 | O125: 10.5573189 | P125: 9.035752514 | Q125: 12.2915328 | R125: 15.91678256 | S125: 15.03878524 | T125: 9.377094694 | BB125: Limited | BC125: 5107.790165 | BD125: 5108.493828 | BE125: 4682.392249 | BF125: 4985.492528 | BG125: 6450.989547 | BH125: 1351.105099 | BI125: 1484.517271 | BJ125: 1450.750458 | BK125: 1290.985314 | BL125: 399.5471135 | BM125: 4198.570335 | BN125: 4423.911474 | BO125: 4160.337324 | BP125: 3480.084147 | BQ125: 4095.349783 | BR125: 13489.03899 | BS125: 3995.257964 | BT125: 8850.861367
B126: Unimproved | C126: =100-(C124+C125+C127) -> 60.72535116 | D126: =100-(D124+D125+D127) -> 63.36880205 | E126: 65.96788315 | F126: 63.75872796 | G126: 41.17345405 | H126: 56.64066281 | I126: 51.73755261 | J126: 44.21441584 | K126: 31.80504652 | L126: 14.36162974 | M126: 60.97016129 | N126: 63.3303726 | O126: 65.28673486 | P126: 66.17125609 | Q126: 54.58360516 | R126: 51.89401658 | S126: 48.68415804 | T126: 67.40493156 | BB126: Unimproved | BC126: 8757.847792 | BD126: 8562.725588 | BE126: 9429.100304 | BF126: 8796.657924 | BG126: 4007.470086 | BH126: 797.422238 | BI126: 721.0686846 | BJ126: 491.0881835 | BK126: 331.4874575 | BL126: 91.55294213 | BM126: 7763.508872 | BN126: 7429.147712 | BO126: 7941.327728 | BP126: 8258.769435 | BQ126: 5728.428442 | BR126: 8415.611715 | BS126: 1515.891912 | BT126: 29622.29807
B127: Open defecation | C127: =C165 -> 13.0960409 | D127: =D165 -> 6.093931876 | E127: 3.456994766 | F127: 1.716599263 | G127: 0.1214769905 | H127: 2.326506347 | I127: 0.1168320932 | J127: 0.01966612062 | K127: 0 | L127: 0 | M127: 13.87169417 | N127: 6.531021117 | O127: 4.291082168 | P127: 2.610845841 | Q127: 0.6911408005 | R127: 4.300472304 | S127: 3.638584695 | T127: 5.702004789 | BB127: Open defecation | BC127: 3161.383434 | BD127: 1470.984317 | BE127: 834.4223901 | BF127: 414.3884668 | BG127: 29.32336731 | BH127: 77.15560469 | BI127: 3.882900616 | BJ127: 0.6531644497 | BK127: 0 | BL127: 0 | BM127: 2889.081536 | BN127: 1358.578002 | BO127: 893.5487035 | BP127: 543.7335078 | BQ127: 143.8685556 | BR127: 2048.455537 | BS127: 535.9383176 | BT127: 3326.10812
A128: Shared among Improved Sanitation | B128: Yes | C128: 41.80065005 | D128: 36.22631979 | E128: 33.75014284 | F128: 33.42194156 | G128: 32.15461591 | H128: 55.56014924 | I128: 57.12897665 | J128: 51.27185399 | K128: 43.25664909 | L128: 12.3635529 | M128: 41.27080057 | N128: 36.83214557 | O128: 34.70270004 | P128: 28.94414126 | Q128: 27.48230965 | R128: 36.33511437 | S128: 31.54289088 | T128: 34.86807906 | BA128: Shared among improved sanitation facilities | BB128: Yes | BC128: N/A | BD128: N/A | BE128: N/A | BF128: N/A | BG128: N/A | BH128: N/A | BI128: N/A | BJ128: N/A | BK128: N/A | BL128: N/A | BM128: N/A | BN128: N/A | BO128: N/A | BP128: N/A | BQ128: N/A | BR128: N/A | BS128: N/A | BT128: N/A
B129: No | C129: 58.19934995 | D129: 63.77368021 | E129: 66.24985716 | F129: 66.57805844 | G129: 67.84538409 | H129: 44.43985076 | I129: 42.87102335 | J129: 48.72814601 | K129: 56.74335091 | L129: 87.6364471 | M129: 58.72919943 | N129: 63.16785443 | O129: 65.29729996 | P129: 71.05585874 | Q129: 72.51769035 | R129: 63.66488563 | S129: 68.45710912 | T129: 65.13192094 | BB129: No | BC129: N/A | BD129: N/A | BE129: N/A | BF129: N/A | BG129: N/A | BH129: N/A | BI129: N/A | BJ129: N/A | BK129: N/A | BL129: N/A | BM129: N/A | BN129: N/A | BO129: N/A | BP129: N/A | BQ129: N/A | BR129: N/A | BS129: N/A | BT129: N/A
A130: Manually calculated ratios | B130: Improved latrines | C130: =(C158+C159+C161*0.5)/(C158+C159+C160+C161)*100 -> 30.26305812 | D130: =(D158+D159+D161*0.5)/(D158+D159+D160+D161)*100 -> 32.56212078 | E130: 31.71884696 | F130: 35.05650208 | G130: 52.91113639 | H130: 41.9939476 | I130: 47.90131711 | J130: 54.45273899 | K130: 63.49594801 | L130: 68.20757931 | M130: 29.34491191 | N130: 32.29336906 | O130: 31.88969426 | P130: 31.9495324 | Q130: 43.29286794 | R130: 44.16060849 | S130: 48.40953736 | T130: 26.71531124
